Workbook

Sheet 省直机关
A1: 附件1：
A2: 贵州省2018年省、市、县、乡四级机关面向社会公开招录公务员职位表
A3: 考区 | B3: 招录单位代码 | C3: 单位名称 | D3: 层级代码 | E3: 机构性质 | F3: 单位地址 | G3: 单位网站 | H3: 单位咨询电话 | I3: 职位名称 | J3: 职位代码 | K3: 职位简介 | L3: 招录人数 | M3: 学历要求 | N3: 学位要求 | O3: 专业要求 | R3: 政治面貌要求 | S3: 定向招录项目要求 | V3: 基层工作经历时间 | W3: 其他报考条件 | X3: 职位工作性质及需要说明的其他事项
O4: 大专 | P4: 本科 | Q4: 研究生 | S4: 四项目人员 | T4: 退役大学生士兵 | U4: 少数民族
A5: 省直 | B5: 000001 | C5: 中共贵州省委办公厅 | D5: 01 | E5: 党的机关 | F5: 贵州省贵阳市南明区广顺路1号 | H5: 0851-85892206 | I5: 中共贵州省委办公厅行政处主任科员及以下 | J5: 01 | K5: 办公室日常工作，文秘工作等 | L5: 2 | M5: 本科及以上 | N5: 学士及以上学位 | V5: 2年
A6: 省直 | B6: 000002 | C6: 贵州省保密技术检查中心（省保密科技测评中心） | D6: 01 | E6: 参照公务员法管理单位 | F6: 贵州省贵阳市南明区广顺路1号 | H6: 0851-85892206 | I6: 贵州省保密技术检查中心（省保密科技测评中心）主任科员及以下 | J6: 01 | K6: 办公室日常工作，文秘工作等 | L6: 3 | M6: 研究生 | N6: 硕士及以上学位 | Q6: 电子科学与技术、计算机科学与技术、信息与通信工程 | V6: 2年 | W6: 国家保密学院毕业生学历学位可放宽至本科学历、学士学位及以上,且不受专业限制 | X6: 需政审
A7: 省直 | B7: 000003 | C7: 中共贵州省委党校 | D7: 01 | E7: 参照公务员法管理单位 | F7: 贵阳市花溪区桐木岭 | G7: www.gzdx.gov.cn | H7: 0851-83602278 | I7: 人事处主任科员及以下 | J7: 01 | K7: 人事工作 | L7: 1 | M7: 本科及以上 | N7: 学士及以上学位 | P7: 中国语言文学类 | Q7: 中国语言文学 | R7: 中共党员 | V7: 2年
A8: 省直 | B8: 000003 | C8: 中共贵州省委党校 | D8: 01 | E8: 参照公务员法管理单位 | F8: 贵阳市花溪区桐木岭 | G8: www.gzdx.gov.cn | H8: 0851-83602278 | I8: 地县党校工作处主任科员及以下 | J8: 02 | K8: 办公室日常工作 | L8: 1 | M8: 本科及以上 | N8: 学士及以上学位 | P8: 中国语言文学类 | Q8: 中国语言文学 | R8: 中共党员 | V8: 2年
A9: 省直 | B9: 000004 | C9: 贵州省高级人民法院 | D9: 01 | E9: 审判机关 | F9: 贵阳市观山湖区林城东路99号 | G9: http://www.guizhoucourt.cn/ | H9: 0851-86209096 | I9: 法官助理 | J9: 01 | K9: 审判辅助工作 | L9: 4 | M9: 本科及以上 | N9: 学士及以上学位 | P9: 法学类 | V9: 2年 | W9: 通过国家司法考试获A证
A10: 省直 | B10: 000004 | C10: 贵州省高级人民法院 | D10: 01 | E10: 审判机关 | F10: 贵阳市观山湖区林城东路99号 | G10: http://www.guizhoucourt.cn/ | H10: 0851-86209096 | I10: 司法行政人员 | J10: 02 | K10: 司法行政工作 | L10: 1 | M10: 本科及以上 | N10: 学士及以上学位 | P10: 会计学、财务管理、审计学 | V10: 2年 | W10: 具有初级会计师及以上技术资格
A11: 省直 | B11: 000005 | C11: 贵州省人民检察院贵阳铁路运输检察院 | D11: 03 | E11: 检察机关 | F11: 贵阳市枣山路83号 | H11: 0851-88183498 | I11: 政治处主任科员及以下 | J11: 01 | K11: 从事司法行政工作 | L11: 1 | M11: 研究生 | Q11: 中国语言文学、新闻学
A12: 省直 | B12: 000005 | C12: 贵州省人民检察院贵阳铁路运输检察院 | D12: 03 | E12: 检察机关 | F12: 贵阳市枣山路83号 | H12: 0851-88183498 | I12: 检察官助理 | J12: 02 | K12: 从事检察辅助工作 | L12: 2 | M12: 研究生 | Q12: 法学 | W12: 通过法律职业资格考试A证
A13: 省直 | B13: 000006 | C13: 贵州省红十字会 | D13: 01 | E13: 参照公务员法管理的人民团体和群众团体 | F13: 贵州省贵阳市云岩区中华北路242号省政府大院5号楼301室 | G13: http://www.gzredcross.cn/ | H13: 0851-86824372 | I13: 办公室主任科员及以下 | J13: 01 | K13: 办公室日常工作 | L13: 1 | M13: 研究生 | N13: 硕士及以上学位 | Q13: 语言学及应用语言学、汉语言文字学、中国古代文学、中国现当代文学 | R13: 中共党员 | V13: 2年
A14: 省直 | B14: 000007 | C14: 中国国际贸易促进委员会贵州省委员会（贵州省博览事务局） | D14: 01 | E14: 参照公务员法管理的人民团体和群众团体 | F14: 贵阳市云岩区延安中路48号世贸广场B区2202 | G14: http://www.gzcom.gov.cn/ztjj/zggjmycjwyhgzsfh/ | H14: 0851-88555519、88555391 | I14: 办公室主任科员及以下 | J14: 01 | K14: 国际贸易促进 | L14: 1 | M14: 本科及以上 | N14: 学士及以上学位 | P14: 经济学 | Q14: 经济学 | V14: 2年
A15: 省直 | B15: 000008 | C15: 中国民主同盟贵州省委员会 | D15: 01 | E15: 民主党派和工商联机关 | F15: 贵阳市云岩区北京路141号 | G15: http://www.mmgzsw.org.cn/ | H15: 0851-86861201 | I15: 办公室主任科员及以下 | J15: 01 | K15: 办公室日常工作 | L15: 1 | M15: 本科及以上 | N15: 学士及以上学位 | R15: 民盟盟员或群众 | V15: 2年
A16: 省直 | B16: 000009 | C16: 中国致公党贵州省委员会 | D16: 01 | E16: 民主党派和工商联机关 | F16: 贵阳市北京路141号省政协14楼 | G16: http://www.gzzg.org/index.html | H16: 0851-86821695 | I16: 办公室主任科员及以下 | J16: 01 | K16: 机关会计等工作 | L16: 1 | M16: 本科及以上 | N16: 学士及以上学位 | V16: 2年 | W16: 具有中级会计师及以上技术资格，并具有两年及以上财会工作经历
A17: 省直 | B17: 000010 | C17: 贵州省无线电管理局安顺分局监测站 | D17: 02 | E17: 参照公务员法管理单位 | F17: 安顺市中华东路138号 | H17: 0851-85251518 | I17: 监测站主任科员及以下 | J17: 01 | K17: 办公室工作、信息技术、无线电监测、无线电检测 | L17: 1 | M17: 本科及以上 | N17: 学士及以上学位 | P17: 工学学科门类 | R17: 中共党员 | V17: 2年 | W17: 英语四级以上 | X17: 需野外作业、24小时监测值班、节假日加班
A18: 省直 | B18: 000011 | C18: 贵州省无线电管理局铜仁分局监测站 | D18: 02 | E18: 参照公务员法管理单位 | F18: 铜仁市东太建材市场无线电办公楼 | H18: 0851-85251518 | I18: 监测站主任科员及以下 | J18: 01 | K18: 信息技术、无线电监测、无线电检测 | L18: 1 | M18: 本科及以上 | N18: 学士及以上学位 | P18: 电子信息类 | Q18: 信息与通信工程 | V18: 2年 | X18: 需野外作业、24小时监测值班、节假日加班
A19: 省直 | B19: 000012 | C19: 贵州省地方海事局 | D19: 01 | E19: 参照公务员法管理单位 | F19: 贵阳市云岩区延安西路66号 | G19: http://www.gzhshw.gov.cn/ | H19: 085185955545 | I19: 内设机构工作人员 | J19: 01 | K19: 航海技术、水运管理 | L19: 2 | M19: 本科及以上 | N19: 学士及以上学位 | P19: 水上运输类、水利水电设备类、港口航道与海岸工程、水利水电工程 | V19: 2年
A20: 省直 | B20: 000013 | C20: 贵州省财政厅 | D20: 01 | E20: 行政机关 | F20: 省政府大院7号楼 | H20: 0851-86827755 | I20: 内设机构工作人员 | J20: 01 | K20: 财政业务 | L20: 2 | M20: 本科及以上 | N20: 学士及以上学位 | P20: 经济学类 | V20: 2年 | W20: 大学 英语六级
A21: 省直 | B21: 000013 | C21: 贵州省财政厅 | D21: 01 | E21: 行政机关 | F21: 省政府大院7号楼 | H21: 0851-86827755 | I21: 内设机构工作人员 | J21: 02 | K21: 财政法规业务 | L21: 2 | M21: 本科及以上 | N21: 学士及以上学位 | P21: 法学类 | V21: 2年 | W21: 大学 英语六级
A22: 省直 | B22: 000014 | C22: 贵州省省级财政国库支付中心 | D22: 01 | E22: 参照公务员法管理单位 | F22: 省政府大院7号楼 | H22: 0851-86827755 | I22: 内设机构工作人员 | J22: 01 | K22: 国库支付管理 | L22: 1 | M22: 本科及以上 | N22: 学士及以上学位 | P22: 经济学类 | V22: 2年 | W22: 大学 英语六级
A23: 省直 | B23: 000015 | C23: 贵州省农业综合开发评审中心 | D23: 01 | E23: 参照公务员法管理单位 | F23: 省政府大院7号楼 | H23: 0851-86827755 | I23: 内设机构工作人员 | J23: 01 | K23: 农业土地开发项目评审 | L23: 1 | M23: 本科及以上 | N23: 学士及以上学位 | P23: 经济学类 | V23: 2年 | W23: 大学 英语六级
A24: 省直 | B24: 000016 | C24: 贵州省辐射环境监理站 | D24: 01 | E24: 参照公务员法管理单位 | F24: 贵州省贵阳市 观山湖区黔灵 山路217号 | H24: 0851- 85766977 | I24: 电离科主任 科员及以下 | J24: 01 | K24: 电离辐射 监测人员 | L24: 2 | M24: 研究生 | N24: 硕士及以上学位 | Q24: 核能与核技术工程或核技术应用
A25: 省直 | B25: 000016 | C25: 贵州省辐射环境监理站 | D25: 01 | E25: 参照公务员法管理单位 | F25: 贵州省贵阳市 观山湖区黔灵 山路217号 | H25: 0851- 85766977 | I25: 电离科主任 科员及以下 | J25: 02 | K25: 电离辐射 监测人员 | L25: 1 | M25: 本科及以上 | N25: 学士及以上学位 | P25: 放射化学、 辐射防护与核安全
A26: 省直 | B26: 000017 | C26: 贵州省农业委员会 | D26: 01 | E26: 行政 机关 | F26: 贵阳市云岩区延安中路62号 | G26: 贵州省农业委员会 | H26: 0851-85283625 | I26: 主任科员及以下 | J26: 01 | K26: 从事兽医相关工作 | L26: 1 | M26: 研究生 | N26: 硕士及以上学位 | Q26: 兽医学类 | R26: 中共 党员 | V26: 2年 | W26: 具有高级（兽医师）及以上职称
A27: 省直 | B27: 000018 | C27: 贵州省渔业局 | D27: 01 | E27: 参照公务员法管理单位 | F27: 贵阳市云岩区延安中路62号 | G27: 贵州省农业委员会 | H27: 0851-85283625 | I27: 主任科员及以下 | J27: 01 | K27: 工作人员 | L27: 1 | M27: 本科及以上 | N27: 学士及以上学位 | V27: 2年
A28: 省直 | B28: 000019 | C28: 贵州省草原监理站 | D28: 01 | E28: 参照公务员法管理单位 | F28: 贵阳市云岩区延安中路62号 | G28: 贵州省农业委员会 | H28: 0851-85283625 | I28: 主任科员及以下 | J28: 01 | K28: 草地资源调查、草原监测、草原执法寺监管工作 | L28: 1 | M28: 本科及以上 | N28: 学士及以上学位 | P28: 草业科学类 | Q28: 草业科学 | R28: 中共党员 | V28: 2年 | X28: 本岗位需长期坚守野外进行草地调查、监测和执法监管，条件艰苦，工作强度大，适合男性报考
A29: 省直 | B29: 000020 | C29: 贵州省动物卫生监督所 | D29: 01 | E29: 参照公务员法管理单位 | F29: 贵阳市云岩区延安中路62号 | G29: 贵州省农业委员会 | H29: 0851-85283625 | I29: 主任科员及以下 | J29: 01 | K29: 监督科日常工作 | L29: 1 | M29: 本科及以上 | N29: 学士及以上学位 | P29: 动物科学类 | Q29: 畜牧学类 | R29: 中共党员 | V29: 2年
A30: 省直 | B30: 000021 | C30: 贵州省农机安全监理总站 | D30: 01 | E30: 参照公务员法管理单位 | F30: 贵阳市云岩区延安中路62号 | G30: 贵州省农业委员会 | H30: 0851-85283625 | I30: 主任科员及以下 | J30: 01 | K30: 工作人员 | L30: 1 | M30: 本科及以上 | N30: 学士及以上学位 | V30: 2年
A31: 省直 | B31: 000022 | C31: 贵州省贵阳市水文水资源局 | D31: 02 | E31: 参照公务员法管理单位 | F31: 贵阳市都司路小河巷1号(中国银行大厦12楼) | H31: 0851-85624230 | I31: 修文水文监测站工作人员 | J31: 01 | K31: 水文测验、水情预报和站网管理工作 | L31: 1 | M31: 本科及以上 | N31: 学士及以上学位 | P31: 水利类、化学类、土建类、电气信息类、机械类 | Q31: 工学类
A32: 省直 | B32: 000023 | C32: 贵州省遵义市水文水资源局 | D32: 02 | E32: 参照公务员法管理单位 | F32: 遵义市海尔大道中段绅达广场卡萨国际 | H32: 0851-85624230 | I32: 乌江渡水文监测站工作人员 | J32: 01 | K32: 水文测验、水情预报和站网管理工作 | L32: 1 | M32: 本科及以上 | N32: 学士及以上学位 | P32: 水利类、化学类、土建类、电气信息类、机械类 | Q32: 工学类
A33: 省直 | B33: 000023 | C33: 贵州省遵义市水文水资源局 | D33: 02 | E33: 参照公务员法管理单位 | F33: 遵义市海尔大道中段绅达广场卡萨国际 | H33: 0851-85624230 | I33: 二郎坝水文监测站工作人员 | J33: 02 | K33: 水文测验、水情预报和站网管理工作 | L33: 1 | M33: 本科及以上 | N33: 学士及以上学位 | P33: 水利类、化学类、土建类、电气信息类、机械类 | Q33: 工学类
A34: 省直 | B34: 000023 | C34: 贵州省遵义市水文水资源局 | D34: 02 | E34: 参照公务员法管理单位 | F34: 遵义市海尔大道中段绅达广场卡萨国际 | H34: 0851-85624230 | I34: 旺草水文监测站工作人员 | J34: 03 | K34: 水文测验、水情预报和站网管理工作 | L34: 1 | M34: 本科及以上 | N34: 学士及以上学位 | P34: 水利类、化学类、土建类、电气信息类、机械类 | Q34: 工学类
A35: 省直 | B35: 000024 | C35: 贵州省安顺市水文水资源局 | D35: 02 | E35: 参照公务员法管理单位 | F35: 安顺市西秀区东二环路25号市水文巡测基地 | H35: 0851-85624230 | I35: 高车水文监测站工作人员 | J35: 01 | K35: 水文测验、水情预报和站网管理工作 | L35: 1 | M35: 本科及以上 | N35: 学士及以上学位 | P35: 水利类、化学类、土建类、电气信息类、机械类 | Q35: 工学类
A36: 省直 | B36: 000024 | C36: 贵州省安顺市水文水资源局 | D36: 02 | E36: 参照公务员法管理单位 | F36: 安顺市西秀区东二环路25号市水文巡测基地 | H36: 0851-85624230 | I36: 黄果树水文监测站工作人员 | J36: 02 | K36: 水文测验、水情预报和站网管理工作 | L36: 1 | M36: 本科及以上 | N36: 学士及以上学位 | P36: 水利类、化学类、土建类、电气信息类、机械类 | Q36: 工学类
A37: 省直 | B37: 000024 | C37: 贵州省安顺市水文水资源局 | D37: 02 | E37: 参照公务员法管理单位 | F37: 安顺市西秀区东二环路25号市水文巡测基地 | H37: 0851-85624230 | I37: 黄猫村水文监测站工作人员 | J37: 03 | K37: 水文测验、水情预报和站网管理工作 | L37: 1 | M37: 本科及以上 | N37: 学士及以上学位 | P37: 水利类、化学类、土建类、电气信息类、机械类 | Q37: 工学类
A38: 省直 | B38: 000024 | C38: 贵州省安顺市水文水资源局 | D38: 02 | E38: 参照公务员法管理单位 | F38: 安顺市西秀区东二环路25号市水文巡测基地 | H38: 0851-85624230 | I38: 平寨水文监测站工作人员 | J38: 04 | K38: 水文测验、水情预报和站网管理工作 | L38: 1 | M38: 本科及以上 | N38: 学士及以上学位 | P38: 水利类、化学类、土建类、电气信息类、机械类 | Q38: 工学类
A39: 省直 | B39: 000024 | C39: 贵州省安顺市水文水资源局 | D39: 02 | E39: 参照公务员法管理单位 | F39: 安顺市西秀区东二环路25号市水文巡测基地 | H39: 0851-85624230 | I39: 盘江桥水文监测站工作人员 | J39: 05 | K39: 水文测验、水情预报和站网管理工作 | L39: 1 | M39: 本科及以上 | N39: 学士及以上学位 | P39: 水利类、化学类、土建类、电气信息类、机械类 | Q39: 工学类
A40: 省直 | B40: 000024 | C40: 贵州省安顺市水文水资源局 | D40: 02 | E40: 参照公务员法管理单位 | F40: 安顺市西秀区东二环路25号市水文巡测基地 | H40: 0851-85624230 | I40: 七眼桥水文监测站工作人员 | J40: 06 | K40: 测站建设管理和财务管理等相关工作 | L40: 1 | M40: 本科及以上 | N40: 学士及以上学位 | P40: 工商管理类 | Q40: 工学类
A41: 省直 | B41: 000025 | C41: 贵州省黔南州水文水资源局 | D41: 02 | E41: 参照公务员法管理单位 | F41: 黔南州都匀市沙包堡办事处茶园村陆家寨 | H41: 0851-85624230 | I41: 雷公滩水文监测站工作人员 | J41: 01 | K41: 水文测验、水情预报和站网管理工作 | L41: 1 | M41: 本科及以上 | N41: 学士及以上学位 | P41: 水利类、化学类、土建类、电气信息类、机械类 | Q41: 工学类
A42: 省直 | B42: 000026 | C42: 贵州省黔东南州水文水资源局 | D42: 02 | E42: 参照公务员法管理单位 | F42: 凯里市开怀街道金山大道177号 | H42: 0851-85624230 | I42: 六洞桥水文监测站工作人员 | J42: 01 | K42: 水文测验、水情预报和站网管理工作 | L42: 1 | M42: 本科及以上 | N42: 学士及以上学位 | P42: 水利类、化学类、土建类、电气信息类、机械类 | Q42: 工学类
A43: 省直 | B43: 000026 | C43: 贵州省黔东南州水文水资源局 | D43: 02 | E43: 参照公务员法管理单位 | F43: 凯里市开怀街道金山大道177号 | H43: 0851-85624230 | I43: 湾水水文监测站工作人员 | J43: 02 | K43: 水文测验、水情预报和站网管理工作 | L43: 1 | M43: 本科及以上 | N43: 学士及以上学位 | P43: 水利类、化学类、土建类、电气信息类、机械类 | Q43: 工学类
A44: 省直 | B44: 000026 | C44: 贵州省黔东南州水文水资源局 | D44: 02 | E44: 参照公务员法管理单位 | F44: 凯里市开怀街道金山大道177号 | H44: 0851-85624230 | I44: 施洞水文监测站工作人员 | J44: 03 | K44: 测站建设管理和财务管理等相关工作 | L44: 1 | M44: 本科及以上 | N44: 学士及以上学位 | P44: 工商管理类 | Q44: 工学类
A45: 省直 | B45: 000027 | C45: 贵州省铜仁市水文水资源局 | D45: 02 | E45: 参照公务员法管理单位 | F45: 铜仁市万山区谢桥办事处金鳞大道186号 | H45: 0851-85624230 | I45: 芦家洞水文监测站工作人员 | J45: 01 | K45: 水文测验、水情预报和站网管理工作 | L45: 1 | M45: 本科及以上 | N45: 学士及以上学位 | P45: 水利类、化学类、土建类、电气信息类、机械类 | Q45: 工学类
A46: 省直 | B46: 000027 | C46: 贵州省铜仁市水文水资源局 | D46: 02 | E46: 参照公务员法管理单位 | F46: 铜仁市万山区谢桥办事处金鳞大道186号 | H46: 0851-85624230 | I46: 玉屏水文监测站工作人员 | J46: 02 | K46: 水文测验、水情预报和站网管理工作 | L46: 1 | M46: 本科及以上 | N46: 学士及以上学位 | P46: 水利类、化学类、土建类、电气信息类、机械类 | Q46: 工学类
A47: 省直 | B47: 000028 | C47: 贵州省毕节市水文水资源局 | D47: 02 | E47: 参照公务员法管理单位 | F47: 毕节市学院路 | H47: 0851-85624230 | I47: 赤水河水文监测站工作人员 | J47: 01 | K47: 水文测验、水情预报和站网管理工作 | L47: 1 | M47: 本科及以上 | N47: 学士及以上学位 | P47: 水利类、化学类、土建类、电气信息类、机械类 | Q47: 工学类
A48: 省直 | B48: 000028 | C48: 贵州省毕节市水文水资源局 | D48: 02 | E48: 参照公务员法管理单位 | F48: 毕节市学院路 | H48: 0851-85624230 | I48: 总溪河水文监测站工作人员 | J48: 02 | K48: 水文测验、水情预报和站网管理工作 | L48: 1 | M48: 本科及以上 | N48: 学士及以上学位 | P48: 水利类、化学类、土建类、电气信息类、机械类 | Q48: 工学类
A49: 省直 | B49: 000028 | C49: 贵州省毕节市水文水资源局 | D49: 02 | E49: 参照公务员法管理单位 | F49: 毕节市学院路 | H49: 0851-85624230 | I49: 响水水文监测站工作人员 | J49: 03 | K49: 测站建设管理和财务管理等相关工作 | L49: 1 | M49: 本科及以上 | N49: 学士及以上学位 | P49: 工商管理类 | Q49: 工学类
A50: 省直 | B50: 000029 | C50: 贵州省六盘水市水文水资源局 | D50: 02 | E50: 参照公务员法管理单位 | F50: 六盘水市凉都大道西段953号 | H50: 0851-85624230 | I50: 向阳水文监测站工作人员 | J50: 01 | K50: 水文测验、水情预报和站网管理工作 | L50: 1 | M50: 本科及以上 | N50: 学士及以上学位 | P50: 水利类、化学类、土建类、电气信息类、机械类 | Q50: 工学类
A51: 省直 | B51: 000030 | C51: 贵州省黔西南州水文水资源局 | D51: 02 | E51: 参照公务员法管理单位 | F51: 兴义市桔香路 | H51: 0851-85624230 | I51: 天生桥水文监测站工作人员 | J51: 01 | K51: 水文测验、水情预报和站网管理工作 | L51: 1 | M51: 本科及以上 | N51: 学士及以上学位 | P51: 水利类、化学类、土建类、电气信息类、机械类 | Q51: 工学类
A52: 省直 | B52: 000030 | C52: 贵州省黔西南州水文水资源局 | D52: 02 | E52: 参照公务员法管理单位 | F52: 兴义市桔香路 | H52: 0851-85624230 | I52: 巴铃水文监测站工作人员 | J52: 02 | K52: 水文测验、水情预报和站网管理工作 | L52: 1 | M52: 本科及以上 | N52: 学士及以上学位 | P52: 水利类、化学类、土建类、电气信息类、机械类 | Q52: 工学类
A53: 省直 | B53: 000030 | C53: 贵州省黔西南州水文水资源局 | D53: 02 | E53: 参照公务员法管理单位 | F53: 兴义市桔香路 | H53: 0851-85624230 | I53: 大田河水文监测站工作人员 | J53: 03 | K53: 水文测验、水情预报和站网管理工作 | L53: 1 | M53: 本科及以上 | N53: 学士及以上学位 | P53: 水利类、化学类、土建类、电气信息类、机械类 | Q53: 工学类
A54: 省直 | B54: 000031 | C54: 贵州省卫生和计划生育委员会 | D54: 01 | E54: 行政机关 | F54: 贵阳市中华北路省政府大院七号楼 | G54: www.gzhfpc.gov.cn | H54: 0851-86827403 | I54: 工作人员 | J54: 01 | K54: 行政工作 | L54: 2 | M54: 本科及以上 | N54: 学士及以上学位 | V54: 2年
A55: 省直 | B55: 000032 | C55: 贵州省营林总站 | D55: 01 | E55: 参照公务员法管理单位 | F55: 贵阳市延安中路91号 | G55: http://www.gzforestry.gov.cn/ | H55: 0851-86571272 | I55: 主任科员及以下 | J55: 01 | K55: 林业工作 | L55: 3 | M55: 本科及以上 | N55: 学士及以上学位 | P55: 林学类、森林资源类 | Q55: 林学类 | V55: 2年
A56: 省直 | B56: 000033 | C56: 贵州省退耕还林工程管理中心 | D56: 01 | E56: 参照公务员法管理单位 | F56: 贵阳市延安中路91号 | G56: http://www.gzforestry.gov.cn/ | H56: 0851-86571526 | I56: 主任科员及以下 | J56: 01 | K56: 退耕还林工程管理相关工作 | L56: 1 | M56: 研究生 | N56: 硕士及以上学位 | Q56: 林学类 | V56: 2年
A57: 省直 | B57: 000034 | C57: 贵州省外事办公室 | D57: 01 | E57: 行政机关 | F57: 贵阳市观山西路172号 | G57: http://www.faogz.gov.cn/ | H57: 0851-86613829 | I57: 工作人员 | J57: 01 | K57: 英语翻译日常工作 | L57: 1 | M57: 研究生 | N57: 硕士及以上学位 | Q57: 英语 | V57: 2年 | W57: 专业英语八级 | X57: 1、国内高等院校硕士研究生，本硕均要求为英语专业毕业，并取得英语专业八级证书；2、国内高等院校本科英语专业毕业，在英语母语国家取得研究生学历及硕士学位的，研究生专业不受限制，但需取得英语专业八级证书；3、在英语母语国家取得本科、研究生连续学历并获得硕士学位的人员，其报考资格不受专业限制，不需要提供英语专业八级证书；4、持国外学历、学位毕业证书的，须提供中国教育部留学人员服务中心出具的国外学历、学位认证书（原件和复印件）；5、经口语测试合格者，方可参加公务员统一笔试。
A58: 省直 | B58: 000035 | C58: 贵州省工商行政管理局 | D58: 01 | E58: 行政机关 | F58: 贵阳市南明区中华南路66号 | G58: www.gzaic.org.cn | H58: 0851-85850026 | I58: 工作人员 | J58: 01 | K58: 机关信息化建设 | L58: 1 | M58: 研究生 | N58: 硕士及以上学位 | Q58: 计算机科学与技术0812 | R58: 中共党员 | V58: 2年
A59: 省直 | B59: 000036 | C59: 贵州省统计局 | D59: 01 | E59: 行政机关 | F59: 贵阳市中华北路242号 | H59: 0851-86892137 | I59: 主任科员及以下 | J59: 01 | K59: 统计 | L59: 3 | M59: 研究生 | N59: 硕士及以上学位 | Q59: 经济学学科门类,理学学科门类、管理学学科门类 | V59: 2年
A60: 省直 | B60: 000037 | C60: 贵州省统计普查中心 | D60: 01 | E60: 参照公务员法管理单位 | F60: 贵阳市中华北路242号 | H60: 0851-86892137 | I60: 主任科员及以下 | J60: 01 | K60: 统计普查 | L60: 1 | M60: 研究生 | N60: 硕士及以上学位 | Q60: 经济学学科门类,理学学科门类、管理学学科门类 | V60: 2年
A61: 省直 | B61: 000038 | C61: 贵州省人民政府发展研究中心 | D61: 01 | E61: 参照公务员法管理单位 | F61: 省政府大院9号楼 | G61: www.gzdrc.gov.cn | H61: 0851-86829450 | I61: 研究处室主任科员及以下 | J61: 01 | K61: 政策咨询研究人员 | L61: 1 | M61: 研究生 | N61: 硕士及以上学位 | Q61: 经济学类 | V61: 2年
A62: 省直 | B62: 000039 | C62: 贵州省地质矿产勘查开发局 | D62: 01 | E62: 参照公务员法管理单位 | F62: 贵阳市云岩区北京路219号银海元隆广场7号楼 | G62: www.gz-dk.cn/ | H62: 0851-86810501、86817560 | I62: 地质环境处主任科员及以下 | J62: 01 | K62: 水文地质、工程地质、环境地质、工勘施工技术质量管理；处室目标绩效管理及日常工作等 | L62: 1 | M62: 本科及以上 | N62: 学士及以上学位 | P62: 土木工程（岩土工程方向）、地质工程、环境工程、环境科学与工程、石油工程、勘查技术与工程（钻探工程方向）、探矿工程 | Q62: 土木工程（岩土工程方向）、地质工程、环境工程、环境科学与工程 | V62: 2年 | W62: 具有工程师及以上专业技术任职资格
A63: 省直 | B63: 000040 | C63: 贵州省专用通信局 | D63: 01 | E63: 参照公务员法管理单位 | F63: 贵州省贵阳市云岩区中华北路169号 | H63: 0851-86830418 | I63: 运行维护处工作人员 | J63: 01 | K63: 机房值守 | L63: 1 | M63: 本科及以上 | P63: 电子信息工程、通信工程、光电信息科学与工程、电信工程及管理 | Q63: 信息与通信工程 | R63: 中共党员 | V63: 2年
A64: 省直 | B64: 000041 | C64: 贵州省审计厅 | D64: 01 | E64: 行政机关 | F64: 贵州省贵阳市云岩区市北路52号 | G64: www.gzsj.gov.cn | H64: 0851-86615131 | I64: 审计业务部门工作人员 | J64: 01 | K64: 企业审计业务 | L64: 1 | M64: 本科及以上 | N64: 学士及以上学位 | P64: 审计学、会计学 | Q64: 审计、会计学 | V64: 2年 | W64: 在省属大一型企业及以上国有企业从事会计或审计工作5年以上。 | X64: 负责对财政资金和法律法规属于审计监督范围的财务收支的真实、合法和效益进行审计。需要长时间在外出差。
A65: 省直 | B65: 000042 | C65: 贵州省审计厅政府投资审计中心 | D65: 01 | E65: 参照公务员法管理单位 | F65: 贵州省贵阳市云岩区市北路52号 | G65: www.gzsj.gov.cn | H65: 0851-86615131 | I65: 审计业务部门工作人员 | J65: 01 | K65: 金融审计业务 | L65: 1 | M65: 本科及以上 | N65: 学士及以上学位 | P65: 金融学 | Q65: 金融学 | V65: 2年 | W65: 具有5年以上金融审计或金融企业工作经历。 | X65: 负责对财政资金和法律法规属于审计监督范围的财务收支的真实、合法和效益进行审计。需要长时间在外出差。
A66: 省直 | B66: 000042 | C66: 贵州省审计厅政府投资审计中心 | D66: 01 | E66: 参照公务员法管理单位 | F66: 贵州省贵阳市云岩区市北路52号 | G66: www.gzsj.gov.cn | H66: 0851-86615131 | I66: 审计业务部门工作人员 | J66: 02 | K66: 企业审计业务 | L66: 1 | M66: 本科及以上 | N66: 学士及以上学位 | P66: 审计学、会计学 | Q66: 审计、会计学 | V66: 2年 | W66: 在省属大一型企业及以上国有企业从事会计或审计工作5年以上。 | X66: 负责对财政资金和法律法规属于审计监督范围的财务收支的真实、合法和效益进行审计。需要长时间在外出差。
A67: 省直 | B67: 000043 | C67: 贵阳市审计局 | D67: 02 | E67: 行政机关 | F67: 贵阳市林城东路七号 | G67: http://sjj.gygov.gov.cn/ | H67: 0851-87989331 | I67: 审计业务部门工作人员 | J67: 01 | K67: 审计业务 | L67: 1 | M67: 本科及以上 | N67: 学士及以上学位 | P67: 会计学、审计学 | Q67: 审计、会计学 | V67: 2年 | W67: 具有2年及以上国有企业财经工作经历 | X67: 负责对财政资金和法律法规属于审计监督范围的国有企业财务收支的真实、合法和效益进行审计。需要长时间在外出差。
A68: 省直 | B68: 000044 | C68: 贵阳市白云区固定资产投资审计评审中心 | D68: 03 | E68: 参照公务员法管理单位 | F68: 贵阳市白云区行政中心北楼231室 | G68: http://sjj.gygov.gov.cn/c8152/20161226/i1147795.html | H68: 0851-84616651 | I68: 审计业务部门工作人员 | J68: 01 | K68: 审计业务 | L68: 1 | M68: 本科及以上 | N68: 学士及以上学位 | P68: 审计学、会计学、财政学、金融学 | Q68: 审计、会计学、财政学、金融学 | X68: 负责对财政资金和法律法规属于审计监督范围的国有企业财务收支的真实、合法和效益进行审计。需要长时间在外出差。
A69: 省直 | B69: 000045 | C69: 修文县审计局 | D69: 03 | E69: 行政机关 | F69: 贵州省修文县龙场镇玩易路37号 | H69: 0851-82322358 | I69: 审计业务部门工作人员 | J69: 01 | K69: 审计业务 | L69: 1 | M69: 本科及以上 | N69: 学士及以上学位 | P69: 审计学、会计学、财政学、金融学 | Q69: 审计、会计学、财政学、金融学 | X69: 负责对财政资金和法律法规属于审计监督范围的国有企业财务收支的真实、合法和效益进行审计。需要长时间在外出差。
A70: 省直 | B70: 000046 | C70: 修文县固定资产投资审计评审中心 | D70: 03 | E70: 参照公务员法管理单位 | F70: 贵州省修文县龙场镇玩易路38号 | H70: 0851-82322358 | I70: 审计业务部门工作人员 | J70: 01 | K70: 审计业务 | L70: 1 | M70: 本科及以上 | N70: 学士及以上学位 | P70: 审计学、会计学、财政学、金融学 | Q70: 审计、会计学、财政学、金融学 | X70: 负责对财政资金和法律法规属于审计监督范围的国有企业财务收支的真实、合法和效益进行审计。需要长时间在外出差。
A71: 省直 | B71: 000047 | C71: 清镇市审计局 | D71: 03 | E71: 行政机关 | F71: 清镇市红旗路128-1号（原市人大四楼） | H71: 0851-82522436 | I71: 审计业务部门工作人员 | J71: 01 | K71: 审计业务 | L71: 1 | M71: 本科及以上 | N71: 学士及以上学位 | P71: 审计学、会计学、财政学、金融学 | Q71: 审计、会计学、财政学、金融学 | X71: 负责对财政资金和法律法规属于审计监督范围的国有企业财务收支的真实、合法和效益进行审计。需要长时间在外出差。
A72: 省直 | B72: 000048 | C72: 清镇市固定资产投资审计评审中心 | D72: 03 | E72: 参照公务员法管理单位 | F72: 清镇市红旗路128-2号（原市人大四楼） | H72: 0851-82522436 | I72: 审计业务部门工作人员 | J72: 01 | K72: 审计业务 | L72: 1 | M72: 本科及以上 | N72: 学士及以上学位 | P72: 审计学、会计学、财政学、金融学 | Q72: 审计、会计学、财政学、金融学 | W72: 限男性 | X72: 负责对财政资金和法律法规属于审计监督范围的国有企业财务收支的真实、合法和效益进行审计。需要长时间在外出差。
A73: 省直 | B73: 000048 | C73: 清镇市固定资产投资审计评审中心 | D73: 03 | E73: 参照公务员法管理单位 | F73: 清镇市红旗路128-2号（原市人大四楼） | H73: 0851-82522436 | I73: 审计业务部门工作人员 | J73: 02 | K73: 审计业务 | L73: 1 | M73: 本科及以上 | N73: 学士及以上学位 | P73: 审计学、会计学、财政学、金融学 | Q73: 审计、会计学、财政学、金融学 | W73: 限女性 | X73: 负责对财政资金和法律法规属于审计监督范围的国有企业财务收支的真实、合法和效益进行审计。需要长时间在外出差。
A74: 省直 | B74: 000049 | C74: 开阳县固定资产投资审计评审中心 | D74: 03 | E74: 参照公务员法管理单位 | F74: 开阳县城关镇城北路 | H74: 0851-87224312 | I74: 审计业务部门工作人员 | J74: 01 | K74: 审计业务 | L74: 1 | M74: 本科及以上 | N74: 学士及以上学位 | P74: 审计学、会计学 | Q74: 审计、会计学 | W74: 限男性 | X74: 负责对财政资金和法律法规属于审计监督范围的国有企业财务收支的真实、合法和效益进行审计。需要长时间在外出差。
A75: 省直 | B75: 000049 | C75: 开阳县固定资产投资审计评审中心 | D75: 03 | E75: 参照公务员法管理单位 | F75: 开阳县城关镇城北路 | H75: 0851-87224312 | I75: 审计业务部门工作人员 | J75: 02 | K75: 审计业务 | L75: 1 | M75: 本科及以上 | N75: 学士及以上学位 | P75: 审计学、会计学 | Q75: 审计、会计学 | W75: 限女性 | X75: 负责对财政资金和法律法规属于审计监督范围的国有企业财务收支的真实、合法和效益进行审计。需要长时间在外出差。
A76: 省直 | B76: 000050 | C76: 贵阳市花溪区经济责任审计中心 | D76: 03 | E76: 参照公务员法管理单位 | F76: 贵阳市花溪区行政中心B718 | H76: 0851-83851039 | I76: 审计业务部门工作人员 | J76: 01 | K76: 审计业务 | L76: 1 | M76: 本科及以上 | N76: 学士及以上学位 | P76: 审计学、会计学 | Q76: 审计、会计学 | X76: 负责对财政资金和法律法规属于审计监督范围的国有企业财务收支的真实、合法和效益进行审计。需要长时间在外出差。
A77: 省直 | B77: 000051 | C77: 贵阳市南明区审计局 | D77: 03 | E77: 行政机关 | F77: 贵阳市南明区箭道街52号 | G77: http://www.nanming.gov.cn/bmpd/zfbm/nmqsjj/dwjs/index.shtml | H77: 0851-85815535 | I77: 审计业务部门工作人员 | J77: 01 | K77: 审计业务 | L77: 1 | M77: 本科及以上 | N77: 学士及以上学位 | P77: 审计学、会计学、国际经济与贸易 | Q77: 审计、会计学、国际贸易学 | X77: 负责对财政资金和法律法规属于审计监督范围的国有企业财务收支的真实、合法和效益进行审计。需要长时间在外出差。
A78: 省直 | B78: 000052 | C78: 贵阳市南明区固定资产投资审计评审中心 | D78: 03 | E78: 参照公务员法管理单位 | F78: 贵阳市南明区兴隆北巷5号 | G78: http://www.nanming.gov.cn/bmpd/zfbm/nmqsjj/dwjs/index.shtml | H78: 0851-85815535 | I78: 审计业务部门工作人员 | J78: 01 | K78: 审计业务 | L78: 2 | M78: 本科及以上 | N78: 学士及以上学位 | P78: 审计学、会计学 | Q78: 审计、会计学 | W78: 限男性 | X78: 负责对财政资金和法律法规属于审计监督范围的国有企业财务收支的真实、合法和效益进行审计。需要长时间在外出差。
A79: 省直 | B79: 000052 | C79: 贵阳市南明区固定资产投资审计评审中心 | D79: 03 | E79: 参照公务员法管理单位 | F79: 贵阳市南明区兴隆北巷5号 | G79: http://www.nanming.gov.cn/bmpd/zfbm/nmqsjj/dwjs/index.shtml | H79: 0851-85815535 | I79: 审计业务部门工作人员 | J79: 02 | K79: 审计业务 | L79: 2 | M79: 本科及以上 | N79: 学士及以上学位 | P79: 审计学、会计学 | Q79: 审计、会计学 | W79: 限女性 | X79: 负责对财政资金和法律法规属于审计监督范围的国有企业财务收支的真实、合法和效益进行审计。需要长时间在外出差。
A80: 省直 | B80: 000053 | C80: 遵义市播州区审计局 | D80: 03 | E80: 行政机关 | F80: 遵义市播州区南白镇东大街南苑新城9号楼2层 | H80: 0851-27222257 | I80: 审计业务部门工作人员 | J80: 01 | K80: 审计业务 | L80: 1 | M80: 本科及以上 | N80: 学士及以上学位 | P80: 审计学、会计学 | Q80: 审计、会计学 | X80: 负责对财政资金和法律法规属于审计监督范围的国有企业财务收支的真实、合法和效益进行审计。需要长时间在外出差。
A81: 省直 | B81: 000054 | C81: 红花岗区审计局 | D81: 03 | E81: 行政机关 | F81: 遵义市红花岗剑江路社保大楼6楼 | H81: 0851-28222337 | I81: 审计业务部门工作人员 | J81: 01 | K81: 审计业务 | L81: 1 | M81: 本科及以上 | N81: 学士及以上学位 | P81: 审计学、会计学 | Q81: 审计、会计学 | X81: 负责对财政资金和法律法规属于审计监督范围的国有企业财务收支的真实、合法和效益进行审计。需要长时间在外出差。
A82: 省直 | B82: 000055 | C82: 湄潭县审计局 | D82: 03 | E82: 行政机关 | F82: 湄潭县天文大道县政府B区三楼 | H82: 0851-24221080 | I82: 审计业务部门工作人员 | J82: 01 | K82: 审计业务 | L82: 1 | M82: 本科及以上 | N82: 学士及以上学位 | P82: 审计学、会计学 | Q82: 审计、会计学 | X82: 负责对财政资金和法律法规属于审计监督范围的国有企业财务收支的真实、合法和效益进行审计。需要长时间在外出差。
A83: 省直 | B83: 000056 | C83: 湄潭县审计审核中心 | D83: 03 | E83: 参照公务员法管理单位 | F83: 湄潭县天文大道县政府B区三楼 | H83: 0851-24221080 | I83: 审计业务部门工作人员 | J83: 01 | K83: 审计业务 | L83: 1 | M83: 本科及以上 | N83: 学士及以上学位 | P83: 审计学、会计学 | Q83: 审计、会计学 | W83: 限男性 | X83: 负责对财政资金和法律法规属于审计监督范围的国有企业财务收支的真实、合法和效益进行审计。需要长时间在外出差。
A84: 省直 | B84: 000056 | C84: 湄潭县审计审核中心 | D84: 03 | E84: 参照公务员法管理单位 | F84: 湄潭县天文大道县政府B区三楼 | H84: 0851-24221080 | I84: 审计业务部门工作人员 | J84: 02 | K84: 审计业务 | L84: 1 | M84: 本科及以上 | N84: 学士及以上学位 | P84: 审计学、会计学 | Q84: 审计、会计学 | W84: 限女性 | X84: 负责对财政资金和法律法规属于审计监督范围的国有企业财务收支的真实、合法和效益进行审计。需要长时间在外出差。
A85: 省直 | B85: 000057 | C85: 桐梓县审计局 | D85: 03 | E85: 行政机关 | F85: 桐梓县县城夜郎路 | H85: 0851-26622899 | I85: 审计业务部门工作人员 | J85: 01 | K85: 审计业务 | L85: 1 | M85: 本科及以上 | N85: 学士及以上学位 | P85: 审计学、会计学 | Q85: 审计、会计学 | X85: 负责对财政资金和法律法规属于审计监督范围的国有企业财务收支的真实、合法和效益进行审计。需要长时间在外出差。
A86: 省直 | B86: 000058 | C86: 桐梓县审计审核中心 | D86: 03 | E86: 参照公务员法管理单位 | F86: 桐梓县县城夜郎路 | H86: 0851-26622899 | I86: 审计业务部门工作人员 | J86: 01 | K86: 审计业务 | L86: 1 | M86: 本科及以上 | N86: 学士及以上学位 | P86: 审计学、会计学工程造价、土木工程 | Q86: 审计、会计学 、土木工程类 | W86: 限男性 | X86: 负责对财政资金和法律法规属于审计监督范围的国有企业财务收支的真实、合法和效益进行审计。需要长时间在外出差。
A87: 省直 | B87: 000058 | C87: 桐梓县审计审核中心 | D87: 03 | E87: 参照公务员法管理单位 | F87: 桐梓县县城夜郎路 | H87: 0851-26622899 | I87: 审计业务部门工作人员 | J87: 02 | K87: 审计业务 | L87: 1 | M87: 本科及以上 | N87: 学士及以上学位 | P87: 审计学、会计学工程造价、土木工程 | Q87: 审计、会计学 、土木工程类 | W87: 限女性 | X87: 负责对财政资金和法律法规属于审计监督范围的国有企业财务收支的真实、合法和效益进行审计。需要长时间在外出差。
A88: 省直 | B88: 000059 | C88: 务川自治县审计审核中心 | D88: 03 | E88: 参照公务员法管理单位 | F88: 务川自治县行政中心二楼 | H88: 0851-25621641 | I88: 审计业务部门工作人员 | J88: 01 | K88: 审计业务 | L88: 1 | M88: 本科及以上 | N88: 学士及以上学位 | P88: 审计学、会计学 | Q88: 审计、会计学 | W88: 限男性 | X88: 负责对财政资金和法律法规属于审计监督范围的国有企业财务收支的真实、合法和效益进行审计。需要长时间在外出差。
A89: 省直 | B89: 000059 | C89: 务川自治县审计审核中心 | D89: 03 | E89: 参照公务员法管理单位 | F89: 务川自治县行政中心二楼 | H89: 0851-25621641 | I89: 审计业务部门工作人员 | J89: 02 | K89: 审计业务 | L89: 1 | M89: 本科及以上 | N89: 学士及以上学位 | P89: 审计学、会计学 | Q89: 审计、会计学 | W89: 限女性 | X89: 负责对财政资金和法律法规属于审计监督范围的国有企业财务收支的真实、合法和效益进行审计。需要长时间在外出差。
A90: 省直 | B90: 000060 | C90: 习水县审计局 | D90: 03 | E90: 行政机关 | F90: 习水县杉王街道虹顶社区 | H90: 0851－22520151 | I90: 审计业务部门工作人员 | J90: 01 | K90: 审计业务 | L90: 1 | M90: 本科及以上 | N90: 学士及以上学位 | P90: 审计学、会计学 | Q90: 审计、会计学 | W90: 限男性 | X90: 负责对财政资金和法律法规属于审计监督范围的国有企业财务收支的真实、合法和效益进行审计。需要长时间在外出差。
A91: 省直 | B91: 000060 | C91: 习水县审计局 | D91: 03 | E91: 行政机关 | F91: 习水县杉王街道虹顶社区 | H91: 0851－22520151 | I91: 审计业务部门工作人员 | J91: 02 | K91: 审计业务 | L91: 1 | M91: 本科及以上 | N91: 学士及以上学位 | P91: 审计学、会计学 | Q91: 审计、会计学 | W91: 限女性 | X91: 负责对财政资金和法律法规属于审计监督范围的国有企业财务收支的真实、合法和效益进行审计。需要长时间在外出差。
A92: 省直 | B92: 000061 | C92: 习水县审计审核中心 | D92: 03 | E92: 参照公务员法管理单位 | F92: 习水县杉王街道虹顶社区 | H92: 0851－22520151 | I92: 审计业务部门工作人员 | J92: 01 | K92: 审计业务 | L92: 1 | M92: 本科及以上 | N92: 学士及以上学位 | P92: 土木工程、建筑工程、工程造价 | Q92: 土木工程 | X92: 负责对财政资金和法律法规属于审计监督范围的国有企业财务收支的真实、合法和效益进行审计。需要长时间在外出差。
A93: 省直 | B93: 000062 | C93: 赤水市审计局 | D93: 03 | E93: 行政机关 | F93: 赤水市市府路50号 | H93: 0851-22861250 | I93: 审计业务部门工作人员 | J93: 01 | K93: 审计业务 | L93: 1 | M93: 本科及以上 | N93: 学士及以上学位 | P93: 审计学、会计学、金融学 | Q93: 审计、会计学、金融学 | X93: 负责对财政资金和法律法规属于审计监督范围的国有企业财务收支的真实、合法和效益进行审计。需要长时间在外出差。
A94: 省直 | B94: 000063 | C94: 赤水市审计审核中心 | D94: 03 | E94: 参照公务员法管理单位 | F94: 赤水市市府路50号 | H94: 0851-22861250 | I94: 审计业务部门工作人员 | J94: 01 | K94: 审计业务 | L94: 1 | M94: 本科及以上 | N94: 学士及以上学位 | P94: 审计学、会计学、金融学 | Q94: 审计、会计学、金融学 | W94: 限男性 | X94: 负责对财政资金和法律法规属于审计监督范围的国有企业财务收支的真实、合法和效益进行审计。需要长时间在外出差。
A95: 省直 | B95: 000063 | C95: 赤水市审计审核中心 | D95: 03 | E95: 参照公务员法管理单位 | F95: 赤水市市府路50号 | H95: 0851-22861250 | I95: 审计业务部门工作人员 | J95: 02 | K95: 审计业务 | L95: 1 | M95: 本科及以上 | N95: 学士及以上学位 | P95: 审计学、会计学 | Q95: 审计、会计学 | W95: 限女性 | X95: 负责对财政资金和法律法规属于审计监督范围的国有企业财务收支的真实、合法和效益进行审计。需要长时间在外出差。
A96: 省直 | B96: 000064 | C96: 正安县审计局 | D96: 03 | E96: 行政机关 | F96: 正安县行政中心B区三楼 | H96: 0851-26421253 | I96: 审计业务部门工作人员 | J96: 01 | K96: 审计业务 | L96: 1 | M96: 本科及以上 | N96: 学士及以上学位 | P96: 审计学、会计学 | Q96: 审计、会计学 | X96: 负责对财政资金和法律法规属于审计监督范围的国有企业财务收支的真实、合法和效益进行审计。需要长时间在外出差。
A97: 省直 | B97: 000065 | C97: 正安县审计审核中心 | D97: 03 | E97: 参照公务员法管理单位 | F97: 正安县行政中心B区三楼 | H97: 0851-26421253 | I97: 审计业务部门工作人员 | J97: 01 | K97: 审计业务 | L97: 1 | M97: 本科及以上 | N97: 学士及以上学位 | P97: 审计学、会计学 | Q97: 审计、会计学 | X97: 负责对财政资金和法律法规属于审计监督范围的国有企业财务收支的真实、合法和效益进行审计。需要长时间在外出差。
A98: 省直 | B98: 000066 | C98: 遵义市新蒲新区审计审核中心 | D98: 03 | E98: 参照公务员法管理单位 | F98: 遵义市新蒲新区开投大厦 | H98: 0851-27903251 | I98: 审计业务部门工作人员 | J98: 01 | K98: 审计业务 | L98: 1 | M98: 本科及以上 | N98: 学士及以上学位 | P98: 审计学、会计学 | Q98: 审计、会计学 | W98: 限男性 | X98: 负责对财政资金和法律法规属于审计监督范围的国有企业财务收支的真实、合法和效益进行审计。需要长时间在外出差。
A99: 省直 | B99: 000066 | C99: 遵义市新蒲新区审计审核中心 | D99: 03 | E99: 参照公务员法管理单位 | F99: 遵义市新蒲新区开投大厦 | H99: 0851-27903251 | I99: 审计业务部门工作人员 | J99: 02 | K99: 审计业务 | L99: 1 | M99: 本科及以上 | N99: 学士及以上学位 | P99: 审计学、会计学 | Q99: 审计、会计学 | W99: 限女性 | X99: 负责对财政资金和法律法规属于审计监督范围的国有企业财务收支的真实、合法和效益进行审计。需要长时间在外出差。
A100: 省直 | B100: 000067 | C100: 凤冈县审计审核中心 | D100: 03 | E100: 参照公务员法管理单位 | F100: 凤冈县人民政府办公大楼二楼 | H100: 0851-25222172 | I100: 审计业务部门工作人员 | J100: 01 | K100: 审计业务 | L100: 1 | M100: 本科及以上 | N100: 学士及以上学位 | P100: 审计学、会计学 | Q100: 审计、会计学 | X100: 负责对财政资金和法律法规属于审计监督范围的国有企业财务收支的真实、合法和效益进行审计。需要长时间在外出差。
A101: 省直 | B101: 000068 | C101: 安顺市审计局 | D101: 02 | E101: 行政机关 | F101: 安顺市市委大院内 | H101: 0851-33281119 | I101: 审计业务部门工作人员 | J101: 01 | K101: 审计业务 | L101: 1 | M101: 本科及以上 | N101: 学士及以上学位 | P101: 审计学、会计学 | Q101: 审计、会计学 | X101: 负责对财政资金和法律法规属于审计监督范围的国有企业财务收支的真实、合法和效益进行审计。需要长时间在外出差。
A102: 省直 | B102: 000069 | C102: 平坝区审计局 | D102: 03 | E102: 行政机关 | F102: 平坝区中山南路政府行政中心 | H102: 0851-34224172 | I102: 审计业务部门工作人员 | J102: 01 | K102: 审计业务 | L102: 1 | M102: 本科及以上 | N102: 学士及以上学位 | P102: 审计学、会计学 | Q102: 审计、会计学 | X102: 负责对财政资金和法律法规属于审计监督范围的国有企业财务收支的真实、合法和效益进行审计。需要长时间在外出差。
A103: 省直 | B103: 000070 | C103: 安顺市平坝区固定资产投资审计中心 | D103: 03 | E103: 参照公务员法管理单位 | F103: 平坝区中山南路政府行政中心 | H103: 0851-34224172 | I103: 审计业务部门工作人员 | J103: 01 | K103: 审计业务 | L103: 1 | M103: 本科及以上 | N103: 学士及以上学位 | P103: 审计学、会计学 | Q103: 审计、会计学 | X103: 负责对财政资金和法律法规属于审计监督范围的国有企业财务收支的真实、合法和效益进行审计。需要长时间在外出差。
A104: 省直 | B104: 000071 | C104: 普定县审计局 | D104: 03 | E104: 行政机关 | F104: 普定县政府大院 | H104: 0851-38220946 | I104: 审计业务部门工作人员 | J104: 01 | K104: 审计业务 | L104: 1 | M104: 本科及以上 | N104: 学士及以上学位 | P104: 审计学、会计学 | Q104: 审计、会计学 | W104: 限男性 | X104: 负责对财政资金和法律法规属于审计监督范围的国有企业财务收支的真实、合法和效益进行审计。需要长时间在外出差。
A105: 省直 | B105: 000071 | C105: 普定县审计局 | D105: 03 | E105: 行政机关 | F105: 普定县政府大院 | H105: 0851-38220946 | I105: 审计业务部门工作人员 | J105: 02 | K105: 审计业务 | L105: 1 | M105: 本科及以上 | N105: 学士及以上学位 | P105: 审计学、会计学 | Q105: 审计、会计学 | W105: 限女性 | X105: 负责对财政资金和法律法规属于审计监督范围的国有企业财务收支的真实、合法和效益进行审计。需要长时间在外出差。
A106: 省直 | B106: 000072 | C106: 普定县建设项目投资审计中心 | D106: 03 | E106: 参照公务员法管理单位 | F106: 普定县政府大院 | H106: 0851-38220946 | I106: 审计业务部门工作人员 | J106: 01 | K106: 审计业务 | L106: 1 | M106: 本科及以上 | N106: 学士及以上学位 | P106: 土木工程、建筑工程、工程造价 | Q106: 土木工程类 | X106: 负责对财政资金和法律法规属于审计监督范围的国有企业财务收支的真实、合法和效益进行审计。需要长时间在外出差。
A107: 省直 | B107: 000073 | C107: 关岭县固定资产投资审计中心 | D107: 03 | E107: 参照公务员法管理单位 | F107: 关岭自治县林业路2号 | H107: 0851-37223297 | I107: 审计业务部门工作人员 | J107: 01 | K107: 审计业务 | L107: 1 | M107: 本科及以上 | N107: 学士及以上学位 | P107: 审计学、会计学、土木工程、建筑工程、工程造价 | Q107: 审计、会计学、土木工程类 | X107: 负责对财政资金和法律法规属于审计监督范围的国有企业财务收支的真实、合法和效益进行审计。需要长时间在外出差。
A108: 省直 | B108: 000074 | C108: 紫云自治县干部离任经济责任审计室 | D108: 03 | E108: 参照公务员法管理单位 | F108: 紫云县政务中心三楼 | H108: 0851-35233367 | I108: 审计业务部门工作人员 | J108: 01 | K108: 审计业务 | L108: 1 | M108: 本科及以上 | N108: 学士及以上学位 | P108: 审计学、会计学 | Q108: 审计、会计学 | X108: 负责对财政资金和法律法规属于审计监督范围的国有企业财务收支的真实、合法和效益进行审计。需要长时间在外出差。
A109: 省直 | B109: 000075 | C109: 黄果树风景名胜区审计局 | D109: 03 | E109: 参照公务员法管理单位 | F109: 黄果树风景名胜区 | H109: 0851-33596088 | I109: 审计业务部门工作人员 | J109: 01 | K109: 审计业务 | L109: 1 | M109: 本科及以上 | N109: 学士及以上学位 | P109: 审计学、会计学 | Q109: 审计、会计学 | W109: 限男性 | X109: 负责对财政资金和法律法规属于审计监督范围的国有企业财务收支的真实、合法和效益进行审计。需要长时间在外出差。
A110: 省直 | B110: 000075 | C110: 黄果树风景名胜区审计局 | D110: 03 | E110: 参照公务员法管理单位 | F110: 黄果树风景名胜区 | H110: 0851-33596088 | I110: 审计业务部门工作人员 | J110: 02 | K110: 审计业务 | L110: 1 | M110: 本科及以上 | N110: 学士及以上学位 | P110: 审计学、会计学 | Q110: 审计、会计学 | W110: 限女性 | X110: 负责对财政资金和法律法规属于审计监督范围的国有企业财务收支的真实、合法和效益进行审计。需要长时间在外出差。
A111: 省直 | B111: 000076 | C111: 安顺经济技术开发区审计局 | D111: 03 | E111: 参照公务员法管理单位 | F111: 安顺经济技术开发区迎宾路管委会大楼13楼 | H111: 0851-33413335 | I111: 审计业务部门工作人员 | J111: 01 | K111: 审计业务 | L111: 1 | M111: 本科及以上 | N111: 学士及以上学位 | P111: 土木工程、建筑工程、工程造价、经济学、金融学 | Q111: 土木工程类、应用经济学类 | X111: 负责对财政资金和法律法规属于审计监督范围的国有企业财务收支的真实、合法和效益进行审计。需要长时间在外出差。
A112: 省直 | B112: 000077 | C112: 六盘水市政府投资审计中心 | D112: 02 | E112: 参照公务员法管理单位 | F112: 六盘水市钟山区南环中路63号 | G112: http://sjj.gzlps.gov.cn/ | H112: 0858-8690391 | I112: 审计业务部门工作人员 | J112: 01 | K112: 审计业务 | L112: 1 | M112: 本科及以上 | N112: 学士及以上学位 | P112: 审计学、会计学 | Q112: 审计、会计学 | X112: 负责对财政资金和法律法规属于审计监督范围的国有企业财务收支的真实、合法和效益进行审计。需要长时间在外出差。
A113: 省直 | B113: 000078 | C113: 盘州市审计局 | D113: 03 | E113: 行政机关 | F113: 盘州市亦资街道凤鸣北路1号党政大楼附A栋5楼 | G113: http://www.panxian.gov.cn/zwgk/bmxxgkml/ssjj/zzjg/jgxx/index.shtml | H113: 0858-3632936 | I113: 审计业务部门工作人员 | J113: 01 | K113: 审计业务 | L113: 1 | M113: 本科及以上 | N113: 学士及以上学位 | P113: 审计学、会计学 | Q113: 审计、会计学 | W113: 限男性 | X113: 负责对财政资金和法律法规属于审计监督范围的国有企业财务收支的真实、合法和效益进行审计。需要长时间在外出差。
A114: 省直 | B114: 000078 | C114: 盘州市审计局 | D114: 03 | E114: 行政机关 | F114: 盘州市亦资街道凤鸣北路1号党政大楼附A栋5楼 | G114: http://www.panxian.gov.cn/zwgk/bmxxgkml/ssjj/zzjg/jgxx/index.shtml | H114: 0858-3632936 | I114: 审计业务部门工作人员 | J114: 02 | K114: 审计业务 | L114: 1 | M114: 本科及以上 | N114: 学士及以上学位 | P114: 审计学、会计学 | Q114: 审计、会计学 | W114: 限女性 | X114: 负责对财政资金和法律法规属于审计监督范围的国有企业财务收支的真实、合法和效益进行审计。需要长时间在外出差。
A115: 省直 | B115: 000079 | C115: 盘州市政府投资审计中心 | D115: 03 | E115: 参照公务员法管理单位 | F115: 盘州市亦资街道凤鸣北路1号党政大楼附A栋5楼 | G115: http://www.panxian.gov.cn/zwgk/bmxxgkml/ssjj/zzjg/jgxx/index.shtml | H115: 0858-3632936 | I115: 审计业务部门工作人员 | J115: 01 | K115: 审计业务 | L115: 1 | M115: 本科及以上 | N115: 学士及以上学位 | P115: 审计学、会计学 | Q115: 审计、会计学 | W115: 限女性 | X115: 负责对财政资金和法律法规属于审计监督范围的国有企业财务收支的真实、合法和效益进行审计。需要长时间在外出差。
A116: 省直 | B116: 000079 | C116: 盘州市政府投资审计中心 | D116: 03 | E116: 参照公务员法管理单位 | F116: 盘州市亦资街道凤鸣北路1号党政大楼附A栋5楼 | G116: http://www.panxian.gov.cn/zwgk/bmxxgkml/ssjj/zzjg/jgxx/index.shtml | H116: 0858-3632936 | I116: 审计业务部门工作人员 | J116: 02 | K116: 审计业务 | L116: 2 | M116: 本科及以上 | N116: 学士及以上学位 | P116: 审计学、会计学 | Q116: 审计、会计学 | W116: 限男性 | X116: 负责对财政资金和法律法规属于审计监督范围的国有企业财务收支的真实、合法和效益进行审计。需要长时间在外出差。
A117: 省直 | B117: 000080 | C117: 水城县政府投资审计中心 | D117: 03 | E117: 参照公务员法管理单位 | F117: 六盘水市水城县人社综合大楼 | H117: 0858---8938983 | I117: 审计业务部门工作人员 | J117: 01 | K117: 审计业务 | L117: 3 | M117: 本科及以上 | N117: 学士及以上学位 | P117: 审计学、会计学 | Q117: 审计、会计学 | W117: 限女性 | X117: 负责对财政资金和法律法规属于审计监督范围的国有企业财务收支的真实、合法和效益进行审计。需要长时间在外出差。
A118: 省直 | B118: 000080 | C118: 水城县政府投资审计中心 | D118: 03 | E118: 参照公务员法管理单位 | F118: 六盘水市水城县人社综合大楼 | H118: 0858-8938984 | I118: 审计业务部门工作人员 | J118: 02 | K118: 审计业务 | L118: 3 | M118: 本科及以上 | N118: 学士及以上学位 | P118: 土木工程、建筑工程、工程造价 | Q118: 土木工程类 | W118: 限男性 | X118: 负责对财政资金和法律法规属于审计监督范围的国有企业财务收支的真实、合法和效益进行审计。需要长时间在外出差。
A119: 省直 | B119: 000081 | C119: 钟山区审计局 | D119: 03 | E119: 行政机关 | F119: 六盘水市钟山区政通路政府 | H119: 0858-8693361 | I119: 审计业务部门工作人员 | J119: 01 | K119: 审计业务 | L119: 1 | M119: 本科及以上 | N119: 学士及以上学位 | P119: 金融学、会计学、审计学 | Q119: 应用经济学类、会计学、审计 | X119: 负责对财政资金和法律法规属于审计监督范围的国有企业财务收支的真实、合法和效益进行审计。需要长时间在外出差。
A120: 省直 | B120: 000082 | C120: 六盘水市钟山区项目核算审计中心 | D120: 03 | E120: 参照公务员法管理单位 | F120: 六盘水市钟山区政府大楼 | H120: 0858-8693361 | I120: 审计业务部门工作人员 | J120: 01 | K120: 审计业务 | L120: 1 | M120: 本科及以上 | N120: 学士及以上学位 | P120: 土木工程、建筑工程、工程造价、会计学、审计学 | Q120: 土木工程类、会计学、审计 | X120: 负责对财政资金和法律法规属于审计监督范围的国有企业财务收支的真实、合法和效益进行审计。需要长时间在外出差。
A121: 省直 | B121: 000083 | C121: 六盘水市钟山区政府投资审计中心 | D121: 03 | E121: 参照公务员法管理单位 | F121: 六盘水市钟山区政府大楼 | H121: 0858-8693361 | I121: 审计业务部门工作人员 | J121: 01 | K121: 审计业务 | L121: 1 | M121: 本科及以上 | N121: 学士及以上学位 | P121: 土木工程、建筑工程、工程造价、会计学、审计学 | Q121: 土木工程类、会计学、审计 | X121: 负责对财政资金和法律法规属于审计监督范围的国有企业财务收支的真实、合法和效益进行审计。需要长时间在外出差。
A122: 省直 | B122: 000084 | C122: 毕节市政府投资审计中心 | D122: 02 | E122: 参照公务员法管理单位 | F122: 贵州省毕节市七星关区百里杜鹃路 | G122: http://www.bijie.gov.cn/bm/bjssjj/index.shtml | H122: 0857-8308661 | I122: 审计业务工作人员 | J122: 01 | K122: 审计业务 | L122: 1 | M122: 本科及以上 | N122: 学士及以上学位 | P122: 会计学、金融学 | Q122: 会计学、金融学 | X122: 负责对财政资金和法律法规属于审计监督范围的国有企业财务收支的真实、合法和效益进行审计。需要长时间在外出差。
A123: 省直 | B123: 000085 | C123: 毕节市经济责任审计办公室 | D123: 02 | E123: 参照公务员法管理单位 | F123: 贵州省毕节市七星关区百里杜鹃路 | G123: http://www.bijie.gov.cn/bm/bjssjj/index.shtml | H123: 0857-8308661 | I123: 审计业务工作人员 | J123: 01 | K123: 审计业务 | L123: 1 | M123: 本科及以上 | N123: 学士及以上学位 | P123: 金融学、会计学 | Q123: 金融学、会计学 | X123: 负责对财政资金和法律法规属于审计监督范围的国有企业财务收支的真实、合法和效益进行审计。需要长时间在外出差。
A124: 省直 | B124: 000086 | C124: 毕节市七星关区固定资产投资审计中心 | D124: 03 | E124: 参照公务员法管理单位 | F124: 毕节市七星百里杜鹃大道区政府旁 | H124: 0857-8222360 | I124: 审计业务部门工作人员 | J124: 01 | K124: 审计业务 | L124: 1 | M124: 本科及以上 | N124: 学士及以上学位 | P124: 审计学、会计学 | Q124: 审计、会计学 | W124: 限男性 | X124: 负责对财政资金和法律法规属于审计监督范围的国有企业财务收支的真实、合法和效益进行审计。需要长时间在外出差。
A125: 省直 | B125: 000086 | C125: 毕节市七星关区固定资产投资审计中心 | D125: 03 | E125: 参照公务员法管理单位 | F125: 毕节市七星百里杜鹃大道区政府旁 | H125: 0857-8222360 | I125: 审计业务部门工作人员 | J125: 02 | K125: 审计业务 | L125: 1 | M125: 本科及以上 | N125: 学士及以上学位 | P125: 审计学、会计学 | Q125: 审计、会计学 | W125: 限女性 | X125: 负责对财政资金和法律法规属于审计监督范围的国有企业财务收支的真实、合法和效益进行审计。需要长时间在外出差。
A126: 省直 | B126: 000087 | C126: 大方县国家建设项目投资审计中心 | D126: 03 | E126: 参照公务员法管理单位 | F126: 贵州省毕节市大方县大方镇南街二小对面 | H126: 0857-5221348 | I126: 审计业务部门工作人员 | J126: 01 | K126: 审计业务 | L126: 1 | M126: 本科及以上 | N126: 学士及以上学位 | P126: 审计学、会计学、金融学 | Q126: 审计学、会计学、金融学 | W126: 限男性 | X126: 负责对财政资金和法律法规属于审计监督范围的国有企业财务收支的真实、合法和效益进行审计。需要长时间在外出差。
A127: 省直 | B127: 000087 | C127: 大方县国家建设项目投资审计中心 | D127: 03 | E127: 参照公务员法管理单位 | F127: 贵州省毕节市大方县大方镇南街二小对面 | H127: 0857-5221348 | I127: 审计业务部门工作人员 | J127: 02 | K127: 审计业务 | L127: 1 | M127: 本科及以上 | N127: 学士及以上学位 | P127: 审计学、会计学、金融学 | Q127: 审计学、会计学、金融学 | W127: 限女性 | X127: 负责对财政资金和法律法规属于审计监督范围的国有企业财务收支的真实、合法和效益进行审计。需要长时间在外出差。
A128: 省直 | B128: 000088 | C128: 黔西县国家建设项目投资审计中心 | D128: 03 | E128: 参照公务员法管理单位 | F128: 贵州省黔西县行政中心3楼 | G128: http://qxsjj.gzqianxi.gov.cn/ | H128: 0857-427163 | I128: 审计业务部门工作人员 | J128: 01 | K128: 审计业务 | L128: 1 | M128: 本科及以上 | N128: 学士及以上学位 | P128: 审计学、会计学 | Q128: 审计、会计学 | W128: 限男性 | X128: 负责对财政资金和法律法规属于审计监督范围的国有企业财务收支的真实、合法和效益进行审计。需要长时间在外出差。
A129: 省直 | B129: 000088 | C129: 黔西县国家建设项目投资审计中心 | D129: 03 | E129: 参照公务员法管理单位 | F129: 贵州省黔西县行政中心3楼 | G129: http://qxsjj.gzqianxi.gov.cn/ | H129: 0857-427163 | I129: 审计业务部门工作人员 | J129: 02 | K129: 审计业务 | L129: 1 | M129: 本科及以上 | N129: 学士及以上学位 | P129: 审计学、会计学 | Q129: 审计、会计学 | W129: 限女性 | X129: 负责对财政资金和法律法规属于审计监督范围的国有企业财务收支的真实、合法和效益进行审计。需要长时间在外出差。
A130: 省直 | B130: 000089 | C130: 金沙县经济责任审计中心 | D130: 03 | E130: 参照公务员法管理单位 | F130: 贵州省金沙县鼓场街道罗马路1号 | H130: 0857-7221363 | I130: 审计业务部门工作人员 | J130: 01 | K130: 审计业务 | L130: 1 | M130: 本科及以上 | N130: 学士及以上学位 | P130: 审计学、会计学 | Q130: 审计、会计学 | W130: 限男性 | X130: 负责对财政资金和法律法规属于审计监督范围的国有企业财务收支的真实、合法和效益进行审计。需要长时间在外出差。
A131: 省直 | B131: 000089 | C131: 金沙县经济责任审计中心 | D131: 03 | E131: 参照公务员法管理单位 | F131: 贵州省金沙县鼓场街道罗马路1号 | H131: 0857-7221363 | I131: 审计业务部门工作人员 | J131: 02 | K131: 审计业务 | L131: 1 | M131: 本科及以上 | N131: 学士及以上学位 | P131: 审计学、会计学 | Q131: 审计、会计学 | W131: 限女性 | X131: 负责对财政资金和法律法规属于审计监督范围的国有企业财务收支的真实、合法和效益进行审计。需要长时间在外出差。
A132: 省直 | B132: 000090 | C132: 金沙县固定资产投资审计中心 | D132: 03 | E132: 参照公务员法管理单位 | F132: 贵州省金沙县鼓场街道罗马路1号 | H132: 0857-7221363 | I132: 审计业务部门工作人员 | J132: 01 | K132: 审计业务 | L132: 1 | M132: 本科及以上 | N132: 学士及以上学位 | P132: 审计学、会计学 | Q132: 审计、会计学 | W132: 限男性 | X132: 负责对财政资金和法律法规属于审计监督范围的国有企业财务收支的真实、合法和效益进行审计。需要长时间在外出差。
A133: 省直 | B133: 000090 | C133: 金沙县固定资产投资审计中心 | D133: 03 | E133: 参照公务员法管理单位 | F133: 贵州省金沙县鼓场街道罗马路1号 | H133: 0857-7221363 | I133: 审计业务部门工作人员 | J133: 02 | K133: 审计业务 | L133: 1 | M133: 本科及以上 | N133: 学士及以上学位 | P133: 审计学、会计学 | Q133: 审计、会计学 | W133: 限女性 | X133: 负责对财政资金和法律法规属于审计监督范围的国有企业财务收支的真实、合法和效益进行审计。需要长时间在外出差。
A134: 省直 | B134: 000091 | C134: 织金县审计局固定资产投资审计所 | D134: 03 | E134: 参照公务员法管理单位 | F134: 织金 县文腾街道金中路政务大楼六楼 | H134: 0857 -7621225 | I134: 审计业务部门工作人员 | J134: 01 | K134: 审计业务 | L134: 1 | M134: 本科及以上 | N134: 学士及以上学位 | P134: 土木工程、建筑工程、工程造价 | Q134: 土木工程类 | W134: 限男性 | X134: 负责对财政资金和法律法规属于审计监督范围的国有企业财务收支的真实、合法和效益进行审计。需要长时间在外出差。
A135: 省直 | B135: 000091 | C135: 织金县审计局固定资产投资审计所 | D135: 03 | E135: 参照公务员法管理单位 | F135: 织金 县文腾街道金中路政务大楼六楼 | H135: 0857 -7621225 | I135: 审计业务部门工作人员 | J135: 02 | K135: 审计业务 | L135: 1 | M135: 本科及以上 | N135: 学士及以上学位 | P135: 审计学、会计学、 | Q135: 审计、会计学 | W135: 限女性 | X135: 负责对财政资金和法律法规属于审计监督范围的国有企业财务收支的真实、合法和效益进行审计。需要长时间在外出差。
A136: 省直 | B136: 000092 | C136: 威宁自治县固定资产投资审计中心 | D136: 03 | E136: 参照公务员法管理单位 | F136: 威宁县行政中心 | H136: 0857-6222045 | I136: 审计业务部门工作人员 | J136: 01 | K136: 审计业务 | L136: 1 | M136: 本科及以上 | N136: 学士及以上学位 | P136: 审计学、会计学 | Q136: 审计、会计学 | W136: 限男性 | X136: 负责对财政资金和法律法规属于审计监督范围的国有企业财务收支的真实、合法和效益进行审计。需要长时间在外出差。
A137: 省直 | B137: 000092 | C137: 威宁自治县固定资产投资审计中心 | D137: 03 | E137: 参照公务员法管理单位 | F137: 威宁县行政中心 | H137: 0857-6222045 | I137: 审计业务部门工作人员 | J137: 02 | K137: 审计业务 | L137: 1 | M137: 本科及以上 | N137: 学士及以上学位 | P137: 审计学、会计学 | Q137: 审计、会计学 | W137: 限女性 | X137: 负责对财政资金和法律法规属于审计监督范围的国有企业财务收支的真实、合法和效益进行审计。需要长时间在外出差。
A138: 省直 | B138: 000093 | C138: 毕节市赫章县审计局 | D138: 03 | E138: 行政机关 | F138: 赫章县城关镇建设路 | H138: 0857-3222857 | I138: 赫章县审计局工作人员 | J138: 01 | K138: 从事审计业务工作 | L138: 1 | M138: 本科及以上 | N138: 学士及以上学位 | P138: 会计学、审计学 | Q138: 会计学、审计 | X138: 负责对财政资金和法律法规属于审计监督范围的国有企业财务收支的真实、合法和效益进行审计。需要长时间在外出差。
A139: 省直 | B139: 000094 | C139: 铜仁市碧江区固定资产投资审计评审中心 | D139: 03 | E139: 参照公务员法管理单位 | F139: 铜仁市碧江区为民服务中心主楼13层 | H139: 0856-5222749 | I139: 审计业务部门工作人员 | J139: 01 | K139: 审计业务 | L139: 1 | M139: 本科及以上 | N139: 学士及以上学位 | P139: 审计学、会计学 | Q139: 审计、会计学 | W139: 限男性 | X139: 负责对财政资金和法律法规属于审计监督范围的国有企业财务收支的真实、合法和效益进行审计。需要长时间在外出差。
A140: 省直 | B140: 000094 | C140: 铜仁市碧江区固定资产投资审计评审中心 | D140: 03 | E140: 参照公务员法管理单位 | F140: 铜仁市碧江区为民服务中心主楼13层 | H140: 0856-5222749 | I140: 审计业务部门工作人员 | J140: 02 | K140: 审计业务 | L140: 1 | M140: 本科及以上 | N140: 学士及以上学位 | P140: 审计学、会计学 | Q140: 审计、会计学 | W140: 限女性 | X140: 负责对财政资金和法律法规属于审计监督范围的国有企业财务收支的真实、合法和效益进行审计。需要长时间在外出差。
A141: 省直 | B141: 000095 | C141: 铜仁市万山区固定资产投资审计评审中心 | D141: 03 | E141: 参照公务员法管理单位 | F141: 万山产业园2号楼4楼 | H141: 0856-3521162 | I141: 审计业务部门工作人员 | J141: 01 | K141: 审计业务 | L141: 1 | M141: 本科及以上 | N141: 学士及以上学位 | P141: 审计学、会计学 | Q141: 审计、会计学 | X141: 负责对财政资金和法律法规属于审计监督范围的国有企业财务收支的真实、合法和效益进行审计。需要长时间在外出差。
A142: 省直 | B142: 000096 | C142: 铜仁市万山区审计咨询服务中心 | D142: 03 | E142: 参照公务员法管理单位 | F142: 万山产业园2号楼4楼 | H142: 0856-3521162 | I142: 审计业务部门工作人员 | J142: 01 | K142: 审计业务 | L142: 1 | M142: 本科及以上 | N142: 学士及以上学位 | P142: 审计学、会计学 | Q142: 审计、会计学 | X142: 负责对财政资金和法律法规属于审计监督范围的国有企业财务收支的真实、合法和效益进行审计。需要长时间在外出差。
A143: 省直 | B143: 000097 | C143: 思南县审计局 | D143: 03 | E143: 行政机关 | F143: 思南县北京路行政服务中心四楼 | H143: 0856-7222725 | I143: 审计业务部门工作人员 | J143: 01 | K143: 审计业务 | L143: 1 | M143: 本科及以上 | N143: 学士及以上学位 | P143: 审计学、会计学 | Q143: 审计、会计学 | X143: 负责对财政资金和法律法规属于审计监督范围的国有企业财务收支的真实、合法和效益进行审计。需要长时间在外出差。
A144: 省直 | B144: 000098 | C144: 思南县固定资产投资审计评审中心 | D144: 03 | E144: 参照公务员法管理单位 | F144: 思南县北京路行政服务中心四楼 | H144: 0856-7222725 | I144: 审计业务部门工作人员 | J144: 01 | K144: 审计业务 | L144: 1 | M144: 本科及以上 | N144: 学士及以上学位 | P144: 审计学、会计学 | Q144: 审计、会计学 | X144: 负责对财政资金和法律法规属于审计监督范围的国有企业财务收支的真实、合法和效益进行审计。需要长时间在外出差。
A145: 省直 | B145: 000099 | C145: 江口县固定资产投资审计评审中心 | D145: 03 | E145: 参照公务员法管理单位 | F145: 江口县双江街道杨澜桥 | H145: 0856-6621291 | I145: 审计业务部门工作人员 | J145: 01 | K145: 审计业务 | L145: 1 | M145: 本科及以上 | N145: 学士及以上学位 | P145: 审计学、会计学 | Q145: 审计、会计学 | W145: 限男性 | X145: 负责对财政资金和法律法规属于审计监督范围的国有企业财务收支的真实、合法和效益进行审计。需要长时间在外出差。
A146: 省直 | B146: 000099 | C146: 江口县固定资产投资审计评审中心 | D146: 03 | E146: 参照公务员法管理单位 | F146: 江口县双江街道杨澜桥 | H146: 0856- 6621291 | I146: 审计业务部门工作人员 | J146: 02 | K146: 审计业务 | L146: 1 | M146: 本科及以上 | N146: 学士及以上学位 | P146: 审计学、会计学 | Q146: 审计、会计学 | W146: 限女性 | X146: 负责对财政资金和法律法规属于审计监督范围的国有企业财务收支的真实、合法和效益进行审计。需要长时间在外出差。
A147: 省直 | B147: 000100 | C147: 石阡县固定资产投资审计评审中心 | D147: 03 | E147: 参照公务员法管理单位 | F147: 石阡县泉都街道行政大楼六楼 | H147: 0856-7652202 | I147: 审计业务部门工作人员 | J147: 01 | K147: 审计业务 | L147: 1 | M147: 本科及以上 | N147: 学士及以上学位 | P147: 审计学、会计学 | Q147: 审计、会计学 | W147: 限男性 | X147: 负责对财政资金和法律法规属于审计监督范围的国有企业财务收支的真实、合法和效益进行审计。需要长时间在外出差。
A148: 省直 | B148: 000100 | C148: 石阡县固定资产投资审计评审中心 | D148: 03 | E148: 参照公务员法管理单位 | F148: 石阡县泉都街道行政大楼六楼 | H148: 0856-7652202 | I148: 审计业务部门工作人员 | J148: 02 | K148: 审计业务 | L148: 1 | M148: 本科及以上 | N148: 学士及以上学位 | P148: 审计学、会计学 | Q148: 审计、会计学 | W148: 限女性 | X148: 负责对财政资金和法律法规属于审计监督范围的国有企业财务收支的真实、合法和效益进行审计。需要长时间在外出差。
A149: 省直 | B149: 000101 | C149: 印江县固定资产投资审计评审中心 | D149: 03 | E149: 参照公务员法管理单位 | F149: 印江县 峨岭街 道峨江 路2号 | H149: 0856- 6222499 | I149: 审计业务部门工作人员 | J149: 01 | K149: 审计业务 | L149: 2 | M149: 本科及以上 | N149: 学士及以上学位 | P149: 审计学、会计学 | Q149: 审计、会计学 | W149: 限男性 | X149: 负责对财政资金和法律法规属于审计监督范围的国有企业财务收支的真实、合法和效益进行审计。需要长时间在外出差。
A150: 省直 | B150: 000101 | C150: 印江县固定资产投资审计评审中心 | D150: 03 | E150: 参照公务员法管理单位 | F150: 印江县 峨岭街 道峨江 路2号 | H150: 0856- 6222499 | I150: 审计业务部门工作人员 | J150: 02 | K150: 审计业务 | L150: 1 | M150: 本科及以上 | N150: 学士及以上学位 | P150: 审计学、会计学 | Q150: 审计、会计学 | W150: 限女性 | X150: 负责对财政资金和法律法规属于审计监督范围的国有企业财务收支的真实、合法和效益进行审计。需要长时间在外出差。
A151: 省直 | B151: 000102 | C151: 沿河土家族自治县审计局 | D151: 03 | E151: 行政机关 | F151: 贵州省沿河土家族自治县开发区行政中心216 | H151: 0856-8220196 | I151: 审计业务部门工作人员 | J151: 01 | K151: 审计业务 | L151: 1 | M151: 本科及以上 | N151: 学士及以上学位 | P151: 审计学、会计学 | Q151: 审计、会计学 | X151: 负责对财政资金和法律法规属于审计监督范围的国有企业财务收支的真实、合法和效益进行审计。需要长时间在外出差。
A152: 省直 | B152: 000103 | C152: 沿河土家族自治县固定资产投资审计评审中心 | D152: 03 | E152: 参照公务员法管理单位 | F152: 贵州省沿河土家族自治县开发区行政中心216 | H152: 0856-8220196 | I152: 审计业务部门工作人员 | J152: 01 | K152: 审计业务 | L152: 1 | M152: 本科及以上 | N152: 学士及以上学位 | P152: 审计学、会计学 | Q152: 审计、会计学 | W152: 限男性 | X152: 负责对财政资金和法律法规属于审计监督范围的国有企业财务收支的真实、合法和效益进行审计。需要长时间在外出差。
A153: 省直 | B153: 000103 | C153: 沿河土家族自治县固定资产投资审计评审中心 | D153: 03 | E153: 参照公务员法管理单位 | F153: 贵州省沿河土家族自治县开发区行政中心216 | H153: 0856-8220196 | I153: 审计业务部门工作人员 | J153: 02 | K153: 审计业务 | L153: 1 | M153: 本科及以上 | N153: 学士及以上学位 | P153: 审计学、会计学 | Q153: 审计、会计学 | W153: 限女性 | X153: 负责对财政资金和法律法规属于审计监督范围的国有企业财务收支的真实、合法和效益进行审计。需要长时间在外出差。
A154: 省直 | B154: 000104 | C154: 玉屏县固定资产投资审计评审中心 | D154: 03 | E154: 参照公务员法管理单位 | F154: 玉 屏侗族自治县行政中心 | H154: 0856-3221590 | I154: 审计业务部门工作人员 | J154: 01 | K154: 财务审计 | L154: 1 | M154: 本科及以上 | N154: 学士及以上学位 | P154: 审计学、会计学 | Q154: 审计、会计学 | X154: 负责对财政资金和法律法规属于审计监督范围的国有企业财务收支的真实、合法和效益进行审计。需要长时间在外出差。
A155: 省直 | B155: 000105 | C155: 德江县综合派出审计室 | D155: 03 | E155: 参照公务员法管理单位 | F155: 德江县环西路 | H155: 0856-8525135 | I155: 审计业务部门工作人员 | J155: 01 | K155: 审计业务 | L155: 1 | M155: 本科及以上 | N155: 学士及以上学位 | P155: 建筑学 | Q155: 建筑学类 | X155: 负责对财政资金和法律法规属于审计监督范围的国有企业财务收支的真实、合法和效益进行审计。需要长时间在外出差。
A156: 省直 | B156: 000106 | C156: 岑巩县建设项目预结算审查办公室 | D156: 03 | E156: 参照公务员法管理单位 | F156: 贵州省岑巩县新兴开发区思州文苑 | H156: 0855-3579789 | I156: 审计业务部门工作人员 | J156: 01 | K156: 审计业务 | L156: 1 | M156: 本科及以上 | N156: 学士及以上学位 | P156: 审计学、会计学 | Q156: 审计、会计学 | W156: 限男性 | X156: 负责对财政资金和法律法规属于审计监督范围的国有企业财务收支的真实、合法和效益进行审计。需要长时间在外出差。
A157: 省直 | B157: 000106 | C157: 岑巩县建设项目预结算审查办公室 | D157: 03 | E157: 参照公务员法管理单位 | F157: 贵州省岑巩县新兴开发区思州文苑 | H157: 0855-3579789 | I157: 审计业务部门工作人员 | J157: 02 | K157: 审计业务 | L157: 1 | M157: 本科及以上 | N157: 学士及以上学位 | P157: 审计学、会计学 | Q157: 审计、会计学 | W157: 限女性 | X157: 负责对财政资金和法律法规属于审计监督范围的国有企业财务收支的真实、合法和效益进行审计。需要长时间在外出差。
A158: 省直 | B158: 000107 | C158: 天柱县经济责任审计办公室 | D158: 03 | E158: 参照公务员法管理单位 | F158: 天柱县凤城街道环城南路4号 | H158: 0855-7522482 | I158: 审计业务部门工作人员 | J158: 01 | K158: 审计业务 | L158: 1 | M158: 本科及以上 | N158: 学士及以上学位 | P158: 审计学、会计学 | Q158: 审计、会计学 | W158: 限女性 | X158: 负责对财政资金和法律法规属于审计监督范围的国有企业财务收支的真实、合法和效益进行审计。需要长时间在外出差。
A159: 省直 | B159: 000107 | C159: 天柱县经济责任审计办公室 | D159: 03 | E159: 参照公务员法管理单位 | F159: 天柱县凤城街道环城南路4号 | H159: 0855-7522482 | I159: 审计业务部门工作人员 | J159: 02 | K159: 审计业务 | L159: 1 | M159: 本科及以上 | N159: 学士及以上学位 | P159: 审计学、会计学 | Q159: 审计、会计学 | W159: 限男性 | X159: 负责对财政资金和法律法规属于审计监督范围的国有企业财务收支的真实、合法和效益进行审计。需要长时间在外出差。
A160: 省直 | B160: 000108 | C160: 天柱县建设项目预结算审查中心 | D160: 03 | E160: 参照公务员法管理单位 | F160: 天柱县凤城街道环城南路4号 | H160: 0855-7522482 | I160: 审计业务部门工作人员 | J160: 01 | K160: 审计业务 | L160: 1 | M160: 本科及以上 | N160: 学士及以上学位 | P160: 审计学、会计学 | Q160: 审计、会计学 | W160: 限男性 | X160: 负责对财政资金和法律法规属于审计监督范围的国有企业财务收支的真实、合法和效益进行审计。需要长时间在外出差。
A161: 省直 | B161: 000108 | C161: 天柱县建设项目预结算审查中心 | D161: 03 | E161: 参照公务员法管理单位 | F161: 天柱县凤城街道环城南路4号 | H161: 0855-7522482 | I161: 审计业务部门工作人员 | J161: 02 | K161: 审计业务 | L161: 1 | M161: 本科及以上 | N161: 学士及以上学位 | P161: 审计学、会计学 | Q161: 审计、会计学 | W161: 限女性 | X161: 负责对财政资金和法律法规属于审计监督范围的国有企业财务收支的真实、合法和效益进行审计。需要长时间在外出差。
A162: 省直 | B162: 000109 | C162: 镇远县审计局 | D162: 03 | E162: 行政机关 | F162: 贵州省镇远县舞阳镇平冒街政务服务中心四楼 | H162: 0855-3872158 | I162: 审计业务部门工作人员 | J162: 01 | K162: 审计业务 | L162: 1 | M162: 本科及以上 | N162: 学士及以上学位 | P162: 审计学、会计学 | Q162: 审计、会计学 | X162: 负责对财政资金和法律法规属于审计监督范围的国有企业财务收支的真实、合法和效益进行审计。需要长时间在外出差。
A163: 省直 | B163: 000110 | C163: 镇远县建设项目预结算审计中心 | D163: 03 | E163: 参照公务员法管理单位 | F163: 贵州省镇远县舞阳镇平冒街政务服务中心四楼 | H163: 0855-3872158 | I163: 审计业务部门工作人员 | J163: 01 | K163: 审计业务 | L163: 1 | M163: 本科及以上 | N163: 学士及以上学位 | P163: 土木工程、建筑工程、工程造价 | Q163: 土木工程类 | X163: 负责对财政资金和法律法规属于审计监督范围的国有企业财务收支的真实、合法和效益进行审计。需要长时间在外出差。
A164: 省直 | B164: 000111 | C164: 镇远县经济责任审计办公室 | D164: 03 | E164: 参照公务员法管理单位 | F164: 贵州省镇远县舞阳镇平冒街政务服务中心四楼 | H164: 0855-3872158 | I164: 审计业务部门工作人员 | J164: 01 | K164: 审计业务 | L164: 1 | M164: 本科及以上 | N164: 学士及以上学位 | P164: 审计学、会计学 | Q164: 审计、会计学 | X164: 负责对财政资金和法律法规属于审计监督范围的国有企业财务收支的真实、合法和效益进行审计。需要长时间在外出差。
A165: 省直 | B165: 000112 | C165: 从江县经济责任审计办公室 | D165: 03 | E165: 参照公务员法管理单位 | F165: 贵州省从江县北上行政中心 | H165: 0855-6419135 | I165: 审计业务部门工作人员 | J165: 01 | K165: 审计业务 | L165: 1 | M165: 本科及以上 | N165: 学士及以上学位 | P165: 审计学、会计学 | Q165: 审计、会计学 | X165: 负责对财政资金和法律法规属于审计监督范围的国有企业财务收支的真实、合法和效益进行审计。需要长时间在外出差。
A166: 省直 | B166: 000113 | C166: 从江县建设工程预决算审查中心 | D166: 03 | E166: 参照公务员法管理单位 | F166: 贵州省从江县北上行政中心 | H166: 0855-6419135 | I166: 审计业务部门工作人员 | J166: 01 | K166: 审计业务 | L166: 1 | M166: 本科及以上 | N166: 学士及以上学位 | P166: 土木工程、建筑工程、工程造价 | Q166: 土木工程类 | W166: 限男性 | X166: 负责对财政资金和法律法规属于审计监督范围的国有企业财务收支的真实、合法和效益进行审计。需要长时间在外出差。
A167: 省直 | B167: 000113 | C167: 从江县建设工程预决算审查中心 | D167: 03 | E167: 参照公务员法管理单位 | F167: 贵州省从江县北上行政中心 | H167: 0855-6419135 | I167: 审计业务部门工作人员 | J167: 02 | K167: 审计业务 | L167: 1 | M167: 本科及以上 | N167: 学士及以上学位 | P167: 审计学、会计学 | Q167: 审计、会计学 | W167: 限女性 | X167: 负责对财政资金和法律法规属于审计监督范围的国有企业财务收支的真实、合法和效益进行审计。需要长时间在外出差。
A168: 省直 | B168: 000114 | C168: 三穗县经济责任审计办公室 | D168: 03 | E168: 参照公务员法管理单位 | F168: 三穗县行政中心人大楼三楼 | H168: 0855-4522083 | I168: 审计业务部门工作人员 | J168: 01 | K168: 审计业务 | L168: 1 | M168: 本科及以上 | N168: 学士及以上学位 | P168: 审计学、会计学、财政学 | Q168: 审计、会计学、财政学 | X168: 负责对财政资金和法律法规属于审计监督范围的国有企业财务收支的真实、合法和效益进行审计。需要长时间在外出差。
A169: 省直 | B169: 000115 | C169: 三穗县建设工程预结算审查中心 | D169: 03 | E169: 参照公务员法管理单位 | F169: 三穗县行政中心人大楼三楼 | H169: 0855-4522083 | I169: 审计业务部门工作人员 | J169: 01 | K169: 审计业务 | L169: 1 | M169: 本科及以上 | N169: 学士及以上学位 | P169: 审计学、会计学 | Q169: 审计、会计学 | W169: 限女性 | X169: 负责对财政资金和法律法规属于审计监督范围的国有企业财务收支的真实、合法和效益进行审计。需要长时间在外出差。
A170: 省直 | B170: 000115 | C170: 三穗县建设工程预结算审查中心 | D170: 03 | E170: 参照公务员法管理单位 | F170: 三穗县行政中心人大楼三楼 | H170: 0855-4522083 | I170: 审计业务部门工作人员 | J170: 02 | K170: 审计业务 | L170: 2 | M170: 本科及以上 | N170: 学士及以上学位 | P170: 审计学、会计学 | Q170: 审计、会计学 | W170: 限男性 | X170: 负责对财政资金和法律法规属于审计监督范围的国有企业财务收支的真实、合法和效益进行审计。需要长时间在外出差。
A171: 省直 | B171: 000116 | C171: 锦屏县经济责任审计办公室 | D171: 03 | E171: 参照公务员法管理单位 | F171: 贵州省锦屏县三江镇风雨桥社区 | H171: 0855-7221890 | I171: 审计业务部门工作人员 | J171: 01 | K171: 审计业务 | L171: 1 | M171: 本科及以上 | N171: 学士及以上学位 | P171: 审计学、会计学 | Q171: 审计、会计学 | X171: 负责对财政资金和法律法规属于审计监督范围的国有企业财务收支的真实、合法和效益进行审计。需要长时间在外出差。
A172: 省直 | B172: 000117 | C172: 黎平县人民政府投资前置审计中心 | D172: 03 | E172: 参照公务员法管理单位 | F172: 贵州省黎平县德凤街道平街21号 | H172: 0855-6221229 | I172: 审计业务部门工作人员 | J172: 01 | K172: 审计业务 | L172: 1 | M172: 本科及以上 | N172: 学士及以上学位 | P172: 审计学、会计学、经济学、金融学 | Q172: 审计、会计学、应用经济学类 | X172: 负责对财政资金和法律法规属于审计监督范围的国有企业财务收支的真实、合法和效益进行审计。需要长时间在外出差。
A173: 省直 | B173: 000118 | C173: 榕江县经济责任审计办公室 | D173: 03 | E173: 参照公务员法管理单位 | F173: 贵州省榕江县古州镇古州西路8号 | H173: 0855-6622067 | I173: 审计业务部门工作人员 | J173: 01 | K173: 审计业务 | L173: 1 | M173: 本科及以上 | N173: 学士及以上学位 | P173: 审计学、会计学、经济学、金融学 | Q173: 审计、会计学、应用经济学类 | X173: 负责对财政资金和法律法规属于审计监督范围的国有企业财务收支的真实、合法和效益进行审计。需要长时间在外出差。
A174: 省直 | B174: 000119 | C174: 台江县政府投资前置审计中心 | D174: 03 | E174: 参照公务员法管理单位 | F174: 贵州省台江县苗疆西大道2号 | H174: 0855-5322551 | I174: 审计业务部门工作人员 | J174: 01 | K174: 审计业务 | L174: 1 | M174: 本科及以上 | N174: 学士及以上学位 | P174: 审计学、会计学、经济学、金融学 | Q174: 审计、会计学、应用经济学类 | W174: 限女性 | X174: 负责对财政资金和法律法规属于审计监督范围的国有企业财务收支的真实、合法和效益进行审计。需要长时间在外出差。
A175: 省直 | B175: 000119 | C175: 台江县政府投资前置审计中心 | D175: 03 | E175: 参照公务员法管理单位 | F175: 贵州省台江县苗疆西大道2号 | H175: 0855-5322551 | I175: 审计业务部门工作人员 | J175: 02 | K175: 审计业务 | L175: 1 | M175: 本科及以上 | N175: 学士及以上学位 | P175: 土木工程、建筑工程、工程造价 | Q175: 土木工程类 | W175: 限男性 | X175: 负责对财政资金和法律法规属于审计监督范围的国有企业财务收支的真实、合法和效益进行审计。需要长时间在外出差。
A176: 省直 | B176: 000120 | C176: 台江县经济责任审计办公室 | D176: 03 | E176: 参照公务员法管理单位 | F176: 贵州省台江县苗疆西大道2号 | H176: 0855-5322551 | I176: 审计业务部门工作人员 | J176: 01 | K176: 审计业务 | L176: 1 | M176: 本科及以上 | N176: 学士及以上学位 | P176: 审计学、会计学 | Q176: 审计、会计学 | X176: 负责对财政资金和法律法规属于审计监督范围的国有企业财务收支的真实、合法和效益进行审计。需要长时间在外出差。
A177: 省直 | B177: 000121 | C177: 丹寨县审计局 | D177: 03 | E177: 行政机关 | F177: 丹寨县龙泉镇建设中路 | H177: 0855-3611351 | I177: 审计业务部门工作人员 | J177: 01 | K177: 审计业务 | L177: 1 | M177: 本科及以上 | N177: 学士及以上学位 | P177: 审计学、会计学 | Q177: 审计、会计学 | X177: 负责对财政资金和法律法规属于审计监督范围的国有企业财务收支的真实、合法和效益进行审计。需要长时间在外出差。
A178: 省直 | B178: 000122 | C178: 丹寨县建设工程（预）决算审查中心 | D178: 03 | E178: 参照公务员法管理单位 | F178: 丹寨县龙泉镇建设中路 | H178: 0855-3611351 | I178: 审计业务部门工作人员 | J178: 01 | K178: 审计业务 | L178: 1 | M178: 本科及以上 | N178: 学士及以上学位 | P178: 土木工程、建筑工程、工程造价 | Q178: 土木工程类 | X178: 负责对财政资金和法律法规属于审计监督范围的国有企业财务收支的真实、合法和效益进行审计。需要长时间在外出差。
A179: 省直 | B179: 000123 | C179: 麻江县政府投资前置审计中心 | D179: 03 | E179: 参照公务员法管理单位 | F179: 麻江县杏山街道环城西路25号一栋 | H179: 0855—2625805 | I179: 审计业务部门工作人员 | J179: 01 | K179: 审计业务 | L179: 1 | M179: 本科及以上 | N179: 学士及以上学位 | P179: 审计学、会计学 | Q179: 审计、会计学 | X179: 负责对财政资金和法律法规属于审计监督范围的国有企业财务收支的真实、合法和效益进行审计。需要长时间在外出差。
A180: 省直 | B180: 000124 | C180: 黄平县国家建设项目审核中心 | D180: 03 | E180: 参照公务员法管理单位 | F180: 贵州省黄平县新州镇㵲源路 | H180: 0855-2432361 | I180: 审计业务部门工作人员 | J180: 01 | K180: 财务审计 | L180: 1 | M180: 本科及以上 | N180: 学士及以上学位 | P180: 审计学、会计学 | Q180: 审计、会计学 | W180: 限男性 | X180: 负责对财政资金和法律法规属于审计监督范围的国有企业财务收支的真实、合法和效益进行审计。需要长时间在外出差。
A181: 省直 | B181: 000124 | C181: 黄平县国家建设项目审核中心 | D181: 03 | E181: 参照公务员法管理单位 | F181: 贵州省黄平县新州镇㵲源路 | H181: 0855-2432361 | I181: 审计业务部门工作人员 | J181: 02 | K181: 财务审计 | L181: 1 | M181: 本科及以上 | N181: 学士及以上学位 | P181: 审计学、会计学 | Q181: 审计、会计学 | W181: 限女性 | X181: 负责对财政资金和法律法规属于审计监督范围的国有企业财务收支的真实、合法和效益进行审计。需要长时间在外出差。
A182: 省直 | B182: 000125 | C182: 施秉县固定资产投资审计评审中心 | D182: 03 | E182: 参照公务员法管理单位 | F182: 施秉县城关镇新街43号 | H182: 0855-4221091 | I182: 审计业务部门工作人员 | J182: 01 | K182: 财务审计 | L182: 1 | M182: 本科及以上 | N182: 学士及以上学位 | P182: 审计学、会计学 | Q182: 审计、会计学 | X182: 负责对财政资金和法律法规属于审计监督范围的国有企业财务收支的真实、合法和效益进行审计。需要长时间在外出差。
A183: 省直 | B183: 000126 | C183: 贵定县审计局 | D183: 03 | E183: 行政机关 | F183: 贵定县汇东写字楼发展中心二楼3205 | H183: 0854-5220449 | I183: 审计业务部门工作人员 | J183: 01 | K183: 审计业务 | L183: 1 | M183: 本科及以上 | N183: 学士及以上学位 | P183: 审计学、会计学、经济学、金融学 | Q183: 审计、会计学 | X183: 负责对财政资金和法律法规属于审计监督范围的国有企业财务收支的真实、合法和效益进行审计。需要长时间在外出差。
A184: 省直 | B184: 000127 | C184: 独山县审计局 | D184: 03 | E184: 行政机关 | F184: 独山县百泉镇北门安置区（北门三街） | H184: 0854-3222579 | I184: 审计业务部门工作人员 | J184: 01 | K184: 审计业务 | L184: 1 | M184: 本科及以上 | N184: 学士及以上学位 | P184: 会计学、审计学、财政学 | Q184: 审计、会计学、财政学 | X184: 负责对财政资金和法律法规属于审计监督范围的国有企业财务收支的真实、合法和效益进行审计。需要长时间在外出差。
A185: 省直 | B185: 000128 | C185: 平塘县审计局 | D185: 03 | E185: 行政机关 | F185: 平塘县金盆街道商务中心13楼 | H185: 0854-7228052 | I185: 审计业务部门工作人员 | J185: 01 | K185: 审计业务 | L185: 1 | M185: 本科及以上 | N185: 学士及以上学位 | P185: 会计学、审计学、金融学、财政学 | Q185: 审计、会计学、金融学、财政学 | X185: 负责对财政资金和法律法规属于审计监督范围的国有企业财务收支的真实、合法和效益进行审计。需要长时间在外出差。
A186: 省直 | B186: 000129 | C186: 平塘县固定资产投资审计中心 | D186: 03 | E186: 参照公务员法管理单位 | F186: 平塘县金盆街道商务中心12楼 | H186: 0854-7228052 | I186: 审计业务部门工作人员 | J186: 01 | K186: 审计业务 | L186: 1 | M186: 本科及以上 | N186: 学士及以上学位 | P186: 审计学、会计学、金融学、财政学 | Q186: 审计、会计学、金融学、财政学 | X186: 负责对财政资金和法律法规属于审计监督范围的国有企业财务收支的真实、合法和效益进行审计。需要长时间在外出差。
A187: 省直 | B187: 000130 | C187: 平塘县经济责任审计所 | D187: 03 | E187: 参照公务员法管理单位 | F187: 平塘县金盆街道商务中心13楼 | H187: 0854-7228052 | I187: 审计业务部门工作人员 | J187: 01 | K187: 审计业务 | L187: 1 | M187: 本科及以上 | N187: 学士及以上学位 | P187: 审计学、会计学、金融学、财政学 | Q187: 审计、会计学、金融学、财政学 | X187: 负责对财政资金和法律法规属于审计监督范围的国有企业财务收支的真实、合法和效益进行审计。需要长时间在外出差。
A188: 省直 | B188: 000131 | C188: 惠水县审计局 | D188: 03 | E188: 行政机关 | F188: 惠水县涟江街道办事处建设东路财政大楼3楼 | H188: 0854-6221050 | I188: 审计业务部门工作人员 | J188: 01 | K188: 审计业务 | L188: 1 | M188: 本科及以上 | N188: 学士及以上学位 | P188: 会计学、审计学、金融学、财政学 | Q188: 审计、会计学、金融学、财政学 | X188: 负责对财政资金和法律法规属于审计监督范围的国有企业财务收支的真实、合法和效益进行审计。需要长时间在外出差。
A189: 省直 | B189: 000132 | C189: 福泉市固定资产投资审计中心 | D189: 03 | E189: 参照公务员法管理单位 | F189: 福泉市财政综合大楼 | H189: 0854-2222754 | I189: 审计业务部门工作人员 | J189: 01 | K189: 审计业务 | L189: 1 | M189: 本科及以上 | N189: 学士及以上学位 | P189: 会计学、审计学、金融学、财政学 | Q189: 审计、会计学、金融学、财政学 | W189: 限男性 | X189: 负责对财政资金和法律法规属于审计监督范围的国有企业财务收支的真实、合法和效益进行审计。需要长时间在外出差。
A190: 省直 | B190: 000132 | C190: 福泉市固定资产投资审计中心 | D190: 03 | E190: 参照公务员法管理单位 | F190: 福泉市财政综合大楼 | H190: 0854-2222754 | I190: 审计业务部门工作人员 | J190: 02 | K190: 审计业务 | L190: 1 | M190: 本科及以上 | N190: 学士及以上学位 | P190: 会计学、审计学、金融学、财政学 | Q190: 审计、会计学、金融学、财政学 | W190: 限女性 | X190: 负责对财政资金和法律法规属于审计监督范围的国有企业财务收支的真实、合法和效益进行审计。需要长时间在外出差。
A191: 省直 | B191: 000133 | C191: 荔波县经济责任审计局 | D191: 03 | E191: 参照公务员法管理单位 | F191: 荔波县玉屏街道向阳北路1号 | H191: 0854-3613805 | I191: 审计业务部门工作人员 | J191: 01 | K191: 审计业务 | L191: 1 | M191: 本科及以上 | N191: 学士及以上学位 | P191: 会计学、审计学、金融学、财政学 | Q191: 审计、会计学、金融学、财政学 | X191: 负责对财政资金和法律法规属于审计监督范围的国有企业财务收支的真实、合法和效益进行审计。需要长时间在外出差。
A192: 省直 | B192: 000134 | C192: 荔波县固定资产投资审计局 | D192: 03 | E192: 参照公务员法管理单位 | F192: 荔波县玉屏街道向阳北路0号 | H192: 0854-3613805 | I192: 审计业务部门工作人员 | J192: 01 | K192: 审计业务 | L192: 1 | M192: 本科及以上 | N192: 学士及以上学位 | P192: 会计学、审计学、金融学、财政学 | Q192: 审计、会计学、金融学、财政学 | W192: 限男性 | X192: 负责对财政资金和法律法规属于审计监督范围的国有企业财务收支的真实、合法和效益进行审计。需要长时间在外出差。
A193: 省直 | B193: 000134 | C193: 荔波县固定资产投资审计局 | D193: 03 | E193: 参照公务员法管理单位 | F193: 荔波县玉屏街道向阳北路1号 | H193: 0854-3613805 | I193: 审计业务部门工作人员 | J193: 02 | K193: 审计业务 | L193: 1 | M193: 本科及以上 | N193: 学士及以上学位 | P193: 会计学、审计学、金融学、财政学 | Q193: 审计、会计学、金融学、财政学 | W193: 限女性 | X193: 负责对财政资金和法律法规属于审计监督范围的国有企业财务收支的真实、合法和效益进行审计。需要长时间在外出差。
A194: 省直 | B194: 000135 | C194: 瓮安县固定资产投资审计中心 | D194: 03 | E194: 参照公务员法管理单位 | F194: 瓮安县新区纪委大楼三楼 | H194: 0854-2918145 | I194: 审计业务部门工作人员 | J194: 01 | K194: 审计业务 | L194: 1 | M194: 本科及以上 | N194: 学士及以上学位 | P194: 审计学、会计学、金融学、财政学 | Q194: 审计、会计学、金融学、财政学 | W194: 限男性 | X194: 负责对财政资金和法律法规属于审计监督范围的国有企业财务收支的真实、合法和效益进行审计。需要长时间在外出差。
A195: 省直 | B195: 000135 | C195: 瓮安县固定资产投资审计中心 | D195: 03 | E195: 参照公务员法管理单位 | F195: 瓮安县新区纪委大楼三楼 | H195: 0854-2918145 | I195: 审计业务部门工作人员 | J195: 02 | K195: 审计业务 | L195: 1 | M195: 本科及以上 | N195: 学士及以上学位 | P195: 审计学、会计学、金融学、财政学 | Q195: 审计、会计学、金融学、财政学 | W195: 限女性 | X195: 负责对财政资金和法律法规属于审计监督范围的国有企业财务收支的真实、合法和效益进行审计。需要长时间在外出差。
A196: 省直 | B196: 000136 | C196: 独山县固定资产投资审计中心 | D196: 03 | E196: 参照公务员法管理单位 | F196: 独山县百泉镇北门安置区（北门三街） | H196: 0854-3222579 | I196: 审计业务部门工作人员 | J196: 01 | K196: 审计业务 | L196: 1 | M196: 本科及以上 | N196: 学士及以上学位 | P196: 土木工程、建筑工程、工程造价 | Q196: 土木工程类 | W196: 限男性 | X196: 负责对财政资金和法律法规属于审计监督范围的国有企业财务收支的真实、合法和效益进行审计。需要长时间在外出差。
A197: 省直 | B197: 000136 | C197: 独山县固定资产投资审计中心 | D197: 03 | E197: 参照公务员法管理单位 | F197: 独山县百泉镇北门安置区（北门三街） | H197: 0854-3222579 | I197: 审计业务部门工作人员 | J197: 02 | K197: 审计业务 | L197: 2 | M197: 本科及以上 | N197: 学士及以上学位 | P197: 审计学、会计学、金融学、财政学 | Q197: 审计、会计学、金融学、财政学 | W197: 限女性 | X197: 负责对财政资金和法律法规属于审计监督范围的国有企业财务收支的真实、合法和效益进行审计。需要长时间在外出差。
A198: 省直 | B198: 000137 | C198: 独山县经济责任审计中心 | D198: 03 | E198: 参照公务员法管理单位 | F198: 贵州省独山县百泉镇北门安置区（北门三街） | H198: 0854-3222579 | I198: 审计业务部门工作人员 | J198: 01 | K198: 审计业务 | L198: 1 | M198: 本科及以上 | N198: 学士及以上学位 | P198: 审计学、会计学 、金融学、财政学 | Q198: 审计、会计学、金融学、财政学 | W198: 限女性 | X198: 负责对财政资金和法律法规属于审计监督范围的国有企业财务收支的真实、合法和效益进行审计。需要长时间在外出差。
A199: 省直 | B199: 000137 | C199: 独山县经济责任审计中心 | D199: 03 | E199: 参照公务员法管理单位 | F199: 贵州省独山县百泉镇北门安置区（北门三街） | H199: 0854-3222579 | I199: 审计业务部门工作人员 | J199: 02 | K199: 审计业务 | L199: 1 | M199: 本科及以上 | N199: 学士及以上学位 | P199: 审计学、会计学、金融学、财政学 | Q199: 审计、会计学、金融学、财政学 | W199: 限男性 | X199: 负责对财政资金和法律法规属于审计监督范围的国有企业财务收支的真实、合法和效益进行审计。需要长时间在外出差。
A200: 省直 | B200: 000138 | C200: 长顺县固定资产投资审计中心 | D200: 03 | E200: 参照公务员法管理单位 | F200: 长顺县城南新区行政大楼11层 | H200: 0854-6822572 | I200: 审计业务部门工作人员 | J200: 01 | K200: 审计业务 | L200: 1 | M200: 本科及以上 | N200: 学士及以上学位 | P200: 审计学、会计学、金融学、财政学 | Q200: 审计、会计学、金融学、财政学 | X200: 负责对财政资金和法律法规属于审计监督范围的国有企业财务收支的真实、合法和效益进行审计。需要长时间在外出差。
... 247 more rows

Sheet 贵阳市
A1: 贵阳市2018年市、县、乡三级机关统一面向社会公开招录公务员职位表
A2: 招录单 位代码 | B2: 单位 名称 | C2: 层级代码 | D2: 机构性质 | E2: 单位 地址 | F2: 单位网站 | G2: 单位咨询电话 | H2: 职位 名称 | I2: 职位代码 | J2: 职位简介 | K2: 招录人数 | L2: 学历要求 | M2: 学位要求 | N2: 专业要求 | Q2: 政治面貌要求 | R2: 定向招录项目要求 | U2: 基层工作经历时间 | V2: 其他报 考条件 | W2: 职位工作性质及需要说明的其他事项
N3: 大专 | O3: 本科 | P3: 研究生 | R3: 五项目人员 | S3: 退役大学生士兵 | T3: 少数 民族
A4: 010001 | B4: 中共贵阳市委宣传部 | C4: 02 | D4: 党的机关 | E4: 观山湖区市级行政中心市委大楼 | G4: 0851-87988289 | H4: 办公室工作人员 | I4: 01 | J4: 从事理论宣讲、公文写作工作 | K4: 2 | L4: 全日制普通高校研究生 | M4: 硕士及以上学位 | N4: —— | O4: —— | P4: 1.哲学 （学科门类） 2.文学 （学科门类） 3.历史学 （学科门类） | Q4: 中共党员 | R4: 否 | S4: 否 | T4: 否 | U4: 不限 | V4: 无 | W4: 无
A5: 010002 | B5: 中共贵阳市委统一战线工作部 | C5: 02 | D5: 党的机关 | E5: 贵阳市观山湖区林城东路1号市委二楼 | G5: 0851-87988312 | H5: 办公室财务工作人员 | I5: 01 | J5: 从事机关财务工作以及办公室文秘等相关工作 | K5: 1 | L5: 全日制普通高校本科及以上 | M5: 学士及以上学位 | N5: —— | O5: 会计及相关专业 | P5: 会计学专业 | Q5: 中共党员 | R5: 否 | S5: 否 | T5: 否 | U5: 2年 | V5: 具有助理会计师及以上任职资格，有五年以上财务工作经历 | W5: 无
A6: 010003 | B6: 贵阳市保密技术检查中心 | C6: 02 | D6: 参照公务员法管理单位 | E6: 观山湖区林城东路市级行政中心 | F6: bmj.gygov.gov.cn | G6: 0851-87988456 | H6: 工作人员 | I6: 01 | J6: 从事保密检查工作 | K6: 1 | L6: 全日制普通高校本科及以上 | M6: 学士及以上学位 | N6: —— | O6: 1.保密管理专业 2.保密技术专业 3.通信工程专业 4.电子信息类 （一级学科目录） | P6: 1.通信与信息系统专业 2.计算机应用技术专业 | Q6: 不限 | R6: 否 | S6: 否 | T6: 否 | U6: 不限 | V6: 无 | W6: 无
A7: 010004 | B7: 贵阳市老年大学 | C7: 02 | D7: 参照公务员法管理单位 | E7: 贵阳市贯城河路38号 | G7: 0851-85827438 | H7: 教务处工作人员 | I7: 01 | J7: 从事教学教务管理 | K7: 1 | L7: 全日制普通高校本科及以上 | M7: 学士及以上学位 | N7: —— | O7: 1.教育学专业 2.公共事业管理专业 3.行政管理专业 | P7: 1.成人教育学专业 2.行政管理专业 | Q7: 不限 | R7: 否 | S7: 否 | T7: 否 | U7: 2年 | V7: 无 | W7: 无
A8: 010005 | B8: 中共贵阳市委讲师团 | C8: 02 | D8: 参照公务员法管理单位 | E8: 观山湖区市级行政中心市委大楼 | F8: http://gyxxw.gygov.gov.cn/ | G8: 0851-87988500 | H8: 教研室工作人员 | I8: 01 | J8: 从事在职干部理论教学、研究工作 | K8: 1 | L8: 全日制普通高校研究生 | M8: 硕士及以上学位 | N8: —— | O8: —— | P8: 1.马克思主义哲学专业 2.政治经济学专业 3.政治学理论专业 4.科学社会主义与国际共产主义运动专业 5.中共党史专业 6.国际政治专业 7.马克思主义理论 （一级学科目录） | Q8: 不限 | R8: 否 | S8: 否 | T8: 否 | U8: 2年 | V8: 无 | W8: 无
A9: 010006 | B9: 贵阳市总工会 | C9: 02 | D9: 参照公务员法管理单位 | E9: 贵阳市瑞金南路68号 | G9: 0851-85829620 | H9: 工委工作人员 | I9: 01 | J9: 从事财会工作 | K9: 1 | L9: 全日制普通高校本科及以上 | M9: 学士及以上学位 | N9: —— | O9: 不限 | P9: 不限 | Q9: 不限 | R9: 否 | S9: 否 | T9: 否 | U9: 不限 | V9: 具有助理会计师及以上任职资格 | W9: 无
A10: 010006 | B10: 贵阳市总工会 | C10: 02 | D10: 参照公务员法管理单位 | E10: 贵阳市瑞金南路68号 | G10: 0851-85829620 | H10: 工委工作人员 | I10: 02 | J10: 从事工会相关工作 | K10: 1 | L10: 全日制普通高校本科及以上 | M10: 学士及以上学位 | N10: —— | O10: 不限 | P10: 不限 | Q10: 不限 | R10: 是 | S10: 是 | T10: 否 | U10: 2年 | V10: 定向招录“五项目人员”或退役大学生士兵 | W10: 无
A11: 010007 | B11: 贵阳市中级人民法院 | C11: 02 | D11: 审判机关 | E11: 贵阳市市府路31号 | G11: 0851-85364162 | H11: 法官助理 | I11: 01 | J11: 从事审判辅助工作等 | K11: 2 | L11: 全日制普通高校研究生 | M11: 硕士及以上学位 | N11: —— | O11: —— | P11: 法学 （一级学科目录） | Q11: 不限 | R11: 否 | S11: 否 | T11: 否 | U11: 不限 | V11: 具有《国家法律职业资格证书》（A证） | W11: 无
A12: 010007 | B12: 贵阳市中级人民法院 | C12: 02 | D12: 审判机关 | E12: 贵阳市市府路31号 | G12: 0851-85364162 | H12: 财务人员 | I12: 02 | J12: 从事财务工作 | K12: 1 | L12: 全日制普通高校本科及以上 | M12: 学士及以上学位 | N12: —— | O12: 会计及相关专业 | P12: 会计学专业 | Q12: 不限 | R12: 否 | S12: 否 | T12: 否 | U12: 不限 | V12: 无 | W12: 无
A13: 010008 | B13: 贵阳市人民检察院 | C13: 02 | D13: 检察机关 | E13: 贵阳市云岩区威清路26号 | F13: http：//www.guiyang.jcy.gov.cn | G13: 0851-86697887 | H13: 检察辅助人员 | I13: 01 | J13: 从事检察业务工作 | K13: 2 | L13: 全日制普通高校本科及以上 | M13: 学士及以上学位 | N13: —— | O13: 法学类 （一级学科目录） | P13: 法学 （一级学科目录） | Q13: 不限 | R13: 否 | S13: 否 | T13: 否 | U13: 不限 | V13: 1.具有与学历、专业相应的学位 2.具有《国家法律职业资格证书（A证） | W13: 无
A14: 010008 | B14: 贵阳市人民检察院 | C14: 02 | D14: 检察机关 | E14: 贵阳市云岩区威清路26号 | F14: http：//www.guiyang.jcy.gov.cn | G14: 0851-86697887 | H14: 检察辅助人员 | I14: 02 | J14: 从事检察业务工作 | K14: 2 | L14: 全日制普通高校本科及以上 | M14: 学士及以上学位 | N14: —— | O14: 法学类 （一级学科目录） | P14: 法学 （一级学科目录） | Q14: 不限 | R14: 否 | S14: 否 | T14: 否 | U14: 2年 | V14: 1.具有与学历、专业相应的学位 2.具有《国家法律职业资格证书（A证） | W14: 无
A15: 010009 | B15: 中共贵阳市云岩区委宣传部 | C15: 03 | D15: 行政机关 | E15: 贵阳市云岩区新添大道南段299号 | G15: 0851-86679120 | H15: 办公室工作人员 | I15: 01 | J15: 从事办公室日常工作 | K15: 1 | L15: 本科及以上 | M15: 学士及以上学位 | N15: —— | O15: 不限 | P15: 不限 | Q15: 不限 | R15: 否 | S15: 否 | T15: 否 | U15: 不限 | V15: 无 | W15: 无
A16: 010009 | B16: 中共贵阳市云岩区委宣传部 | C16: 03 | D16: 行政机关 | E16: 贵阳市云岩区新添大道南段299号 | G16: 0851-86679120 | H16: 文化产业办公室工作人员 | I16: 02 | J16: 从事文化产业办公室相关工作 | K16: 1 | L16: 本科及以上 | M16: 学士及以上学位 | N16: —— | O16: 1.工商管理类 （一级学科目录） 2.经济学类 （一级学科目录） 3.文化产业管理专业 | P16: 1.应用经济学 （一级学科目录） 2.工商管理 （一级学科目录） | Q16: 不限 | R16: 否 | S16: 否 | T16: 否 | U16: 不限 | V16: 无 | W16: 无
A17: 010010 | B17: 贵阳市云岩区人民法院 | C17: 03 | D17: 审判机关 | E17: 贵阳市云岩区金仓路8号 | G17: 0851-87160033 | H17: 财会人员 | I17: 01 | J17: 从事财务工作 | K17: 1 | L17: 本科及以上 | M17: 学士及以上学位 | N17: —— | O17: 会计及相关专业 | P17: 会计学专业 | Q17: 不限 | R17: 否 | S17: 否 | T17: 否 | U17: 不限 | V17: 具有助理会计师及以上任职资格 | W17: 无
A18: 010010 | B18: 贵阳市云岩区人民法院 | C18: 03 | D18: 审判机关 | E18: 贵阳市云岩区金仓路8号 | G18: 0851-87160033 | H18: 法官 助理 | I18: 02 | J18: 从事审判辅助 | K18: 1 | L18: 全日制普通高校研究生 | M18: 硕士及以上学位 | N18: —— | O18: —— | P18: 法学 （一级学科目录） | Q18: 不限 | R18: 否 | S18: 否 | T18: 否 | U18: 不限 | V18: 具有《国家法律职业资格证书》（A证） | W18: 无
A19: 010010 | B19: 贵阳市云岩区人民法院 | C19: 03 | D19: 审判机关 | E19: 贵阳市云岩区金仓路8号 | G19: 0851-87160033 | H19: 网络技术人员 | I19: 03 | J19: 从事计算机网络工作 | K19: 1 | L19: 本科及以上 | M19: 学士及以上学位 | N19: —— | O19: 计算机及相关专业 | P19: 计算机科学与技术 （一级学科目录） | Q19: 不限 | R19: 否 | S19: 否 | T19: 否 | U19: 不限 | V19: 具有全国计算机等级考试（NCRE）三级及以上合格证书 | W19: 无
A20: 010011 | B20: 云岩区总工会 | C20: 03 | D20: 参照公务员法管理单位 | E20: 云岩区未来方舟D12组团B栋416室 | G20: 0851-85612477 | H20: 会计 人员 | I20: 01 | J20: 从事财务工作 | K20: 1 | L20: 本科及以上 | M20: 学士及以上学位 | N20: —— | O20: 会计及相关专业 | P20: 会计学专业 | Q20: 不限 | R20: 否 | S20: 否 | T20: 否 | U20: 不限 | V20: 具有助理会计师及以上任职资格 | W20: 无
A21: 010012 | B21: 中共贵阳市南明区委办公室 | C21: 03 | D21: 党的机关 | E21: 贵阳市南明区箭道街52号 | G21: 0851-85810417 | H21: 办公室工作人员 | I21: 01 | J21: 从事有关经济建设、社会发展等方面调研工作、承担文稿起草和办公室日常工作 | K21: 1 | L21: 本科及以上 | M21: 学士及以上学位 | N21: —— | O21: 1.经济学类 (一级学科目录） 2.金融学类 (一级学科目录） 3.经济与贸易类 (一级学科目录） | P21: 经济学 （学科门类） | Q21: 中共党员 | R21: 否 | S21: 否 | T21: 否 | U21: 不限 | V21: 无 | W21: 无
A22: 010012 | B22: 中共贵阳市南明区委办公室 | C22: 03 | D22: 党的机关 | E22: 贵阳市南明区箭道街52号 | G22: 0851-85810417 | H22: 办公室工作人员 | I22: 02 | J22: 从事有关大数据、大生态、城市建设、棚户区改造等方面调研工作，承担文稿起草和办公室日常工作 | K22: 1 | L22: 本科及以上 | M22: 学士及以上学位 | N22: —— | O22: 1.土木类 (一级学科目录） 2.电子信息类 (一级学科目录） 3.环境科学与工程类 (一级学科目录） 4.建筑类 (一级学科目录） | P22: 1.土木工程 (一级学科目录） 2.电子科学与技术 (一级学科目录） 3.环境科学与工程 (一级学科目录） 4.建筑学 (一级学科目录） | Q22: 中共党员 | R22: 否 | S22: 否 | T22: 否 | U22: 不限 | V22: 无 | W22: 无
A23: 010013 | B23: 中共贵阳市南明区委宣传部 | C23: 03 | D23: 党的机关 | E23: 贵阳市南明区箭道街52号 | G23: 0851-85810417 | H23: 办公室工作人员 | I23: 01 | J23: 从事办公室日常工作、保密工作、文秘工作等 | K23: 1 | L23: 本科及以上 | M23: 学士及以上学位 | N23: —— | O23: 1.汉语言文学专业 2.法学专业 3.哲学专业 4.新闻学专业 5.计算机科学与技术专业 | P23: 1.中国语言文学 （一级学科目录） 2.法学 （一级学科目录） 3.哲学 （一级学科目录） 4.计算机科学与技术（一级学科目录） | Q23: 中共党员 | R23: 否 | S23: 否 | T23: 否 | U23: 不限 | V23: 无 | W23: 无
A24: 010014 | B24: 贵阳市南明区人民法院 | C24: 03 | D24: 审判机关 | E24: 贵阳市双龙航空港经济区机场路9号 | G24: 0851-85810417 | H24: 司法行政人员 | I24: 01 | J24: 从事财务工作 | K24: 1 | L24: 本科及以上 | M24: 学士及以上学位 | N24: —— | O24: 会计及相关专业 | P24: 经济学 （学科门类） | Q24: 不限 | R24: 否 | S24: 否 | T24: 否 | U24: 不限 | V24: 具有助理会计师及以上任职资格 | W24: 无
A25: 010014 | B25: 贵阳市南明区人民法院 | C25: 03 | D25: 审判机关 | E25: 贵阳市双龙航空港经济区机场路9号 | G25: 0851-85810417 | H25: 审判辅助人员 | I25: 02 | J25: 从事审判业务工作 | K25: 2 | L25: 本科及以上 | M25: 学士及以上学位 | N25: —— | O25: 法学类 （一级学科目录） | P25: 法学 （一级学科目录） | Q25: 不限 | R25: 否 | S25: 否 | T25: 否 | U25: 不限 | V25: 具有《国家法律职业资格证书》（A证） | W25: 无
A26: 010015 | B26: 贵阳市南明区妇女联合会 | C26: 03 | D26: 参照公务员法管理单位 | E26: 贵阳市南明区箭道街南巷21号 | G26: 0851-85810417 | H26: 办公室工作人员 | I26: 01 | J26: 从事办公室日常工作 | K26: 1 | L26: 本科及以上 | M26: 学士及以上学位 | N26: —— | O26: 1.社会工作专业 2.汉语言文学专业 3.新闻学专业 4.心理学专业 5.法学专业 | P26: 法学 （一级学科目录） | Q26: 不限 | R26: 否 | S26: 否 | T26: 否 | U26: 不限 | V26: 无 | W26: 无
A27: 010016 | B27: 中国共产主义青年团贵阳市南明区委员会 | C27: 03 | D27: 参照公务员法管理单位 | E27: 贵阳市南明区新华社区箭道街南巷21号 | G27: 0851-85810417 | H27: 办公室工作人员 | I27: 01 | J27: 从事办公室日常工作、保密工作、文秘工作 | K27: 1 | L27: 本科及以上 | M27: 学士及以上学位 | N27: —— | O27: 不限 | P27: 不限 | Q27: 中共党员 | R27: 是 | S27: 是 | T27: 否 | U27: 不限 | V27: 定向招录“五项目人员”或退役大学生士兵 | W27: 无
A28: 010017 | B28: 贵阳市花溪区人民检察院 | C28: 03 | D28: 检察机关 | E28: 花溪区田园北路行政中心政法大楼 | G28: 0851-85363173 | H28: 办公室工作人员 | I28: 01 | J28: 从事办公室等文秘相关工作 | K28: 1 | L28: 本科及以上 | M28: 学士及以上学位 | N28: —— | O28: 1.汉语言文学专业 2.新闻学专业 3.行政管理专业 | P28: 1.新闻学专业 2.行政管理专业 | Q28: 不限 | R28: 否 | S28: 否 | T28: 否 | U28: 不限 | V28: 无 | W28: 无
A29: 010017 | B29: 贵阳市花溪区人民检察院 | C29: 03 | D29: 检察机关 | E29: 花溪区田园北路行政中心政法大楼 | G29: 0851-85363173 | H29: 财务人员 | I29: 02 | J29: 从事财务及相关工作 | K29: 1 | L29: 本科及以上 | M29: 学士及以上学位 | N29: —— | O29: 会计及相关专业 | P29: 会计学专业 | Q29: 不限 | R29: 否 | S29: 否 | T29: 否 | U29: 不限 | V29: 无 | W29: 无
A30: 010018 | B30: 乌当区人民法院 | C30: 03 | D30: 审判机关 | E30: 贵阳市乌当区航天大道66号 | G30: 0851-86402599 | H30: 财务人员 | I30: 01 | J30: 从事会计相关工作 | K30: 1 | L30: 本科及以上 | M30: 学士及以上学位 | N30: —— | O30: 会计及相关专业 | P30: 会计学专业 | Q30: 不限 | R30: 否 | S30: 否 | T30: 否 | U30: 不限 | V30: 具有助理会计师及以上任职资格 | W30: 无
A31: 010019 | B31: 共青团贵阳市白云区委员会 | C31: 03 | D31: 参照公务员法管理单位 | E31: 贵阳市白云区行政中心南楼211室 | G31: 0851-84616926 | H31: 办公室工作人员 | I31: 01 | J31: 从事办公室日常工作、会计 | K31: 1 | L31: 本科及以上 | M31: 学士及以上学位 | N31: —— | O31: 会计及相关专业 | P31: 会计学专业 | Q31: 不限 | R31: 否 | S31: 否 | T31: 否 | U31: 不限 | V31: 28周岁以下（1990年3月13日及以后出生） | W31: 无
A32: 010020 | B32: 贵阳市白云区人民法院 | C32: 03 | D32: 审判机关 | E32: 贵阳市白云区中环路4号 | F32: http://baiyun.guizhoucourt.cn/ | G32: 0851-84616016 | H32: 派出法庭 审判执行辅助 人员 | I32: 01 | J32: 从事审判执行辅助工作 | K32: 6 | L32: 研究生 | M32: 硕士及以上学位 | N32: —— | O32: —— | P32: 法学 （一级学科目录） | Q32: 不限 | R32: 否 | S32: 否 | T32: 否 | U32: 不限 | V32: 无 | W32: 无
A33: 010021 | B33: 贵阳市白云区人民检察院 | C33: 03 | D33: 检察机关 | E33: 贵阳市白云区七一路80号 | G33: 0851-86697234 | H33: 司法辅助人员 | I33: 01 | J33: 协助审查案件，草拟审查报告及有关法律文书等 | K33: 1 | L33: 本科及以上 | M33: 学士及以上学位 | N33: —— | O33: 法学类 （一级学科目录） | P33: 法学 （一级学科目录） | Q33: 不限 | R33: 否 | S33: 否 | T33: 否 | U33: 不限 | V33: 具有《国家法律职业资格证书》（A证） | W33: 无
A34: 010021 | B34: 贵阳市白云区人民检察院 | C34: 03 | D34: 检察机关 | E34: 贵阳市白云区七一路80号 | G34: 0851-86697234 | H34: 司法行政人员 | I34: 02 | J34: 从事财务日常工作 | K34: 1 | L34: 本科及以上 | M34: 学士及以上学位 | N34: —— | O34: 会计及相关专业 | P34: 会计学专业 | Q34: 不限 | R34: 否 | S34: 否 | T34: 否 | U34: 不限 | V34: 具有助理会计师及以上任职资格 | W34: 无
A35: 010022 | B35: 清镇市人民法院 | C35: 03 | D35: 审判机关 | E35: 贵州省贵阳市清镇市金盆路25 | G35: 0851-82526134 | H35: 技术室工作人员 | I35: 01 | J35: 从事机关信息化建设 | K35: 1 | L35: 本科及以上 | M35: 学士及以上学位 | N35: —— | O35: 计算机及相关专业 | P35: 不限 | Q35: 不限 | R35: 否 | S35: 否 | T35: 否 | U35: 不限 | V35: 具有全国计算机等级考试（NCRE）二级及以上合格证书 | W35: 无
A36: 010022 | B36: 清镇市人民法院 | C36: 03 | D36: 审判机关 | E36: 贵州省贵阳市清镇市金盆路25 | G36: 0851-82526134 | H36: 办公室工作人员 | I36: 02 | J36: 从事办公室日常工作、保密工作、文秘工作 | K36: 1 | L36: 本科及以上 | M36: 学士及以上学位 | N36: —— | O36: 中国语言文学类 （一级学科目录） | P36: 不限 | Q36: 中共党员 | R36: 否 | S36: 否 | T36: 否 | U36: 不限 | V36: 无 | W36: 无
A37: 010023 | B37: 修文县人民法院 | C37: 03 | D37: 审判机关 | E37: 贵州省修文县龙场镇阳明大道 | F37: http：//www.xiuwencourt.gov.cn | G37: 0851-82327566 | H37: 审判辅助人员 | I37: 01 | J37: 从事审判辅助工作 | K37: 2 | L37: 本科及以上 | M37: 学士及以上学位 | N37: —— | O37: 法学类 （一级学科目录） | P37: 法学 （一级学科目录） | Q37: 不限 | R37: 否 | S37: 否 | T37: 否 | U37: 不限 | V37: 无 | W37: 无
A38: 010023 | B38: 修文县人民法院 | C38: 03 | D38: 审判机关 | E38: 贵州省修文县龙场镇阳明大道 | F38: http：//www.xiuwencourt.gov.cn | G38: 0851-82327566 | H38: 司法行政人员 | I38: 02 | J38: 从事档案管理工作 | K38: 1 | L38: 本科及以上 | M38: 学士及以上学位 | N38: —— | O38: 1.档案学专业 2.行政管理专业 3.人力资源管理专业 | P38: 1.档案学专业 2.行政管理专业 3.人力资源管理专业 | Q38: 不限 | R38: 否 | S38: 否 | T38: 否 | U38: 不限 | V38: 无 | W38: 无
A39: 010024 | B39: 中共息烽县委宣传部 | C39: 03 | D39: 党的机关 | E39: 息烽县永靖镇文化北路27号 | G39: 0851-87713406 | H39: 办公室工作人员 | I39: 01 | J39: 从事办公室日常工作 | K39: 1 | L39: 本科及以上 | M39: 学士及以上学位 | N39: —— | O39: 中国语言文学类 （一级学科目录） | P39: 不限 | Q39: 不限 | R39: 否 | S39: 否 | T39: 否 | U39: 不限 | V39: 无 | W39: 无
A40: 010025 | B40: 息烽县人民法院 | C40: 03 | D40: 审判机关 | E40: 息烽县虎城大道中段173 | G40: 0851-87713406 | H40: 审判辅助人员 | I40: 01 | J40: 从事审判辅助工作 | K40: 2 | L40: 本科及以上 | M40: 学士及以上学位 | N40: —— | O40: 法学类 （一级学科目录） | P40: 法学 （一级学科目录） | Q40: 不限 | R40: 否 | S40: 否 | T40: 否 | U40: 不限 | V40: 具有《国家法律职业资格证书》（C证）及以上 | W40: 无
A41: 010026 | B41: 息烽县农村党员干部现代远程教育管理办公室 | C41: 03 | D41: 参照公务员法管理单位 | E41: 息烽县福寿路 | G41: 0851-87713406 | H41: 办公室工作人员 | I41: 01 | J41: 从事党务、财务工作 | K41: 1 | L41: 本科及以上 | M41: 学士及以上学位 | N41: —— | O41: 会计及相关专业 | P41: 经济学 （学科门类） | Q41: 中共党员 | R41: 否 | S41: 否 | T41: 否 | U41: 不限 | V41: 无 | W41: 无
A42: 010027 | B42: 开阳县农村党员干部现代远程教育领导小组办公室 | C42: 03 | D42: 参照公务员法管理单位 | E42: 开阳县县政府五楼 | G42: 0851-87225852 | H42: 办公室工作人员 | I42: 01 | J42: 从事办公室日常工作、保密工作、文秘工作 | K42: 1 | L42: 本科及以上 | M42: 学士及以上学位 | N42: —— | O42: 不限 | P42: 不限 | Q42: 中共党员 | R42: 否 | S42: 否 | T42: 否 | U42: 不限 | V42: 无 | W42: 无
A43: 010028 | B43: 开阳县人民法院 | C43: 03 | D43: 审判机关 | E43: 开阳县城关镇学良大道中段 | G43: 0851-87225852 | H43: 专业技术人员 | I43: 01 | J43: 从事信息化管理与维护工作 | K43: 1 | L43: 本科及以上 | M43: 学士及以上学位 | N43: —— | O43: 计算机及相关专业 | P43: 计算机科学与技术 （一级学科目录） | Q43: 不限 | R43: 否 | S43: 否 | T43: 否 | U43: 不限 | V43: 无 | W43: 无
A44: 011001 | B44: 贵阳市人民政府办公厅 | C44: 02 | D44: 行政机关 | E44: 观山湖区林城东路贵阳市行政中心 | F44: www.gygov.gov.cn | G44: 0851-87988261 | H44: 工作 人员 | I44: 01 | J44: 综合文稿起草工作 | K44: 1 | L44: 全日制普通高校本科及以上 | M44: 不限 | N44: —— | O44: 不限 | P44: 不限 | Q44: 不限 | R44: 否 | S44: 否 | T44: 否 | U44: 2年 | V44: 无 | W44: 无
A45: 011002 | B45: 贵阳市发展和改革委员会 | C45: 02 | D45: 行政机关 | E45: 贵阳市观山湖区市级行政中心二期B区三楼 | F45: http://fgw.gygov.gov.cn | G45: 0851-87989065 | H45: 综合管理 工作人员 | I45: 01 | J45: 从事处理机关行政综合事务工作 | K45: 1 | L45: 全日制普通高校本科及以上 | M45: 学士及以上学位 | N45: —— | O45: 1.法学类 （一级学科目录） 2.中国语言文学类 （一级学科目录） 3.公共管理类 （一级学科目录） 4.经济学类 （一级学科目录） 5.金融学类 （一级学科目录） 6.管理科学与工程类 （一级学科目录） | P45: 1.经济学 （学科门类） 2.法学 （一级学科目录） 3.政治学 （一级学科目录） 4.中国语言文学 （一级学科目录） 5.管理科学与工程 （一级学科目录） 6.公共管理 （一级学科目录） | Q45: 不限 | R45: 否 | S45: 否 | T45: 否 | U45: 不限 | V45: 无 | W45: 无
A46: 011003 | B46: 贵阳市教育局 | C46: 02 | D46: 行政机关 | E46: 贵阳市观山湖区 | F46: http://www.gysjyw.gov.cn/ | G46: 0851-87989391 | H46: 机关工作人员 | I46: 01 | J46: 从事教育管理相关工作 | K46: 1 | L46: 本科及以上 | M46: 不限 | N46: —— | O46: 不限 | P46: 不限 | Q46: 不限 | R46: 否 | S46: 否 | T46: 否 | U46: 不限 | V46: 无 | W46: 无
A47: 011004 | B47: 贵阳市工业和信息化委员会 | C47: 02 | D47: 行政机关 | E47: 市级行政中心政府大楼A区三楼 | F47: http://gxw.gygov.gov.cn/ | G47: 0851-87989047 | H47: 业务处工作人员 | I47: 01 | J47: 工业和信息化发展工作 | K47: 1 | L47: 本科及以上 | M47: 学士及以上学位 | N47: —— | O47: 1.经济学类 （一级学科目录） 2.机械类 （一级学科目录） 3.电子信息类 （一级学科目录） 4.计算机类 （一级学科目录） | P47: 1.工学 （学科门类） 2.经济学 （学科门类） | Q47: 不限 | R47: 否 | S47: 否 | T47: 否 | U47: 2年 | V47: 无 | W47: 无
A48: 011005 | B48: 贵阳市财政局 | C48: 02 | D48: 行政机关 | E48: 贵阳市南明区箭道街78号 | G48: 0851-85806946 | H48: 工作人员 | I48: 01 | J48: 财政法律法规相关工作 | K48: 1 | L48: 全日制普通高校本科及以上 | M48: 学士及以上学位 | N48: —— | O48: 法学类 （一级学科目录） | P48: 法学 （一级学科目录） | Q48: 不限 | R48: 否 | S48: 否 | T48: 否 | U48: 2年 | V48: 无 | W48: 无
A49: 011005 | B49: 贵阳市财政局 | C49: 02 | D49: 行政机关 | E49: 贵阳市南明区箭道街78号 | G49: 0851-85806946 | H49: 工作人员 | I49: 02 | J49: 财政相关工作 | K49: 1 | L49: 全日制普通高校本科及以上 | M49: 学士及以上学位 | N49: —— | O49: 工商管理类 （一级学科目录） | P49: 工商管理 （一级学科目录） | Q49: 不限 | R49: 否 | S49: 否 | T49: 否 | U49: 2年 | V49: 无 | W49: 无
A50: 011006 | B50: 贵阳市市级财政国库支付中心 | C50: 02 | D50: 参照公务员法管理单位 | E50: 贵阳市南明区箭道街78号 | G50: 0851-85806647 | H50: 业务部工作人员 | I50: 01 | J50: 集中支付初审 | K50: 1 | L50: 全日制普通高校本科及以上 | M50: 学士及以上学位 | N50: —— | O50: 经济学 （学科门类） | P50: 经济学 （学科门类） | Q50: 不限 | R50: 否 | S50: 否 | T50: 否 | U50: 2年 | V50: 具有助理会计师及以上任职资格 | W50: 无
A51: 011007 | B51: 贵阳市城乡规划局花溪分局 | C51: 02 | D51: 参照公务员法管理单位 | E51: 贵阳市花溪区行政中心 | G51: 0851-85824387 | H51: 工作人员 | I51: 01 | J51: 从事规划业务审批 | K51: 1 | L51: 本科及以上 | M51: 学士及以上学位 | N51: —— | O51: 1.城乡规划专业 2.城市规划专业 3.人文地理与城乡规划专业 | P51: 1.城市规划与设计专业 2.城乡规划学 （一级学科目录） | Q51: 不限 | R51: 否 | S51: 否 | T51: 否 | U51: 2年 | V51: 无 | W51: 无
A52: 011008 | B52: 贵阳市外事办公室 | C52: 02 | D52: 行政机关 | E52: 市级行政机关二期A区三楼 | F52: http://wqb.gygov.gov.cn/ | G52: 0851-87989151 | H52: 工作人员 | I52: 01 | J52: 俄语口译和笔译，重大涉外会议及活动筹备，机关日常工作 | K52: 1 | L52: 全日制普通高校本科及以上 | M52: 学士及以上学位 | N52: —— | O52: 外国语言文学类 （一级学科目录） | P52: 外国语言文学 （一级学科目录） | Q52: 不限 | R52: 否 | S52: 否 | T52: 否 | U52: 不限 | V52: 具有下列条件之一： 1.持国内学历报考人员，需取得相应学位和俄语专业八级证书 2.在母语为俄语国家的留学人员 | W52: 该岗位需进行俄语口语测试，合格后方可进入笔试 测试公告链接：http://gzgy.lss.gov.cn/art/2018/3/6/art_262_164615.html
A53: 011009 | B53: 贵阳市国土资源局乌当区分局 | C53: 02 | D53: 行政机关 | E53: 贵阳市乌当区育新路乌当区行政综合大楼8楼 | F53: www.gygtzy.gov.cn/ | G53: 0851-86841422 | H53: 办公室工作人员 | I53: 01 | J53: 主要负责单位公文起草、国土资源管理等工作 | K53: 1 | L53: 本科及以上 | M53: 学士及以上学位 | N53: —— | O53: 1.土地资源管理专业 2.地质学专业 3.测绘工程专业 | P53: 1.土地资源管理专业 2.矿物学、岩石学、矿床学专业 3.地图制图学与地理信息工程专业 | Q53: 不限 | R53: 否 | S53: 否 | T53: 否 | U53: 2年 | V53: 无 | W53: 无
A54: 011010 | B54: 贵阳市卫生监督局 | C54: 02 | D54: 参照公务员法管理单位 | E54: 贵阳市瑞金中路 69号 | G54: 0851- 85667955 | H54: 工作人员 | I54: 01 | J54: 卫生监督执法 | K54: 1 | L54: 本科及以上 | M54: 学士及以上学位 | N54: —— | O54: 不限 | P54: 不限 | Q54: 不限 | R54: 是 | S54: 是 | T54: 否 | U54: 2年 | V54: 定向招录“五项目人员”或退役大学生士兵 | W54: 无
A55: 011011 | B55: 贵阳市文化新闻出版广电局 | C55: 02 | D55: 行政机关 | E55: 贵阳市观山湖区市级行政中心二期B区二楼 | F55: http://whj.gygov.gov.cn/ | G55: 0851-87989975 | H55: 科技事业发展处工作人员 | I55: 01 | J55: 负责广播电影电视安全播出监管和技术保障等 | K55: 1 | L55: 全日制普通高校本科及以上 | M55: 学士及以上学位 | N55: —— | O55: 1.广播电视工程专业 2.电磁场与无线技术专业 3.电波传播与天线专业 4.电子信息科学与技术专业 5.电信工程及管理专业 | P55: 1.电子科学与技术专业 2.信息与通信工程专业 3.控制科学与工程专业 | Q55: 不限 | R55: 否 | S55: 否 | T55: 否 | U55: 不限 | V55: 无 | W55: 无
A56: 011012 | B56: 贵阳市工商行政管理局市场监管执法支队 | C56: 02 | D56: 行政机关 | E56: 贵阳市云岩区中山西路51号 | F56: https://www.gyaic.gov.cn/ | G56: 0851-85281157 | H56: 执法工作人员 | I56: 01 | J56: 从事市场监管执法工作 | K56: 1 | L56: 全日制普通高校本科及以上 | M56: 不限 | N56: —— | O56: 法学 （学科门类） | P56: 法学 （学科门类） | Q56: 不限 | R56: 否 | S56: 否 | T56: 否 | U56: 2年 | V56: 无 | W56: 需从事夜间执法工作，适合男性报考
A57: 011013 | B57: 贵阳市工商行政管理局贵阳国家经济技术开发区分局 | C57: 02 | D57: 行政机关 | E57: 贵阳市小河区锦江路6号 | G57: 0851-83843315 | H57: 办公室工作人员 | I57: 01 | J57: 办公室日常工作、文秘工作 | K57: 1 | L57: 全日制普通高校本科及以上 | M57: 学士及以上学位 | N57: —— | O57: 中国语言文学类 （一级学科目录） | P57: 中国语言文学 （一级学科目录） | Q57: 不限 | R57: 否 | S57: 否 | T57: 否 | U57: 不限 | V57: 无 | W57: 无
A58: 011013 | B58: 贵阳市工商行政管理局贵阳国家经济技术开发区分局 | C58: 02 | D58: 行政机关 | E58: 贵阳市小河区锦江路6号 | G58: 0851-83843315 | H58: 经济检查大队工作人员 | I58: 02 | J58: 一线执法工作 | K58: 1 | L58: 全日制普通高校本科及以上 | M58: 学士及以上学位 | N58: —— | O58: 法学类 （一级学科目录） | P58: 法学 （一级学科目录） | Q58: 不限 | R58: 否 | S58: 否 | T58: 否 | U58: 不限 | V58: 无 | W58: 从事一线执法、部分夜间执法任务，适合男性报考
A59: 011013 | B59: 贵阳市工商行政管理局贵阳国家经济技术开发区分局 | C59: 02 | D59: 行政机关 | E59: 贵阳市小河区锦江路6号 | G59: 0851-83843315 | H59: 市场监管执法大队工作人员 | I59: 03 | J59: 一线执法工作 | K59: 1 | L59: 全日制普通高校本科及以上 | M59: 学士及以上学位 | N59: —— | O59: 法学类 （一级学科目录） | P59: 法学 （一级学科目录） | Q59: 不限 | R59: 否 | S59: 否 | T59: 否 | U59: 不限 | V59: 无 | W59: 从事一线执法、部分夜间执法任务，适合男性报考
A60: 011014 | B60: 贵阳综合保税区管理委员会 | C60: 02 | D60: 行政机关 | E60: 贵阳市白云区都拉乡综保路349号 | F60: 贵阳综合保税区 | G60: 0851-86985803 | H60: 工作人员 | I60: 01 | J60: 从事金融管理，金融创新，金融服务工作 | K60: 1 | L60: 本科及以上 | M60: 不限 | N60: —— | O60: 金融学类 （一级学科目录） | P60: 金融学专业 （含：保险学） | Q60: 不限 | R60: 否 | S60: 否 | T60: 否 | U60: 2年 | V60: 具有下列条件之一： 1.银行、证券、信托、金融租赁行业两年及以上工作经历 2.跨境金融、互联网金融行业一年及以上工作经历 | W60: 无
A61: 011015 | B61: 贵阳市档案局 | C61: 02 | D61: 参照公务员法管理单位 | E61: 贵阳市半边街138号 | F61: www.gyda.gov.cn | G61: 0851-85209956 | H61: 办公室工作人员 | I61: 01 | J61: 办公室日常工作 | K61: 1 | L61: 全日制普通高校本科及以上 | M61: 学士及以上学位 | N61: —— | O61: 不限 | P61: 不限 | Q61: 不限 | R61: 否 | S61: 否 | T61: 否 | U61: 不限 | V61: 无 | W61: 无
A62: 011016 | B62: 贵阳市环境监察支队 | C62: 02 | D62: 参照公务员法管理单位 | E62: 贵阳市云岩区北新区路100号 | G62: 0851-86812109 | H62: 环境监察工作人员 | I62: 01 | J62: 环境监察污染设施、污染因子现场监察工作 | K62: 1 | L62: 全日制普通高校本科及以上 | M62: 学士及以上学位 | N62: —— | O62: 1.环境科学类 （一级学科目录） 2.环境科学与工程类 （一级学科目录） 3.环境监察专业 4.水质科学与技术专业 | P62: 1.环境科学与工程 （一级学科目录） 2.大气科学 （一级学科目录） | Q62: 不限 | R62: 否 | S62: 否 | T62: 否 | U62: 不限 | V62: 无 | W62: 无
A63: 011017 | B63: 贵阳市住房公积金管理中心 | C63: 02 | D63: 参照公务员法管理单位 | E63: 贵阳市云岩区毓秀路23号 | F63: www.gygjj.gov.cn | G63: 0851-86830776 | H63: 三县一市工作人员 | I63: 01 | J63: 主要从事三县一市住房公积金管理工作 | K63: 1 | L63: 全日制普通高校本科及以上 | M63: 学士及以上学位 | N63: —— | O63: 1.汉语言文学专业 2.汉语言专业 3.秘书学专业 4.新闻学专业 | P63: 1.文艺学专业2.汉语言文字学专业3.新闻学专业 | Q63: 不限 | R63: 否 | S63: 否 | T63: 否 | U63: 2年 | V63: 无 | W63: 无
A64: 011017 | B64: 贵阳市住房公积金管理中心 | C64: 02 | D64: 参照公务员法管理单位 | E64: 贵阳市云岩区毓秀路23号 | F64: www.gygjj.gov.cn | G64: 0851-86830776 | H64: 三县一市工作人员 | I64: 02 | J64: 主要从事三县一市住房公积金管理工作 | K64: 1 | L64: 全日制普通高校本科及以上 | M64: 学士及以上学位 | N64: —— | O64: 金融学类 （一级学科目录） | P64: 金融学（含∶保险学）专业 | Q64: 不限 | R64: 否 | S64: 否 | T64: 否 | U64: 2年 | V64: 无 | W64: 无
A65: 011018 | B65: 贵阳市社会保险收付管理中心 | C65: 02 | D65: 参照公务员法管理单位 | E65: 贵阳市云岩区都司路80号 | G65: 0851-85860940 | H65: 社会保险业务经办 | I65: 01 | J65: 社会保险业务经办 | K65: 1 | L65: 全日制普通高校本科及以上 | M65: 学士及以上学位 | N65: —— | O65: 不限 | P65: 不限 | Q65: 不限 | R65: 否 | S65: 否 | T65: 否 | U65: 不限 | V65: 无 | W65: 无
A66: 011019 | B66: 贵阳市两湖一库管理局 | C66: 02 | D66: 参照公务员法管理单位 | E66: 贵阳市清镇市滴澄关 | G66: 0851-82623707 | H66: 工作人员 | I66: 01 | J66: 从事办公室文秘等相关工作 | K66: 1 | L66: 全日制普通高校本科及以上 | M66: 学士及以上学位 | N66: —— | O66: 中国语言文学类 （一级学科目录） | P66: 中国语言文学 （一级学科目录） | Q66: 不限 | R66: 否 | S66: 否 | T66: 否 | U66: 2年 | V66: 无 | W66: 无
A67: 011019 | B67: 贵阳市两湖一库管理局 | C67: 02 | D67: 参照公务员法管理单位 | E67: 贵阳市清镇市滴澄关 | G67: 0851-82623707 | H67: 工作人员 | I67: 02 | J67: 从事水源监测、应急指挥系统管理工作 | K67: 1 | L67: 全日制普通高校本科及以上 | M67: 学士及以上学位 | N67: —— | O67: 计算机类 （一级学科目录） | P67: 计算机科学与技术 （一级学科目录） | Q67: 不限 | R67: 否 | S67: 否 | T67: 否 | U67: 不限 | V67: 无 | W67: 无
A68: 011020 | B68: 贵阳市节约用水办公室 | C68: 02 | D68: 参照公务员法管理单位 | E68: 贵阳市南明区市南路110号 | G68: 0851-85608916 | H68: 工作人员 | I68: 01 | J68: 节水管理类工作 | K68: 1 | L68: 本科及以上 | M68: 不限 | N68: —— | O68: 1.给水排水工程专业 2.水务工程专业 3.给排水科学与工程专业 4.水利水电工程专业 5.水文与水资源工程专业 | P68: 水利工程 （一级学科目录） | Q68: 不限 | R68: 否 | S68: 否 | T68: 否 | U68: 2年 | V68: 无 | W68: 无
A69: 011021 | B69: 贵阳市农业执法支队 | C69: 02 | D69: 参照公务员法管理单位 | E69: 贵阳市观山湖区市级行政中心市政府综合大楼Ｂ区259室 | G69: 0851-87987685 | H69: 执法队员 | I69: 01 | J69: 农业行政执法 | K69: 1 | L69: 本科及以上 | M69: 学士及以上学位 | N69: —— | O69: 不限 | P69: 不限 | Q69: 不限 | R69: 否 | S69: 是 | T69: 否 | U69: 2年 | V69: 定向招录退役大学生士兵 | W69: 本职位经常出夜勤或接触农药兽药等有害有毒农资产品，较适合身强体壮之人工作。
A70: 011022 | B70: 贵阳市粮食执法监察大队 | C70: 02 | D70: 参照公务员法管理单位 | E70: 贵阳市南明区瑞金南路308号 | G70: 0851-85803321 | H70: 执法科工作人员 | I70: 01 | J70: 从事粮油执法工作 | K70: 1 | L70: 本科及以上 | M70: 学士及以上学位 | N70: —— | O70: 法学类 （一级学科目录） | P70: 法学 （一级学科目录） | Q70: 不限 | R70: 否 | S70: 否 | T70: 否 | U70: 2年 | V70: 无 | W70: 因从事粮食执法检查和清仓查库等工作，适合男性报考
A71: 011023 | B71: 贵阳市城市综合执法支队 | C71: 02 | D71: 参照公务员法管理单位 | E71: 贵阳市市府路40号 | G71: 0851-85828468 | H71: 财务工作人员 | I71: 01 | J71: 从事财务工作 | K71: 1 | L71: 本科及以上 | M71: 学士及以上学位 | N71: —— | O71: 会计及相关专业 | P71: 会计学专业 | Q71: 不限 | R71: 否 | S71: 否 | T71: 否 | U71: 2年 | V71: 具有2年及以上财务会计从业经历 | W71: 无
A72: 011024 | B72: 贵阳市综合行政执法局贵阳经济技术开发区分局 | C72: 02 | D72: 参照公务员法管理单位 | E72: 贵阳市小河区盘江南路轴承厂内 | G72: 0851-83839216 | H72: 一线执法人员 | I72: 01 | J72: 主要从事应急处突、夜间市容巡逻管控、违法违章建筑监控、拆除和管理、查处夜间施工噪音及渣土洒漏等相关执法工作 | K72: 1 | L72: 本科及以上 | M72: 学士及以上学位 | N72: —— | O72: 不限 | P72: 不限 | Q72: 不限 | R72: 否 | S72: 否 | T72: 否 | U72: 不限 | V72: 无 | W72: 无
A73: 011024 | B73: 贵阳市综合行政执法局贵阳经济技术开发区分局 | C73: 02 | D73: 参照公务员法管理单位 | E73: 贵阳市小河区盘江南路轴承厂内 | G73: 0851-83839216 | H73: 办公室文员 | I73: 02 | J73: 从事办公室财务相关工作 | K73: 1 | L73: 本科及以上 | M73: 学士及以上学位 | N73: —— | O73: 会计及相关专业 | P73: 会计学专业 | Q73: 不限 | R73: 否 | S73: 否 | T73: 否 | U73: 2年 | V73: 具有2年及以上财务会计从业经历 | W73: 无
A74: 011025 | B74: 贵阳市救助管理站 | C74: 02 | D74: 参照公务员法管理单位 | E74: 贵阳市龙洞堡断金岩 | G74: 0851-85832735 | H74: 办公室工作 | I74: 01 | J74: 办公室日常工作 | K74: 1 | L74: 本科及以上 | M74: 学士及以上学位 | N74: —— | O74: 1.公共管理类 (一级学科目录) 2.中国语言文学类 (一级学科目录) | P74: 1.公共管理 (一级学科目录) 2.中国语言文学 (一级学科目录) | Q74: 不限 | R74: 否 | S74: 否 | T74: 否 | U74: 不限 | V74: 无 | W74: 无
A75: 011026 | B75: 贵阳市市直机关事务管理局 | C75: 02 | D75: 参照公务员法管理单位 | E75: 贵阳市行政中心二期综合办公大楼A区1楼 | G75: 0851-87987037 | H75: 机关综合管理处工作人员 | I75: 01 | J75: 设备设施运行管理 | K75: 1 | L75: 本科及以上 | M75: 学士及以上学位 | N75: —— | O75: 1.电气类 (一级学科目录) 2.自动化类 (一级学科目录) | P75: 电气工程 (一级学科目录) | Q75: 不限 | R75: 否 | S75: 否 | T75: 否 | U75: 2年 | V75: 具有助理工程师及以上任职资格。 | W75: 本岗位需夜间值班巡岗
A76: 011027 | B76: 云岩区司法局 | C76: 03 | D76: 行政机关 | E76: 云岩区黄山冲167号黔灵镇办公楼7楼 | F76: www.yyfzzx.com | G76: 0851-86679008 | H76: 基层基础科工作人员 | I76: 01 | J76: 负责基层司法所日常工作 | K76: 2 | L76: 本科及以上 | M76: 学士及以上学位 | N76: —— | O76: 法学类 （一级学科目录） | P76: 法学 （一级学科目录） | Q76: 不限 | R76: 否 | S76: 否 | T76: 否 | U76: 不限 | V76: 无 | W76: 无
A77: 011028 | B77: 云岩区就业局 | C77: 03 | D77: 参照公务员法管理单位 | E77: 未来方舟D12组团B栋19楼 | G77: 0851-86679008 | H77: 办公室工作人员 | I77: 01 | J77: 办公室日常工作 | K77: 1 | L77: 本科及以上 | M77: 学士及以上学位 | N77: —— | O77: 1.中国语言文学类 （一级学科目录） 2.工商管理类 （一级学科目录） | P77: 1.中国语言文学 （一级学科目录） 2.工商管理 （一级学科目录） | Q77: 不限 | R77: 否 | S77: 否 | T77: 否 | U77: 不限 | V77: 无 | W77: 无
A78: 011028 | B78: 云岩区就业局 | C78: 03 | D78: 参照公务员法管理单位 | E78: 未来方舟D12组团B栋19楼 | G78: 0851-86679008 | H78: 财务室工作人员 | I78: 02 | J78: 财务、统计日常工作 | K78: 1 | L78: 本科及以上 | M78: 学士及以上学位 | N78: —— | O78: 会计及相关专业 | P78: 应用经济学 （一级学科目录） | Q78: 不限 | R78: 否 | S78: 否 | T78: 否 | U78: 不限 | V78: 无 | W78: 无
A79: 011029 | B79: 云岩区卫生监督局 | C79: 03 | D79: 参照公务员法管理单位 | E79: 云岩区半边街53号 | G79: 0851-86679008 | H79: 稽查科工作人员 | I79: 01 | J79: 稽查科日常工作 | K79: 1 | L79: 本科及以上 | M79: 学士及以上学位 | N79: —— | O79: 公共卫生与预防医学类 （一级学科目录） | P79: 公共卫生与预防医学 （一级学科目录） | Q79: 不限 | R79: 否 | S79: 否 | T79: 否 | U79: 不限 | V79: 具有1年及以上临床工作经历 | W79: 无
A80: 011029 | B80: 云岩区卫生监督局 | C80: 03 | D80: 参照公务员法管理单位 | E80: 云岩区半边街53号 | G80: 0851-86679008 | H80: 监督一科工作人员 | I80: 02 | J80: 医疗机构卫生监督工作 | K80: 1 | L80: 本科及以上 | M80: 学士及以上学位 | N80: —— | O80: 临床医学类 （一级学科目录） | P80: 临床医学 （一级学科目录） | Q80: 不限 | R80: 否 | S80: 否 | T80: 否 | U80: 不限 | V80: 具有1年及以上临床工作经历 | W80: 无
A81: 011029 | B81: 云岩区卫生监督局 | C81: 03 | D81: 参照公务员法管理单位 | E81: 云岩区半边街53号 | G81: 0851-86679008 | H81: 办公室工作人员 | I81: 03 | J81: 办公室日常工作 | K81: 1 | L81: 本科及以上 | M81: 学士及以上学位 | N81: —— | O81: 中国语言文学类 （一级学科目录） | P81: 中国语言文学 （一级学科目录） | Q81: 不限 | R81: 否 | S81: 否 | T81: 否 | U81: 不限 | V81: 无 | W81: 无
A82: 011030 | B82: 云岩区社会保险事业局 | C82: 03 | D82: 参照公务员法管理单位 | E82: 贵阳市云岩区环城北路60号 | G82: 0851-86679008 | H82: 财务科工作人员 | I82: 01 | J82: 财务科日常工作 | K82: 2 | L82: 本科及以上 | M82: 学士及以上学位 | N82: —— | O82: 会计及相关专业 | P82: 应用经济学 （一级学科目录） | Q82: 不限 | R82: 否 | S82: 否 | T82: 否 | U82: 不限 | V82: 无 | W82: 无
A83: 011030 | B83: 云岩区社会保险事业局 | C83: 03 | D83: 参照公务员法管理单位 | E83: 贵阳市云岩区环城北路60号 | G83: 0851-86679008 | H83: 医疗待遇结算科工作人员 | I83: 02 | J83: 医疗待遇结算科日常工作 | K83: 2 | L83: 本科及以上 | M83: 学士及以上学位 | N83: —— | O83: 医学 (学科门类) | P83: 医学 (学科门类) | Q83: 不限 | R83: 否 | S83: 否 | T83: 否 | U83: 不限 | V83: 具有执业助理医师及以上资格证书 | W83: 无
A84: 011031 | B84: 云岩区市场监督管理局 | C84: 03 | D84: 行政机关 | E84: 贵阳市云岩区未来方舟D12组团21-23楼 | G84: 0851-86679008 | H84: 片区财务科工作人员 | I84: 01 | J84: 从事财务及相关工作 | K84: 1 | L84: 本科及以上 | M84: 学士及以上学位 | N84: —— | O84: 会计及相关专业 | P84: 应用经济学 （一级学科目录） | Q84: 不限 | R84: 否 | S84: 否 | T84: 否 | U84: 不限 | V84: 无 | W84: 无
A85: 011031 | B85: 云岩区市场监督管理局 | C85: 03 | D85: 行政机关 | E85: 贵阳市云岩区未来方舟D12组团21-23楼 | G85: 0851-86679008 | H85: 片区药品器械科工作人员 | I85: 02 | J85: 从事药品及药品器械相关工作 | K85: 1 | L85: 本科及以上 | M85: 学士及以上学位 | N85: —— | O85: 化工与制药类 （一级学科目录） | P85: 化学工程与技术 （一级学科目录） | Q85: 不限 | R85: 否 | S85: 否 | T85: 否 | U85: 不限 | V85: 无 | W85: 无
A86: 011031 | B86: 云岩区市场监督管理局 | C86: 03 | D86: 行政机关 | E86: 贵阳市云岩区未来方舟D12组团21-23楼 | G86: 0851-86679008 | H86: 片区特种设备科工作人员 | I86: 03 | J86: 从事特种设备检查及相关工作 | K86: 1 | L86: 本科及以上 | M86: 学士及以上学位 | N86: —— | O86: 机械类 （一级学科目录） | P86: 机械工程 （一级学科目录） | Q86: 不限 | R86: 否 | S86: 否 | T86: 否 | U86: 不限 | V86: 无 | W86: 无
A87: 011031 | B87: 云岩区市场监督管理局 | C87: 03 | D87: 行政机关 | E87: 贵阳市云岩区未来方舟D12组团21-23楼 | G87: 0851-86679008 | H87: 片区食品科工作人员 | I87: 04 | J87: 从事食品检测及相关工作 | K87: 2 | L87: 本科及以上 | M87: 学士及以上学位 | N87: —— | O87: 食品科学与工程类 （—级学科目录） | P87: 食品科学与工程 （一级学科目录） | Q87: 不限 | R87: 否 | S87: 否 | T87: 否 | U87: 不限 | V87: 无 | W87: 无
A88: 011032 | B88: 南明区发展和改革局 | C88: 03 | D88: 行政机关 | E88: 贵阳市南明区箭道街78号 | G88: 0851-85860911 | H88: 办公室工作人员 | I88: 01 | J88: 办公室日常工作 | K88: 1 | L88: 本科及以上 | M88: 学士及以上学位 | N88: —— | O88: 公共管理类 （一级学科目录） | P88: 公共管理 （一级学科目录） | Q88: 不限 | R88: 否 | S88: 否 | T88: 否 | U88: 不限 | V88: 无 | W88: 无
A89: 011032 | B89: 南明区发展和改革局 | C89: 03 | D89: 行政机关 | E89: 贵阳市南明区箭道街78号 | G89: 0851-85860911 | H89: 产业科工作人员 | I89: 02 | J89: 产业发展相关工作 | K89: 1 | L89: 本科及以上 | M89: 学士及以上学位 | N89: —— | O89: 经济学类 （一级学科目录） | P89: 应用经济学 （一级学科目录） | Q89: 不限 | R89: 否 | S89: 否 | T89: 否 | U89: 不限 | V89: 无 | W89: 无
A90: 011033 | B90: 南明区市场监督管理局 | C90: 03 | D90: 行政机关 | E90: 贵阳市南明区兴隆北巷4号 | G90: 0851-85860911 | H90: 办公室工作人员 | I90: 01 | J90: 依法开展市场监督管理工作 | K90: 1 | L90: 本科及以上 | M90: 学士及以上学位 | N90: —— | O90: 不限 | P90: 不限 | Q90: 不限 | R90: 否 | S90: 否 | T90: 否 | U90: 不限 | V90: 无 | W90: 无
A91: 011033 | B91: 南明区市场监督管理局 | C91: 03 | D91: 行政机关 | E91: 贵阳市南明区兴隆北巷4号 | G91: 0851-85860911 | H91: 药品科工作人员 | I91: 02 | J91: 从事药品、化妆品安全监督管理工作 | K91: 1 | L91: 本科及以上 | M91: 学士及以上学位 | N91: —— | O91: 药学类 （一级学科目录） | P91: 药学 （一级学科目录） | Q91: 不限 | R91: 否 | S91: 否 | T91: 否 | U91: 不限 | V91: 无 | W91: 无
A92: 011033 | B92: 南明区市场监督管理局 | C92: 03 | D92: 行政机关 | E92: 贵阳市南明区兴隆北巷4号 | G92: 0851-85860911 | H92: 诚信科工作人员 | I92: 03 | J92: 从事信息维护、应急处置相关工作 | K92: 1 | L92: 本科及以上 | M92: 学士及以上学位 | N92: —— | O92: 计算机类 (一级学科目录） | P92: 计算机科学与技术 （一级学科目录） | Q92: 不限 | R92: 否 | S92: 否 | T92: 否 | U92: 不限 | V92: 无 | W92: 无
A93: 011033 | B93: 南明区市场监督管理局 | C93: 03 | D93: 行政机关 | E93: 贵阳市南明区兴隆北巷4号 | G93: 0851-85860911 | H93: 法规科工作人员 | I93: 04 | J93: 从事法律法规工作 | K93: 1 | L93: 本科及以上 | M93: 学士及以上学位 | N93: —— | O93: 法学类 (一级学科目录） | P93: 法学 （一级学科目录） | Q93: 不限 | R93: 否 | S93: 否 | T93: 否 | U93: 不限 | V93: 无 | W93: 无
A94: 011033 | B94: 南明区市场监督管理局 | C94: 03 | D94: 行政机关 | E94: 贵阳市南明区兴隆北巷4号 | G94: 0851-85860911 | H94: 食品科工作人员 | I94: 05 | J94: 从事食品监督管理工作 | K94: 1 | L94: 本科及以上 | M94: 学士及以上学位 | N94: —— | O94: 1.公共卫生与预防医学类 (一级学科目录） 2.食品科学与工程类 (一级学科目录） | P94: 1.公共卫生与预防医学 (一级学科目录） 2.食品科学与工程 (一级学科目录） | Q94: 不限 | R94: 否 | S94: 否 | T94: 否 | U94: 不限 | V94: 无 | W94: 无
A95: 011034 | B95: 南明区卫生和计划生育局 | C95: 03 | D95: 行政机关 | E95: 贵阳市南明区兴隆街152号 | G95: 0851-85860911 | H95: 财会工作人员 | I95: 01 | J95: 从事财务会计工作 | K95: 1 | L95: 本科及以上 | M95: 学士及以上学位 | N95: —— | O95: 不限 | P95: 不限 | Q95: 不限 | R95: 否 | S95: 否 | T95: 否 | U95: 不限 | V95: 具有助理会计师及以上任职资格 | W95: 无
A96: 011035 | B96: 南明区卫生监督局 | C96: 03 | D96: 参照公务员法管理单位 | E96: 南明区兴隆街110号 | G96: 0851-85860911 | H96: 办公室工作人员 | I96: 01 | J96: 卫生监督员 | K96: 1 | L96: 本科及以上 | M96: 学士及以上学位 | N96: —— | O96: 1.公共卫生与预防医学类 (一级学科目录) 2.临床医学类 （一级学科目录） | P96: 1.公共卫生与预防医学 (一级学科目录) 2.临床医学 （一级学科目录） | Q96: 不限 | R96: 否 | S96: 否 | T96: 否 | U96: 不限 | V96: 无 | W96: 长期外勤工作，适合男性报考
A97: 011036 | B97: 南明区社会保险收付管理中心 | C97: 03 | D97: 参照公务员法管理单位 | E97: 贵阳市南明区瑞金南路358号 | G97: 0851-85860911 | H97: 社保中心城镇职工社会保险科工作人员 | I97: 01 | J97: 社会保险相关工作 | K97: 1 | L97: 本科及以上 | M97: 学士及以上学位 | N97: —— | O97: 不限 | P97: 不限 | Q97: 不限 | R97: 否 | S97: 否 | T97: 否 | U97: 不限 | V97: 无 | W97: 无
A98: 011036 | B98: 南明区社会保险收付管理中心 | C98: 03 | D98: 参照公务员法管理单位 | E98: 贵阳市南明区瑞金南路358号 | G98: 0851-85860911 | H98: 社保中心办公室工作人员 | I98: 02 | J98: 社会保险征缴系统管理 | K98: 1 | L98: 本科及以上 | M98: 学士及以上学位 | N98: —— | O98: 计算机及相关专业 | P98: 计算机科学与技术 （一级学科目录） | Q98: 不限 | R98: 否 | S98: 否 | T98: 否 | U98: 不限 | V98: 无 | W98: 无
A99: 011036 | B99: 南明区社会保险收付管理中心 | C99: 03 | D99: 参照公务员法管理单位 | E99: 贵阳市南明区瑞金南路358号 | G99: 0851-85860911 | H99: 社保中心基金财务科工作人员 | I99: 03 | J99: 从事会计相关工作 | K99: 1 | L99: 本科及以上 | M99: 学士及以上学位 | N99: —— | O99: 会计及相关专业 | P99: 1.会计学专业 2.财政学（含∶税收学）专业 3.金融学（含∶保险学）专业 | Q99: 不限 | R99: 否 | S99: 否 | T99: 否 | U99: 不限 | V99: 无 | W99: 无
A100: 011037 | B100: 南明区就业与职业技能开发中心 | C100: 03 | D100: 参照公务员法管理单位 | E100: 贵阳市南明区兴关路56号 | G100: 0851-85860911 | H100: 优惠政策办理部工作人员 | I100: 01 | J100: 从事各项就业创业相关政策落实工作 | K100: 1 | L100: 本科及以上 | M100: 学士及以上学位 | N100: —— | O100: 不限 | P100: 不限 | Q100: 不限 | R100: 否 | S100: 否 | T100: 否 | U100: 不限 | V100: 无 | W100: 无
A101: 011037 | B101: 南明区就业与职业技能开发中心 | C101: 03 | D101: 参照公务员法管理单位 | E101: 贵阳市南明区兴关路56号 | G101: 0851-85860911 | H101: 职业技能鉴定与职业技能培训部工作人员 | I101: 02 | J101: 从事政策性补贴培训相关工作 | K101: 1 | L101: 本科及以上 | M101: 学士及以上学位 | N101: —— | O101: 不限 | P101: 不限 | Q101: 不限 | R101: 否 | S101: 否 | T101: 否 | U101: 不限 | V101: 无 | W101: 无
A102: 011038 | B102: 南明区医疗保险费用结算中心 | C102: 03 | D102: 参照公务员法管理单位 | E102: 贵阳市南明区瑞金南路358号 | G102: 0851-85860911 | H102: 办公室工作人员 | I102: 01 | J102: 办公室日常工作 | K102: 1 | L102: 本科及以上 | M102: 学士及以上学位 | N102: —— | O102: 1.公共管理类 （一级学科目录） 2.法学类 （一级学科目录） | P102: 1.公共管理 （一级学科目录） 2.法学 （一级学科目录） | Q102: 不限 | R102: 否 | S102: 否 | T102: 否 | U102: 不限 | V102: 无 | W102: 无
A103: 011039 | B103: 南明区劳动保障监察大队 | C103: 03 | D103: 参照公务员法管理单位 | E103: 贵阳市南明区新华路富中商务大厦二楼 | G103: 0851-85860911 | H103: 劳动保障监察大队监察员 | I103: 01 | J103: 从事一线执法工作，处理群体性突发事件 | K103: 1 | L103: 本科及以上 | M103: 学士及以上学位 | N103: —— | O103: 法学类 (一级学科目录） | P103: 法学 (一级学科目录） | Q103: 不限 | R103: 否 | S103: 否 | T103: 否 | U103: 不限 | V103: 无 | W103: 需24小时值班，适合男性报考
A104: 011040 | B104: 贵阳市城市综合执法支队南明大队 | C104: 03 | D104: 参照公务员法管理单位 | E104: 贵阳市南明区四方河路57号 | G104: 0851-85860911 | H104: 城市综合执法工作人员 | I104: 01 | J104: 一线执法，取缔无证占道经营摊点、监控及拆除违法违章建筑等相关执法工作 | K104: 2 | L104: 本科及以上 | M104: 学士及以上学位 | N104: —— | O104: 不限 | P104: 不限 | Q104: 不限 | R104: 否 | S104: 否 | T104: 否 | U104: 不限 | V104: 无 | W104: 需24小时值班，一线执法，适合男性报考
A105: 011040 | B105: 贵阳市城市综合执法支队南明大队 | C105: 03 | D105: 参照公务员法管理单位 | E105: 贵阳市南明区四方河路57号 | G105: 0851-85860911 | H105: 城市综合执法工作人员 | I105: 02 | J105: 一线执法，主要从事应急处突、夜间市容巡逻管控、夜间违法违章建筑监控和管理、查处夜间施工噪音及渣土洒漏等相关执法工作 | K105: 6 | L105: 本科及以上 | M105: 学士及以上学位 | N105: —— | O105: 不限 | P105: 不限 | Q105: 不限 | R105: 否 | S105: 否 | T105: 否 | U105: 不限 | V105: 无 | W105: 需24小时值班，一线执法，适合男性报考
A106: 011041 | B106: 南明区生态文明建设局 | C106: 03 | D106: 行政机关 | E106: 贵阳市南明区箭道街经协大厦19楼 | G106: 0851-85860911 | H106: 污染防治和环境影响评价科工作人员 | I106: 01 | J106: 从事污染防治和环境影响评价工作 | K106: 1 | L106: 本科及以上 | M106: 学士及以上学位 | N106: —— | O106: 环境科学类 （一级学科目录） | P106: 环境科学与工程 （一级学科目录） | Q106: 不限 | R106: 否 | S106: 否 | T106: 否 | U106: 不限 | V106: 无 | W106: 无
A107: 011041 | B107: 南明区生态文明建设局 | C107: 03 | D107: 行政机关 | E107: 贵阳市南明区箭道街经协大厦19楼 | G107: 0851-85860911 | H107: 自然生态和水环境科工作人员 | I107: 02 | J107: 从事指导农村生态保护和监督管理全区水围绕防治和水环境保护工作 | K107: 1 | L107: 本科及以上 | M107: 学士及以上学位 | N107: —— | O107: 环境科学类 （一级学科目录） | P107: 环境科学与工程 （一级学科目录） | Q107: 不限 | R107: 否 | S107: 否 | T107: 否 | U107: 不限 | V107: 无 | W107: 无
A108: 011042 | B108: 南明区环境监察大队 | C108: 03 | D108: 参照公务员法管理单位 | E108: 新华路78号富中商务大厦6楼 | G108: 0851-85860911 | H108: 环境监察大队工作人员 | I108: 01 | J108: 从事环境监察及应急处置工作 | K108: 3 | L108: 本科及以上 | M108: 学士及以上学位 | N108: —— | O108: 1.法学类 （一级学科目录） 2.环境科学类 （一级学科目录） | P108: 1.法学 （一级学科目录） 2.环境科学与工程 （一级学科目录） | Q108: 不限 | R108: 否 | S108: 否 | T108: 否 | U108: 不限 | V108: 无 | W108: 需24小时备勤值班，应急处置环境污染事故，适合男性报考
A109: 011043 | B109: 花溪区发展和改革局 | C109: 03 | D109: 行政机关 | E109: 贵阳市花溪区行政中心 | G109: 0851-88231707 | H109: 经济体制综合改革科工作人员 | I109: 01 | J109: 研究经济体制改革和对外开放工作，协调推进专项经济体制改革 | K109: 1 | L109: 本科及以上 | M109: 学士及以上学位 | N109: —— | O109: 经济学类 （一级学科目录） | P109: 应用经济学 （一级学科目录） | Q109: 不限 | R109: 否 | S109: 否 | T109: 否 | U109: 不限 | V109: 无 | W109: 无
A110: 011044 | B110: 花溪区教育局 | C110: 03 | D110: 行政机关 | E110: 贵阳市花溪区洛平新区行政大楼 | G110: 0851-88231707 | H110: 体育卫生艺术和法规安全教育科工作人员 | I110: 01 | J110: 全区学校体育、卫生、艺术、法规和安全教育管理 | K110: 1 | L110: 本科及以上 | M110: 学士及以上学位 | N110: —— | O110: 法学类 （一级学科目录） | P110: 法学 （一级学科目录） | Q110: 不限 | R110: 否 | S110: 否 | T110: 否 | U110: 不限 | V110: 无 | W110: 无
A111: 011044 | B111: 花溪区教育局 | C111: 03 | D111: 行政机关 | E111: 贵阳市花溪区洛平新区行政大楼 | G111: 0851-88231707 | H111: 人事科工作人员 | I111: 02 | J111: 机关和事业单位机构编制、干部人事、职称评聘、劳动工资、社会保障、考核等相关工作 | K111: 1 | L111: 本科及以上 | M111: 学士及以上学位 | N111: —— | O111: 1.人力资源管理专业 2.汉语言文学专业 3.汉语言专业 4.公共事业管理专业 5.劳动与社会保障专业 | P111: 1.人力资源管理专业2.汉语言文字学专业3.行政管理专业 4.社会保障专业 | Q111: 中共党员 | R111: 否 | S111: 否 | T111: 否 | U111: 不限 | V111: 无 | W111: 无
A112: 011045 | B112: 花溪区财政局 | C112: 03 | D112: 行政机关 | E112: 贵阳市花溪区人财大楼 | G112: 0851-88231707 | H112: 办公室工作人员 | I112: 01 | J112: 办公室财务管理和党建工作 | K112: 1 | L112: 本科及以上 | M112: 学士及以上学位 | N112: —— | O112: 会计及相关专业 | P112: 会计学专业 | Q112: 中共党员 | R112: 否 | S112: 否 | T112: 否 | U112: 不限 | V112: 具有助理级会计师及以上任职资格 | W112: 无
A113: 011045 | B113: 花溪区财政局 | C113: 03 | D113: 行政机关 | E113: 贵阳市花溪区人财大楼 | G113: 0851-88231707 | H113: 债务科工作人员 | I113: 02 | J113: 编制年度预算等相关工作 | K113: 1 | L113: 本科及以上 | M113: 学士及以上学位 | N113: —— | O113: 1.会计及相关专业 2.金融学专业 | P113: 1.会计学专业 2.金融学（含∶保险学）专业 | Q113: 不限 | R113: 否 | S113: 否 | T113: 否 | U113: 不限 | V113: 具有助理级会计师及以上任职资格 | W113: 无
A114: 011045 | B114: 花溪区财政局 | C114: 03 | D114: 行政机关 | E114: 贵阳市花溪区人财大楼 | G114: 0851-88231707 | H114: 预算科工作人员 | I114: 03 | J114: 承担区级政府性债务管理和政府债务预算初编等相关工作 | K114: 1 | L114: 本科及以上 | M114: 学士及以上学位 | N114: —— | O114: 1.会计及相关专业 2.金融学专业 | P114: 1.会计学专业 2.金融学（含∶保险学）专业 | Q114: 不限 | R114: 否 | S114: 否 | T114: 否 | U114: 不限 | V114: 具有助理级会计师及以上任职资格 | W114: 无
A115: 011046 | B115: 花溪区国库集中支付中心 | C115: 03 | D115: 参照公务员法管理单位 | E115: 贵阳市花溪区人财大楼一楼 | G115: 0851-88231707 | H115: 办公室工作人员 | I115: 01 | J115: 负责国库集中支付中心的受理审核、拨付、清算等相关工作 | K115: 1 | L115: 本科及以上 | M115: 学士及以上学位 | N115: —— | O115: 1.会计及相关专业 2.金融学专业 | P115: 1.会计学专业 2.金融学（含∶保险学）专业 | Q115: 不限 | R115: 否 | S115: 否 | T115: 否 | U115: 不限 | V115: 具有助理级会计师及以上任职资格 | W115: 无
A116: 011047 | B116: 花溪区人力资源和社会保障局 | C116: 03 | D116: 行政机关 | E116: 贵阳市花溪区明珠大道192号行政新区人力资源市场大楼 | G116: 0851-88231707 | H116: 工资福利科工作人员 | I116: 01 | J116: 贯彻执行机关、事业单位人员工资、福利和退休、退职政策；从事各类工资、人事系统维护和管理等工作 | K116: 1 | L116: 本科及以上 | M116: 学士及以上学位 | N116: —— | O116: 计算机及相关专业 | P116: 计算机科学与技术 （一级学科目录） | Q116: 不限 | R116: 否 | S116: 否 | T116: 否 | U116: 不限 | V116: 无 | W116: 无
A117: 011047 | B117: 花溪区人力资源和社会保障局 | C117: 03 | D117: 行政机关 | E117: 贵阳市花溪区明珠大道192号行政新区人力资源市场大楼 | G117: 0851-88231707 | H117: 档案管理员 | I117: 02 | J117: 从事干部人事档案和文书档案管理等工作 | K117: 1 | L117: 本科及以上 | M117: 学士及以上学位 | N117: —— | O117: 图书情报与档案管理类 （一级学科目录） | P117: 1.档案学专业 2.图书情报与档案管理专业 | Q117: 中共党员 | R117: 否 | S117: 否 | T117: 否 | U117: 不限 | V117: 无 | W117: 无
A118: 011048 | B118: 花溪区就业局(花溪区创业指导服务中心) | C118: 03 | D118: 参照公务员法管理单位 | E118: 贵阳市花溪区明珠大道192号行政新区人力资源市场大楼 | G118: 0851-88231707 | H118: 办公室工作人员 | I118: 01 | J118: 财务管理、民生资金稽核等相关工作 | K118: 1 | L118: 本科及以上 | M118: 不限 | N118: —— | O118: 会计及相关专业 | P118: 会计学专业 | Q118: 不限 | R118: 否 | S118: 否 | T118: 否 | U118: 不限 | V118: 具有会计师及以上任职资格 | W118: 无
A119: 011049 | B119: 花溪区社会保险收付管理中心 | C119: 03 | D119: 参照公务员法管理单位 | E119: 贵阳市花溪区明珠大道192号行政新区人力资源市场大楼 | G119: 0851-88231707 | H119: 社保中心工作人员 | I119: 01 | J119: 从事社会保险基金监管工作 | K119: 1 | L119: 本科及以上 | M119: 学士及以上学位 | N119: —— | O119: 会计及相关专业 | P119: 会计学专业 | Q119: 不限 | R119: 否 | S119: 否 | T119: 否 | U119: 不限 | V119: 无 | W119: 无
A120: 011049 | B120: 花溪区社会保险收付管理中心 | C120: 03 | D120: 参照公务员法管理单位 | E120: 贵阳市花溪区明珠大道192号行政新区人力资源市场大楼 | G120: 0851-88231707 | H120: 社保中心工作人员 | I120: 02 | J120: 从事社保经办网络及系统维护和管理工作 | K120: 1 | L120: 本科及以上 | M120: 学士及以上学位 | N120: —— | O120: 计算机及相关专业 | P120: 计算机科学与技术 （一级学科目录） | Q120: 不限 | R120: 否 | S120: 否 | T120: 否 | U120: 不限 | V120: 无 | W120: 无
A121: 011050 | B121: 花溪区市场监督管理局 | C121: 04 | D121: 行政机关 | E121: 贵阳市花溪区石板镇 | G121: 0851-88231707 | H121: 石板分局工作人员 | I121: 01 | J121: 承担辖区质量监督管理工作承担产（商）品质量监督抽查、检验及处理工作；开展工业产品生产许可现场审查和重大质量事故调查处理；承担机动车安全技术检验机构日常监管工作 | K121: 1 | L121: 本科及以上 | M121: 学士及以上学位 | N121: —— | O121: 环境与安全类 （一级学科目录） | P121: 环境科学与工程 （一级学科目录） | Q121: 不限 | R121: 否 | S121: 否 | T121: 否 | U121: 不限 | V121: 无 | W121: 本职位需高空作业）及特种设备突发事件处置，具有一定的危险性，建议男性报考。
A122: 011050 | B122: 花溪区市场监督管理局 | C122: 04 | D122: 行政机关 | E122: 贵阳市花溪区溪北社区 | G122: 0851-88231707 | H122: 溪北分局分局工作人员 | I122: 02 | J122: 承担辖区食品（含食品添加剂、保健食品）生产、流通及消费环节的安全监督管理职责，负责食品质量监督抽查、检验检测工作，依法查处食品安全违法行为 | K122: 1 | L122: 本科及以上 | M122: 学士及以上学位 | N122: —— | O122: 不限 | P122: 不限 | Q122: 不限 | R122: 否 | S122: 否 | T122: 否 | U122: 不限 | V122: 无 | W122: 查处食品安全违法行为，需夜晚值班备勤。
A123: 011050 | B123: 花溪区市场监督管理局 | C123: 03 | D123: 行政机关 | E123: 贵阳市花溪区将军路32号 | G123: 0851-88231707 | H123: 经济检查局分局工作人员 | I123: 03 | J123: 承担有关反不正当竞争执法工作；监督管理直销企业和直销员及其直销活动；查处市场中的垄断、公用企业不正当竞争、商业贿赂、商标侵权、违法广告、无照经营、合同欺诈、违法直销和传销等经济违法案件 | K123: 1 | L123: 本科及以上 | M123: 学士及以上学位 | N123: —— | O123: 不限 | P123: 不限 | Q123: 不限 | R123: 否 | S123: 否 | T123: 否 | U123: 不限 | V123: 无 | W123: 查处经济违法案件，需夜晚值班备勤。
A124: 011051 | B124: 花溪区卫生和计划生育局 | C124: 03 | D124: 行政机关 | E124: 贵阳市花溪区园亭路12号 | G124: 0851-88231707 | H124: 办公室工作人员 | I124: 01 | J124: 综合协调机关常务、政务工作，制定机关工作制度，起草综合性文件及工作计划、总结；负责机关行政事务、目标管理、机关文电等工作 | K124: 1 | L124: 本科及以上 | M124: 学士及以上学位 | N124: —— | O124: 不限 | P124: 不限 | Q124: 不限 | R124: 是 | S124: 是 | T124: 否 | U124: 不限 | V124: 定向招录“五项目人员”或退役大学生士兵 | W124: 无
A125: 011051 | B125: 花溪区卫生和计划生育局 | C125: 03 | D125: 行政机关 | E125: 贵阳市花溪区园亭路12号 | G125: 0851-88231707 | H125: 医政科工作人员 | I125: 02 | J125: 承担医疗机构医疗服务的监督管理工作，建立全区医疗机构医疗质量评价和监督体质；组织开展医疗质量、安全、服务、财务监督和评价等工作；配合实施以公益性为核心的公立医院监督制度；配合推进公立医院管理体制改革工作 | K125: 1 | L125: 本科及以上 | M125: 学士及以上学位 | N125: —— | O125: 医学 （学科门类） | P125: 医学 （学科门类） | Q125: 不限 | R125: 否 | S125: 否 | T125: 否 | U125: 不限 | V125: 无 | W125: 无
A126: 011052 | B126: 花溪区久安乡人民政府 | C126: 04 | D126: 行政机关 | E126: 贵阳市花溪区久安乡小山村光头组 | G126: 0851-88231707 | H126: 办公室工作人员 | I126: 01 | J126: 办公室日常工作，文秘工作等 | K126: 1 | L126: 本科及以上 | M126: 学士及以上学位 | N126: —— | O126: 1.公共管理类 （一级学科目录） 2.中国语言文学类 （一级学科目录） | P126: 1.公共管理 （一级学科目录） 2.中国语言文学 （一级学科目录） | Q126: 不限 | R126: 否 | S126: 否 | T126: 否 | U126: 不限 | V126: 无 | W126: 无
A127: 011053 | B127: 花溪区石板镇人民政府 | C127: 04 | D127: 行政机关 | E127: 贵阳市花溪区石板镇一村 | G127: 0851-88231707 | H127: 办公室工作人员 | I127: 01 | J127: 办公室日常工作 | K127: 1 | L127: 本科及以上 | M127: 学士及以上学位 | N127: —— | O127: 不限 | P127: 不限 | Q127: 不限 | R127: 否 | S127: 否 | T127: 否 | U127: 不限 | V127: 无 | W127: 无
A128: 011054 | B128: 花溪区孟关苗族布依族乡人民政府 | C128: 04 | D128: 行政机关 | E128: 贵阳市花溪区孟关乡孟关村1组 | G128: 0851-88231707 | H128: 办公室工作人员 | I128: 01 | J128: 办公室日常工作 | K128: 1 | L128: 本科及以上 | M128: 不限 | N128: —— | O128: 不限 | P128: 不限 | Q128: 不限 | R128: 是 | S128: 是 | T128: 否 | U128: 不限 | V128: 定向招录“五项目人员”或退役大学生士兵 | W128: 少数民族考生加分职位
A129: 011055 | B129: 花溪区青岩镇人民政府 | C129: 04 | D129: 行政机关 | E129: 贵阳市花溪区青岩镇交通路240号 | G129: 0851-88231707 | H129: 办公室工作人员 | I129: 01 | J129: 城镇规划设计及相关工作 | K129: 1 | L129: 本科及以上 | M129: 不限 | N129: —— | O129: 土建类 （一级学科目录） | P129: 建筑学 （一级学科目录） | Q129: 不限 | R129: 否 | S129: 否 | T129: 否 | U129: 不限 | V129: 无 | W129: 无
A130: 011056 | B130: 花溪区燕楼镇人民政府 | C130: 04 | D130: 行政机关 | E130: 贵阳市花溪区燕楼镇燕楼村 | G130: 0851-88231707 | H130: 办公室工作人员 | I130: 01 | J130: 办公室日常工作 | K130: 1 | L130: 本科及以上 | M130: 学士及以上学位 | N130: —— | O130: 不限 | P130: 不限 | Q130: 不限 | R130: 否 | S130: 否 | T130: 否 | U130: 不限 | V130: 无 | W130: 无
A131: 011057 | B131: 花溪区黔陶布依族苗族乡人民政府 | C131: 04 | D131: 行政机关 | E131: 贵阳市花溪区黔陶乡黔陶街上 | G131: 0851-88231707 | H131: 党政办公室工作人员 | I131: 01 | J131: 办公室日常工作 | K131: 1 | L131: 本科及以上 | M131: 学士及以上学位 | N131: —— | O131: 不限 | P131: 不限 | Q131: 不限 | R131: 否 | S131: 否 | T131: 否 | U131: 不限 | V131: 无 | W131: 少数民族考生加分职位
A132: 011058 | B132: 花溪区马铃布依族苗族乡人民政府 | C132: 04 | D132: 行政机关 | E132: 贵阳市花溪区马铃乡马铃村 | G132: 0851-88231707 | H132: 办公室工作人员 | I132: 01 | J132: 办公室日常、文秘工作 | K132: 1 | L132: 本科及以上 | M132: 不限 | N132: —— | O132: 1.中国语言文学类 （一级学科目录） 2.新闻传播学类 （一级学科目录） 3.马克思主义理论类 （一级学科目录） | P132: 1.中国语言文学 （一级学科目录） 2.新闻传播学 （一级学科目录） 3.马克思主义理论 （一级学科目录） | Q132: 不限 | R132: 否 | S132: 否 | T132: 否 | U132: 不限 | V132: 无 | W132: 少数民族考生加分职位
A133: 011059 | B133: 花溪区高坡苗族乡人民政府 | C133: 04 | D133: 行政机关 | E133: 贵阳市花溪区高坡乡高坡 村 | G133: 0851-88231707 | H133: 办公室工作人员 | I133: 01 | J133: 办公室日常工作，文秘工作等. | K133: 1 | L133: 大专及以上 | M133: 不限 | N133: 不限 | O133: 不限 | P133: 不限 | Q133: 不限 | R133: 否 | S133: 否 | T133: 是 | U133: 不限 | V133: 1.限花溪区户籍（含生源）公民 2.限苗族公民报考 | W133: 无
A134: 011060 | B134: 乌当区东风镇人民政府 | C134: 04 | D134: 行政机关 | E134: 贵阳市乌当区东风镇新街 | G134: 0851-86847585 | H134: 党政办工作人员 | I134: 01 | J134: 办公室日常工作 | K134: 1 | L134: 本科及以上 | M134: 学士及以上学位 | N134: —— | O134: 不限 | P134: 不限 | Q134: 不限 | R134: 否 | S134: 否 | T134: 否 | U134: 不限 | V134: 无 | W134: 无
A135: 011061 | B135: 乌当区下坝镇人民政府 | C135: 04 | D135: 行政机关 | E135: 贵阳市乌当区下坝镇下坝街上181号 | G135: 0851-86847585 | H135: 工作人员 | I135: 01 | J135: 办公室日常工作、文秘工作等 | K135: 1 | L135: 本科及以上 | M135: 不限 | N135: —— | O135: 不限 | P135: 不限 | Q135: 不限 | R135: 否 | S135: 否 | T135: 否 | U135: 不限 | V135: 无 | W135: 无
A136: 011062 | B136: 乌当区百宜镇人民政府 | C136: 04 | D136: 行政机关 | E136: 贵阳市乌当区百宜镇百宜街上 | G136: 0851-86847585 | H136: 工作人员 | I136: 01 | J136: 办公室日常工作，文秘工作 | K136: 1 | L136: 本科及以上 | M136: 学士及以上学位 | N136: —— | O136: 不限 | P136: 不限 | Q136: 不限 | R136: 否 | S136: 否 | T136: 否 | U136: 不限 | V136: 无 | W136: 无
A137: 011063 | B137: 乌当区羊昌镇人民政府 | C137: 04 | D137: 行政机关 | E137: 贵阳市乌当区羊昌镇羊昌街上 | G137: 0851-86847585 | H137: 党政办公室工作人员 | I137: 01 | J137: 党政办公室工作人员 | K137: 1 | L137: 本科及以上 | M137: 不限 | N137: —— | O137: 不限 | P137: 不限 | Q137: 不限 | R137: 否 | S137: 否 | T137: 否 | U137: 不限 | V137: 无 | W137: 无
A138: 011064 | B138: 乌当区新堡布依族乡人民政府 | C138: 04 | D138: 行政机关 | E138: 贵阳市乌当区新浦布依族乡陇上街 | G138: 0851-86847585 | H138: 工作人员 | I138: 01 | J138: 办公室日常工作，文秘工作 | K138: 1 | L138: 本科及以上 | M138: 学士及以上学位 | N138: —— | O138: 不限 | P138: 不限 | Q138: 不限 | R138: 否 | S138: 否 | T138: 否 | U138: 不限 | V138: 无 | W138: 少数民族考生加分职位
A139: 011065 | B139: 贵阳市城市综合执法支队白云大队 | C139: 03 | D139: 参照公务员法管理单位 | E139: 贵阳市白云区白云北路6号 | G139: 0851-84616750 | H139: 执法大队工作人员 | I139: 01 | J139: 从事城市综合执法工作 | K139: 2 | L139: 本科及以上 | M139: 学士及以上学位 | N139: —— | O139: 不限 | P139: 不限 | Q139: 不限 | R139: 否 | S139: 否 | T139: 否 | U139: 不限 | V139: 无 | W139: 主要从事应急处突、夜间市容巡逻管控、违法违章建筑监控、拆除和管理、查处夜间施工噪音及渣土洒漏等相关执法工作，须夜间备勤巡逻执法处突。适合男性报考。
A140: 011066 | B140: 白云区社会保险收付管理中心 | C140: 03 | D140: 参照公务员法管理单位 | E140: 贵阳市白云区白云南路484号 | G140: 0851-84616750 | H140: 工作人员 | I140: 01 | J140: 从事办公室日常工作 | K140: 1 | L140: 本科及以上 | M140: 学士及以上学位 | N140: —— | O140: 1.中国语言文学类 （一级学科目录） 2.新闻传播学类 （一级学科目录） | P140: 1.中国语言文学 （一级学科目录） 2.新闻传播学 （一级学科目录） | Q140: 不限 | R140: 否 | S140: 否 | T140: 否 | U140: 不限 | V140: 无 | W140: 无
A141: 011066 | B141: 白云区社会保险收付管理中心 | C141: 03 | D141: 参照公务员法管理单位 | E141: 贵阳市白云区白云南路484号 | G141: 0851-84616750 | H141: 工作人员 | I141: 02 | J141: 从事社会保险征缴管理工作 | K141: 2 | L141: 本科及以上 | M141: 学士及以上学位 | N141: —— | O141: 不限 | P141: 不限 | Q141: 不限 | R141: 否 | S141: 否 | T141: 否 | U141: 不限 | V141: 无 | W141: 无
A142: 011067 | B142: 清镇市工业和信息化局 | C142: 03 | D142: 行政机关 | E142: 清镇市云岭西路60号 | G142: 0851- 82526814 | H142: 煤炭科工作人员 | I142: 01 | J142: 从事煤炭企业监管工作 | K142: 1 | L142: 本科及以上 | M142: 学士及以上学位 | N142: —— | O142: 矿业工程类 (一级学科目录) | P142: 不限 | Q142: 不限 | R142: 否 | S142: 否 | T142: 否 | U142: 不限 | V142: 无 | W142: 无
A143: 011068 | B143: 清镇市教育局 | C143: 03 | D143: 行政机关 | E143: 清镇市职教城东区金马大道与金清大道交汇处 | G143: 0851- 82526814 | H143: 办公室(党委办)工作人员 | I143: 01 | J143: 从事办公室日常事务工作 | K143: 1 | L143: 本科及以上 | M143: 学士及以上学位 | N143: —— | O143: 1.教育学类 (一级学科目录) 2.汉语言专业 3.汉语言文学专业 | P143: 教育学 (一级学科目录) | Q143: 不限 | R143: 否 | S143: 否 | T143: 否 | U143: 不限 | V143: 无 | W143: 无
A144: 011069 | B144: 清镇市国土资源局 | C144: 03 | D144: 行政机关 | E144: 清镇市云岭西路东风电厂大楼 | G144: 0851- 82526814 | H144: 办公室 工作人员 | I144: 01 | J144: 办公室日常工作 | K144: 1 | L144: 本科及以上 | M144: 学士及以上学位 | N144: —— | O144: 不限 | P144: 不限 | Q144: 不限 | R144: 否 | S144: 否 | T144: 否 | U144: 不限 | V144: 无 | W144: 无
A145: 011070 | B145: 清镇市市场监督管理局 | C145: 04 | D145: 行政机关 | E145: 清镇市济辉汽车城内（车管所旁） | G145: 0851- 82526814 | H145: 红枫分局工作人员 | I145: 01 | J145: 市场监管日常工作 | K145: 1 | L145: 本科及以上 | M145: 学士及以上学位 | N145: —— | O145: 不限 | P145: 不限 | Q145: 不限 | R145: 否 | S145: 否 | T145: 否 | U145: 不限 | V145: 无 | W145: 无
A146: 011071 | B146: 清镇市司法局 | C146: 04 | D146: 行政机关 | E146: 清镇市流长乡 | G146: 0851- 82526814 | H146: 流长司法所工作人员 | I146: 01 | J146: 司法行政 | K146: 1 | L146: 本科及以上 | M146: 学士及以上学位 | N146: —— | O146: 法学类 (一级学科目录) | P146: 法学 (一级学科目录) | Q146: 不限 | R146: 否 | S146: 否 | T146: 否 | U146: 不限 | V146: 无 | W146: 少数民族考生加分职位（派驻民族乡的单位）
A147: 011071 | B147: 清镇市司法局 | C147: 04 | D147: 行政机关 | E147: 清镇市新店镇鸭池河街上 | G147: 0851- 82526814 | H147: 新店司法所工作人员 | I147: 02 | J147: 司法行政 | K147: 1 | L147: 本科及以上 | M147: 学士及以上学位 | N147: —— | O147: 法学类 (一级学科目录) | P147: 法学 (一级学科目录) | Q147: 不限 | R147: 否 | S147: 否 | T147: 否 | U147: 不限 | V147: 无 | W147: 无
A148: 011072 | B148: 清镇市社会保险事业局 | C148: 03 | D148: 参照公务员法管理单位 | E148: 清镇市百花大道147号 | G148: 0851- 82526814 | H148: 审核二科工作人员 | I148: 01 | J148: 从事医保相关工作 | K148: 1 | L148: 本科及以上 | M148: 学士及以上学位 | N148: —— | O148: 临床医学类 (一级学科目录) | P148: 临床医学 (一级学科目录) | Q148: 不限 | R148: 否 | S148: 否 | T148: 否 | U148: 不限 | V148: 无 | W148: 无
A149: 011072 | B149: 清镇市社会保险事业局 | C149: 03 | D149: 参照公务员法管理单位 | E149: 清镇市百花大道147号 | G149: 0851- 82526814 | H149: 财务科工作人员 | I149: 02 | J149: 从事财务相关工作 | K149: 1 | L149: 本科及以上 | M149: 学士及以上学位 | N149: —— | O149: 不限 | P149: 不限 | Q149: 不限 | R149: 否 | S149: 否 | T149: 否 | U149: 不限 | V149: 具有助理会计师及以上任职资格 | W149: 无
A150: 011073 | B150: 清镇市就业局 | C150: 03 | D150: 参照公务员法管理单位 | E150: 清镇市百花大道147号 | G150: 0851- 82526814 | H150: 办公室 工作人员 | I150: 01 | J150: 办公室日常工作 | K150: 1 | L150: 本科及以上 | M150: 学士及以上学位 | N150: —— | O150: 不限 | P150: 不限 | Q150: 不限 | R150: 否 | S150: 否 | T150: 否 | U150: 不限 | V150: 无 | W150: 无
A151: 011074 | B151: 清镇市水利水电工程移民局 | C151: 03 | D151: 参照公务员法管理单位 | E151: 清镇市云岭西路162号 | G151: 0851- 82526814 | H151: 移民后期扶持科工作人员 | I151: 01 | J151: 从事移民项目管理有关工作 | K151: 1 | L151: 本科及以上 | M151: 学士及以上学位 | N151: —— | O151: 土木类 （一级学科目录) | P151: 1.土木工程专业 2.水利工程专业 3.测绘科学与技术专业 | Q151: 不限 | R151: 否 | S151: 否 | T151: 否 | U151: 不限 | V151: 无 | W151: 无
A152: 011075 | B152: 清镇市城市综合执法局 | C152: 03 | D152: 参照公务员法管理单位 | E152: 清镇市金盆路24号 | G152: 0851- 82526814 | H152: 执法一大队工作人员 | I152: 01 | J152: 从事财务相关工作 | K152: 1 | L152: 本科及以上 | M152: 学士及以上学位 | N152: —— | O152: 不限 | P152: 不限 | Q152: 不限 | R152: 否 | S152: 否 | T152: 否 | U152: 不限 | V152: 具有助理会计师及以上任职资格 | W152: 无
A153: 011075 | B153: 清镇市城市综合执法局 | C153: 03 | D153: 参照公务员法管理单位 | E153: 清镇市金盆路24号 | G153: 0851- 82526814 | H153: 执法一大队工作人员 | I153: 02 | J153: 从事城市执法有关工作 | K153: 2 | L153: 本科及以上 | M153: 学士及以上学位 | N153: —— | O153: 法学类 (一级学科目录) | P153: 法学 (一级学科目录) | Q153: 不限 | R153: 否 | S153: 否 | T153: 否 | U153: 不限 | V153: 无 | W153: 无
A154: 011075 | B154: 清镇市城市综合执法局 | C154: 03 | D154: 参照公务员法管理单位 | E154: 清镇市金盆路24号 | G154: 0851- 82526814 | H154: 执法一大队工作人员 | I154: 03 | J154: 从事城市执法有关工作 | K154: 2 | L154: 本科及以上 | M154: 学士及以上学位 | N154: —— | O154: 不限 | P154: 不限 | Q154: 不限 | R154: 否 | S154: 否 | T154: 否 | U154: 不限 | V154: 无 | W154: 无
A155: 011076 | B155: 清镇市红枫湖镇人民政府 | C155: 04 | D155: 行政机关 | E155: 清镇市新华路188号 | G155: 0851- 82526814 | H155: 党政办公室工作人员 | I155: 01 | J155: 办公室日常工作、保密工作、文秘工作等 | K155: 1 | L155: 本科及以上 | M155: 不限 | N155: —— | O155: 不限 | P155: 不限 | Q155: 中共党员 | R155: 是 | S155: 是 | T155: 否 | U155: 不限 | V155: 定向招录“五项目人员”或退役大学生士兵 | W155: 无
A156: 011077 | B156: 清镇市站街镇人民政府 | C156: 04 | D156: 行政机关 | E156: 清镇市站街镇新城区11号路 | G156: 0851- 82526814 | H156: 党政办公室工作人员 | I156: 01 | J156: 从事党政办公室日常工作 | K156: 2 | L156: 本科及以上 | M156: 不限 | N156: —— | O156: 不限 | P156: 不限 | Q156: 不限 | R156: 否 | S156: 否 | T156: 否 | U156: 不限 | V156: 无 | W156: 无
A157: 011077 | B157: 清镇市站街镇人民政府 | C157: 04 | D157: 行政机关 | E157: 清镇市站街镇新城区11号路 | G157: 0851- 82526814 | H157: 经济发展办公室工作人员 | I157: 02 | J157: 从事经济发展办公室日常工作 | K157: 1 | L157: 本科及以上 | M157: 不限 | N157: —— | O157: 不限 | P157: 不限 | Q157: 不限 | R157: 否 | S157: 否 | T157: 否 | U157: 不限 | V157: 无 | W157: 无
A158: 011077 | B158: 清镇市站街镇人民政府 | C158: 04 | D158: 行政机关 | E158: 清镇市站街镇新城区11号路 | G158: 0851- 82526814 | H158: 社会事务办公室工作人员 | I158: 03 | J158: 从事社会事务办公室日常工作 | K158: 1 | L158: 本科及以上 | M158: 不限 | N158: —— | O158: 不限 | P158: 不限 | Q158: 不限 | R158: 否 | S158: 否 | T158: 否 | U158: 不限 | V158: 无 | W158: 无
A159: 011077 | B159: 清镇市站街镇人民政府 | C159: 04 | D159: 行政机关 | E159: 清镇市站街镇新城区11号路 | G159: 0851- 82526814 | H159: 社会管理综合治理办公室工作人员 | I159: 04 | J159: 从事社会管理综合治理日常工作 | K159: 1 | L159: 本科及以上 | M159: 不限 | N159: —— | O159: 不限 | P159: 不限 | Q159: 不限 | R159: 否 | S159: 否 | T159: 否 | U159: 不限 | V159: 无 | W159: 无
A160: 011078 | B160: 清镇市新店镇人民政府 | C160: 04 | D160: 行政机关 | E160: 清镇市新店镇鸭池河街上 | G160: 0851- 82526814 | H160: 党政办公室工作人员 | I160: 01 | J160: 办公室日常工作，文秘工作等 | K160: 1 | L160: 本科及以上 | M160: 不限 | N160: —— | O160: 不限 | P160: 不限 | Q160: 不限 | R160: 否 | S160: 否 | T160: 否 | U160: 不限 | V160: 无 | W160: 无
A161: 011078 | B161: 清镇市新店镇人民政府 | C161: 04 | D161: 行政机关 | E161: 清镇市新店镇鸭池河街上 | G161: 0851- 82526814 | H161: 经济发展办公室工作人员 | I161: 02 | J161: 从事经济发展办公室日常工作 | K161: 1 | L161: 本科及以上 | M161: 不限 | N161: —— | O161: 不限 | P161: 不限 | Q161: 不限 | R161: 否 | S161: 否 | T161: 否 | U161: 不限 | V161: 无 | W161: 无
A162: 011078 | B162: 清镇市新店镇人民政府 | C162: 04 | D162: 行政机关 | E162: 清镇市新店镇鸭池河街上 | G162: 0851- 82526814 | H162: 社会事务办公室工作人员 | I162: 03 | J162: 从事社会事务办公室日常工作 | K162: 1 | L162: 本科及以上 | M162: 不限 | N162: —— | O162: 不限 | P162: 不限 | Q162: 不限 | R162: 否 | S162: 否 | T162: 否 | U162: 不限 | V162: 限清镇市户籍（含生源）公民报考 | W162: 无
A163: 011078 | B163: 清镇市新店镇人民政府 | C163: 04 | D163: 行政机关 | E163: 清镇市新店镇鸭池河街上 | G163: 0851- 82526814 | H163: 社会治安综合治理办公室工作人员 | I163: 04 | J163: 从事社会治安管理综合治理日常工作 | K163: 1 | L163: 本科及以上 | M163: 不限 | N163: —— | O163: 不限 | P163: 不限 | Q163: 不限 | R163: 否 | S163: 否 | T163: 否 | U163: 不限 | V163: 限清镇市户籍（含生源）公民报考 | W163: 无
A164: 011079 | B164: 清镇市王庄布依族苗族乡人民政府 | C164: 04 | D164: 行政机关 | E164: 清镇市王庄乡街上 | G164: 0851- 82526814 | H164: 党政办公室工作人员 | I164: 01 | J164: 办公室日常工作，文秘工作等 | K164: 1 | L164: 本科及以上 | M164: 不限 | N164: —— | O164: 不限 | P164: 不限 | Q164: 不限 | R164: 否 | S164: 否 | T164: 是 | U164: 不限 | V164: 限布依族、苗族公民报考 | W164: 无
A165: 011080 | B165: 清镇市暗流镇人民政府 | C165: 04 | D165: 行政机关 | E165: 清镇市暗流镇关口村大槽组 | G165: 0851- 82526814 | H165: 党政办公室工作人员 | I165: 01 | J165: 办公室日常工作、文秘工作等 | K165: 1 | L165: 本科及以上 | M165: 不限 | N165: —— | O165: 不限 | P165: 不限 | Q165: 不限 | R165: 否 | S165: 否 | T165: 否 | U165: 不限 | V165: 限清镇市户籍（含生源）公民报考 | W165: 无
A166: 011080 | B166: 清镇市暗流镇人民政府 | C166: 04 | D166: 行政机关 | E166: 清镇市暗流镇关口村大槽组 | G166: 0851- 82526814 | H166: 经济发展办公室工作人员 | I166: 02 | J166: 办公室日常工作 | K166: 1 | L166: 本科及以上 | M166: 不限 | N166: —— | O166: 不限 | P166: 不限 | Q166: 不限 | R166: 否 | S166: 否 | T166: 否 | U166: 不限 | V166: 无 | W166: 无
A167: 011081 | B167: 清镇市犁倭镇人民政府 | C167: 04 | D167: 行政机关 | E167: 清镇市犁倭镇犁倭村街上 | G167: 0851- 82526814 | H167: 社会事务办公室工作人员 | I167: 01 | J167: 从事社会事务办公室日常工作 | K167: 1 | L167: 本科及以上 | M167: 不限 | N167: —— | O167: 不限 | P167: 不限 | Q167: 不限 | R167: 否 | S167: 否 | T167: 否 | U167: 不限 | V167: 无 | W167: 无
A168: 011081 | B168: 清镇市犁倭镇人民政府 | C168: 04 | D168: 行政机关 | E168: 清镇市犁倭镇犁倭村街上 | G168: 0851- 82526814 | H168: 人口和计划生育办公室工作人员 | I168: 02 | J168: 从事人口和计划生育办公室工作 | K168: 1 | L168: 本科及以上 | M168: 不限 | N168: —— | O168: 不限 | P168: 不限 | Q168: 不限 | R168: 否 | S168: 否 | T168: 否 | U168: 不限 | V168: 无 | W168: 无
A169: 011081 | B169: 清镇市犁倭镇人民政府 | C169: 04 | D169: 行政机关 | E169: 清镇市犁倭镇犁倭村街上 | G169: 0851- 82526814 | H169: 社会治安综合治理办公室工作人员 | I169: 03 | J169: 从事社会治安综合治理办公室工作 | K169: 1 | L169: 本科及以上 | M169: 不限 | N169: —— | O169: 不限 | P169: 不限 | Q169: 不限 | R169: 否 | S169: 否 | T169: 否 | U169: 不限 | V169: 限清镇市户籍（含生源）公民报考 | W169: 无
A170: 011081 | B170: 清镇市犁倭镇人民政府 | C170: 04 | D170: 行政机关 | E170: 清镇市犁倭镇犁倭村街上 | G170: 0851- 82526814 | H170: 经济发展办公室工作人员 | I170: 04 | J170: 从事经济发展办公室工作 | K170: 1 | L170: 本科及以上 | M170: 不限 | N170: —— | O170: 不限 | P170: 不限 | Q170: 不限 | R170: 否 | S170: 否 | T170: 否 | U170: 不限 | V170: 限清镇市户籍（含生源）公民报考 | W170: 无
A171: 011082 | B171: 清镇市流长苗族乡人民政府 | C171: 04 | D171: 行政机关 | E171: 清镇市流长苗族乡中街村中街组 | G171: 0851- 82526814 | H171: 党政办公室工作人员 | I171: 01 | J171: 办公室日常工作、文秘工作等 | K171: 1 | L171: 本科及以上 | M171: 不限 | N171: —— | O171: 不限 | P171: 不限 | Q171: 不限 | R171: 否 | S171: 否 | T171: 否 | U171: 不限 | V171: 限清镇市户籍（含生源）公民报考 | W171: 少数民族考生加分职位
A172: 011082 | B172: 清镇市流长苗族乡人民政府 | C172: 04 | D172: 行政机关 | E172: 清镇市流长苗族乡中街村中街组 | G172: 0851- 82526814 | H172: 经济发展办公室工作人员 | I172: 02 | J172: 经济发展、招商引资相关工作 | K172: 1 | L172: 本科及以上 | M172: 不限 | N172: —— | O172: 不限 | P172: 不限 | Q172: 不限 | R172: 否 | S172: 否 | T172: 否 | U172: 不限 | V172: 无 | W172: 少数民族考生加分职位
A173: 011083 | B173: 清镇市麦格苗族布依族乡人民政府 | C173: 04 | D173: 行政机关 | E173: 清镇市麦格乡麦格村黄兴寨组 | G173: 0851- 82526814 | H173: 党政办公室工作人员 | I173: 01 | J173: 办公室日常工作，信息、文秘工作等 | K173: 2 | L173: 本科及以上 | M173: 不限 | N173: —— | O173: 不限 | P173: 不限 | Q173: 不限 | R173: 否 | S173: 否 | T173: 否 | U173: 不限 | V173: 无 | W173: 少数民族考生加分职位
A174: 011083 | B174: 清镇市麦格苗族布依族乡人民政府 | C174: 04 | D174: 行政机关 | E174: 清镇市麦格乡麦格村黄兴寨组 | G174: 0851- 82526814 | H174: 社会事务办公室工作人员 | I174: 02 | J174: 低保办理、婚姻登记等相关工作 | K174: 1 | L174: 本科及以上 | M174: 不限 | N174: —— | O174: 不限 | P174: 不限 | Q174: 不限 | R174: 否 | S174: 否 | T174: 是 | U174: 不限 | V174: 限苗族、布依族公民报考 | W174: 无
A175: 011083 | B175: 清镇市麦格苗族布依族乡人民政府 | C175: 04 | D175: 行政机关 | E175: 清镇市麦格乡麦格村黄兴寨组 | G175: 0851- 82526814 | H175: 社会治安综合治理办公室工作人员 | I175: 03 | J175: 社会治安管理，协调工作等 | K175: 1 | L175: 本科及以上 | M175: 不限 | N175: —— | O175: 不限 | P175: 不限 | Q175: 不限 | R175: 否 | S175: 否 | T175: 否 | U175: 不限 | V175: 限清镇市户籍（含生源）公民报考 | W175: 少数民族考生加分职位
A176: 011083 | B176: 清镇市麦格苗族布依族乡人民政府 | C176: 04 | D176: 行政机关 | E176: 清镇市麦格乡麦格村黄兴寨组 | G176: 0851- 82526814 | H176: 经济发展办公室工作人员 | I176: 04 | J176: 固定资产投资和农业统计工作等 | K176: 1 | L176: 本科及以上 | M176: 不限 | N176: —— | O176: 不限 | P176: 不限 | Q176: 不限 | R176: 否 | S176: 否 | T176: 否 | U176: 不限 | V176: 无 | W176: 少数民族考生加分职位
A177: 011084 | B177: 修文县县级财政支付中心 | C177: 03 | D177: 参照公务员法管理单位 | E177: 修文县龙场镇知行路8号 | G177: 0851-82329814 | H177: 办公室工作人员 | I177: 01 | J177: 办理单位资金审核、支付、监督管理等业务 | K177: 2 | L177: 本科及以上 | M177: 不限 | N177: —— | O177: 1.会计学专业 2.财务管理专业 3.审计学专业 4.财务会计专业 | P177: 工商管理 （一级学科目录） | Q177: 不限 | R177: 否 | S177: 否 | T177: 否 | U177: 不限 | V177: 无 | W177: 无
A178: 011085 | B178: 修文县社会保险收付管理中心 | C178: 03 | D178: 参照公务员法管理单位 | E178: 修文县龙场镇迎春路68号 | G178: 0851-82329814 | H178: 办公室工作人员 | I178: 01 | J178: 办公室日常工作，文秘工作等 | K178: 2 | L178: 本科及以上 | M178: 不限 | N178: —— | O178: 不限 | P178: 不限 | Q178: 不限 | R178: 否 | S178: 否 | T178: 否 | U178: 不限 | V178: 无 | W178: 无
A179: 011086 | B179: 修文县水利水电工程移民局 | C179: 03 | D179: 参照公务员法管理单位 | E179: 修文县龙场镇迎春路63号 | G179: 0851-82329814 | H179: 生态移民科工作人员 | I179: 01 | J179: 办公室日常工作，文秘工作等 | K179: 1 | L179: 本科及以上 | M179: 不限 | N179: —— | O179: 不限 | P179: 不限 | Q179: 不限 | R179: 否 | S179: 否 | T179: 否 | U179: 不限 | V179: 无 | W179: 无
A180: 011087 | B180: 修文县司法局 | C180: 04 | D180: 行政机关 | E180: 修文县扎佐镇襄阳南路 | G180: 0851-82329814 | H180: 扎佐镇司法所司法助理员 | I180: 01 | J180: 司法所日常工作 | K180: 1 | L180: 本科及以上 | M180: 不限 | N180: —— | O180: 法学类 (一级学科目录） | P180: 法学 (一级学科目录） | Q180: 不限 | R180: 否 | S180: 否 | T180: 否 | U180: 不限 | V180: 无 | W180: 无
A181: 011087 | B181: 修文县司法局 | C181: 04 | D181: 行政机关 | E181: 修文县谷堡乡 | G181: 0851-82329814 | H181: 谷堡乡司法所司法助理员 | I181: 02 | J181: 司法所日常工作 | K181: 1 | L181: 本科及以上 | M181: 不限 | N181: —— | O181: 法学类 (一级学科目录） | P181: 法学 (一级学科目录） | Q181: 不限 | R181: 否 | S181: 否 | T181: 否 | U181: 不限 | V181: 无 | W181: 无
A182: 011087 | B182: 修文县司法局 | C182: 04 | D182: 行政机关 | E182: 修文县龙场镇人民北路10号 | G182: 0851-82329814 | H182: 龙岗片区司法所司法助理员 | I182: 03 | J182: 司法所日常工作 | K182: 1 | L182: 本科及以上 | M182: 不限 | N182: —— | O182: 法学类 (一级学科目录） | P182: 法学 (一级学科目录） | Q182: 不限 | R182: 否 | S182: 否 | T182: 否 | U182: 不限 | V182: 无 | W182: 无
A183: 011088 | B183: 修文县市场监督管理局 | C183: 04 | D183: 行政机关 | E183: 修文县六广镇凤凰路 | G183: 0851-82329814 | H183: 六广分局工作人员 | I183: 01 | J183: 从事执法监管工作 | K183: 1 | L183: 本科及以上 | M183: 不限 | N183: —— | O183: 1.法学类 (一级学科目录） 2.工学 (学科门类） | P183: 1.法学 (一级学科目录） 2.工学 (学科门类） | Q183: 不限 | R183: 否 | S183: 否 | T183: 否 | U183: 不限 | V183: 无 | W183: 无
A184: 011088 | B184: 修文县市场监督管理局 | C184: 04 | D184: 行政机关 | E184: 修文县久长镇 | G184: 0851-82329814 | H184: 久长分局工作人员 | I184: 02 | J184: 从事执法监管工作 | K184: 1 | L184: 本科及以上 | M184: 不限 | N184: —— | O184: 1.法学类 (一级学科目录） 2.工学 (学科门类） | P184: 1.法学 (一级学科目录） 2.工学 (学科门类） | Q184: 不限 | R184: 否 | S184: 否 | T184: 否 | U184: 不限 | V184: 无 | W184: 无
A185: 011089 | B185: 修文县扎佐镇人民政府 | C185: 04 | D185: 行政机关 | E185: 修文县扎佐镇襄阳南路 | G185: 0851-82329814 | H185: 党政办公室工作人员 | I185: 01 | J185: 办公室日常工作、文秘工作 | K185: 1 | L185: 本科及以上 | M185: 不限 | N185: —— | O185: 不限 | P185: 不限 | Q185: 不限 | R185: 是 | S185: 是 | T185: 否 | U185: 不限 | V185: 定向招录“五项目人员”或退役大学生士兵 | W185: 无
A186: 011090 | B186: 修文县六屯镇人民政府 | C186: 04 | D186: 行政机关 | E186: 修文县六屯镇都堡村中心组 | G186: 0851-82329814 | H186: 党政办公室工作人员 | I186: 01 | J186: 办公室日常工作、文秘工作 | K186: 2 | L186: 本科及以上 | M186: 不限 | N186: —— | O186: 不限 | P186: 不限 | Q186: 不限 | R186: 否 | S186: 否 | T186: 否 | U186: 不限 | V186: 无 | W186: 无
A187: 011091 | B187: 修文县六广镇人民政府 | C187: 04 | D187: 行政机关 | E187: 修文县六广镇凤凰路 | G187: 0851-82329814 | H187: 党政办公室工作人员 | I187: 01 | J187: 办公室日常工作、文秘工作 | K187: 1 | L187: 本科及以上 | M187: 不限 | N187: —— | O187: 不限 | P187: 不限 | Q187: 不限 | R187: 否 | S187: 否 | T187: 否 | U187: 不限 | V187: 无 | W187: 无
A188: 011092 | B188: 修文县大石布依族乡人民政府 | C188: 04 | D188: 行政机关 | E188: 修文县大石布依族乡街上组 | G188: 0851-82329814 | H188: 党政办公室工作人员 | I188: 01 | J188: 办公室日常工作、文秘工作 | K188: 1 | L188: 本科及以上 | M188: 不限 | N188: —— | O188: 不限 | P188: 不限 | Q188: 不限 | R188: 否 | S188: 否 | T188: 否 | U188: 不限 | V188: 无 | W188: 少数民族考生加分职位
A189: 011093 | B189: 修文县六桶镇人民政府 | C189: 04 | D189: 行政机关 | E189: 修文 县六桶镇盐井居委会 | G189: 0851-82329814 | H189: 党政办公室工作人员 | I189: 01 | J189: 办公室日常工作、文秘工作 | K189: 1 | L189: 本科及以上 | M189: 不限 | N189: —— | O189: 不限 | P189: 不限 | Q189: 不限 | R189: 是 | S189: 是 | T189: 否 | U189: 不限 | V189: 定向招录“五项目人员”或退役大学生士兵 | W189: 无
A190: 011093 | B190: 修文县六桶镇人民政府 | C190: 04 | D190: 行政机关 | E190: 修文 县六桶镇盐井居委会 | G190: 0851-82329814 | H190: 党政办公室工作人员 | I190: 02 | J190: 办公室日常工作、文秘工作 | K190: 3 | L190: 本科及以上 | M190: 不限 | N190: —— | O190: 不限 | P190: 不限 | Q190: 不限 | R190: 否 | S190: 否 | T190: 否 | U190: 不限 | V190: 无 | W190: 无
A191: 011094 | B191: 息烽县卫生和计划生育局 | C191: 03 | D191: 行政机关 | E191: 息烽县文化北路45号 | G191: 0851-87727255/87721344 | H191: 办公室工作人员 | I191: 01 | J191: 从事办公室文秘等日常工作 | K191: 1 | L191: 本科及以上 | M191: 学士及以上学位 | N191: —— | O191: 不限 | P191: 不限 | Q191: 不限 | R191: 否 | S191: 否 | T191: 否 | U191: 不限 | V191: 无 | W191: 无
A192: 011094 | B192: 息烽县卫生和计划生育局 | C192: 03 | D192: 行政机关 | E192: 息烽县文化北路45号 | G192: 0851-87727255/87721344 | H192: 基层卫生管理科工作人员 | I192: 02 | J192: 从事基层卫生管理等工作 | K192: 1 | L192: 本科及以上 | M192: 学士及以上学位 | N192: —— | O192: 公共卫生与预防医学类 （一级学科目录） | P192: 公共卫生与预防医学 （一级学科目录） | Q192: 不限 | R192: 否 | S192: 否 | T192: 否 | U192: 不限 | V192: 无 | W192: 无
A193: 011095 | B193: 息烽县工业和信息化局 | C193: 03 | D193: 行政机关 | E193: 息烽县永靖镇虎城大楼11层 | G193: 0851-87727255/87721344 | H193: 办公室工作人员 | I193: 01 | J193: 从事办公室文秘等日常工作 | K193: 1 | L193: 本科及以上 | M193: 学士及以上学位 | N193: —— | O193: 不限 | P193: 不限 | Q193: 不限 | R193: 否 | S193: 否 | T193: 否 | U193: 不限 | V193: 无 | W193: 无
A194: 011096 | B194: 息烽县国土资源局 | C194: 03 | D194: 行政机关 | E194: 息烽县新华社区虎城大厦8楼 | G194: 0851-87727255/87721344 | H194: 用地地籍管理科工作人员 | I194: 01 | J194: 从事用地地籍管理等工作 | K194: 1 | L194: 本科及以上 | M194: 学士及以上学位 | N194: —— | O194: 1.土地资源管理专业 2.人文地理与城乡规划专业 3.测绘工程专业 | P194: 1.土地资源管理专业 2.地图学与地理信息系统专业 3.地图制图学与地理信息工程专业 | Q194: 不限 | R194: 否 | S194: 否 | T194: 否 | U194: 不限 | V194: 无 | W194: 无
A195: 011096 | B195: 息烽县国土资源局 | C195: 03 | D195: 行政机关 | E195: 息烽县新华社区虎城大厦8楼 | G195: 0851-87727255/87721344 | H195: 地矿科工作人员 | I195: 02 | J195: 从事矿产资源管理等工作 | K195: 1 | L195: 本科及以上 | M195: 学士及以上学位 | N195: —— | O195: 1.地质类 （一级学科目录） 2.采矿工程专业 | P195: 1.地质工程专业 2.采矿工程专业 3.安全技术及工程专业 | Q195: 不限 | R195: 否 | S195: 否 | T195: 否 | U195: 不限 | V195: 无 | W195: 无
A196: 011097 | B196: 息烽县市场监督管理局 | C196: 03 | D196: 行政机关 | E196: 息烽县文化北路71 | G196: 0851-87727255/87721344 | H196: 办公室工作人员 | I196: 01 | J196: 从事财务管理等相关工作 | K196: 1 | L196: 本科及以上 | M196: 学士及以上学位 | N196: —— | O196: 不限 | P196: 不限 | Q196: 不限 | R196: 否 | S196: 否 | T196: 否 | U196: 不限 | V196: 具有助理会计师及以上任职资格 | W196: 无
A197: 011097 | B197: 息烽县市场监督管理局 | C197: 04 | D197: 行政机关 | E197: 息烽县永靖镇 | G197: 0851-87727255/87721344 | H197: 永靖分局工作人员 | I197: 02 | J197: 从事基层市场监督管理执法工作 | K197: 1 | L197: 本科及以上 | M197: 学士及以上学位 | N197: —— | O197: 不限 | P197: 不限 | Q197: 不限 | R197: 否 | S197: 否 | T197: 否 | U197: 不限 | V197: 无 | W197: 无
A198: 011097 | B198: 息烽县市场监督管理局 | C198: 04 | D198: 行政机关 | E198: 息烽县小寨坝镇 | G198: 0851-87727255/87721344 | H198: 小寨坝分局工作人员 | I198: 03 | J198: 从事基层市场监督管理执法工作 | K198: 1 | L198: 本科及以上 | M198: 学士及以上学位 | N198: —— | O198: 不限 | P198: 不限 | Q198: 不限 | R198: 否 | S198: 否 | T198: 否 | U198: 不限 | V198: 无 | W198: 无
A199: 011097 | B199: 息烽县市场监督管理局 | C199: 04 | D199: 行政机关 | E199: 息烽县文化北路71 | G199: 0851-87727255/87721344 | H199: 养龙司分局工作人员 | I199: 04 | J199: 从事基层市场监督管理执法工作 | K199: 1 | L199: 大专及以上 | M199: 不限 | N199: 不限 | O199: 不限 | P199: 不限 | Q199: 不限 | R199: 否 | S199: 否 | T199: 否 | U199: 不限 | V199: 无 | W199: 无
A200: 011097 | B200: 息烽县市场监督管理局 | C200: 04 | D200: 行政机关 | E200: 息烽县文化北路71 | G200: 0851-87727255/87721344 | H200: 九庄分局工作人员 | I200: 05 | J200: 从事基层市场监督管理执法工作 | K200: 1 | L200: 大专及以上 | M200: 不限 | N200: 不限 | O200: 不限 | P200: 不限 | Q200: 不限 | R200: 是 | S200: 是 | T200: 否 | U200: 不限 | V200: 定向招录“五项目人员”或退役大学生士兵 | W200: 无
... 38 more rows

Sheet 遵义市
A1: 遵义市2018年市、县机关面向社会公开招录人民警察职位表
A2: 招录单位代码 | B2: 单位名称 | C2: 层级代码 | D2: 机构性质 | E2: 单位咨询电话(长途区号均为0851) | F2: 职位名称 | G2: 职位代码 | H2: 职位简介 | I2: 招录人数 | J2: 学历要求 | K2: 学位要求 | L2: 专业要求 | O2: 政治面貌要求 | P2: 定向招录项目要求 | S2: 基层工作经历时间 | T2: 其他报考条件 | U2: 职位工作性质及需要说明的其他事项
L3: 大专 | M3: 本科 | N3: 研究生 | P3: 四项目人员 | Q3: 退役大学生士兵 | R3: 少数民族
A4: 20001 | B4: 湄潭县人民法院 | C4: 03 | D4: 审判机关 | E4: 24255828 | F4: 司法警察 | G4: 01 | H4: 从事审判辅助工作 | I4: 1 | J4: 本科及以上 | K4: 学士及以上 | T4: 限男性
A5: 20001 | B5: 湄潭县人民法院 | C5: 03 | D5: 审判机关 | E5: 24255828 | F5: 司法警察 | G5: 02 | H5: 从事审判辅助工作 | I5: 1 | J5: 本科及以上 | K5: 学士及以上 | T5: 限女性
A6: 20002 | B6: 绥阳县人民法院 | C6: 03 | D6: 审判机关 | E6: 26363191 | F6: 司法警察 | G6: 01 | H6: 司法警务工作 | I6: 1 | J6: 大专及以上 | L6: 公安类 | M6: 公安类 | N6: 一级学科：公安学
A7: 20003 | B7: 习水县人民法院 | C7: 03 | D7: 审判机关 | E7: 22732726 | F7: 司法警察 | G7: 01 | H7: 从事提押、执庭、机关安保工作 | I7: 1 | J7: 大专及以上 | L7: 公安类 | M7: 公安类 | N7: 一级学科：公安学 | T7: 限男性
A8: 20003 | B8: 习水县人民法院 | C8: 03 | D8: 审判机关 | E8: 22732726 | F8: 司法警察 | G8: 02 | H8: 从事提押、执庭、机关安保工作 | I8: 1 | J8: 大专及以上 | L8: 公安类 | M8: 公安类 | N8: 一级学科：公安学 | T8: 限女性
A9: 20004 | B9: 遵义强制隔离戒毒所 | C9: 04 | D9: 参照公务员法管理单位 | E9: 28655851 | F9: 基层一线民警 | G9: 01 | H9: 一线戒毒管理及医务工作 | I9: 1 | J9: 本科及以上 | K9: 学士及以上 | M9: 二级学科：临床医学、精神医学、全科医学、基础医学 | N9: 一级学科：临床医学 | T9: 限男性，取得执业医师资格证 | U9: 该单位管理对象均为男性，故限男性报考
A10: 20004 | B10: 遵义强制隔离戒毒所 | C10: 04 | D10: 参照公务员法管理单位 | E10: 28655851 | F10: 基层一线民警 | G10: 02 | H10: 一线戒毒管理工作 | I10: 7 | J10: 大专及以上 | T10: 限男性 | U10: 该单位管理对象均为男性，故限男性报考
A11: 20004 | B11: 遵义强制隔离戒毒所 | C11: 04 | D11: 参照公务员法管理单位 | E11: 28655851 | F11: 基层一线民警 | G11: 03 | H11: 一线戒毒管理工作 | I11: 8 | J11: 大专及以上 | T11: 限男性 | U11: 该单位管理对象均为男性，故限男性报考
A12: 20004 | B12: 遵义强制隔离戒毒所 | C12: 04 | D12: 参照公务员法管理单位 | E12: 28655851 | F12: 基层一线民警 | G12: 04 | H12: 一线戒毒管理及法制教育工作 | I12: 8 | J12: 本科及以上 | K12: 学士及以上 | M12: 一级学科：法学类 | N12: 一级学科：法学 | T12: 限男性 | U12: 该单位管理对象均为男性，故限男性报考
A13: 20005 | B13: 遵义市公安局红花岗分局 | C13: 03 | D13: 行政机关 | E13: 28605678 28605329 | F13: 民警 | G13: 01 | H13: 综合管理类民警 | I13: 7 | J13: 本科及以上 | T13: 限男性 | U13: 从事巡逻工作
A14: 20005 | B14: 遵义市公安局红花岗分局 | C14: 03 | D14: 行政机关 | E14: 28605678 28605329 | F14: 民警 | G14: 02 | H14: 综合管理类民警 | I14: 7 | J14: 本科及以上 | T14: 限男性 | U14: 从事反恐怖工作
A15: 20005 | B15: 遵义市公安局红花岗分局 | C15: 03 | D15: 行政机关 | E15: 28605678 28605329 | F15: 民警 | G15: 03 | H15: 综合管理类民警 | I15: 7 | J15: 本科及以上 | T15: 限男性 | U15: 从事反恐怖工作
A16: 20005 | B16: 遵义市公安局红花岗分局 | C16: 03 | D16: 行政机关 | E16: 28605678 28605329 | F16: 民警 | G16: 04 | H16: 综合管理类民警 | I16: 4 | J16: 本科及以上 | U16: 从事反恐怖工作
A17: 20006 | B17: 遵义市公安局汇川分局 | C17: 04 | D17: 行政机关 | E17: 27576604 | F17: 基层派出所民警 | G17: 01 | H17: 综合管理类民警 | I17: 3 | J17: 本科及以上 | T17: 限男性 | U17: 茅草铺派出所
A18: 20006 | B18: 遵义市公安局汇川分局 | C18: 04 | D18: 行政机关 | E18: 27576604 | F18: 基层派出所民警 | G18: 02 | H18: 综合管理类民警 | I18: 1 | J18: 大专及以上 | T18: 限男性 | U18: 大连路派出所
A19: 20007 | B19: 遵义市公安局播州分局 | C19: 03 | D19: 行政机关 | E19: 27309046 | F19: 民警 | G19: 01 | H19: 综合管理类民警 | I19: 3 | J19: 本科及以上 | M19: 一级学科：法学类 | N19: 一级学科：法学 | T19: 限男性
A20: 20007 | B20: 遵义市公安局播州分局 | C20: 03 | D20: 行政机关 | E20: 27309046 | F20: 民警 | G20: 02 | H20: 警务技术类民警 | I20: 2 | J20: 本科及以上 | M20: 计算机及相关专业 | N20: 一级学科：计算机科学与技术； 二级学科：计算机技术、软件工程 | T20: 限男性
A21: 20007 | B21: 遵义市公安局播州分局 | C21: 03 | D21: 行政机关 | E21: 27309046 | F21: 民警 | G21: 03 | H21: 综合管理类民警 | I21: 2 | J21: 本科及以上 | M21: 一级学科：中国语言文学类 | N21: 一级学科：中国语言文学、新闻传播学 | T21: 限男性
A22: 20007 | B22: 遵义市公安局播州分局 | C22: 03 | D22: 行政机关 | E22: 27309046 | F22: 民警 | G22: 04 | H22: 综合管理类民警 | I22: 1 | J22: 本科及以上 | M22: 一级学科：中国语言文学类 | N22: 一级学科：中国语言文学、新闻传播学
A23: 20008 | B23: 仁怀市公安局 | C23: 03 | D23: 行政机关 | E23: 22223290 | F23: 刑事侦查大队民警 | G23: 01 | H23: 警务技术类民警 | I23: 1 | J23: 本科及以上 | M23: 一级学科：化学类 | N23: 一级学科：化学 | T23: 限男性 | U23: 体检视力执行普通民警标准。
A24: 20008 | B24: 仁怀市公安局 | C24: 03 | D24: 行政机关 | E24: 22223290 | F24: 刑事侦查大队民警 | G24: 02 | H24: 警务技术类民警 | I24: 1 | J24: 本科及以上 | M24: 一级学科：临床医学类 | N24: 一级学科：临床医学 | T24: 限男性 | U24: 体检视力执行普通民警标准。
A25: 20008 | B25: 仁怀市公安局 | C25: 04 | D25: 行政机关 | E25: 22223290 | F25: 基层派出所民警 | G25: 03 | H25: 综合管理类民警 | I25: 3 | J25: 本科及以上 | M25: 一级学科：法学类 | N25: 一级学科：法学 | T25: 限男性 | U25: 中枢派出所
A26: 20008 | B26: 仁怀市公安局 | C26: 04 | D26: 行政机关 | E26: 22223290 | F26: 基层派出所民警 | G26: 04 | H26: 警务技术类民警 | I26: 3 | J26: 本科及以上 | M26: 计算机及相关专业 | N26: 一级学科：计算机科学与技术； 二级学科：计算机技术、软件工程 | T26: 限男性 | U26: 盐津派出所
A27: 20008 | B27: 仁怀市公安局 | C27: 04 | D27: 行政机关 | E27: 22223290 | F27: 基层派出所民警 | G27: 05 | H27: 综合管理类民警 | I27: 2 | J27: 本科及以上 | M27: 一级学科：中国语言文学类、新闻传播学类 | N27: 一级学科：中国语言文学、新闻传播学 | T27: 限男性 | U27: 苍龙派出所
A28: 20008 | B28: 仁怀市公安局 | C28: 04 | D28: 行政机关 | E28: 22223290 | F28: 基层派出所民警 | G28: 06 | H28: 警务技术类民警 | I28: 1 | J28: 本科及以上 | M28: 会计及相关专业 | N28: 二级学科：会计学 | T28: 限男性 | U28: 体检视力执行普通民警标准；鲁班派出所
A29: 20008 | B29: 仁怀市公安局 | C29: 04 | D29: 行政机关 | E29: 22223290 | F29: 基层分局民警 | G29: 07 | H29: 综合管理类民警 | I29: 4 | J29: 本科及以上 | U29: 经开分局、机场分局各2人
A30: 20009 | B30: 赤水市公安局 | C30: 03 | D30: 行政机关 | E30: 22821915 | F30: 交通警察大队民警 | G30: 01 | H30: 综合管理类民警 | I30: 1 | J30: 大专及以上 | T30: 限男性
A31: 20010 | B31: 湄潭县公安局 | C31: 04 | D31: 行政机关 | E31: 24227336 | F31: 基层派出所民警 | G31: 01 | H31: 综合管理类民警 | I31: 2 | J31: 大专及以上 | T31: 限男性 | U31: 茅坪、西河派出所各1人
A32: 20010 | B32: 湄潭县公安局 | C32: 04 | D32: 行政机关 | E32: 24227336 | F32: 基层派出所民警 | G32: 02 | H32: 综合管理类民警 | I32: 1 | J32: 大专及以上 | U32: 抄乐派出所
A33: 20010 | B33: 湄潭县公安局 | C33: 04 | D33: 行政机关 | E33: 24227336 | F33: 基层派出所民警 | G33: 03 | H33: 综合管理类民警 | I33: 1 | J33: 大专及以上 | Q33: 是 | U33: 石莲派出所
A34: 20011 | B34: 绥阳县公安局 | C34: 04 | D34: 行政机关 | E34: 26363062 | F34: 基层派出所民警 | G34: 01 | H34: 综合管理类民警 | I34: 3 | J34: 大专及以上 | T34: 限男性 | U34: 枧坝派出所
A35: 20011 | B35: 绥阳县公安局 | C35: 04 | D35: 行政机关 | E35: 26363062 | F35: 基层派出所民警 | G35: 02 | H35: 综合管理类民警 | I35: 6 | J35: 大专及以上 | T35: 限男性 | U35: 温泉派出所4人、坪乐派出所2人
A36: 20011 | B36: 绥阳县公安局 | C36: 04 | D36: 行政机关 | E36: 26363062 | F36: 基层派出所民警 | G36: 03 | H36: 综合管理类民警 | I36: 3 | J36: 大专及以上 | U36: 茅垭派出所
A37: 20012 | B37: 余庆县公安局 | C37: 04 | D37: 行政机关 | E37: 24709201 | F37: 基层派出所民警 | G37: 01 | H37: 综合管理类民警 | I37: 7 | J37: 大专及以上 | L37: 公安类 | M37: 公安类 | N37: 一级学科：法学 | T37: 限男性 | U37: 子营派出所3人、松烟派出所3人、构皮滩派出所1人
A38: 20012 | B38: 余庆县公安局 | C38: 04 | D38: 行政机关 | E38: 24709201 | F38: 基层派出所民警 | G38: 02 | H38: 综合管理类民警 | I38: 1 | J38: 大专及以上 | L38: 新闻学类专业 | M38: 一级学科：新闻传播学类 | N38: 一级学科：新闻传播学 | U38: 构皮滩电站库区派出所
A39: 20013 | B39: 习水县公安局 | C39: 04 | D39: 行政机关 | E39: 22617309 | F39: 基层派出所民警 | G39: 01 | H39: 综合管理类民警 | I39: 8 | J39: 大专及以上 | T39: 限男性 | U39: 同民、醒民、民化、隆兴派出所各2人
A40: 20013 | B40: 习水县公安局 | C40: 04 | D40: 行政机关 | E40: 22617309 | F40: 基层派出所民警 | G40: 02 | H40: 综合管理类民警 | I40: 1 | J40: 大专及以上 | T40: 限男性 | U40: 二里派出所
A41: 20013 | B41: 习水县公安局 | C41: 04 | D41: 行政机关 | E41: 22617309 | F41: 基层派出所民警 | G41: 03 | H41: 综合管理类民警 | I41: 3 | J41: 大专及以上 | U41: 仙源派出所2人、二里派出所1人。从事防暴处突工作
A42: 20014 | B42: 务川仡佬族苗族自治县公安局 | C42: 04 | D42: 行政机关 | E42: 25625287 | F42: 基层派出所民警 | G42: 01 | H42: 综合管理类民警 | I42: 1 | J42: 大专及以上 | L42: 新闻采编与制作 | M42: 一级学科：新闻传播学类 | N42: 一级学科：新闻传播学 | U42: 浞水派出所
A43: 20014 | B43: 务川仡佬族苗族自治县公安局 | C43: 04 | D43: 行政机关 | E43: 25625287 | F43: 基层派出所民警 | G43: 02 | H43: 警务技术类民警 | I43: 1 | J43: 大专及以上 | L43: 计算机及相关专业 | M43: 计算机及相关专业 | N43: 一级学科：计算机科学与技术； 二级学科：计算机技术、软件工程 | U43: 黄都派出所
A44: 20014 | B44: 务川仡佬族苗族自治县公安局 | C44: 04 | D44: 行政机关 | E44: 25625287 | F44: 基层派出所民警 | G44: 03 | H44: 综合管理类民警 | I44: 3 | J44: 大专及以上 | T44: 本县户籍（生源） | U44: 浞水派出所1人、镇南派出所2人
A45: 20015 | B45: 正安县公安局 | C45: 04 | D45: 行政机关 | E45: 26420743 | F45: 基层派出所民警 | G45: 01 | H45: 综合管理类民警 | I45: 3 | J45: 大专及以上 | T45: 限男性 | U45: 谢坝派出所2人、中观派出所1人
A46: 20015 | B46: 正安县公安局 | C46: 04 | D46: 行政机关 | E46: 26420743 | F46: 基层派出所民警 | G46: 02 | H46: 综合管理类民警 | I46: 1 | J46: 本科及以上 | M46: 一级学科：中国语言文学类、新闻传播学类 | N46: 一级学科：中国语言文学、新闻传播学 | U46: 碧峰派出所
A47: 20016 | B47: 道真仡佬族苗族自治县公安局 | C47: 04 | D47: 行政机关 | E47: 25778809 | F47: 基层派出所民警 | G47: 01 | H47: 综合管理类民警 | I47: 6 | J47: 本科及以上 | K47: 学士及以上学位 | T47: 限男性 | U47: 桃源、棕坪、洛龙、旧城、平模、阳溪派出所各1人
A48: 20016 | B48: 道真仡佬族苗族自治县公安局 | C48: 04 | D48: 行政机关 | E48: 25778809 | F48: 基层派出所民警 | G48: 02 | H48: 警务技术类民警 | I48: 2 | J48: 本科及以上 | K48: 学士及以上学位 | M48: 会计及相关专业 | N48: 二级学科：会计学 | U48: 体检视力执行普通民警标准。三江、河口派出所各1人

Sheet 安顺市
A1: 贵州省2018年安顺市、县、乡四级机关面向社会公开招录公务员职位表
A2: 考区 | B2: 招录单位代码 | C2: 单位名称 | D2: 层级代码 | E2: 机构性质 | F2: 单位地址 | G2: 单位网站 | H2: 单位咨询电话 | I2: 职位名称 | J2: 职位代码 | K2: 职位简介 | L2: 招录人数 | M2: 学历要求 | N2: 学位要求 | O2: 专业要求 | R2: 政治面貌要求 | S2: 定向招录项目要求 | V2: 基层工作经历时间 | W2: 其他报考条件 | X2: 职位工作性质及需要说明的其他事项
O3: 大专 | P3: 本科 | Q3: 研究生 | S3: 四项目人员 | T3: 退役大学生士兵 | U3: 少数民族
A4: 安顺 | B4: 030001 | C4: 政协安顺市委员会 | D4: 02 | E4: 政协机关 | F4: 安顺市市府路 | H4: 0851-33284462 | I4: 政协办公室工作员员 | J4: 01 | K4: 办公室工作 | L4: 1 | M4: 本科及以上 | N4: 学士及以上学位 | P4: 新闻传播学类 | Q4: 新闻传播学类 | V4: 2年
A5: 安顺 | B5: 030002 | C5: 安顺市中级人民法院 | D5: 02 | E5: 审判机关 | F5: 安顺市西秀区中华东路 | H5: 0851-33508715 | I5: 审判辅助人员 | J5: 01 | K5: 从事审判辅助工作 | L5: 2 | M5: 本科及以上 | N5: 学士及以上学位 | P5: 法学学科门类 | W5: 通过国家统一司法考试获得A证
A6: 安顺 | B6: 030002 | C6: 安顺市中级人民法院 | D6: 02 | E6: 审判机关 | F6: 安顺市西秀区中华东路 | H6: 0851-33508715 | I6: 审判辅助人员 | J6: 02 | K6: 从事审判辅助工作 | L6: 1 | M6: 本科及以上 | N6: 学士及以上学位 | P6: 法学学科门类 | V6: 2年 | W6: 通过国家统一司法考试获得A证
A7: 安顺 | B7: 030003 | C7: 安顺市人民检察院 | D7: 02 | E7: 检察机关 | F7: 安顺市市府路 | H7: 0851-33508011 | I7: 检察辅助人员 | J7: 01 | K7: 检察辅助工作 | L7: 1 | M7: 本科及以上 | N7: 学士及以上学位 | P7: 法学学科门类 | Q7: 法学类 | V7: 2年 | W7: 通过国家统一司法考试获得A证
A8: 安顺 | B8: 030004 | C8: 安顺市国库收付中心 | D8: 02 | E8: 参照公务员法管理单位 | F8: 安顺市市委大院内 | H8: 0851-33281825、0851-33282129 | I8: 业务科室工作员 | J8: 01 | K8: 业务科室日常工作 | L8: 1 | M8: 本科及以上 | N8: 学士及以上学位 | P8: 经济学学科门类 | V8: 2年
A9: 安顺 | B9: 030005 | C9: 安顺市基层财政管理局 | D9: 02 | E9: 参照公务员法管理单位 | F9: 安顺市市委大院内 | H9: 0851-33281825、0851-33529050 | I9: 业务科室工作员 | J9: 01 | K9: 业务科室日常工作 | L9: 1 | M9: 本科及以上 | N9: 学士及以上学位 | V9: 2年
A10: 安顺 | B10: 030006 | C10: 安顺市档案局 | D10: 02 | E10: 参照公务员法管理单位 | F10: 安顺市西秀区市东路市委大院市档案局(馆)办公室 | H10: 0853-33281106 | I10: 办公室工作员 | J10: 01 | K10: 办公室日常工作，文秘、计算机工作等 | L10: 1 | M10: 本科及以上 | S10: 是 | T10: 是 | W10: 定向招录“四项目人员”或退役大学生士兵
A11: 安顺 | B11: 030007 | C11: 安顺市住房公积金管理中心 | D11: 02 | E11: 参照公务员法管理单位 | F11: 贵州省安顺市西秀区南华路顺安世纪新城B栋 | G11: http://gjj.anshun.gov.cn/ | H11: 0851-33283397 | I11: 镇宁县管理部工作员 | J11: 01 | K11: 住房公积金日常核算工作 | L11: 1 | M11: 本科及以上 | N11: 学士及以上学位 | V11: 2年
A12: 安顺 | B12: 030008 | C12: 安顺市人民政府驻北京联络处 | D12: 02 | E12: 参照公务员法管理单位 | F12: 北京市海淀区西直门北大街联慧路101号西晴公寓一层 | H12: 0851-33282064 | I12: 办公室工作员 | J12: 01 | K12: 办公室日常工作 | L12: 1 | M12: 本科及以上 | N12: 学士及以上学位 | P12: 管理学学科门类 | Q12: 管理学学科门类
A13: 安顺 | B13: 030009 | C13: 安顺市西秀区督查督办局 | D13: 03 | E13: 党的机关 | F13: 安顺市西秀区黄果树大街西秀区行政中心（驼宝山广场） | G13: www.anshun.gov.cn | H13: 0851-33346927 | I13: 办公室工作员 | J13: 01 | K13: 办公室日常工作 | L13: 1 | M13: 本科及以上 | N13: 学士及以上学位
A14: 安顺 | B14: 030010 | C14: 安顺市西秀区残疾人联合会机关 | D14: 03 | E14: 参照公务员法管理的人民团体和群众团体 | F14: 安顺市西秀区虹机场 | G14: www.anshun.gov.cn | H14: 0851-33322304 | I14: 办公室工作员 | J14: 01 | K14: 从事财务会计工作 | L14: 1 | M14: 本科及以上 | N14: 学士及以上学位 | W14: 具有助理会计师及以上任职资格
A15: 安顺 | B15: 030011 | C15: 安顺市西秀区归国华侨联合会 | D15: 03 | E15: 参照公务员法管理的人民团体和群众团体 | F15: 安顺市西秀区黄果树大街西秀区行政中心（驼宝山广场） | G15: www.anshun.gov.cn | H15: 0851-33223291 | I15: 办公室工作员 | J15: 01 | K15: 办公室日常工作 | L15: 1 | M15: 本科及以上 | N15: 学士及以上学位 | P15: 外国语言文学类 | Q15: 外国语言文学类
A16: 安顺 | B16: 030012 | C16: 中共安顺市西秀区委党校 | D16: 03 | E16: 参照公务员法管理单位 | F16: 安顺市西秀区九号路与西外环延伸段 | G16: www.anshun.gov.cn | H16: 0851-33252709 | I16: 办公室工作员 | J16: 01 | K16: 从事财务会计工作 | L16: 1 | M16: 本科及以上 | N16: 学士及以上学位 | W16: 具有助理会计师及以上任职资格
A17: 安顺 | B17: 030013 | C17: 安顺市西秀区人民检察院 | D17: 03 | E17: 检察机关 | F17: 安顺市西秀区迎晖大道54号 | G17: www.anshun.gov.cn | H17: 0851-38102215 | I17: 司法行政人员 | J17: 01 | K17: 文秘工作 | L17: 1 | M17: 本科及以上 | N17: 学士及以上学位
A18: 安顺 | B18: 030014 | C18: 安顺市西秀区人民法院 | D18: 03 | E18: 审判机关 | F18: 安顺市西秀区中华东路迎晖大道52号 | G18: www.anshun.gov.cn | H18: 0851-33508972 | I18: 审判辅助人员 | J18: 01 | K18: 协助审判员从事审判、执行工作 | L18: 2 | M18: 本科及以上 | N18: 学士及以上学位 | P18: 法学学科门类 | Q18: 法学类 | W18: 通过国家统一司法考试获得C证及以上
A19: 安顺 | B19: 030014 | C19: 安顺市西秀区人民法院 | D19: 03 | E19: 审判机关 | F19: 安顺市西秀区中华东路迎晖大道52号 | G19: www.anshun.gov.cn | H19: 0851-33508972 | I19: 审判辅助人员 | J19: 02 | K19: 协助审判员从事审判、执行工作 | L19: 3 | M19: 本科及以上 | N19: 学士及以上学位 | P19: 法学学科门类 | Q19: 法学类 | W19: 通过国家统一司法考试获得C证及以上
A20: 安顺 | B20: 030014 | C20: 安顺市西秀区人民法院 | D20: 03 | E20: 审判机关 | F20: 安顺市西秀区中华东路迎晖大道53号 | G20: www.anshun.gov.cn | H20: 0851-33508973 | I20: 司法行政人员 | J20: 03 | K20: 办公室新闻宣传、文秘工作 | L20: 1 | M20: 本科及以上 | N20: 学士及以上学位
A21: 安顺 | B21: 030014 | C21: 安顺市西秀区人民法院 | D21: 03 | E21: 审判机关 | F21: 安顺市西秀区中华东路迎晖大道54号 | G21: www.anshun.gov.cn | H21: 0851-33508903 | I21: 司法行政人员 | J21: 04 | K21: 司法行政工作 | L21: 1 | M21: 本科及以上 | N21: 学士及以上学位
A22: 安顺 | B22: 030015 | C22: 安顺市西秀区教育局 | D22: 03 | E22: 行政机关 | F22: 安顺市西秀区行政中心7栋 | H22: 0851-33222604 | I22: 办公室工作员 | J22: 01 | K22: 办公室日常工作 | L22: 2 | M22: 本科及以上 | N22: 学士及以上学位 | P22: 教育学类 | Q22: 教育学类
A23: 安顺 | B23: 030015 | C23: 安顺市西秀区教育局 | D23: 03 | E23: 行政机关 | F23: 安顺市西秀区行政中心7栋 | H23: 0851-33222604 | I23: 法规科工作员 | J23: 02 | K23: 办公室日常工作 | L23: 1 | M23: 本科及以上 | N23: 学士及以上学位 | P23: 法学类 | Q23: 法学类
A24: 安顺 | B24: 030016 | C24: 安顺市西秀区财政局 | D24: 03 | E24: 行政机关 | F24: 安顺市西秀区行政中心7栋 | H24: 0851-33295107 | I24: 办公室工作员 | J24: 01 | K24: 办公室日常工作 | L24: 1 | M24: 本科及以上 | N24: 学士及以上学位 | P24: 中国语言文学类 | Q24: 中国语言文学类
A25: 安顺 | B25: 030017 | C25: 安顺市西秀区卫生和计划生育局 | D25: 03 | E25: 行政机关 | F25: 安顺市西秀区黄果树大街100号（贵安医院旁） | H25: 0851—33232145 | I25: 人事教育宣传科工作员 | J25: 01 | K25: 卫生计生人事教育宣传工作 | L25: 1 | M25: 本科及以上 | N25: 学士及以上学位 | P25: 医学学科门类 | Q25: 医学学科门类 | R25: 中共党员
A26: 安顺 | B26: 030017 | C26: 安顺市西秀区卫生和计划生育局 | D26: 03 | E26: 行政机关 | F26: 安顺市西秀区黄果树大街100号（贵安医院旁） | H26: 0851—33232145 | I26: 办公室工作员 | J26: 02 | K26: 办公室日常工作 | L26: 1 | M26: 本科及以上 | N26: 学士及以上学位 | P26: 中国语言文学类 | Q26: 中国语言文学类
A27: 安顺 | B27: 030017 | C27: 安顺市西秀区卫生和计划生育局 | D27: 03 | E27: 行政机关 | F27: 安顺市西秀区黄果树大街100号（贵安医院旁） | H27: 0851—33232145 | I27: 法规监督工作员 | J27: 03 | K27: 卫生计生法律法规监督工作 | L27: 1 | M27: 本科及以上 | N27: 学士及以上学位 | P27: 法学类 | Q27: 法学类
A28: 安顺 | B28: 030017 | C28: 安顺市西秀区卫生和计划生育局 | D28: 03 | E28: 行政机关 | F28: 安顺市西秀区黄果树大街100号（贵安医院旁） | H28: 0851—33232145 | I28: 医政医管科工作员 | J28: 04 | K28: 医疗机构监管、服务等工作 | L28: 1 | M28: 本科及以上 | N28: 学士及以上学位 | P28: 临床医学类 | Q28: 临床医学类
A29: 安顺 | B29: 030017 | C29: 安顺市西秀区卫生和计划生育局 | D29: 03 | E29: 行政机关 | F29: 安顺市西秀区黄果树大街100号（贵安医院旁） | H29: 0851—33232145 | I29: 财务科工作员 | J29: 05 | K29: 从事财务工作 | L29: 1 | M29: 本科及以上 | N29: 学士及以上学位 | P29: 会计专业、会计及相关专业 | Q29: 工商管理类
A30: 安顺 | B30: 030018 | C30: 安顺市西秀区统计局 | D30: 03 | E30: 行政机关 | F30: 安顺市西秀区行政中心4号楼 | H30: 0851-33834366 | I30: 办公室工作员 | J30: 01 | K30: 办公室日常工作 | L30: 1 | M30: 本科及以上 | N30: 学士及以上学位
A31: 安顺 | B31: 030018 | C31: 安顺市西秀区统计局 | D31: 03 | E31: 行政机关 | F31: 安顺市西秀区行政中心4号楼 | H31: 0851-33834366 | I31: 综合科工作员 | J31: 02 | K31: 办公室日常工作 | L31: 1 | M31: 本科及以上 | N31: 学士及以上学位 | S31: 是 | T31: 是 | W31: 定向招录“四项目人员”或退役大学生士兵
A32: 安顺 | B32: 030019 | C32: 安顺市西秀区会计核算中心 | D32: 03 | E32: 参照公务员法管理单位 | F32: 安顺市西秀区行政中心7栋 | H32: 0851-33292773 | I32: 办公室工作员 | J32: 01 | K32: 办公室日常工作 | L32: 3 | M32: 本科及以上 | N32: 学士及以上学位 | P32: 会计专业、会计及相关专业
A33: 安顺 | B33: 030019 | C33: 安顺市西秀区会计核算中心 | D33: 03 | E33: 参照公务员法管理单位 | F33: 安顺市西秀区行政中心8栋 | H33: 0851-33292773 | I33: 办公室工作员 | J33: 02 | K33: 办公室日常工作 | L33: 2 | M33: 本科及以上 | N33: 学士及以上学位 | P33: 计算机及相关专业
A34: 安顺 | B34: 030020 | C34: 安顺市西秀区东关办事处 | D34: 04 | E34: 行政机关 | F34: 中华东路139号 | H34: 0851-33283403 | I34: 办公室工作员 | J34: 01 | K34: 办公室日常工作 | L34: 1 | M34: 本科及以上 | N34: 学士及以上学位 | W34: 限男性
A35: 安顺 | B35: 030020 | C35: 安顺市西秀区东关办事处 | D35: 04 | E35: 行政机关 | F35: 中华东路139号 | H35: 0851-33283403 | I35: 办公室工作员 | J35: 02 | K35: 办公室日常工作 | L35: 1 | M35: 本科及以上 | N35: 学士及以上学位 | W35: 限女性
A36: 安顺 | B36: 030021 | C36: 安顺市西秀区华西办事处 | D36: 04 | E36: 行政机关 | F36: 贵州省安顺市西秀区塔山西路8号 | H36: 0851-33323391 | I36: 党政办公室工作员 | J36: 01 | K36: 办公室日常工作 | L36: 1 | M36: 大专及以上 | W36: 限男性
A37: 安顺 | B37: 030021 | C37: 安顺市西秀区华西办事处 | D37: 04 | E37: 行政机关 | F37: 贵州省安顺市西秀区塔山西路8号 | H37: 0851-33323391 | I37: 党政办公室工作员 | J37: 02 | K37: 办公室日常工作 | L37: 1 | M37: 大专及以上 | W37: 限女性
A38: 安顺 | B38: 030021 | C38: 安顺市西秀区华西办事处 | D38: 04 | E38: 行政机关 | F38: 贵州省安顺市西秀区塔山西路8号 | H38: 0851-33323391 | I38: 党政办公室工作员 | J38: 03 | K38: 办公室日常工作 | L38: 1 | M38: 大专及以上 | S38: 是 | T38: 是 | W38: 定向招录“四项目人员”或退役大学生士兵
A39: 安顺 | B39: 030022 | C39: 安顺市西秀区岩腊苗族布依族乡人民政府 | D39: 04 | E39: 行政机关 | F39: 安顺市西秀区岩腊乡泉塘居委会塘房街上 | H39: 0851-33810011 | I39: 党政办公室工作员 | J39: 01 | K39: 办公室日常工作 | L39: 1 | M39: 本科及以上 | N39: 学士及以上学位 | U39: 布依族、苗族、仡佬族 | W39: 限西秀区户籍(生源）；限男性
A40: 安顺 | B40: 030022 | C40: 安顺市西秀区岩腊苗族布依族乡人民政府 | D40: 04 | E40: 行政机关 | F40: 安顺市西秀区岩腊乡泉塘居委会塘房街上 | H40: 0851-33810011 | I40: 党政办公室工作员 | J40: 02 | K40: 办公室日常工作 | L40: 1 | M40: 本科及以上 | N40: 学士及以上学位 | U40: 布依族、苗族、回族 | W40: 限西秀区户籍(生源）；限女性
A41: 安顺 | B41: 030023 | C41: 安顺市西秀区东屯乡人民政府 | D41: 04 | E41: 行政机关 | F41: 安顺市西秀区东屯乡东屯村 | G41: xxqdtx@126.com | H41: 0851-33876085 | I41: 党政办公室工作员 | J41: 01 | K41: 办公室日常工作 | L41: 1 | M41: 本科及以上 | N41: 学士及以上学位 | W41: 限男性
A42: 安顺 | B42: 030023 | C42: 安顺市西秀区东屯乡人民政府 | D42: 04 | E42: 行政机关 | F42: 安顺市西秀区东屯乡东屯村 | G42: xxqdtx@126.com | H42: 0851-33876085 | I42: 党政办公室工作员 | J42: 02 | K42: 办公室日常工作 | L42: 1 | M42: 本科及以上 | N42: 学士及以上学位 | W42: 限女性
A43: 安顺 | B43: 030023 | C43: 安顺市西秀区东屯乡人民政府 | D43: 04 | E43: 行政机关 | F43: 安顺市西秀区东屯乡东屯村 | G43: xxqdtx@126.com | H43: 0851-33876085 | I43: 东屯乡综治办公室工作员 | J43: 03 | K43: 办公室日常工作 | L43: 1 | M43: 本科及以上 | N43: 学士及以上学位 | W43: 限西秀区户籍(生源）；限男性
A44: 安顺 | B44: 030023 | C44: 安顺市西秀区东屯乡人民政府 | D44: 04 | E44: 行政机关 | F44: 安顺市西秀区东屯乡东屯村 | G44: xxqdtx@126.com | H44: 0851-33876085 | I44: 东屯乡综治办公室工作员 | J44: 04 | K44: 办公室日常工作 | L44: 1 | M44: 本科及以上 | N44: 学士及以上学位 | W44: 限西秀区户籍(生源）；限女性
A45: 安顺 | B45: 030024 | C45: 安顺市西秀区黄腊布依族苗族乡人民政府 | D45: 04 | E45: 行政机关 | F45: 安顺市西秀区黄腊乡黑秧村 | H45: 0851-33765111 | I45: 党政办工作员 | J45: 01 | K45: 办公室日常工作 | L45: 1 | M45: 大专及以上 | U45: 布依族、苗族、仡佬族 | W45: 限男性
A46: 安顺 | B46: 030024 | C46: 安顺市西秀区黄腊布依族苗族乡人民政府 | D46: 04 | E46: 行政机关 | F46: 安顺市西秀区黄腊乡黑秧村 | H46: 0851-33765111 | I46: 党政办工作员 | J46: 02 | K46: 办公室日常工作 | L46: 1 | M46: 大专及以上 | U46: 布依族、苗族、白族 | W46: 限女性
A47: 安顺 | B47: 030025 | C47: 安顺市西秀区双堡镇人民政府 | D47: 04 | E47: 行政机关 | F47: 安顺市西秀区双堡镇青龙路 | H47: 0851-33872013 | I47: 党政办工作员 | J47: 01 | K47: 办公室日常工作 | L47: 1 | M47: 本科及以上 | N47: 学士及以上学位 | W47: 限西秀区户籍（生源）；限男性
A48: 安顺 | B48: 030025 | C48: 安顺市西秀区双堡镇人民政府 | D48: 04 | E48: 行政机关 | F48: 安顺市西秀区双堡镇青龙路 | H48: 0851-33872013 | I48: 党政办工作员 | J48: 02 | K48: 办公室日常工作 | L48: 1 | M48: 本科及以上 | N48: 学士及以上学位 | W48: 限西秀区户籍（生源）；限女性
A49: 安顺 | B49: 030026 | C49: 安顺市西秀区旧州镇人民政府 | D49: 04 | E49: 行政机关 | F49: 安顺市西秀区旧州镇东街 | H49: 0851-33762012 | I49: 党政办公室工作员 | J49: 01 | K49: 办公室日常工作 | L49: 1 | M49: 本科及以上 | N49: 学士及以上学位 | W49: 限男性
A50: 安顺 | B50: 030026 | C50: 安顺市西秀区旧州镇人民政府 | D50: 04 | E50: 行政机关 | F50: 安顺市西秀区旧州镇东街 | H50: 0851-33762012 | I50: 党政办公室工作员 | J50: 02 | K50: 办公室日常工作 | L50: 1 | M50: 本科及以上 | N50: 学士及以上学位 | W50: 限女性
A51: 安顺 | B51: 030027 | C51: 安顺市西秀区大西桥镇人民政府 | D51: 04 | E51: 行政机关 | F51: 安顺市西秀区大西桥镇 | H51: 0851-337 32011 | I51: 党政办公室工作员 | J51: 01 | K51: 办公室日常工作 | L51: 1 | M51: 大专及以上 | W51: 限西秀区户籍（生源）；限男生
A52: 安顺 | B52: 030027 | C52: 安顺市西秀区大西桥镇人民政府 | D52: 04 | E52: 行政机关 | F52: 安顺市西秀区大西桥镇 | H52: 0851-337 32011 | I52: 党政办公室工作员 | J52: 02 | K52: 办公室日常工作 | L52: 1 | M52: 本科及以上 | W52: 限西秀区户籍（生源）；限女性
A53: 安顺 | B53: 030028 | C53: 安顺市西秀区七眼桥镇人民政府 | D53: 04 | E53: 行政机关 | F53: 安顺市西秀区七眼桥 镇小关村 | H53: 0851-337 32011 | I53: 办公室 工作员 | J53: 01 | K53: 办公室日 常工作 | L53: 1 | M53: 本科及以上 | N53: 学士及以上学位 | W53: 限男性
A54: 安顺 | B54: 030028 | C54: 安顺市西秀区七眼桥镇人民政府 | D54: 04 | E54: 行政机关 | F54: 安顺市西秀区七眼桥 镇小关村 | H54: 0851-337 32011 | I54: 办公室 工作员 | J54: 02 | K54: 小城镇建 设工作 | L54: 1 | M54: 本科及以上 | N54: 学士及以上学位 | W54: 限女性
A55: 安顺 | B55: 030029 | C55: 安顺市西秀区蔡官镇人民政府 | D55: 04 | E55: 行政机关 | F55: 安顺市西秀区蔡官镇长山村 | H55: 0851-33612011 | I55: 蔡官镇党政办工作员 | J55: 01 | K55: 办公室日常工作 | L55: 1 | M55: 本科及以上 | N55: 学士及以上学位 | W55: 限西秀区户籍（生源）；限男性
A56: 安顺 | B56: 030029 | C56: 安顺市西秀区蔡官镇人民政府 | D56: 04 | E56: 行政机关 | F56: 安顺市西秀区蔡官镇长山村 | H56: 0851-33612011 | I56: 蔡官镇党政办工作员 | J56: 02 | K56: 办公室日常工作 | L56: 1 | M56: 本科及以上 | N56: 学士及以上学位 | W56: 限西秀区户籍（生源）；限女性
A57: 安顺 | B57: 030030 | C57: 安顺市西秀区轿子山人民政府 | D57: 04 | E57: 行政机关 | F57: 安顺市西秀区轿子山镇跳蹬场村轿子山镇人民政府 | H57: 0851-33616569 | I57: 党政办工作员 | J57: 01 | K57: 办公室日常工作 | L57: 1 | M57: 本科及以上 | N57: 学士及以上学位 | W57: 限男性
A58: 安顺 | B58: 030030 | C58: 安顺市西秀区轿子山人民政府 | D58: 04 | E58: 行政机关 | F58: 安顺市西秀区轿子山镇跳蹬场村轿子山镇人民政府 | H58: 0851-33616569 | I58: 党政办工作员 | J58: 02 | K58: 办公室日常工作 | L58: 1 | M58: 本科及以上 | N58: 学士及以上学位 | W58: 限女性
A59: 安顺 | B59: 030031 | C59: 安顺市西秀区司法局新场布依族苗族乡司法所 | D59: 04 | E59: 行政机关 | F59: 安顺市西秀区迎晖大道60号 | H59: 0851-33223436 | I59: 司法助理员 | J59: 01 | K59: 司法行政工作 | L59: 1 | M59: 本科及以上 | N59: 学士及以上学位 | W59: 限西秀区户籍(生源）；限男性
A60: 安顺 | B60: 030031 | C60: 安顺市西秀区司法局新场布依族苗族乡司法所 | D60: 04 | E60: 行政机关 | F60: 安顺市西秀区迎晖大道60号 | H60: 0851-33223436 | I60: 司法助理员 | J60: 02 | K60: 司法行政工作 | L60: 1 | M60: 本科及以上 | N60: 学士及以上学位 | W60: 限西秀区户籍（生源）；限女生
A61: 安顺 | B61: 030032 | C61: 安顺市西秀区司法局黄腊布依族苗族乡司法所 | D61: 04 | E61: 行政机关 | F61: 安顺市西秀区迎晖大道60号 | H61: 0851-33223436 | I61: 司法助理员 | J61: 01 | K61: 司法行政工作 | L61: 1 | M61: 本科及以上 | N61: 学士及以上学位 | W61: 限西秀区户籍(生源）；限男性
A62: 安顺 | B62: 030032 | C62: 安顺市西秀区司法局黄腊布依族苗族乡司法所 | D62: 04 | E62: 行政机关 | F62: 安顺市西秀区迎晖大道60号 | H62: 0851-33223436 | I62: 司法助理员 | J62: 02 | K62: 司法行政工作 | L62: 1 | M62: 本科及以上 | N62: 学士及以上学位 | W62: 限西秀区户籍（生源）；限女性
A63: 安顺 | B63: 030033 | C63: 安顺市西秀区市场监督管理局轿子山分局 | D63: 04 | E63: 行政机关 | F63: 贵州省安顺市西秀区轿子山 | H63: 0851-33521936 | I63: 分局执法人员 | J63: 01 | K63: 行政执法工作 | L63: 1 | M63: 本科及以上 | N63: 学士及以上学位 | W63: 限男性
A64: 安顺 | B64: 030033 | C64: 安顺市西秀区市场监督管理局轿子山分局 | D64: 04 | E64: 行政机关 | F64: 贵州省安顺市西秀区轿子山 | H64: 0851-33521936 | I64: 分局执法人员 | J64: 02 | K64: 行政执法工作 | L64: 1 | M64: 本科及以上 | N64: 学士及以上学位 | W64: 限女性
A65: 安顺 | B65: 030034 | C65: 安顺市西秀区市场监督管理局鸡场分局 | D65: 04 | E65: 行政机关 | F65: 贵州省安顺市西秀区鸡场 | H65: 0851-33521936 | I65: 分局执法人员 | J65: 01 | K65: 行政执法工作 | L65: 1 | M65: 本科及以上 | N65: 学士及以上学位 | W65: 限男性
A66: 安顺 | B66: 030034 | C66: 安顺市西秀区市场监督管理局鸡场分局 | D66: 04 | E66: 行政机关 | F66: 贵州省安顺市西秀区鸡场 | H66: 0851-33521936 | I66: 分局执法人员 | J66: 02 | K66: 行政执法工作 | L66: 1 | M66: 本科及以上 | N66: 学士及以上学位 | W66: 限女性
A67: 安顺 | B67: 030035 | C67: 安顺市西秀区市场监督管理局双堡分局 | D67: 04 | E67: 行政机关 | F67: 贵州省安顺市西秀区双堡 | H67: 0851-33521936 | I67: 分局执法人员 | J67: 01 | K67: 行政执法工作 | L67: 1 | M67: 本科及以上 | N67: 学士及以上学位 | W67: 限男性
A68: 安顺 | B68: 030035 | C68: 安顺市西秀区市场监督管理局双堡分局 | D68: 04 | E68: 行政机关 | F68: 贵州省安顺市西秀区双堡 | H68: 0851-33521936 | I68: 分局执法人员 | J68: 02 | K68: 行政执法工作 | L68: 1 | M68: 本科及以上 | N68: 学士及以上学位 | W68: 限女性
A69: 安顺 | B69: 030036 | C69: 安顺市西秀区市场监督管理局旧州分局 | D69: 04 | E69: 行政机关 | F69: 贵州省安顺市西秀区旧州 | H69: 0851-33521936 | I69: 分局执法人员 | J69: 01 | K69: 行政执法工作 | L69: 1 | M69: 本科及以上 | N69: 学士及以上学位 | W69: 限男性
A70: 安顺 | B70: 030036 | C70: 安顺市西秀区市场监督管理局旧州分局 | D70: 04 | E70: 行政机关 | F70: 贵州省安顺市西秀区旧州 | H70: 0851-33521936 | I70: 分局执法人员 | J70: 02 | K70: 行政执法工作 | L70: 1 | M70: 本科及以上 | N70: 学士及以上学位 | W70: 限女性
A71: 安顺 | B71: 030037 | C71: 安顺市平坝区人民法院 | D71: 03 | E71: 审判机关 | F71: 平坝区安平办 | H71: 0851-33508405 | I71: 财务会计人员 | J71: 01 | K71: 财务会计工作 | L71: 1 | M71: 本科及以上 | N71: 学士及以上学位 | W71: 具有助理会计师及以上任职资格
A72: 安顺 | B72: 030037 | C72: 安顺市平坝区人民法院 | D72: 03 | E72: 审判机关 | F72: 平坝区安平办 | H72: 0851-33508405 | I72: 司法行政人员 | J72: 02 | K72: 司法行政人员 | L72: 2 | M72: 本科及以上 | N72: 学士及以上学位
A73: 安顺 | B73: 030038 | C73: 安顺市平坝区人民检察院 | D73: 03 | E73: 检察机关 | F73: 贵州省安顺市平坝区安平街道黎阳高新区 | H73: 0851-34761028 | I73: 检察辅助人员 | J73: 01 | K73: 检察辅助工作 | L73: 2 | M73: 本科及以上 | N73: 学士及以上学位 | P73: 法学学科门类 | Q73: 法学类 | W73: 通过国家统一司法考试获得C证及以上
A74: 安顺 | B74: 030039 | C74: 安顺市平坝区社会保险事业局 | D74: 03 | E74: 参照公务员法管理单位 | F74: 平坝区 | H74: 0851-34226315 | I74: 医保股工作员 | J74: 01 | K74: 医保股工作 | L74: 1 | M74: 本科及以上 | N74: 学士及以上学位 | P74: 医学学科门类 | Q74: 医学学科门类
A75: 安顺 | B75: 030039 | C75: 安顺市平坝区社会保险事业局 | D75: 03 | E75: 参照公务员法管理单位 | F75: 平坝区 | H75: 0851-34226315 | I75: 综合股工作员 | J75: 02 | K75: 综合股日常工作 | L75: 1 | M75: 本科及以上 | N75: 学士及以上学位 | P75: 中国语言文学类
A76: 安顺 | B76: 030040 | C76: 安顺市平坝区人民政府政务服务中心（安顺市平坝区投资促进局） | D76: 03 | E76: 参照公务员法管理单位 | F76: 平坝区 | H76: 0851-24226529 | I76: 综合股工作员 | J76: 01 | K76: 综合股日常工作 | L76: 1 | M76: 本科及以上 | N76: 学士及以上学位
A77: 安顺 | B77: 030041 | C77: 普定县人民检察院 | D77: 03 | E77: 检察机关 | F77: 安顺市 普定县 中兴大道64号 | H77: 0851-38614027 | I77: 检察辅助人员 | J77: 01 | K77: 检察辅助工作 | L77: 1 | M77: 本科及以上 | N77: 学士及以上学位 | P77: 法学学科门类 | Q77: 法学类 | W77: 通过国家统一司法考试获得C证及以上
A78: 安顺 | B78: 030042 | C78: 普定县农村党员干部现代远程教育领导小组办公室 | D78: 03 | E78: 参照公务员法管理单位 | F78: 普定县定南街道文明路59号 | H78: 0851-38227686 | I78: 办公室工作员 | J78: 01 | K78: 办公室日常工作 | L78: 2 | M78: 本科及以上
A79: 安顺 | B79: 030043 | C79: 普定县卫生和计划生育局 | D79: 03 | E79: 行政机关 | F79: 普定县穿洞街道办党固路5号 | H79: 0851-38223368 | I79: 综合办公室工作员 | J79: 01 | K79: 综合办公室日常工作 | L79: 1 | M79: 本科及以上 | N79: 学士及以上学位 | P79: 中国语言文学类、新闻传播学类
A80: 安顺 | B80: 030043 | C80: 普定县卫生和计划生育局 | D80: 03 | E80: 行政机关 | F80: 普定县穿洞街道办党固路5号 | H80: 0851-38223368 | I80: 医政医管股（中医股）工作员 | J80: 02 | K80: 医政医管（中医）相关工作 | L80: 1 | M80: 本科及以上 | N80: 学士及以上学位 | P80: 临床医学类、中药学类
A81: 安顺 | B81: 030044 | C81: 普定县安全生产监督管理局 | D81: 03 | E81: 行政机关 | F81: 普定县穿洞街道富强路14号 | H81: 0851-38223154 | I81: 安全生产综合监督管理股工作员 | J81: 01 | K81: 办公室日常工作 | L81: 1 | M81: 本科及以上 | P81: 中国语言文学类
A82: 安顺 | B82: 030045 | C82: 普定县社会保险事业局 | D82: 03 | E82: 参照公务员法管理单位 | F82: 普定县富强路 | H82: 0851-38225259 | I82: 基金管理股工作员 | J82: 01 | K82: 办公室日常工作 | L82: 1 | M82: 本科及以上 | N82: 学士及以上学位
A83: 安顺 | B83: 030045 | C83: 普定县社会保险事业局 | D83: 03 | E83: 参照公务员法管理单位 | F83: 普定县富强路 | H83: 0851-38225259 | I83: 医保股工作员 | J83: 02 | K83: 办公室日常工作 | L83: 1 | M83: 本科及以上 | P83: 临床医学类
A84: 安顺 | B84: 030046 | C84: 普定县国库收付中心 | D84: 03 | E84: 参照公务员法管理单位 | F84: 普定县委大院 | H84: 0851-38226156 | I84: 财务岗位人员 | J84: 01 | K84: 财政工作 | L84: 5 | M84: 本科及以上 | N84: 学士及以上学位 | P84: 财政学类
A85: 安顺 | B85: 030047 | C85: 普定县穿洞街道办事处 | D85: 04 | E85: 行政机关 | F85: 普定县穿洞街道办事处兴龙路120号 | H85: 0851-38654445 | I85: 社会管理综合治理办公室工作员 | J85: 01 | K85: 办公室日常工作 | L85: 2 | M85: 大专及以上
A86: 安顺 | B86: 030048 | C86: 普定县马官镇人民政府 | D86: 04 | E86: 行政机关 | F86: 马官镇马堡居委会过府路 | H86: 0851-38611151 | I86: 卫生和计划生育办公室工作员 | J86: 01 | K86: 办公室日常工作 | L86: 1 | M86: 大专及以上
A87: 安顺 | B87: 030048 | C87: 普定县马官镇人民政府 | D87: 04 | E87: 行政机关 | F87: 马官镇马堡居委会过府路 | H87: 0851-38611151 | I87: 综合行政执法办公室工作员 | J87: 02 | K87: 办公室日常工作 | L87: 1 | M87: 大专及以上
A88: 安顺 | B88: 030049 | C88: 普定县化处镇人民政府 | D88: 04 | E88: 行政机关 | F88: 贵州省普定县化处镇街上 | H88: 0851-8641816 | I88: 化处镇党政办公室工作员 | J88: 01 | K88: 办公室日常工作 | L88: 1 | M88: 本科及以上
A89: 安顺 | B89: 030050 | C89: 普定县马场镇人民政府 | D89: 04 | E89: 行政机关 | F89: 马场镇滨河路1号 | H89: 0851-38888496 | I89: 党政办公室工作员 | J89: 01 | K89: 办公室日常管理工作 | L89: 3 | M89: 本科及以上 | N89: 学士及以上学位 | P89: 中国语言文学类
A90: 安顺 | B90: 030050 | C90: 普定县马场镇人民政府 | D90: 04 | E90: 行政机关 | F90: 马场镇滨河路2号 | H90: 0851-38888496 | I90: 经济发展办公室工作员 | J90: 02 | K90: 从事乡镇经济发展工作 | L90: 1 | M90: 本科及以上 | N90: 学士及以上学位 | P90: 公共管理类
A91: 安顺 | B91: 030050 | C91: 普定县马场镇人民政府 | D91: 04 | E91: 行政机关 | F91: 马场镇滨河路3号 | H91: 0851-38888496 | I91: 人口和计划生育办公室工作员 | J91: 03 | K91: 从事人口和计划生育日常管理工作 | L91: 1 | M91: 本科及以上 | N91: 学士及以上学位 | P91: 中国语言文学类
A92: 安顺 | B92: 030051 | C92: 普定县白岩镇人民政府 | D92: 04 | E92: 行政机关 | F92: 白岩镇中心村 | H92: 0851-38645209 | I92: 安全生产监督管理办公室工作员 | J92: 01 | K92: 安全生产监督 | L92: 1 | M92: 大专及以上
A93: 安顺 | B93: 030051 | C93: 普定县白岩镇人民政府 | D93: 04 | E93: 行政机关 | F93: 白岩镇中心村 | H93: 0851-38645209 | I93: 社会管理综合治理办公室工作员 | J93: 02 | K93: 信访接待 | L93: 1 | M93: 大专及以上
A94: 安顺 | B94: 030051 | C94: 普定县白岩镇人民政府 | D94: 04 | E94: 行政机关 | F94: 白岩镇中心村 | H94: 0851-38645209 | I94: 经济发展办公室工作员 | J94: 03 | K94: 扶贫开发工作 | L94: 1 | M94: 大专及以上
A95: 安顺 | B95: 030052 | C95: 普定县坪上镇人民政府 | D95: 04 | E95: 行政机关 | F95: 坪上镇大哪村 | H95: 0851-38675246 | I95: 党政办公室工作员 | J95: 01 | K95: 办公室 日常工作 | L95: 2 | M95: 大专及以上
A96: 安顺 | B96: 030053 | C96: 普定县鸡场坡镇人民政府 | D96: 04 | E96: 行政机关 | F96: 鸡场坡镇鸡场村街上 | H96: 0851-38673817 | I96: 党政办工作员 | J96: 01 | K96: 办公室 日常工作 | L96: 3 | M96: 本科及以上
A97: 安顺 | B97: 030053 | C97: 普定县鸡场坡镇人民政府 | D97: 04 | E97: 行政机关 | F97: 鸡场坡镇鸡场村街上 | H97: 0851-38673817 | I97: 人口和计划生育办公室工作员 | J97: 02 | K97: 计生工作 | L97: 1 | M97: 本科及以上 | S97: 是 | T97: 是 | W97: 定向招录“四项目人员”或退役大学生士兵
A98: 安顺 | B98: 030053 | C98: 普定县鸡场坡镇人民政府 | D98: 04 | E98: 行政机关 | F98: 鸡场坡镇鸡场村街上 | H98: 0851-38673817 | I98: 社会事务办工作员 | J98: 03 | K98: 民政工作 | L98: 2 | M98: 本科及以上
A99: 安顺 | B99: 030053 | C99: 普定县鸡场坡镇人民政府 | D99: 04 | E99: 行政机关 | F99: 鸡场坡镇鸡场村街上 | H99: 0851-38673817 | I99: 经济发展办公室工作员 | J99: 04 | K99: 经济发展工作 | L99: 2 | M99: 本科及以上
A100: 安顺 | B100: 030054 | C100: 普定县补郎苗族乡人民政府 | D100: 04 | E100: 行政机关 | F100: 普定县补郎苗族乡新秀村 | H100: 0851-38658823 | I100: 补郎乡社会治安综合管理办公室工作员 | J100: 01 | K100: 负责社会治安综合治理、信访维稳等具体工作 | L100: 1 | M100: 大专及以上
A101: 安顺 | B101: 030054 | C101: 普定县补郎苗族乡人民政府 | D101: 04 | E101: 行政机关 | F101: 普定县补郎苗族乡新秀村 | H101: 0851-38658823 | I101: 补郎乡社会治安综合管理办公室工作员 | J101: 02 | K101: 负责社会治安综合治理、信访维稳等具体工作 | L101: 1 | M101: 大专及以上 | U101: 是
A102: 安顺 | B102: 030055 | C102: 普定县猴场苗族仡佬族乡人民政府 | D102: 04 | E102: 行政机关 | F102: 猴场乡猴场街上 | H102: 0851-38659901 | I102: 党政办工作员 | J102: 01 | K102: 办公室日常工作 | L102: 1 | M102: 本科及以上
A103: 安顺 | B103: 030056 | C103: 普定县猫洞苗族仡佬族乡人民政府 | D103: 04 | E103: 行政机关 | F103: 猫洞乡中兴村 | H103: 0851-38647004 | I103: 办公室工作员 | J103: 01 | K103: 办公室日常事务 | L103: 1 | M103: 本科及以上
A104: 安顺 | B104: 030056 | C104: 普定县猫洞苗族仡佬族乡人民政府 | D104: 04 | E104: 行政机关 | F104: 猫洞乡中兴村 | H104: 0851-38647004 | I104: 办公室工作员 | J104: 02 | K104: 综治办日常事务 | L104: 1 | M104: 本科及以上
A105: 安顺 | B105: 030057 | C105: 中国共产主义青年团镇宁布依族苗族自治县委员会 | D105: 03 | E105: 参照公务员法管理的人民团体和群众团体 | F105: 镇宁自治县犀牛路3号县委大院 | H105: 0851-36222303 | I105: 办公室工作员 | J105: 01 | K105: 办公室日常工作 | L105: 1 | M105: 本科及以上 | N105: 学士及以上学位 | R105: 中共 党员 | S105: 是 | T105: 是 | W105: 定向招录“四项目人员”或退役大学生士兵
A106: 安顺 | B106: 030058 | C106: 中共镇宁布依族苗族自治县委党校 | D106: 03 | E106: 党的机关 | F106: 镇宁自治县新行政新区 | H106: 0851-36222855 | I106: 办公室工作员 | J106: 01 | K106: 办公室日常工作 | L106: 1 | M106: 本科及以上 | N106: 学士及以上学位 | W106: 限男性
A107: 安顺 | B107: 030058 | C107: 中共镇宁布依族苗族自治县委党校 | D107: 03 | E107: 党的机关 | F107: 镇宁自治县新行政新区 | H107: 0851-36222855 | I107: 办公室工作员 | J107: 02 | K107: 办公室日常工作 | L107: 1 | M107: 本科及以上 | N107: 学士及以上学位 | W107: 限女性
A108: 安顺 | B108: 030059 | C108: 镇宁布依族苗族自治县机构编制委员会办公室 | D108: 03 | E108: 党的机关 | F108: 镇宁自治县犀牛路3号县委大院 | H108: 0851-36220250 | I108: 行政审批股工作员 | J108: 01 | K108: 办公室日常工作 | L108: 1 | M108: 本科及以上 | N108: 学士及以上学位
A109: 安顺 | B109: 030060 | C109: 镇宁布依族苗族自治县纪检监察举报中心（非公有制发展侵权投诉中心） | D109: 03 | E109: 参照公务员法管理单位 | F109: 镇宁自治县犀牛路3号县委大院 | H109: 0851-36222204 | I109: 办公室工作员 | J109: 01 | K109: 办公室日常工作 | L109: 1 | M109: 本科及以上 | N109: 学士及以上学位 | R109: 中共 党员
A110: 安顺 | B110: 030061 | C110: 镇宁布依族苗族自治县人民法院 | D110: 03 | E110: 审判机关 | F110: 镇宁自治县新行政新区 | H110: 0851-33508628 | I110: 审判管理办公室工作员 | J110: 01 | K110: 司法行政人员 | L110: 1 | M110: 本科及以上 | N110: 学士及以上学位 | P110: 电子信息类 | W110: 限镇宁自治县户籍，限男性
A111: 安顺 | B111: 030061 | C111: 镇宁布依族苗族自治县人民法院 | D111: 03 | E111: 审判机关 | F111: 镇宁自治县新行政新区 | H111: 0851-33508628 | I111: 审判管理办公室工作员 | J111: 02 | K111: 司法行政人员 | L111: 1 | M111: 本科及以上 | N111: 学士及以上学位 | P111: 电子信息类 | W111: 限镇宁自治县户籍，限女性
A112: 安顺 | B112: 030061 | C112: 镇宁布依族苗族自治县人民法院 | D112: 03 | E112: 审判机关 | F112: 黄果树旅游审判庭 | H112: 0851-33508628 | I112: 人民法庭审判辅助人员 | J112: 03 | K112: 审判辅助工作 | L112: 1 | M112: 本科及以上 | N112: 学士及以上学位 | P112: 法学学科门类 | U112: 布依族、苗族、壮族
A113: 安顺 | B113: 030061 | C113: 镇宁布依族苗族自治县人民法院 | D113: 03 | E113: 审判机关 | F113: 江龙人民法庭 | H113: 0851-33508628 | I113: 人民法庭审判辅助人员 | J113: 04 | K113: 审判辅助工作 | L113: 1 | M113: 本科及以上 | N113: 学士及以上学位 | P113: 法学学科门类 | W113: 限男性
A114: 安顺 | B114: 030061 | C114: 镇宁布依族苗族自治县人民法院 | D114: 03 | E114: 审判机关 | F114: 江龙人民法庭 | H114: 0851-33508628 | I114: 人民法庭审判辅助人员 | J114: 05 | K114: 审判辅助工作 | L114: 1 | M114: 本科及以上 | N114: 学士及以上学位 | P114: 法学学科门类 | W114: 限女性
A115: 安顺 | B115: 030061 | C115: 镇宁布依族苗族自治县人民法院 | D115: 03 | E115: 审判机关 | F115: 六马人民法庭 | H115: 0851-33508628 | I115: 人民法庭审判辅助人员 | J115: 06 | K115: 审判辅助工作 | L115: 1 | M115: 本科及以上 | N115: 学士及以上学位 | P115: 法学学科门类 | W115: 限镇宁自治县户籍，限女性
A116: 安顺 | B116: 030061 | C116: 镇宁布依族苗族自治县人民法院 | D116: 03 | E116: 审判机关 | F116: 六马人民法庭 | H116: 0851-33508628 | I116: 人民法庭审判辅助人员 | J116: 07 | K116: 审判辅助工作 | L116: 1 | M116: 本科及以上 | N116: 学士及以上学位 | P116: 法学学科门类 | W116: 限镇宁自治县户籍，限男性
A117: 安顺 | B117: 030062 | C117: 镇宁布依族苗族自治县人民检察院 | D117: 03 | E117: 检察机关 | F117: 镇宁自治县白马湖街道东大街三桥 | H117: 0851-36220866 | I117: 检察辅助人员 | J117: 01 | K117: 检察辅助工作 | L117: 1 | M117: 本科及以上 | N117: 学士及以上学位 | P117: 法学学科门类 | Q117: 法学类 | W117: 通过国家统一司法考试获得C证及以上
A118: 安顺 | B118: 030063 | C118: 镇宁布依族苗族自治县总工会 | D118: 03 | E118: 参照公务员法管理的人民团体和群众团体 | F118: 镇宁自治县凹场 | H118: 0851-36222508 | I118: 办公室工作员 | J118: 01 | K118: 办公室日常工作 | L118: 1 | M118: 本科及以上 | N118: 学士及以上学位
A119: 安顺 | B119: 030064 | C119: 镇宁布依族苗族自治县残疾人联合会 | D119: 03 | E119: 参照公务员法管理的人民团体和群众团体 | F119: 镇宁自治县东大街 | H119: 0851-36226576 | I119: 办公室工作员 | J119: 01 | K119: 办公室日常工作 | L119: 1 | M119: 本科及以上 | N119: 学士及以上学位
A120: 安顺 | B120: 030065 | C120: 镇宁布依族苗族自治县老年大学 | D120: 03 | E120: 参照公务员法管理单位 | F120: 镇宁自治县犀牛路文体中心 | H120: 0851-36222590 | I120: 办公室工作员 | J120: 01 | K120: 办公室日常工作 | L120: 1 | M120: 本科及以上 | N120: 学士及以上学位
A121: 安顺 | B121: 030066 | C121: 镇宁布依族苗族自治县人民政府办公室 | D121: 03 | E121: 行政机关 | F121: 镇宁布依族苗族自治县自治环翠街道 | H121: 0851-36220062 | I121: 法制办公室工作员 | J121: 01 | K121: 法制办公室日常工作 | L121: 1 | M121: 本科及以上 | N121: 学士及以上学位 | P121: 法学学科门类
A122: 安顺 | B122: 030067 | C122: 镇宁布依族苗族自治县发改局 | D122: 03 | E122: 行政机关 | F122: 镇宁布依族苗族自治县自治环翠街道 | H122: 0851-36220062 | I122: 办公室工作员 | J122: 01 | K122: 办公室日常工作 | L122: 1 | M122: 本科及以上 | N122: 学士及以上学位
A123: 安顺 | B123: 030068 | C123: 镇宁布依族苗族自治县财政局 | D123: 03 | E123: 行政机关 | F123: 镇宁布依族苗族自治县人民路58号 | H123: 0851-36220062 | I123: 业务工作员 | J123: 01 | K123: 从事财政工作 | L123: 3 | M123: 本科及以上 | N123: 学士及以上学位 | P123: 经济学学科门类
A124: 安顺 | B124: 030069 | C124: 镇宁布依族苗族自治县文体广电旅游局 | D124: 03 | E124: 行政机关 | F124: 镇宁布依族苗族自治县犀牛路 | H124: 0851-36220062 | I124: 办公室工作员 | J124: 01 | K124: 办公室日常工作 | L124: 1 | M124: 本科及以上 | N124: 学士及以上学位
A125: 安顺 | B125: 030070 | C125: 镇宁布依族苗族自治县卫生和计划生育局 | D125: 03 | E125: 行政机关 | F125: 镇宁布依族苗族自治县红岩山路 | H125: 0851-36220062 | I125: 财务工作员 | J125: 01 | K125: 单位日常财务工作 | L125: 1 | M125: 本科及以上 | P125: 会计专业、会计及相关专业 | W125: 限镇宁自治县户籍（生源）
A126: 安顺 | B126: 030070 | C126: 镇宁布依族苗族自治县卫生和计划生育局 | D126: 03 | E126: 行政机关 | F126: 镇宁布依族苗族自治县红岩山路 | H126: 0851-36220062 | I126: 工作员 | J126: 02 | K126: 专业技术工作 | L126: 1 | M126: 本科及以上 | P126: 医学学科门类 | W126: 限镇宁自治县户籍（生源）
A127: 安顺 | B127: 030070 | C127: 镇宁布依族苗族自治县卫生和计划生育局 | D127: 03 | E127: 行政机关 | F127: 镇宁布依族苗族自治县红岩山路 | H127: 0851-36220062 | I127: 计算机维护管理人员 | J127: 03 | K127: 计算机维护管理 | L127: 1 | M127: 本科及以上 | P127: 计算机类 | W127: 限镇宁自治县户籍（生源）
A128: 安顺 | B128: 030071 | C128: 镇宁布依族苗族自治县统计局 | D128: 03 | E128: 行政机关 | F128: 镇宁布依族苗族自治县犀牛路 | H128: 0851-36220062 | I128: 工作员 | J128: 01 | K128: 专业技术工作 | L128: 1 | M128: 本科及以上 | P128: 经济学类
A129: 安顺 | B129: 030072 | C129: 镇宁布依族苗族自治县国库收付中心 | D129: 03 | E129: 参照公务员法管理单位 | F129: 镇宁布依族苗族自治县人民路58号 | H129: 0851-36220062 | I129: 业务工作员 | J129: 01 | K129: 财政财务工作 | L129: 2 | M129: 本科及以上 | N129: 学士及以上学位 | P129: 经济学学科门类
A130: 安顺 | B130: 030073 | C130: 镇宁布依族苗族自治县社会保险事业局 | D130: 03 | E130: 参照公务员法管理单位 | F130: 镇宁布依族苗族自治县红岩山路 | H130: 0851-36220062 | I130: 医疗保险经办管理工作员 | J130: 01 | K130: 从事医疗保险经办管理工作 | L130: 1 | M130: 本科及以上 | P130: 临床医学类、中西医结合类、口腔医学类 | W130: 限镇宁自治县户籍（生源）
A131: 安顺 | B131: 030073 | C131: 镇宁布依族苗族自治县社会保险事业局 | D131: 03 | E131: 参照公务员法管理单位 | F131: 镇宁布依族苗族自治县红岩山路 | H131: 0851-36220062 | I131: 工伤生育保险经办管理工作员 | J131: 02 | K131: 从事工伤生育保险经办管理工作 | L131: 1 | M131: 本科及以上 | P131: 临床医学类、中西医结合类、口腔医学类
A132: 安顺 | B132: 030073 | C132: 镇宁布依族苗族自治县社会保险事业局 | D132: 03 | E132: 参照公务员法管理单位 | F132: 镇宁布依族苗族自治县红岩山路 | H132: 0851-36220062 | I132: 计算机维护管理人员 | J132: 03 | K132: 计算机维护管理 | L132: 1 | M132: 本科及以上 | P132: 计算机类 | W132: 限镇宁自治县户籍（生源）
A133: 安顺 | B133: 030074 | C133: 镇宁布依族苗族自治县卫生监督所 | D133: 03 | E133: 参照公务员法管理单位 | F133: 镇宁布依族苗族自治县红岩山路 | H133: 0851-36220062 | I133: 业务工作员 | J133: 01 | K133: 业务工作 | L133: 1 | M133: 本科及以上 | P133: 医学学科门类 | W133: 限镇宁自治县户籍（生源）
A134: 安顺 | B134: 030074 | C134: 镇宁布依族苗族自治县卫生监督所 | D134: 03 | E134: 参照公务员法管理单位 | F134: 镇宁布依族苗族自治县红岩山路 | H134: 0851-36220062 | I134: 财务工作员 | J134: 02 | K134: 财务工作 | L134: 1 | M134: 本科及以上 | P134: 会计专业、会计及相关专业 | W134: 限镇宁自治县户籍（生源）
A135: 安顺 | B135: 030075 | C135: 镇宁布依族苗族自治县农业机械服务中心 | D135: 03 | E135: 参照公务员法管理单位 | F135: 镇宁布依族苗族自治县红岩山路 | H135: 0851-36222802 | I135: 工作员 | J135: 01 | K135: 日常事务 | L135: 1 | M135: 大专及以上 | O135: 农林牧渔大类、制造大类 | P135: 工学学科门类、农学学科门类
A136: 安顺 | B136: 030075 | C136: 镇宁布依族苗族自治县农业机械服务中心 | D136: 03 | E136: 参照公务员法管理单位 | F136: 镇宁布依族苗族自治县红岩山路 | H136: 0851-36222802 | I136: 办公室工作员 | J136: 02 | K136: 办公室日常工作 | L136: 1 | M136: 大专及以上 | O136: 会计及相关专业 | P136: 会计专业、会计及相关专业 | X136: 从事财务 工作
A137: 安顺 | B137: 030076 | C137: 镇宁布依族苗族自治县档案局 | D137: 03 | E137: 参照公务员法管理单位 | F137: 镇宁布依族苗族自治县犀牛路 | H137: 0851-36220062 | I137: 办公室工作员 | J137: 01 | K137: 办公室日常工作 | L137: 1 | M137: 本科及以上 | P137: 中国语言文学类、法学类
A138: 安顺 | B138: 030077 | C138: 镇宁布依族苗族自治县供销合作社联合社 | D138: 03 | E138: 参照公务员法管理单位 | F138: 镇宁布依族苗族自治县红岩山路 | H138: 0851-36220062 | I138: 办公室工作员 | J138: 01 | K138: 办公室日常工作 | L138: 1 | M138: 大专及以上 | S138: 是 | T138: 是 | W138: 定向招录“四项目人员”或退役大学生士兵
A139: 安顺 | B139: 030077 | C139: 镇宁布依族苗族自治县供销合作社联合社 | D139: 03 | E139: 参照公务员法管理单位 | F139: 镇宁布依族苗族自治县红岩山路 | H139: 0851-36220062 | I139: 办公室工作员 | J139: 02 | K139: 办公室日常工作 | L139: 1 | M139: 本科及以上
A140: 安顺 | B140: 030078 | C140: 镇宁布依族苗族自治县沙子乡人民政府 | D140: 04 | E140: 行政机关 | F140: 镇宁布依族苗族自治县沙子乡 | H140: 0851-36220062 | I140: 党政办工作员 | J140: 01 | K140: 党政办日常工作 | L140: 1 | M140: 大专及以上
A141: 安顺 | B141: 030079 | C141: 镇宁布依族苗族自治县江龙镇人民政府 | D141: 04 | E141: 行政机关 | F141: 镇宁布依族苗族自治县江龙镇 | H141: 0851-36220062 | I141: 党政办工作员 | J141: 01 | K141: 党政办日常工作 | L141: 2 | M141: 大专及以上
A142: 安顺 | B142: 030079 | C142: 镇宁布依族苗族自治县江龙镇人民政府 | D142: 04 | E142: 行政机关 | F142: 镇宁布依族苗族自治县江龙镇 | H142: 0851-36220062 | I142: 党政办工作员 | J142: 02 | K142: 党政办日常工作 | L142: 1 | M142: 大专及以上 | S142: 是 | T142: 是 | W142: 定向招录“四项目人员”或退役大学生士兵
A143: 安顺 | B143: 030080 | C143: 镇宁布依族苗族自治县马厂镇人民政府 | D143: 04 | E143: 行政机关 | F143: 镇宁布依族苗族自治县马厂镇 | H143: 0851-36220062 | I143: 党政办工作员 | J143: 01 | K143: 党政办日常工作 | L143: 1 | M143: 大专及以上
A144: 安顺 | B144: 030081 | C144: 镇宁布依族苗族自治县六马镇人民政府 | D144: 04 | E144: 行政机关 | F144: 镇宁布依族苗族自治县六马镇 | H144: 0851-36220062 | I144: 党政办工作员 | J144: 01 | K144: 党政办日常工作 | L144: 2 | M144: 大专及以上 | W144: 限镇宁自治县户籍（生源）
A145: 安顺 | B145: 030082 | C145: 镇宁布依族苗族自治县良田镇人民政府 | D145: 04 | E145: 行政机关 | F145: 镇宁布依族苗族自治县良田镇 | H145: 0851-36220062 | I145: 党政办工作员 | J145: 01 | K145: 党政办日常工作 | L145: 1 | M145: 大专及以上 | S145: 是 | T145: 是 | W145: 定向招录“四项目人员”或退役大学生士兵
A146: 安顺 | B146: 030082 | C146: 镇宁布依族苗族自治县良田镇人民政府 | D146: 04 | E146: 行政机关 | F146: 镇宁布依族苗族自治县良田镇 | H146: 0851-36220062 | I146: 党政办工作员 | J146: 02 | K146: 党政办日常工作 | L146: 2 | M146: 大专及以上
A147: 安顺 | B147: 030083 | C147: 镇宁布依族苗族自治县扁担山镇人民政府 | D147: 04 | E147: 行政机关 | F147: 镇宁布依族苗族自治县扁担山镇 | H147: 0851-36220062 | I147: 党政办工作员 | J147: 01 | K147: 党政办日常工作 | L147: 1 | M147: 大专及以上
A148: 安顺 | B148: 030084 | C148: 镇宁布依族苗族自治县本寨镇人民政府 | D148: 04 | E148: 行政机关 | F148: 镇宁布依族苗族自治县本寨镇 | H148: 0851-36220062 | I148: 党政办工作员 | J148: 01 | K148: 党政办日常工作 | L148: 1 | M148: 大专及以上 | S148: 是 | T148: 是 | W148: 定向招录“四项目人员”或退役大学生士兵
A149: 安顺 | B149: 030084 | C149: 镇宁布依族苗族自治县本寨镇人民政府 | D149: 04 | E149: 行政机关 | F149: 镇宁布依族苗族自治县本寨镇 | H149: 0851-36220062 | I149: 党政办工作员 | J149: 02 | K149: 党政办日常工作 | L149: 2 | M149: 大专及以上
A150: 安顺 | B150: 030085 | C150: 关岭自治县纪检监察举报中心（非公有制经济发展侵权投诉中心） | D150: 03 | E150: 参照公务员法管理单位 | F150: 关岭自治县纪律检查委员会 | H150: 0851-37223142 | I150: 办公室工作员 | J150: 01 | K150: 监督执纪问责工作 | L150: 2 | M150: 本科及以上 | N150: 学士及以上学位 | R150: 中共党员
A151: 安顺 | B151: 030086 | C151: 中共关岭自治县委组织部 | D151: 03 | E151: 党的机关 | F151: 关岭自治县海百合广场群众服务中心 | H151: 0851-37223512 | I151: 办公室工作员 | J151: 01 | K151: 办公室日常工作 | L151: 2 | M151: 本科及以上 | N151: 学士及以上学位 | R151: 中共党员
A152: 安顺 | B152: 030087 | C152: 关岭自治县人民法院 | D152: 03 | E152: 审判机关 | F152: 关岭自治县关索街道办事处法治路 | H152: 0851-33508144 | I152: 花江法庭工作员 | J152: 01 | K152: 审判辅助工作 | L152: 1 | M152: 本科及以上 | N152: 学士及以上学位
A153: 安顺 | B153: 030087 | C153: 关岭自治县人民法院 | D153: 03 | E153: 审判机关 | F153: 关岭自治县关索街道办事处法治路 | H153: 0851-33508144 | I153: 永宁法庭工作员 | J153: 02 | K153: 审判辅助工作 | L153: 1 | M153: 本科及以上 | N153: 学士及以上学位
A154: 安顺 | B154: 030087 | C154: 关岭自治县人民法院 | D154: 03 | E154: 审判机关 | F154: 关岭自治县关索街道办事处法治路 | H154: 0851-33508144 | I154: 断桥法庭工作员 | J154: 03 | K154: 审判辅助工作 | L154: 1 | M154: 本科及以上 | N154: 学士及以上学位 | W154: 具有助理会计师及以上任职资格
A155: 安顺 | B155: 030087 | C155: 关岭自治县人民法院 | D155: 03 | E155: 审判机关 | F155: 关岭自治县关索街道办事处法治路 | H155: 0851-33508144 | I155: 办公室工作员 | J155: 04 | K155: 审判辅助工作 | L155: 1 | M155: 本科及以上 | N155: 学士及以上学位
A156: 安顺 | B156: 030088 | C156: 关岭自治县人民检察院 | D156: 03 | E156: 检察机关 | F156: 关岭自治县关索街道办事处法治路 | H156: 0851-37228120 | I156: 检察官助理 | J156: 01 | K156: 检察官助理 | L156: 1 | M156: 本科及以上 | N156: 学士及以上学位 | P156: 法学学科门类 | Q156: 法学类 | W156: 通过国家司法考试取得C证及以上不限专业
A157: 安顺 | B157: 030089 | C157: 关岭布依族苗族自治县农业机械服务中心 | D157: 03 | E157: 参照公务员法管理单位 | F157: 关岭自治县龙潭街道西关外185号 | H157: 0851-37221245 | I157: 工作员 | J157: 01 | K157: 办公室日常工作 | L157: 1 | M157: 大专及以上
A158: 安顺 | B158: 030090 | C158: 关岭布依族苗族自治县社会保险事业局 | D158: 03 | E158: 参照公务员法管理单位 | F158: 关岭自治县顶云街道海百合广场政务服务中心 | H158: 0851-37229385 | I158: 综合股工作员 | J158: 01 | K158: 办公室日常工作 | L158: 1 | M158: 本科及以上 | N158: 学士及以上学位 | P158: 中国语言文学类 | Q158: 中国语言文学类
A159: 安顺 | B159: 030090 | C159: 关岭布依族苗族自治县社会保险事业局 | D159: 03 | E159: 参照公务员法管理单位 | F159: 关岭自治县顶云街道海百合广场政务服务中心 | H159: 0851-37229385 | I159: 基金管理股工作员 | J159: 02 | K159: 负责基金管理日常工作 | L159: 1 | M159: 大专及以上 | O159: 会计及相关专业 | P159: 会计专业、会计及相关专业 | Q159: 工商管理类
A160: 安顺 | B160: 030090 | C160: 关岭布依族苗族自治县社会保险事业局 | D160: 03 | E160: 参照公务员法管理单位 | F160: 关岭自治县顶云街道海百合广场政务服务中心 | H160: 0851-37229385 | I160: 待遇审核股工作员 | J160: 03 | K160: 负责待遇审核工作 | L160: 1 | M160: 大专及以上 | O160: 计算机类 | P160: 计算机类 | Q160: 计算机科学与技术类
A161: 安顺 | B161: 030090 | C161: 关岭布依族苗族自治县社会保险事业局 | D161: 03 | E161: 参照公务员法管理单位 | F161: 关岭自治县顶云街道海百合广场政务服务中心 | H161: 0851-37229385 | I161: 征缴股工作员 | J161: 04 | K161: 负责保险征缴管理工作 | L161: 2 | M161: 本科及以上 | N161: 学士及以上学位
A162: 安顺 | B162: 030091 | C162: 关岭布依族苗族自治县卫生监督所 | D162: 03 | E162: 参照公务员法管理单位 | F162: 关岭自治县顶云街道顶包公路旁 | H162: 0851-37229353 | I162: 办公室工作员 | J162: 01 | K162: 卫生监督执法工作 | L162: 2 | M162: 本科及以上
A163: 安顺 | B163: 030092 | C163: 关岭布依族苗族自治县基层财政管理局 | D163: 03 | E163: 参照公务员法管理单位 | F163: 关岭自治县滨河大街66号 | H163: 0851-37228081 | I163: 办公室工作员 | J163: 01 | K163: 从事财政相关业务和办公室日常管理工作 | L163: 3 | M163: 本科及以上 | N163: 学士及以上学位 | P163: 经济学类、 财政学类、 金融学类 | Q163: 应用经济学类
A164: 安顺 | B164: 030093 | C164: 关岭布依族苗族自治县国库收付中心 | D164: 03 | E164: 参照公务员法管理单位 | F164: 关岭自治县滨河大街66号 | H164: 0851-37228081 | I164: 办公室工作员 | J164: 01 | K164: 从事财政相关业务和办公室日常管理工作 | L164: 1 | M164: 本科及以上 | N164: 学士及以上学位 | P164: 经济学类、 财政学类、 金融学类 | Q164: 应用经济学类
A165: 安顺 | B165: 030094 | C165: 关岭布依族苗族自治县财政局 | D165: 03 | E165: 行政机关 | F165: 关岭自治县滨河大街66号 | H165: 0851-37228081 | I165: 办公室工作员 | J165: 01 | K165: 从事财政相关业务和办公室日常管理工作 | L165: 2 | M165: 本科及以上 | N165: 学士及以上学位 | P165: 经济学类、 财政学类、 金融学类 | Q165: 应用经济学类
A166: 安顺 | B166: 030095 | C166: 关岭布依族苗族自治县教育和科技局 | D166: 03 | E166: 行政机关 | F166: 关岭自治县关索街道办滨河大街137号 | H166: 0851-37229284 | I166: 人事股工作员 | J166: 01 | K166: 负责处理单位管理范围内人力资源管理工作 | L166: 1 | M166: 大专及以上 | R166: 中共党员
A167: 安顺 | B167: 030096 | C167: 关岭布依族苗族自治县国土资源局 | D167: 03 | E167: 行政机关 | F167: 关岭自治县政务服务中心二楼 | H167: 0851-37223323 | I167: 办公室工作员 | J167: 01 | K167: 办公室日常工作 | L167: 1 | M167: 本科及以上 | N167: 学士及以上学位
A168: 安顺 | B168: 030097 | C168: 关岭布依族苗族自治县发展和改革局 | D168: 03 | E168: 行政机关 | F168: 关岭自治县顶云街道政务中心三楼 | H168: 0851-37227712 | I168: 办公室工作员 | J168: 01 | K168: 具体实施县级项目的前期规划、计划，组织推进项目前期工作等。 | L168: 1 | M168: 本科及以上 | N168: 学士及以上学位 | P168: 土木类 | Q168: 土木工程类
A169: 安顺 | B169: 030098 | C169: 关岭布依族苗族自治县安全生产监督管理局 | D169: 03 | E169: 行政机关 | F169: 关岭自治县关索街道办事处枣园9号 | H169: 0851-37227000 | I169: 办公室工作员 | J169: 01 | K169: 从事安全监管工作 | L169: 1 | M169: 本科及以上 | N169: 学士及以上学位 | P169: 安全科学与工程类 | Q169: 矿业工程类
A170: 安顺 | B170: 030099 | C170: 关岭布依族苗族自治县扶贫开发办公室 | D170: 03 | E170: 行政机关 | F170: 关岭自治县人民政府办公楼三楼 | H170: 0851-37223311 | I170: 办公室工作员 | J170: 01 | K170: 文秘工作 | L170: 1 | M170: 本科及以上
A171: 安顺 | B171: 030100 | C171: 关岭布依族苗族自治县市场监督管理局 | D171: 04 | E171: 行政机关 | F171: 关岭自治县关索街道滨河大街121号 | H171: 0851-37223327 | I171: 上关分局工作员 | J171: 01 | K171: 负责辖区内各类市场监督管理工作 | L171: 1 | M171: 大专及以上
A172: 安顺 | B172: 030100 | C172: 关岭布依族苗族自治县市场监督管理局 | D172: 04 | E172: 行政机关 | F172: 关岭自治县关索街道滨河大街121号 | H172: 0851-37223327 | I172: 新铺分局工作员 | J172: 02 | K172: 负责辖区内各类市场监督管理工作 | L172: 1 | M172: 大专及以上
A173: 安顺 | B173: 030101 | C173: 关岭布依族苗族自治县司法局 | D173: 04 | E173: 行政机关 | F173: 关岭自治县龙潭街道学园路 | H173: 0851-37223383 | I173: 龙潭司法所司法助理员 | J173: 01 | K173: 司法助理员工作 | L173: 1 | M173: 本科及以上 | P173: 会计专业、会计及相关专业 | Q173: 工商管理类
A174: 安顺 | B174: 030102 | C174: 关岭布依族苗族自治县关索街道办事处 | D174: 04 | E174: 行政机关 | F174: 关岭自治县关索街道滨河路63号-1 | H174: 0851-32224217 | I174: 党政办工作员 | J174: 01 | K174: 办公室日常工作 | L174: 1 | M174: 本科及以上 | N174: 学士及以上学位 | R174: 中共党员
A175: 安顺 | B175: 030103 | C175: 关岭布依族苗族自治县新铺镇人民政府 | D175: 04 | E175: 行政机关 | F175: 关岭自治县新铺镇新龙村 | H175: 0851-37844098 | I175: 党政办工作员 | J175: 01 | K175: 办公室日常工作 | L175: 1 | M175: 本科及以上
A176: 安顺 | B176: 030104 | C176: 关岭布依族苗族自治县断桥镇人民政府 | D176: 04 | E176: 行政机关 | F176: 关岭自治县断桥镇断桥村三湾组 | H176: 0851-37762301 | I176: 党政办工作员 | J176: 01 | K176: 办公室日常工作 | L176: 1 | M176: 本科及以上
A177: 安顺 | B177: 030105 | C177: 关岭布依族苗族自治县坡贡镇人民政府 | D177: 04 | E177: 行政机关 | F177: 关岭自治县坡 贡镇康和村 | H177: 0851-37760008 | I177: 党政办工作员 | J177: 01 | K177: 办公室日常工作 | L177: 1 | M177: 大专及以上
A178: 安顺 | B178: 030106 | C178: 关岭布依族苗族自治县普利乡人民政府 | D178: 04 | E178: 行政机关 | F178: 关岭布依族苗族自治县普利乡南亚村 | H178: 0851--37716068 | I178: 党政办工作员 | J178: 01 | K178: 办公室日常工作 | L178: 1 | M178: 大专及以上
A179: 安顺 | B179: 030107 | C179: 中国共产党紫云苗族布依族自治县纪律检查委员会 | D179: 03 | E179: 党的机关 | F179: 贵州省紫云自治县松山街道县前街县委大院 | H179: 0851-35233432 | I179: 纪检监察室工作员 | J179: 01 | K179: 纪检监察工作 | L179: 1 | M179: 本科及以上 | N179: 学士及以上学位 | P179: 法学学科门类 | R179: 中共党员
A180: 安顺 | B180: 030107 | C180: 中国共产党紫云苗族布依族自治县纪律检查委员会 | D180: 03 | E180: 党的机关 | F180: 贵州省紫云自治县松山街道县前街县委大院 | H180: 0851-35233432 | I180: 纪检监察室工作员 | J180: 02 | K180: 纪检监察工作 | L180: 1 | M180: 本科及以上 | N180: 学士及以上学位 | P180: 计算机及相关专业 | R180: 中共党员
A181: 安顺 | B181: 030108 | C181: 中共紫云苗族布依族自治县委组织部 | D181: 03 | E181: 党的机关 | F181: 贵州省紫云自治县松山街道县前街县委大院 | H181: 0811-32538176 | I181: 办公室工作员 | J181: 01 | K181: 办公室日常工作 | L181: 1 | M181: 本科及以上 | N181: 学士及以上学位 | R181: 中共党员
A182: 安顺 | B182: 030109 | C182: 中共紫云苗族布依族自治县委宣传部 | D182: 03 | E182: 党的机关 | F182: 贵州省紫云自治县五峰街道新城区群众工作中心 | H182: 0851-35233434 | I182: 办公室工作员 | J182: 01 | K182: 办公室日常工作 | L182: 1 | M182: 本科及以上 | N182: 学士及以上学位 | P182: 汉语言文学；新闻学；公共管理类 | R182: 中共党员
A183: 安顺 | B183: 030110 | C183: 紫云苗族布依族自治县机构编制委员会办公室 | D183: 03 | E183: 党的机关 | F183: 贵州省紫云自治县五峰街道新城区群众工作中心 | H183: 0851-35234973 | I183: 行政审批股工作员 | J183: 01 | K183: 行政审批工作 | L183: 1 | M183: 本科及以上 | N183: 学士及以上学位 | P183: 法学学科门类 | R183: 中共党员
A184: 安顺 | B184: 030111 | C184: 中国共产主义青年团紫云自治县委员会 | D184: 03 | E184: 参照公务员法管理的人民团体和群众团体 | F184: 贵州省紫云自治县五峰街道新城区群众工作中心 | H184: 0851-35233439 | I184: 办公室工作员 | J184: 01 | K184: 办公室日常工作 | L184: 1 | M184: 本科及以上 | N184: 学士及以上学位 | R184: 中共党员或共青团员 | W184: 截止报考日期25周岁及以下
A185: 安顺 | B185: 030112 | C185: 紫云苗族布依族自治县计划生育协会 | D185: 03 | E185: 参照公务员法管理的人民团体和群众团体 | F185: 贵州省紫云自治县十字街计划生育协会 | H185: 0851-35236435 | I185: 办公室工作员 | J185: 01 | K185: 办公室日常工作 | L185: 1 | M185: 本科及以上 | N185: 学士及以上学位
A186: 安顺 | B186: 030113 | C186: 紫云自治县人民检察院 | D186: 03 | E186: 检察机关 | F186: 紫云自治县新城区 | H186: 0851-35233202 | I186: 检察辅助人员 | J186: 01 | K186: 检察辅助工作 | L186: 1 | M186: 本科及以上 | N186: 学士及以上学位 | P186: 法学学科门类 | Q186: 法学类 | W186: 通过国家统一司法考试获得C证及以上
A187: 安顺 | B187: 030114 | C187: 紫云苗族布依族自治县基层财政管理局 | D187: 03 | E187: 参照公务员法管理单位 | F187: 紫云县城内 | H187: 0851-35239308 | I187: 基层财政管理局工作员 | J187: 01 | K187: 基层财政管理局日常工作 | L187: 2 | M187: 本科及以上 | N187: 学士及以上学位 | P187: 经济学学科门类、会计学
A188: 安顺 | B188: 030115 | C188: 紫云苗族布依族自治县供销合作社联合社 | D188: 03 | E188: 参照公务员法管理单位 | F188: 紫云县城内 | H188: 0851-35239308 | I188: 办公室工作员 | J188: 01 | K188: 办公室日常工作 | L188: 1 | M188: 本科及以上 | N188: 学士及以上学位
A189: 安顺 | B189: 030116 | C189: 紫云苗族布依族自治县国库收付中心 | D189: 03 | E189: 参照公务员法管理单位 | F189: 紫云县城内 | H189: 0851-35239308 | I189: 业务股工作员 | J189: 01 | K189: 业务股日常工作 | L189: 2 | M189: 本科及以上 | N189: 学士及以上学位 | P189: 经济学学科门类、会计学
A190: 安顺 | B190: 030117 | C190: 紫云苗族布依族自治县社会保险事业局 | D190: 03 | E190: 参照公务员法管理单位 | F190: 紫云县城内 | H190: 0851-35239308 | I190: 医疗保险股工作员 | J190: 01 | K190: 医疗保险股日常工作 | L190: 1 | M190: 本科及以上 | N190: 学士及以上学位 | P190: 中西医结合类、 临床医学类 | W190: 限紫云自治县户籍（或生源）
A191: 安顺 | B191: 030117 | C191: 紫云苗族布依族自治县社会保险事业局 | D191: 03 | E191: 参照公务员法管理单位 | F191: 紫云县城内 | H191: 0851-35239308 | I191: 基金管理股工作员 | J191: 02 | K191: 基金管理股日常工作 | L191: 1 | M191: 本科及以上 | N191: 学士及以上学位 | P191: 经济学学科门类、会计学
A192: 安顺 | B192: 030118 | C192: 紫云苗族布依族自治县住房和城乡建设执法大队 | D192: 03 | E192: 参照公务员法管理单位 | F192: 紫云县城内 | H192: 0851-35239308 | I192: 执法大队工作员 | J192: 01 | K192: 执法大队日常工作 | L192: 2 | M192: 本科及以上 | N192: 学士及以上学位 | P192: 建筑类、 土木类
A193: 安顺 | B193: 030118 | C193: 紫云苗族布依族自治县住房和城乡建设执法大队 | D193: 03 | E193: 参照公务员法管理单位 | F193: 紫云县城内 | H193: 0851-35239308 | I193: 执法大队工作员 | J193: 02 | K193: 执法大队日常工作 | L193: 4 | M193: 本科及以上 | N193: 学士及以上学位 | W193: 限紫云自治县户籍（或生源）
A194: 安顺 | B194: 030119 | C194: 紫云苗族布依族自治县人力资源和社会保障局 | D194: 03 | E194: 行政机关 | F194: 紫云县城内 | H194: 0851-35239308 | I194: 办公室工作员 | J194: 01 | K194: 人事档案管理日常工作 | L194: 1 | M194: 本科及以上 | N194: 学士及以上学位 | P194: 计算机类 | R194: 中共党员 | W194: 限紫云自治县户籍（或生源）
A195: 安顺 | B195: 030120 | C195: 紫云苗族布依族自治县工业和经济贸易局 | D195: 03 | E195: 行政机关 | F195: 紫云县城内 | H195: 0851-35239308 | I195: 办公室工作员 | J195: 01 | K195: 办公室日常工作 | L195: 1 | M195: 本科及以上 | N195: 学士及以上学位
A196: 安顺 | B196: 030121 | C196: 紫云苗族布依族自治县国土资源局 | D196: 03 | E196: 行政机关 | F196: 紫云县城内 | H196: 0851-35239308 | I196: 办公室工作员 | J196: 01 | K196: 办公室日常工作 | L196: 1 | M196: 本科及以上 | N196: 学士及以上学位 | P196: 测绘类、地质类
A197: 安顺 | B197: 030122 | C197: 紫云苗族布依族自治县卫生和计划生育局 | D197: 03 | E197: 行政机关 | F197: 紫云县城内 | H197: 0851-35239308 | I197: 卫生应急办公室工作员 | J197: 01 | K197: 卫生应急办公室日常工作 | L197: 1 | M197: 本科及以上 | N197: 学士及以上学位 | P197: 医学学科门类
A198: 安顺 | B198: 030122 | C198: 紫云苗族布依族自治县卫生和计划生育局 | D198: 03 | E198: 行政机关 | F198: 紫云县城内 | H198: 0851-35239308 | I198: 计划生育基层指导股工作员 | J198: 02 | K198: 计划生育基层指导股日常工作 | L198: 1 | M198: 本科及以上 | N198: 学士及以上学位
A199: 安顺 | B199: 030123 | C199: 紫云苗族布依族自治县司法局 | D199: 03 | E199: 行政机关 | F199: 紫云县城内 | H199: 0851-35239308 | I199: 法律援助工作股工作员 | J199: 01 | K199: 法律援助工作股日常工作 | L199: 1 | M199: 本科及以上 | N199: 学士及以上学位 | P199: 法学类 | Q199: 法学类
A200: 安顺 | B200: 030124 | C200: 紫云苗族布依族自治县格凸河镇人民政府 | D200: 04 | E200: 行政机关 | F200: 格凸河镇 | H200: 0851-35239308 | I200: 党政办公室（法制办公室）工作员 | J200: 01 | K200: 党政办公室（法制办公室）日常工作 | L200: 1 | M200: 本科及以上 | N200: 学士及以上学位 | W200: 限紫云自治县户籍（或生源）
... 736 more rows

Sheet 毕节市
A1: 贵州省2018年毕节市、县、乡四级机关面向社会公开招录公务员职位表
A2: 考区 | B2: 招录单位代码 | C2: 单位名称 | D2: 层级代码 | E2: 机构性质 | F2: 单位地址 | G2: 单位网站 | H2: 单位咨询电话 | I2: 职位名称 | J2: 职位代码 | K2: 职位简介 | L2: 招录人数 | M2: 学历要求 | N2: 学位要求 | O2: 专业要求 | R2: 政治面貌要求 | S2: 定向招录项目要求 | V2: 基层工作经历时间 | W2: 其他报考条件 | X2: 职位工作性质及需要说明的其他事项
O3: 大专 | P3: 本科 | Q3: 研究生 | S3: 四项目人员 | T3: 退役大学生士兵 | U3: 少数民族
A4: 毕节 | B4: 070001 | C4: 毕节市中级人民法院 | D4: 02 | E4: 审判机关 | F4: 毕节市七星关区生活路24号 | H4: 0857-8299075 | I4: 法官助理 | J4: 01 | K4: 协助法官审理案件 | L4: 1 | M4: 本科及以上 | N4: 学士及以上学位 | P4: 法学类 | Q4: 法学类 | W4: 1.通过国家司法考试获A证；2.学历与学位均为法学类
A5: 毕节 | B5: 070002 | C5: 毕节市人民检察院 | D5: 02 | E5: 检察机关 | F5: 毕节市金海湖新区双山镇香田村 | H5: 0857-8870009 | I5: 司法行政人员 | J5: 01 | K5: 机关财务后勤事务工作 | L5: 1 | M5: 本科及以上 | N5: 学士及以上学位 | P5: 会计及相关专业 | Q5: 会计学
A6: 毕节 | B6: 070003 | C6: 毕节市七星关区人民法院 | D6: 03 | E6: 审判机关 | F6: 毕节市七星关区开行路 | H6: 0857-8345428 | I6: 审判辅助人员 | J6: 01 | K6: 从事审判辅助工作 | L6: 1 | M6: 本科及以上 | N6: 学士及以上学位 | P6: 法学类 | Q6: 法学类
A7: 毕节 | B7: 070003 | C7: 毕节市七星关区人民法院 | D7: 04 | E7: 审判机关 | F7: 毕节市七星关区开行路 | H7: 0857-8345428 | I7: 水箐人民法庭审判辅助人员 | J7: 02 | K7: 从事审判辅助工作 | L7: 1 | M7: 本科及以上 | N7: 学士及以上学位 | P7: 法学类 | Q7: 法学类
A8: 毕节 | B8: 070003 | C8: 毕节市七星关区人民法院 | D8: 04 | E8: 审判机关 | F8: 毕节市七星关区开行路 | H8: 0857-8345428 | I8: 海子街人民法庭审判辅助人员 | J8: 03 | K8: 从事审判辅助工作 | L8: 1 | M8: 本科及以上 | N8: 学士及以上学位 | P8: 法学类 | Q8: 法学类
A9: 毕节 | B9: 070004 | C9: 毕节市七星关区人民检察院 | D9: 03 | E9: 检察机关 | F9: 毕节市七星关区百里杜鹃大道72号 | H9: 0857-8345428 | I9: 司法行政人员 | J9: 01 | K9: 办公室日常工作 | L9: 1 | M9: 本科及以上 | N9: 学士及以上学位 | P9: 中国语言文学类 | Q9: 中国语言文学类
A10: 毕节 | B10: 070004 | C10: 毕节市七星关区人民检察院 | D10: 03 | E10: 检察机关 | F10: 毕节市七星关区百里杜鹃大道72号 | H10: 0857-8345428 | I10: 司法行政人员 | J10: 02 | K10: 新闻宣传工作 | L10: 1 | M10: 本科及以上 | N10: 学士及以上学位 | P10: 新闻传播学类、新闻类 | Q10: 新闻传播学类
A11: 毕节 | B11: 070004 | C11: 毕节市七星关区人民检察院 | D11: 04 | E11: 检察机关 | F11: 毕节市七星关区百里杜鹃大道72号 | H11: 0857-8345428 | I11: 燕子口片区检察室检察辅助人员 | J11: 03 | K11: 协助员额检察官办理审查、起诉等工作 | L11: 1 | M11: 本科及以上 | N11: 学士及以上学位 | P11: 法学类 | Q11: 法学类 | W11: 通过国家司法考试获得C证及以上
A12: 毕节 | B12: 070005 | C12: 大方县人民法院 | D12: 04 | E12: 审判机关 | F12: 大方县奢香大道北段 | H12: 0857-5688668 | I12: 达溪人民法庭审判辅助人员 | J12: 01 | K12: 庭审记录工作 | L12: 1 | M12: 本科及以上 | N12: 学士及以上学位 | P12: 法学类 | Q12: 法学类
A13: 毕节 | B13: 070005 | C13: 大方县人民法院 | D13: 04 | E13: 审判机关 | F13: 大方县奢香大道北段 | H13: 0857-5688668 | I13: 理化人民法庭审判辅助人员 | J13: 02 | K13: 庭审记录工作 | L13: 1 | M13: 本科及以上 | N13: 学士及以上学位 | P13: 法学类 | Q13: 法学类
A14: 毕节 | B14: 070005 | C14: 大方县人民法院 | D14: 04 | E14: 审判机关 | F14: 大方县奢香大道北段 | H14: 0857-5688668 | I14: 鸡场人民法庭审判辅助人员 | J14: 03 | K14: 庭审记录工作 | L14: 1 | M14: 本科及以上 | N14: 学士及以上学位 | P14: 法学类 | Q14: 法学类
A15: 毕节 | B15: 070005 | C15: 大方县人民法院 | D15: 04 | E15: 审判机关 | F15: 大方县奢香大道北段 | H15: 0857-5688668 | I15: 六龙人民法庭审判辅助人员 | J15: 04 | K15: 庭审记录工作 | L15: 1 | M15: 本科及以上 | N15: 学士及以上学位 | P15: 法学类 | Q15: 法学类
A16: 毕节 | B16: 070005 | C16: 大方县人民法院 | D16: 04 | E16: 审判机关 | F16: 大方县奢香大道北段 | H16: 0857-5688668 | I16: 双山人民法庭审判辅助人员 | J16: 05 | K16: 庭审记录工作 | L16: 1 | M16: 本科及以上 | N16: 学士及以上学位 | P16: 法学类 | Q16: 法学类
A17: 毕节 | B17: 070005 | C17: 大方县人民法院 | D17: 04 | E17: 审判机关 | F17: 大方县奢香大道北段 | H17: 0857-5688668 | I17: 鼎新人民法庭审判辅助人员 | J17: 06 | K17: 庭审记录工作 | L17: 1 | M17: 本科及以上 | N17: 学士及以上学位 | P17: 法学类 | Q17: 法学类
A18: 毕节 | B18: 070005 | C18: 大方县人民法院 | D18: 04 | E18: 审判机关 | F18: 大方县奢香大道北段 | H18: 0857-5688668 | I18: 长石人民法庭审判辅助人员 | J18: 07 | K18: 庭审记录工作 | L18: 1 | M18: 本科及以上 | N18: 学士及以上学位 | P18: 法学类 | Q18: 法学类
A19: 毕节 | B19: 070006 | C19: 中国共产党黔西县委员会组织部 | D19: 03 | E19: 党的机关 | F19: 黔西县行政中心13楼 | H19: 0857-4248762 | I19: 工作人员 | J19: 01 | K19: 机关信息化建设 | L19: 1 | M19: 本科及以上 | N19: 学士及以上学位 | P19: 计算机及相关专业 | Q19: 计算机科学与技术类 | R19: 中共党员
A20: 毕节 | B20: 070007 | C20: 黔西县机构编制委员会办公室 | D20: 03 | E20: 党的机关 | F20: 黔西县莲城办事处水西大厦20楼 | H20: 0857-4248762 | I20: 工作人员 | J20: 01 | K20: 办公室日常工作 | L20: 1 | M20: 本科及以上 | N20: 学士及以上学位
A21: 毕节 | B21: 070008 | C21: 黔西县人民法院 | D21: 03 | E21: 审判机关 | F21: 黔西县文化路 | H21: 0857-4248762 | I21: 审判辅助人员 | J21: 01 | K21: 审判辅助人员 | L21: 6 | M21: 本科及以上 | N21: 学士及以上学位 | P21: 法学类 | Q21: 法学类 | W21: 取得国家司法考试职业资格C证及以上不限专业
A22: 毕节 | B22: 070009 | C22: 中国共产党黔西县委员会党史研究室（黔西县地方志编纂委员会办公室） | D22: 03 | E22: 参照公务员法管理单位 | F22: 黔西县行政中心一楼136室 | H22: 0857-4248762 | I22: 工作人员 | J22: 01 | K22: 办公室日常工作，文秘工作等 | L22: 1 | M22: 本科及以上 | N22: 学士及以上学位 | P22: 中国语言文学类、历史学类
A23: 毕节 | B23: 070010 | C23: 中国共产主义青年团黔西县委员会 | D23: 03 | E23: 参照公务员法管理的人民团体和群众团体 | F23: 黔西县行政中心130室 | H23: 0857-4248762 | I23: 工作人员 | J23: 01 | K23: 办公室日常工作 | L23: 1 | M23: 本科及以上 | N23: 学士及以上学位
A24: 毕节 | B24: 070011 | C24: 黔西县人民检察院 | D24: 03 | E24: 检察机关 | F24: 黔西县金凤大道1号 | H24: 0857-4248762 | I24: 司法行政人员 | J24: 01 | K24: 检察机关日常事务、公文写作、新闻宣传等 | L24: 1 | M24: 本科及以上 | N24: 学士及以上学位 | P24: 中国语言文学类 | Q24: 中国语言文学类
A25: 毕节 | B25: 070011 | C25: 黔西县人民检察院 | D25: 03 | E25: 检察机关 | F25: 黔西县金凤大道1号 | H25: 0857-4248762 | I25: 司法行政人员 | J25: 02 | K25: 机关日常事务、财务管理等 | L25: 1 | M25: 本科及以上 | N25: 学士及以上学位 | P25: 会计及相关专业 | Q25: 会计学
A26: 毕节 | B26: 070011 | C26: 黔西县人民检察院 | D26: 03 | E26: 检察机关 | F26: 黔西县金凤大道1号 | H26: 0857-4248762 | I26: 检察技术人员 | J26: 03 | K26: 从事检察技术工作 | L26: 1 | M26: 本科及以上 | N26: 学士及以上学位 | P26: 计算机科学与技术、电子信息科学与技术、计算机及应用 | Q26: 计算机科学与技术类
A27: 毕节 | B27: 070012 | C27: 金沙县人民法院 | D27: 03 | E27: 审判机关 | F27: 金沙县长江大道 | H27: 0857-7225792 | I27: 文秘 | J27: 01 | K27: 文秘工作 | L27: 1 | M27: 本科及以上 | N27: 学士及以上学位 | P27: 中国语言文学类、新闻传播学类、新闻类 | Q27: 中国语言文学类、新闻传播学类
A28: 毕节 | B28: 070012 | C28: 金沙县人民法院 | D28: 03 | E28: 审判机关 | F28: 金沙县长江大道 | H28: 0857-7225792 | I28: 审判辅助人员 | J28: 02 | K28: 审判辅助工作 | L28: 3 | M28: 本科及以上 | N28: 学士及以上学位
A29: 毕节 | B29: 070012 | C29: 金沙县人民法院 | D29: 04 | E29: 审判机关 | F29: 金沙县长江大道 | H29: 0857-7225792 | I29: 沙土人民法庭工作人员 | J29: 03 | K29: 财务会计工作 | L29: 1 | M29: 本科及以上 | N29: 学士及以上学位 | P29: 会计及相关专业 | Q29: 会计学
A30: 毕节 | B30: 070012 | C30: 金沙县人民法院 | D30: 04 | E30: 审判机关 | F30: 金沙县长江大道 | H30: 0857-7225792 | I30: 沙土人民法庭审判辅助人员 | J30: 04 | K30: 审判辅助工作 | L30: 1 | M30: 本科及以上 | N30: 学士及以上学位
A31: 毕节 | B31: 070013 | C31: 金沙县人民检察院 | D31: 03 | E31: 检察机关 | F31: 金沙县鼓场街道中华路102号 | H31: 0857-7225792 | I31: 司法行政人员 | J31: 01 | K31: 从事司法行政工作 | L31: 1 | M31: 本科及以上 | N31: 学士及以上学位 | P31: 中国语言文学类、新闻传播学类、新闻类 | Q31: 中国语言文学类、新闻传播学类
A32: 毕节 | B32: 070014 | C32: 中国共产党织金县纪律检查委员会 | D32: 03 | E32: 党的机关 | F32: 织金县双堰街道文化路1号 | H32: 0857-7621359 | I32: 工作人员 | J32: 01 | K32: 从事纪检监察工作 | L32: 2 | M32: 本科及以上 | N32: 学士及以上学位 | P32: 法学类 | Q32: 法学类
A33: 毕节 | B33: 070014 | C33: 中国共产党织金县纪律检查委员会 | D33: 03 | E33: 党的机关 | F33: 织金县双堰街道文化路1号 | H33: 0857-7621359 | I33: 工作人员 | J33: 02 | K33: 从事纪检监察工作 | L33: 1 | M33: 本科及以上 | N33: 学士及以上学位 | P33: 会计及相关专业 | Q33: 会计学
A34: 毕节 | B34: 070015 | C34: 织金县人民检察院 | D34: 03 | E34: 检察机关 | F34: 织金县文腾街道金北大道旁 | H34: 0857-7621359 | I34: 司法行政人员 | J34: 01 | K34: 从事司法行政工作 | L34: 1 | M34: 本科及以上 | N34: 学士及以上学位
A35: 毕节 | B35: 070016 | C35: 纳雍县人民法院 | D35: 04 | E35: 审判机关 | F35: 纳雍县工贸街 | H35: 0857-3533811 | I35: 乐治人民法庭审判辅助人员 | J35: 01 | K35: 审判辅助人员 | L35: 1 | M35: 本科及以上 | N35: 学士及以上学位 | P35: 会计及相关专业 | Q35: 会计学
A36: 毕节 | B36: 070016 | C36: 纳雍县人民法院 | D36: 04 | E36: 审判机关 | F36: 纳雍县工贸街 | H36: 0857-3533811 | I36: 百兴人民法庭审判辅助人员 | J36: 02 | K36: 审判辅助人员 | L36: 1 | M36: 本科及以上 | N36: 学士及以上学位
A37: 毕节 | B37: 070016 | C37: 纳雍县人民法院 | D37: 04 | E37: 审判机关 | F37: 纳雍县工贸街 | H37: 0857-3533811 | I37: 张维人民法庭审判辅助人员 | J37: 03 | K37: 审判辅助人员 | L37: 2 | M37: 本科及以上 | N37: 学士及以上学位
A38: 毕节 | B38: 070017 | C38: 纳雍县人民检察院 | D38: 03 | E38: 检察机关 | F38: 纳雍县居仁街道办事处政法园区 | H38: 0857-3533811 | I38: 司法行政人员 | J38: 01 | K38: 财务会计工作 | L38: 1 | M38: 本科及以上 | N38: 学士及以上学位 | P38: 会计及相关专业 | Q38: 会计学
A39: 毕节 | B39: 070017 | C39: 纳雍县人民检察院 | D39: 03 | E39: 检察机关 | F39: 纳雍县居仁街道办事处政法园区 | H39: 0857-3533811 | I39: 检察技术人员 | J39: 02 | K39: 检察技术工作 | L39: 1 | M39: 本科及以上 | N39: 学士及以上学位 | P39: 计算机及相关专业 | Q39: 计算机科学与技术类
A40: 毕节 | B40: 070018 | C40: 威宁彝族回族苗族自治县人民法院 | D40: 04 | E40: 审判机关 | F40: 威宁彝族回族苗族自治县海边街道凤山大道 | H40: 0857-6225250 | I40: 金钟人民法庭审判辅助人员 | J40: 01 | K40: 从事审判辅助及相关工作 | L40: 1 | M40: 本科及以上 | N40: 学士及以上学位 | P40: 法学类 | Q40: 法学类
A41: 毕节 | B41: 070018 | C41: 威宁彝族回族苗族自治县人民法院 | D41: 04 | E41: 审判机关 | F41: 威宁彝族回族苗族自治县海边街道凤山大道 | H41: 0857-6225250 | I41: 龙街人民法庭审判辅助人员 | J41: 02 | K41: 从事审判辅助及相关工作 | L41: 1 | M41: 本科及以上 | N41: 学士及以上学位 | P41: 法学类 | Q41: 法学类
A42: 毕节 | B42: 070018 | C42: 威宁彝族回族苗族自治县人民法院 | D42: 04 | E42: 审判机关 | F42: 威宁彝族回族苗族自治县海边街道凤山大道 | H42: 0857-6225250 | I42: 羊街人民法庭审判辅助人员 | J42: 03 | K42: 从事审判辅助及相关工作 | L42: 1 | M42: 本科及以上 | N42: 学士及以上学位 | P42: 法学类 | Q42: 法学类
A43: 毕节 | B43: 070019 | C43: 威宁彝族回族苗族自治县人民检察院 | D43: 03 | E43: 检察机关 | F43: 威宁彝族回族苗族自治县海边街道滨海大道 | H43: 0857-6225250 | I43: 检察技术人员 | J43: 01 | K43: 从事检察技术工作 | L43: 2 | M43: 本科及以上 | N43: 学士及以上学位 | P43: 计算机及相关专业 | Q43: 计算机科学与技术类
A44: 毕节 | B44: 070020 | C44: 赫章县人民检察院 | D44: 03 | E44: 检察机关 | F44: 赫章县城关镇双河路 | H44: 0857-3228130 | I44: 检察技术人员 | J44: 01 | K44: 从事检察技术工作 | L44: 1 | M44: 本科及以上 | N44: 学士及以上学位 | P44: 计算机及相关专业 | Q44: 计算机科学与技术类
A45: 毕节 | B45: 070021 | C45: 毕节市住房公积金管理中心 | D45: 02 | E45: 参照公务员法管理单位 | F45: 毕节市七星关区桂花路1号（农业银行5楼综合科） | H45: 0857-8236449 | I45: 毕节市住房公积金管理中心工作员 | J45: 01 | K45: 办公室日常工作，文秘工作等 | L45: 1 | M45: 本科及以上 | V45: 2年
A46: 毕节 | B46: 070022 | C46: 毕节市七星关区发展和改革局 | D46: 03 | E46: 行政机关 | F46: 毕节市七星关区行政办公中心六楼 | H46: 0857-8947782 | I46: 办公室工作人员 | J46: 01 | K46: 办公室日常工作 | L46: 2 | M46: 本科及以上 | N46: 学士及以上学位
A47: 毕节 | B47: 070023 | C47: 毕节市七星关区扶贫开发办公室 | D47: 03 | E47: 行政机关 | F47: 毕节市七星关区行政中心四楼 | H47: 0857-8947782 | I47: 办公室工作人员 | J47: 01 | K47: 办公室日常工作 | L47: 2 | M47: 本科及以上 | N47: 学士及以上学位
A48: 毕节 | B48: 070024 | C48: 毕节市七星关区市场监督管理局 | D48: 03 | E48: 行政机关 | F48: 毕节市七星关区天河路 | H48: 0857-8947782 | I48: 办公室工作人员 | J48: 01 | K48: 办公室日常工作 | L48: 1 | M48: 本科及以上 | N48: 学士及以上学位
A49: 毕节 | B49: 070024 | C49: 毕节市七星关区市场监督管理局 | D49: 04 | E49: 行政机关 | F49: 毕节市七星关区天河路 | H49: 0857-8947782 | I49: 市西分局工作人员 | J49: 02 | K49: 执法办案 | L49: 2 | M49: 本科及以上 | N49: 学士及以上学位
A50: 毕节 | B50: 070024 | C50: 毕节市七星关区市场监督管理局 | D50: 04 | E50: 行政机关 | F50: 毕节市七星关区天河路 | H50: 0857-8947782 | I50: 朱昌分局工作人员 | J50: 03 | K50: 执法办案 | L50: 1 | M50: 本科及以上 | N50: 学士及以上学位
A51: 毕节 | B51: 070024 | C51: 毕节市七星关区市场监督管理局 | D51: 04 | E51: 行政机关 | F51: 毕节市七星关区天河路 | H51: 0857-8947782 | I51: 海子街分局工作人员 | J51: 04 | K51: 执法办案 | L51: 2 | M51: 本科及以上 | N51: 学士及以上学位
A52: 毕节 | B52: 070024 | C52: 毕节市七星关区市场监督管理局 | D52: 04 | E52: 行政机关 | F52: 毕节市七星关区天河路 | H52: 0857-8947782 | I52: 杨家湾分局工作人员 | J52: 05 | K52: 执法办案 | L52: 2 | M52: 本科及以上 | N52: 学士及以上学位
A53: 毕节 | B53: 070024 | C53: 毕节市七星关区市场监督管理局 | D53: 04 | E53: 行政机关 | F53: 毕节市七星关区天河路 | H53: 0857-8947782 | I53: 清水分局工作人员 | J53: 06 | K53: 执法办案 | L53: 2 | M53: 本科及以上 | N53: 学士及以上学位
A54: 毕节 | B54: 070024 | C54: 毕节市七星关区市场监督管理局 | D54: 04 | E54: 行政机关 | F54: 毕节市七星关区天河路 | H54: 0857-8947782 | I54: 普宜分局工作人员 | J54: 07 | K54: 执法办案 | L54: 1 | M54: 本科及以上 | N54: 学士及以上学位 | S54: 是 | T54: 是 | W54: 定向招录“四项目人员”或退役大学生士兵
A55: 毕节 | B55: 070025 | C55: 毕节市七星关区司法局 | D55: 04 | E55: 行政机关 | F55: 毕节市七星关区营盘路19号 | H55: 0857-8947782 | I55: 阴底司法所助理员 | J55: 01 | K55: 基层司法行政工作 | L55: 1 | M55: 本科及以上 | N55: 学士及以上学位 | P55: 法学类 | Q55: 法学类
A56: 毕节 | B56: 070026 | C56: 毕节市七星关区社会保险事业局 | D56: 03 | E56: 参照公务员法管理单位 | F56: 毕节市七星关区碧海大道 | H56: 0857-8947782 | I56: 工作人员 | J56: 01 | K56: 社会保险业务工作 | L56: 1 | M56: 本科及以上 | N56: 学士及以上学位 | P56: 计算机及相关专业 | Q56: 电子科学与技术类、计算机科学与技术类、信息与通信工程类
A57: 毕节 | B57: 070026 | C57: 毕节市七星关区社会保险事业局 | D57: 03 | E57: 参照公务员法管理单位 | F57: 毕节市七星关区碧海大道 | H57: 0857-8947782 | I57: 工作人员 | J57: 02 | K57: 财务管理工作 | L57: 1 | M57: 本科及以上 | N57: 学士及以上学位 | P57: 会计及相关专业 | Q57: 会计学
A58: 毕节 | B58: 070027 | C58: 毕节市七星关区投资促进局 | D58: 03 | E58: 参照公务员法管理单位 | F58: 毕节市七星关区行政办公中心六楼 | H58: 0857-8947782 | I58: 工作人员 | J58: 01 | K58: 招商引资相关工作 | L58: 1 | M58: 本科及以上 | N58: 学士及以上学位 | P58: 法学类 | Q58: 法学类
A59: 毕节 | B59: 070027 | C59: 毕节市七星关区投资促进局 | D59: 03 | E59: 参照公务员法管理单位 | F59: 毕节市七星关区行政办公中心六楼 | H59: 0857-8947782 | I59: 工作人员 | J59: 02 | K59: 财务管理工作 | L59: 1 | M59: 本科及以上 | N59: 学士及以上学位 | P59: 经济学类 | Q59: 经济学学科门类
A60: 毕节 | B60: 070028 | C60: 毕节市七星关区卫生监督所 | D60: 03 | E60: 参照公务员法管理单位 | F60: 毕节市七星关区碧海大道 | H60: 0857-8947782 | I60: 工作人员 | J60: 01 | K60: 卫生和计划生育监督执法 | L60: 3 | M60: 本科及以上
A61: 毕节 | B61: 070029 | C61: 毕节市七星关区供销合作社联合社 | D61: 03 | E61: 参照公务员法管理单位 | F61: 七星关区清毕路8号 | H61: 0857-8947782 | I61: 办公室工作人员 | J61: 01 | K61: 办公室日常工作 | L61: 2 | M61: 本科及以上
A62: 毕节 | B62: 070029 | C62: 毕节市七星关区供销合作社联合社 | D62: 03 | E62: 参照公务员法管理单位 | F62: 七星关区清毕路8号 | H62: 0857-8947782 | I62: 办公室工作人员 | J62: 02 | K62: 财务管理工作 | L62: 1 | M62: 本科及以上 | P62: 会计及相关专业 | Q62: 会计学
A63: 毕节 | B63: 070030 | C63: 毕节市七星关区城市建设管理监察大队 | D63: 03 | E63: 参照公务员法管理单位 | F63: 毕节市七星关区水西大道市东办事处后面 | H63: 0857-8947782 | I63: 工作人员 | J63: 01 | K63: 城市管理执法工作 | L63: 3 | M63: 本科及以上 | N63: 学士及以上学位 | P63: 法学类 | Q63: 法学类
A64: 毕节 | B64: 070030 | C64: 毕节市七星关区城市建设管理监察大队 | D64: 03 | E64: 参照公务员法管理单位 | F64: 毕节市七星关区水西大道市东办事处后面 | H64: 0857-8947782 | I64: 工作人员 | J64: 02 | K64: 城市管理宣传工作 | L64: 1 | M64: 本科及以上 | N64: 学士及以上学位 | P64: 新闻传播学类、新闻类 | Q64: 新闻传播学类
A65: 毕节 | B65: 070030 | C65: 毕节市七星关区城市建设管理监察大队 | D65: 03 | E65: 参照公务员法管理单位 | F65: 毕节市七星关区水西大道市东办事处后面 | H65: 0857-8947782 | I65: 工作人员 | J65: 03 | K65: 城市管理数字化工作 | L65: 1 | M65: 本科及以上 | N65: 学士及以上学位 | P65: 计算机及相关专业 | Q65: 电子科学与技术类、计算机科学与技术类、信息与通信工程类
A66: 毕节 | B66: 070031 | C66: 毕节市七星关区团结彝族苗族乡人民政府 | D66: 04 | E66: 行政机关 | F66: 毕节市七星关区团结彝族苗族乡街上 | H66: 0857-8947782 | I66: 工作人员 | J66: 01 | K66: 办公室日常工作 | L66: 1 | M66: 本科及以上 | W66: 七星关区户籍（生源）
A67: 毕节 | B67: 070032 | C67: 毕节市七星关区田坎彝族乡人民政府 | D67: 04 | E67: 行政机关 | F67: 毕节市七星关区田坎彝族乡街上 | H67: 0857-8947782 | I67: 工作人员 | J67: 01 | K67: 办公室日常工作 | L67: 1 | M67: 本科及以上 | S67: 是 | T67: 是 | W67: 定向招录“四项目人员”或退役大学生士兵
A68: 毕节 | B68: 070033 | C68: 毕节市七星关区生机镇人民政府 | D68: 04 | E68: 行政机关 | F68: 毕节市七星关区生机镇街上 | H68: 0857-8947782 | I68: 工作人员 | J68: 01 | K68: 办公室日常工作 | L68: 1 | M68: 本科及以上 | S68: 是 | T68: 是 | W68: 定向招录“四项目人员”或退役大学生士兵
A69: 毕节 | B69: 070034 | C69: 毕节市七星关区亮岩镇人民政府 | D69: 04 | E69: 行政机关 | F69: 毕节市七星关区亮岩镇街上 | H69: 0857-8947782 | I69: 工作人员 | J69: 01 | K69: 办公室日常工作 | L69: 2 | M69: 本科及以上
A70: 毕节 | B70: 070035 | C70: 毕节市七星关区长春堡镇人民政府 | D70: 04 | E70: 行政机关 | F70: 毕节市七星关区长春堡镇街上 | H70: 0857-8947782 | I70: 工作人员 | J70: 01 | K70: 办公室日常工作 | L70: 1 | M70: 本科及以上 | S70: 是 | T70: 是 | W70: 定向招录“四项目人员”或退役大学生士兵
A71: 毕节 | B71: 070036 | C71: 毕节市七星关区水箐镇人民政府 | D71: 04 | E71: 行政机关 | F71: 毕节市七星关区水箐镇街上 | H71: 0857-8947782 | I71: 工作人员 | J71: 01 | K71: 办公室日常工作 | L71: 1 | M71: 本科及以上
A72: 毕节 | B72: 070037 | C72: 毕节市七星关区小吉场镇人民政府 | D72: 04 | E72: 行政机关 | F72: 毕节市七星关区小吉场镇街上 | H72: 0857-8947782 | I72: 工作人员 | J72: 01 | K72: 办公室日常工作 | L72: 2 | M72: 本科及以上
A73: 毕节 | B73: 070038 | C73: 毕节市七星关区杨家湾镇人民政府 | D73: 04 | E73: 行政机关 | F73: 毕节市七星关区杨家湾镇街上 | H73: 0857-8947782 | I73: 工作人员 | J73: 01 | K73: 办公室日常工作 | L73: 1 | M73: 本科及以上
A74: 毕节 | B74: 070039 | C74: 毕节市七星关区撒拉溪镇人民政府 | D74: 04 | E74: 行政机关 | F74: 毕节市七星关区撒拉溪镇街上 | H74: 0857-8947782 | I74: 工作人员 | J74: 01 | K74: 办公室日常工作 | L74: 1 | M74: 本科及以上 | S74: 是 | T74: 是 | W74: 定向招录“四项目人员”或退役大学生士兵
A75: 毕节 | B75: 070040 | C75: 大方县人力资源和社会保障局 | D75: 03 | E75: 行政机关 | F75: 大方县杜鹃大道 | H75: 0857-5250191 | I75: 工作人员 | J75: 01 | K75: 办公室日常工作 | L75: 1 | M75: 本科及以上 | N75: 学士及以上学位
A76: 毕节 | B76: 070041 | C76: 大方县财政局 | D76: 03 | E76: 行政机关 | F76: 大方县大方镇南街 | H76: 0857-5250191 | I76: 预算管理工作人员 | J76: 01 | K76: 预算管理相关工作 | L76: 1 | M76: 本科及以上 | N76: 学士及以上学位 | P76: 会计及相关专业、财政学类 | Q76: 会计学
A77: 毕节 | B77: 070042 | C77: 大方县发展和改革局 | D77: 03 | E77: 行政机关 | F77: 大方县红旗街道办事处人民南路 | G77: dfcz.gov.cn | H77: 0857-5250191 | I77: 工作人员 | J77: 01 | K77: 办公室日常工作 | L77: 1 | M77: 本科及以上 | N77: 学士及以上学位
A78: 毕节 | B78: 070043 | C78: 大方县社会保险事业局 | D78: 03 | E78: 参照公务员法管理单位 | F78: 大方县人民政府政府服务中心 | H78: 0857-5250191 | I78: 社保局工作人员 | J78: 01 | K78: 社保局日常工作 | L78: 2 | M78: 本科及以上 | N78: 学士及以上学位
A79: 毕节 | B79: 070044 | C79: 大方县市场监督管理局 | D79: 03 | E79: 行政机关 | F79: 大方县交通路 | H79: 0857-5250191 | I79: 办公室工作人员 | J79: 01 | K79: 办公室日常工作 | L79: 1 | M79: 本科及以上 | N79: 学士及以上学位
A80: 毕节 | B80: 070045 | C80: 大方县卫生和计划生育局 | D80: 03 | E80: 行政机关 | F80: 大方县奢香大道中段 | H80: 0857-5250191 | I80: 办公室工作人员 | J80: 01 | K80: 办公室日常工作 | L80: 1 | M80: 本科及以上 | N80: 学士及以上学位
A81: 毕节 | B81: 070045 | C81: 大方县卫生和计划生育局 | D81: 03 | E81: 行政机关 | F81: 大方县奢香大道中段 | H81: 0857-5250191 | I81: 规划财务股工作人员 | J81: 02 | K81: 财务会计工作 | L81: 1 | M81: 本科及以上 | N81: 学士及以上学位 | P81: 会计及相关专业 | Q81: 会计学
A82: 毕节 | B82: 070046 | C82: 大方县文体广电旅游局 | D82: 03 | E82: 行政机关 | F82: 大方县西大街北段奢香公园内 | H82: 0857-5250191 | I82: 政工财务股科员 | J82: 01 | K82: 财务工作 | L82: 1 | M82: 本科及以上 | N82: 学士及以上学位 | P82: 会计及相关专业 | Q82: 会计学
A83: 毕节 | B83: 070047 | C83: 大方县水库和生态移民局 | D83: 03 | E83: 参照公务员法管理单位 | F83: 大方县迎宾大道扶贫大街 | H83: 0857-5250191 | I83: 办公室工作人员 | J83: 01 | K83: 办公室日常工作 | L83: 1 | M83: 本科及以上 | N83: 学士及以上学位
A84: 毕节 | B84: 070048 | C84: 大方县工业经济和能源局 | D84: 03 | E84: 行政机关 | F84: 大方县奢香大道北段 | H84: 0857-5250191 | I84: 办公室工作人员 | J84: 01 | K84: 文秘工作 | L84: 1 | M84: 本科及以上 | N84: 学士及以上学位
A85: 毕节 | B85: 070049 | C85: 大方县国土资源局 | D85: 03 | E85: 行政机关 | F85: 大方县县委大院 | H85: 0857-5250191 | I85: 办公室工作人员 | J85: 01 | K85: 国土资源管理 | L85: 2 | M85: 本科及以上 | N85: 学士及以上学位 | P85: 公共管理类 | Q85: 公共管理类
A86: 毕节 | B86: 070050 | C86: 大方县投资促进局 | D86: 03 | E86: 参照公务员法管理单位 | F86: 大方县顺德大道北段加水坡永利酒店对面 | H86: 0857-5250191 | I86: 工作人员 | J86: 01 | K86: 财务工作 | L86: 1 | M86: 本科及以上 | N86: 学士及以上学位 | P86: 工商管理类 | Q86: 会计学
A87: 毕节 | B87: 070050 | C87: 大方县投资促进局 | D87: 03 | E87: 参照公务员法管理单位 | F87: 大方县顺德大道北段加水坡永利酒店对面 | H87: 0857-5250191 | I87: 办公室工作人员 | J87: 02 | K87: 办公室日常工作 | L87: 1 | M87: 本科及以上 | N87: 学士及以上学位
A88: 毕节 | B88: 070051 | C88: 黔西县财政局 | D88: 03 | E88: 行政机关 | F88: 黔西县水西大厦22楼 | H88: 0857-4246135 | I88: 工作人员 | J88: 01 | K88: 金融相关业务工作 | L88: 1 | M88: 本科及以上 | N88: 学士及以上学位 | P88: 金融学类 | Q88: 应用经济学类
A89: 毕节 | B89: 070051 | C89: 黔西县财政局 | D89: 03 | E89: 行政机关 | F89: 黔西县水西大厦22楼 | H89: 0857-4246135 | I89: 工作人员 | J89: 02 | K89: 会计工作 | L89: 1 | M89: 本科及以上 | N89: 学士及以上学位 | P89: 会计及相关专业 | Q89: 会计学
A90: 毕节 | B90: 070052 | C90: 黔西县统计局 | D90: 03 | E90: 行政机关 | F90: 黔西县行政中心3楼 | H90: 0857-4246135 | I90: 工作人员 | J90: 01 | K90: 法律服务工作 | L90: 1 | M90: 本科及以上 | N90: 学士及以上学位 | P90: 法学类 | Q90: 法学类
A91: 毕节 | B91: 070053 | C91: 黔西县发展和改革局 | D91: 03 | E91: 行政机关 | F91: 黔西县行政中心2楼 | H91: 0857-4246135 | I91: 工作人员 | J91: 01 | K91: 相关经济业务工作 | L91: 1 | M91: 本科及以上 | N91: 学士及以上学位 | P91: 经济学类
A92: 毕节 | B92: 070054 | C92: 黔西县卫生和计划生育局 | D92: 03 | E92: 行政机关 | F92: 黔西县迎宾大道中段 | H92: 0857-4246135 | I92: 工作人员 | J92: 01 | K92: 办公室日常工作 | L92: 1 | M92: 本科及以上 | N92: 学士及以上学位 | P92: 中国语言文学类
A93: 毕节 | B93: 070054 | C93: 黔西县卫生和计划生育局 | D93: 03 | E93: 行政机关 | F93: 黔西县迎宾大道中段 | H93: 0857-4246135 | I93: 工作人员 | J93: 02 | K93: 医政工作 | L93: 1 | M93: 本科及以上 | N93: 学士及以上学位 | P93: 临床医学类 | Q93: 临床医学类
A94: 毕节 | B94: 070054 | C94: 黔西县卫生和计划生育局 | D94: 03 | E94: 行政机关 | F94: 黔西县迎宾大道中段 | H94: 0857-4246135 | I94: 工作人员 | J94: 03 | K94: 会计工作 | L94: 1 | M94: 本科及以上 | N94: 学士及以上学位 | P94: 会计及相关专业 | Q94: 会计学
A95: 毕节 | B95: 070055 | C95: 黔西县档案局 | D95: 03 | E95: 参照公务员法管理单位 | F95: 黔西县城东路29-17号 | H95: 0857-4246135 | I95: 工作人员 | J95: 01 | K95: 档案信息化建设及管理 | L95: 1 | M95: 本科及以上 | N95: 学士及以上学位 | P95: 计算机及相关专业 | Q95: 计算机科学与技术类
A96: 毕节 | B96: 070056 | C96: 黔西县房产管理局 | D96: 03 | E96: 参照公务员法管理单位 | F96: 黔西县水西大厦 | H96: 0857-4246135 | I96: 工作人员 | J96: 01 | K96: 会计工作 | L96: 1 | M96: 大专及以上 | O96: 会计及相关专业 | P96: 会计及相关专业 | Q96: 会计学
A97: 毕节 | B97: 070057 | C97: 黔西县会计核算中心 | D97: 03 | E97: 参照公务员法管理单位 | F97: 黔西县水西大厦21楼 | H97: 0857-4246135 | I97: 工作人员 | J97: 01 | K97: 会计工作 | L97: 2 | M97: 本科及以上 | N97: 学士及以上学位 | P97: 会计及相关专业 | Q97: 会计学
A98: 毕节 | B98: 070058 | C98: 黔西县司法局 | D98: 04 | E98: 行政机关 | F98: 黔西县城关镇文化路中段 | H98: 0857-4246135 | I98: 谷里司法所司法助理员 | J98: 01 | K98: 法律服务工作 | L98: 1 | M98: 本科及以上 | N98: 学士及以上学位 | P98: 法学类 | Q98: 法学类
A99: 毕节 | B99: 070059 | C99: 黔西县市场监督管理局 | D99: 04 | E99: 行政机关 | F99: 黔西县水西大道348号 | H99: 0857-4246135 | I99: 城关二分局工作员 | J99: 01 | K99: 食品督查工作 | L99: 1 | M99: 本科及以上 | N99: 学士及以上学位 | P99: 食品科学与工程类 | Q99: 食品科学与工程类
A100: 毕节 | B100: 070059 | C100: 黔西县市场监督管理局 | D100: 04 | E100: 行政机关 | F100: 黔西县水西大道348号 | H100: 0857-4246135 | I100: 红林乡市场监督管理所工作人员 | J100: 02 | K100: 法律服务工作 | L100: 1 | M100: 本科及以上 | N100: 学士及以上学位 | P100: 法学类 | Q100: 法学类
A101: 毕节 | B101: 070060 | C101: 黔西县金兰镇人民政府 | D101: 04 | E101: 行政机关 | F101: 黔西县金兰镇金兰社区 | H101: 0857-4246135 | I101: 工作人员 | J101: 01 | K101: 办公室日常工作 | L101: 2 | M101: 本科及以上 | N101: 学士及以上学位
A102: 毕节 | B102: 070061 | C102: 黔西县素朴镇人民政府 | D102: 04 | E102: 行政机关 | F102: 黔西县素朴镇学堂社区 | H102: 0857-4246135 | I102: 工作人员 | J102: 01 | K102: 办公室日常工作 | L102: 1 | M102: 大专及以上 | S102: 是 | T102: 是 | W102: 定向招录“四项目人员”或退役大学生士兵
A103: 毕节 | B103: 070062 | C103: 黔西县钟山镇人民政府 | D103: 04 | E103: 行政机关 | F103: 黔西县钟山镇金钟社区 | H103: 0857-4246135 | I103: 工作人员 | J103: 01 | K103: 办公室日常工作 | L103: 2 | M103: 本科及以上 | N103: 学士及以上学位
A104: 毕节 | B104: 070063 | C104: 黔西县重新镇人民政府 | D104: 04 | E104: 行政机关 | F104: 黔西县重新镇三重堰社区 | H104: 0857-4246135 | I104: 工作人员 | J104: 01 | K104: 办公室日常工作 | L104: 1 | M104: 本科及以上 | S104: 是 | T104: 是 | W104: 定向招录“四项目人员”或退役大学生士兵
A105: 毕节 | B105: 070064 | C105: 黔西县红林彝族苗族乡人民政府 | D105: 04 | E105: 行政机关 | F105: 黔西县红林彝族苗族乡金林社区 | H105: 0857-4246135 | I105: 工作人员 | J105: 01 | K105: 办公室日常工作 | L105: 1 | M105: 大专及以上
A106: 毕节 | B106: 070065 | C106: 黔西县铁石苗族彝族乡人民政府 | D106: 04 | E106: 行政机关 | F106: 黔西县铁石苗族彝族乡红旗社区 | H106: 0857-4246135 | I106: 工作人员 | J106: 01 | K106: 办公室日常工作 | L106: 1 | M106: 本科及以上
A107: 毕节 | B107: 070066 | C107: 黔西县新仁苗族乡人民政府 | D107: 04 | E107: 行政机关 | F107: 黔西县新仁苗族乡仁慕社区 | H107: 0857-4246135 | I107: 工作人员 | J107: 01 | K107: 办公室日常工作 | L107: 1 | M107: 大专及以上
A108: 毕节 | B108: 070067 | C108: 金沙县化觉镇人民政府 | D108: 04 | E108: 行政机关 | F108: 金沙县化觉镇 | H108: 0857-7252760 | I108: 工作人员 | J108: 01 | K108: 办公室日常工作 | L108: 1 | M108: 本科及以上
A109: 毕节 | B109: 070068 | C109: 金沙县禹谟镇人民政府 | D109: 04 | E109: 行政机关 | F109: 金 沙县禹谟镇人民政府 | H109: 0857-7252760 | I109: 工作人员 | J109: 01 | K109: 办公室日常工作 | L109: 1 | M109: 本科及以上
A110: 毕节 | B110: 070069 | C110: 金沙县岚头镇人民政府 | D110: 04 | E110: 行政机关 | F110: 金沙县岚头镇岚丰社区 | H110: 0857-7252760 | I110: 工作人员 | J110: 01 | K110: 办公室日常工作 | L110: 1 | M110: 本科及以上
A111: 毕节 | B111: 070070 | C111: 金沙县长坝镇人民政府 | D111: 04 | E111: 行政机关 | F111: 金沙县长 坝镇 | H111: 0857-7252760 | I111: 工作人员 | J111: 01 | K111: 办公室日常工作 | L111: 1 | M111: 本科及以上
A112: 毕节 | B112: 070071 | C112: 金沙县木孔镇人民政府 | D112: 04 | E112: 行政机关 | F112: 金沙县木孔镇信安社区 | H112: 0857-7252760 | I112: 工作人员 | J112: 01 | K112: 办公室日常工作 | L112: 1 | M112: 本科及以上
A113: 毕节 | B113: 070072 | C113: 金沙县高坪镇人民政府 | D113: 04 | E113: 行政机关 | F113: 金沙县高坪镇高坪街上 | H113: 0857-7252760 | I113: 工作人员 | J113: 01 | K113: 办公室日常工作 | L113: 1 | M113: 本科及以上
A114: 毕节 | B114: 070073 | C114: 金沙县市场监督管理局 | D114: 04 | E114: 行政机关 | F114: 金沙县 桂花乡街上 | H114: 0857-7252760 | I114: 桂花乡食品药品监督管理所工作人员 | J114: 01 | K114: 办公室日常工作 | L114: 1 | M114: 本科及以上
A115: 毕节 | B115: 070074 | C115: 金沙县会计核算中心 | D115: 03 | E115: 参照公务员法管理单位 | F115: 金沙县鼓场街道城治路83号 | H115: 0857-7252760 | I115: 工作人员 | J115: 01 | K115: 财政国库资金支付管理 | L115: 2 | M115: 本科及以上 | P115: 经济学学科门类 | Q115: 经济学学科门类
A116: 毕节 | B116: 070075 | C116: 金沙县投资促进局 | D116: 03 | E116: 参照公务员法管理单位 | F116: 金沙经济开发区管委会7楼 | H116: 0857-7252760 | I116: 工作人员 | J116: 01 | K116: 招商引资工作 | L116: 2 | M116: 本科及以上
A117: 毕节 | B117: 070076 | C117: 金沙县社会保险事业局 | D117: 03 | E117: 参照公务员法管理单位 | F117: 金沙县鼓场街道朗月广场 | H117: 0857-7252760 | I117: 工作人员 | J117: 01 | K117: 办公室日常工作 | L117: 1 | M117: 本科及以上 | P117: 会计及相关专业 | Q117: 会计、会计学
A118: 毕节 | B118: 070077 | C118: 金沙县政务服务中心 | D118: 03 | E118: 参照公务员法管理单位 | F118: 金沙县鼓场街道朗月国际广场政务服务中心 | H118: 0857-7252760 | I118: 工作人员 | J118: 01 | K118: 办公室日常工作 | L118: 2 | M118: 本科及以上 | N118: 学士及以上学位 | P118: 计算机及相关专业 | Q118: 电子科学与技术类、计算机科学与技术类、信息与通信工程类
A119: 毕节 | B119: 070078 | C119: 织金县水库和生态移民局 | D119: 03 | E119: 参照公务员法管理单位 | F119: 织金县金北路20号 | H119: 0857-7638338 | I119: 工作人员 | J119: 01 | K119: 从事办公室工作 | L119: 2 | M119: 本科及以上 | N119: 学士及以上学位
A120: 毕节 | B120: 070079 | C120: 纳雍县人民政府文昌街道办事处 | D120: 04 | E120: 行政机关 | F120: 纳雍县文昌街道办事处星宇小区 | H120: 0857-3531064 | I120: 工作人员 | J120: 01 | K120: 办公室日常工作 | L120: 1 | M120: 本科及以上 | N120: 学士及以上学位
A121: 毕节 | B121: 070080 | C121: 纳雍县人民政府雍熙街道办事处 | D121: 04 | E121: 行政机关 | F121: 纳雍县小十字中华路 | H121: 0857-3531064 | I121: 工作人员 | J121: 01 | K121: 办公室日常工作 | L121: 2 | M121: 本科及以上 | N121: 学士及以上学位
A122: 毕节 | B122: 070081 | C122: 纳雍县曙光镇人民政府 | D122: 04 | E122: 行政机关 | F122: 纳雍县曙光镇鼠场社区 | H122: 0857-3531064 | I122: 工作人员 | J122: 01 | K122: 机关信息化建设 | L122: 1 | M122: 本科及以上 | N122: 学士及以上学位
A123: 毕节 | B123: 070082 | C123: 纳雍县百兴镇人民政府 | D123: 04 | E123: 行政机关 | F123: 纳雍县百兴镇新街村街上组 | H123: 0857-3531064 | I123: 工作人员 | J123: 01 | K123: 办公室日常工作 | L123: 2 | M123: 本科及以上 | N123: 学士及以上学位
A124: 毕节 | B124: 070083 | C124: 纳雍县勺窝镇人民政府 | D124: 04 | E124: 行政机关 | F124: 纳雍县勺窝镇黄河社区街上组 | H124: 0857-3531064 | I124: 工作人员 | J124: 01 | K124: 办公室日常工作 | L124: 1 | M124: 本科及以上 | N124: 学士及以上学位 | S124: 是 | T124: 是 | W124: 定向招录“四项目人员”或退役大学生士兵
A125: 毕节 | B125: 070084 | C125: 纳雍县阳长镇人民政府 | D125: 04 | E125: 行政机关 | F125: 纳雍县阳长镇马店村 | H125: 0857-3531064 | I125: 工作人员 | J125: 01 | K125: 办公室日常工作 | L125: 1 | M125: 本科及以上 | N125: 学士及以上学位 | S125: 是 | T125: 是 | W125: 定向招录“四项目人员”或退役大学生士兵
A126: 毕节 | B126: 070085 | C126: 纳雍县维新镇人民政府 | D126: 04 | E126: 行政机关 | F126: 纳雍县维新镇朝阳社区 | H126: 0857-3531064 | I126: 工作人员 | J126: 01 | K126: 办公室日常工作 | L126: 1 | M126: 本科及以上 | N126: 学士及以上学位
A127: 毕节 | B127: 070086 | C127: 纳雍县玉龙坝镇人民政府 | D127: 04 | E127: 行政机关 | F127: 纳雍县玉龙坝镇街上村九组 | H127: 0857-3531064 | I127: 工作人员 | J127: 01 | K127: 办公室日常工作 | L127: 1 | M127: 本科及以上 | N127: 学士及以上学位
A128: 毕节 | B128: 070087 | C128: 纳雍县新房彝族苗族乡人民政府 | D128: 04 | E128: 行政机关 | F128: 纳雍县新房彝族苗族乡新房街上 | H128: 0857-3531064 | I128: 工作人员 | J128: 01 | K128: 办公室日常工作 | L128: 1 | M128: 本科及以上 | N128: 学士及以上学位 | W128: 本县户籍（生源）
A129: 毕节 | B129: 070088 | C129: 纳雍县昆寨苗族彝族白族乡人民政府 | D129: 04 | E129: 行政机关 | F129: 纳雍县昆寨苗族彝族白族乡人民政府 | H129: 0857-3531064 | I129: 工作人员 | J129: 01 | K129: 办公室日常工作 | L129: 1 | M129: 本科及以上 | N129: 学士及以上学位 | W129: 本县户籍（生源）
A130: 毕节 | B130: 070089 | C130: 纳雍县厍东关彝族白族苗族乡人民政府 | D130: 04 | E130: 行政机关 | F130: 纳雍县厍东关彝族白族苗族乡 | H130: 0857-3531064 | I130: 工作人员 | J130: 01 | K130: 办公室日常工作 | L130: 1 | M130: 本科及以上 | N130: 学士及以上学位
A131: 毕节 | B131: 070090 | C131: 威宁彝族回族苗族自治县社会保险事业局 | D131: 03 | E131: 参照公务员法管理单位 | F131: 威宁自治县海边街道明珠大道 | H131: 0857-6232557 | I131: 办公室工作人员 | J131: 01 | K131: 机关信息化建设 | L131: 1 | M131: 本科及以上 | N131: 学士及以上学位 | P131: 计算机科学与技术、软件工程、网络工程 | Q131: 计算机科学与技术类
A132: 毕节 | B132: 070090 | C132: 威宁彝族回族苗族自治县社会保险事业局 | D132: 03 | E132: 参照公务员法管理单位 | F132: 威宁自治县海边街道明珠大道 | H132: 0857-6232557 | I132: 办公室工作人员 | J132: 02 | K132: 财务会计 | L132: 1 | M132: 本科及以上 | N132: 学士及以上学位 | P132: 经济学类、会计及相关专业 | Q132: 经济学学科门类、会计学
A133: 毕节 | B133: 070091 | C133: 威宁彝族回族苗族自治县会计核算中心 | D133: 03 | E133: 参照公务员法管理单位 | F133: 威宁县海边街道上善路 | H133: 0857-6232557 | I133: 办公室工作人员 | J133: 01 | K133: 财务会计 | L133: 2 | M133: 本科及以上 | N133: 学士及以上学位 | P133: 经济学类、会计及相关专业 | Q133: 经济学学科门类、会计学
A134: 毕节 | B134: 070091 | C134: 威宁彝族回族苗族自治县会计核算中心 | D134: 03 | E134: 参照公务员法管理单位 | F134: 威宁县海边街道上善路 | H134: 0857-6232557 | I134: 办公室工作人员 | J134: 02 | K134: 文秘工作 | L134: 1 | M134: 本科及以上 | N134: 学士及以上学位 | P134: 中国语言文学类 | Q134: 中国语言文学类
A135: 毕节 | B135: 070092 | C135: 威宁彝族回族苗族自治县城市管理局 | D135: 03 | E135: 参照公务员法管理单位 | F135: 威宁县六桥街道荷叶路 | H135: 0857-6232557 | I135: 办公室工作人员 | J135: 01 | K135: 文秘工作 | L135: 1 | M135: 本科及以上 | N135: 学士及以上学位 | P135: 中国语言文学类 | Q135: 中国语言文学类
A136: 毕节 | B136: 070092 | C136: 威宁彝族回族苗族自治县城市管理局 | D136: 03 | E136: 参照公务员法管理单位 | F136: 威宁县六桥街道荷叶路 | H136: 0857-6232557 | I136: 办公室工作人员 | J136: 02 | K136: 办公室日常工作 | L136: 1 | M136: 本科及以上 | N136: 学士及以上学位
A137: 毕节 | B137: 070093 | C137: 威宁彝族回族苗族自治县供销合作社联合社 | D137: 03 | E137: 参照公务员法管理单位 | F137: 威宁县建设西路铂金商务大厦 | H137: 0857-6232557 | I137: 办公室工作人员 | J137: 01 | K137: 机关信息化建设 | L137: 1 | M137: 本科及以上 | N137: 学士及以上学位 | P137: 计算机及相关专业 | Q137: 计算机科学与技术类
A138: 毕节 | B138: 070093 | C138: 威宁彝族回族苗族自治县供销合作社联合社 | D138: 03 | E138: 参照公务员法管理单位 | F138: 威宁县建设西路铂金商务大厦 | H138: 0857-6232557 | I138: 办公室工作人员 | J138: 02 | K138: 文秘工作 | L138: 1 | M138: 本科及以上 | N138: 学士及以上学位 | P138: 中国语言文学类 | Q138: 中国语言文学类
A139: 毕节 | B139: 070094 | C139: 威宁彝族回族苗族自治县政府政务服务中心 | D139: 03 | E139: 参照公务员法管理单位 | F139: 威宁县五里岗便民服务中心 | H139: 0857-6232557 | I139: 办公室工作人员 | J139: 01 | K139: 文秘工作 | L139: 1 | M139: 本科及以上 | N139: 学士及以上学位 | P139: 中国语言文学类、新闻传播学类、新闻类 | Q139: 中国语言文学类、新闻传播学类
A140: 毕节 | B140: 070095 | C140: 威宁彝族回族苗族自治县司法局 | D140: 04 | E140: 行政机关 | F140: 威宁县六桥街道望海路 | H140: 0857-6232557 | I140: 草海司法所司法助理员 | J140: 01 | K140: 司法助理 | L140: 1 | M140: 大专及以上 | O140: 法律大类、法学类 | P140: 法学学科门类 | Q140: 法学学科门类
A141: 毕节 | B141: 070095 | C141: 威宁彝族回族苗族自治县司法局 | D141: 04 | E141: 行政机关 | F141: 威宁县六桥街道望海路 | H141: 0857-6232557 | I141: 兔街司法所司法助理员 | J141: 02 | K141: 司法助理 | L141: 1 | M141: 大专及以上 | O141: 法律大类、法学类 | P141: 法学学科门类 | Q141: 法学学科门类
A142: 毕节 | B142: 070095 | C142: 威宁彝族回族苗族自治县司法局 | D142: 04 | E142: 行政机关 | F142: 威宁县六桥街道望海路 | H142: 0857-6232557 | I142: 金钟司法所司法助理员 | J142: 03 | K142: 司法助理 | L142: 1 | M142: 大专及以上 | O142: 法律大类、法学类 | P142: 法学学科门类 | Q142: 法学学科门类
A143: 毕节 | B143: 070095 | C143: 威宁彝族回族苗族自治县司法局 | D143: 04 | E143: 行政机关 | F143: 威宁县六桥街道望海路 | H143: 0857-6232557 | I143: 黑石头司法所司法助理员 | J143: 04 | K143: 司法助理 | L143: 1 | M143: 大专及以上 | O143: 法律大类、法学类 | P143: 法学学科门类 | Q143: 法学学科门类
A144: 毕节 | B144: 070095 | C144: 威宁彝族回族苗族自治县司法局 | D144: 04 | E144: 行政机关 | F144: 威宁县六桥街道望海路 | H144: 0857-6232557 | I144: 斗古司法所司法助理员 | J144: 05 | K144: 司法助理 | L144: 1 | M144: 大专及以上 | O144: 法律大类、法学类 | P144: 法学学科门类 | Q144: 法学学科门类
A145: 毕节 | B145: 070095 | C145: 威宁彝族回族苗族自治县司法局 | D145: 04 | E145: 行政机关 | F145: 威宁县六桥街道望海路 | H145: 0857-6232557 | I145: 云贵司法所司法助理员 | J145: 06 | K145: 司法助理 | L145: 1 | M145: 大专及以上 | O145: 法律大类、法学类 | P145: 法学学科门类 | Q145: 法学学科门类
A146: 毕节 | B146: 070096 | C146: 威宁彝族回族苗族自治县板底乡人民政府 | D146: 04 | E146: 行政机关 | F146: 威宁县板底乡 | H146: 0857-6232557 | I146: 办公室工作人员 | J146: 01 | K146: 办公室日常工作 | L146: 1 | M146: 大专及以上
A147: 毕节 | B147: 070097 | C147: 威宁彝族回族苗族自治县石门乡人民政府 | D147: 04 | E147: 行政机关 | F147: 威宁县石门乡 | H147: 0857-6232557 | I147: 办公室工作人员 | J147: 01 | K147: 办公室日常工作 | L147: 1 | M147: 大专及以上
A148: 毕节 | B148: 070098 | C148: 威宁彝族回族苗族自治县草海镇人民政府 | D148: 04 | E148: 行政机关 | F148: 威宁县草海镇 | H148: 0857-6232557 | I148: 办公室工作人员 | J148: 01 | K148: 办公室日常工作 | L148: 1 | M148: 大专及以上 | S148: 是 | T148: 是 | W148: 定向招录“四项目人员”或退役大学生士兵
A149: 毕节 | B149: 070099 | C149: 威宁彝族回族苗族自治县五里岗街道办事处 | D149: 04 | E149: 行政机关 | F149: 威宁县五里岗 | H149: 0857-6232557 | I149: 办公室工作人员 | J149: 01 | K149: 办公室日常工作 | L149: 1 | M149: 大专及以上
A150: 毕节 | B150: 070100 | C150: 威宁彝族回族苗族自治县金钟镇人民政府 | D150: 04 | E150: 行政机关 | F150: 威宁县金钟镇 | H150: 0857-6232557 | I150: 办公室工作人员 | J150: 01 | K150: 办公室日常工作 | L150: 1 | M150: 大专及以上 | S150: 是 | T150: 是 | W150: 定向招录“四项目人员”或退役大学生士兵
A151: 毕节 | B151: 070101 | C151: 威宁彝族回族苗族自治县观风海镇人民政府 | D151: 04 | E151: 行政机关 | F151: 威宁县观风海镇 | H151: 0857-6232557 | I151: 办公室工作人员 | J151: 01 | K151: 办公室日常工作 | L151: 1 | M151: 大专及以上
A152: 毕节 | B152: 070102 | C152: 威宁彝族回族苗族自治县迤那镇人民政府 | D152: 04 | E152: 行政机关 | F152: 威宁县迤那镇 | H152: 0857-6232557 | I152: 办公室工作人员 | J152: 01 | K152: 办公室日常工作 | L152: 1 | M152: 大专及以上 | S152: 是 | T152: 是 | W152: 定向招录“四项目人员”或退役大学生士兵
A153: 毕节 | B153: 070103 | C153: 威宁彝族回族苗族自治县羊街镇人民政府 | D153: 04 | E153: 行政机关 | F153: 威宁县羊街镇 | H153: 0857-6232557 | I153: 办公室工作人员 | J153: 01 | K153: 办公室日常工作 | L153: 1 | M153: 大专及以上 | S153: 是 | T153: 是 | W153: 定向招录“四项目人员”或退役大学生士兵
A154: 毕节 | B154: 070104 | C154: 威宁彝族回族苗族自治县双龙镇人民政府 | D154: 04 | E154: 行政机关 | F154: 威宁县双龙镇 | H154: 0857-6232557 | I154: 办公室工作人员 | J154: 01 | K154: 办公室日常工作 | L154: 1 | M154: 大专及以上
A155: 毕节 | B155: 070105 | C155: 威宁彝族回族苗族自治县麻乍镇人民政府 | D155: 04 | E155: 行政机关 | F155: 威宁县麻乍镇 | H155: 0857-6232557 | I155: 办公室工作人员 | J155: 01 | K155: 办公室日常工作 | L155: 2 | M155: 大专及以上
A156: 毕节 | B156: 070106 | C156: 威宁彝族回族苗族自治县哈喇河镇人民政府 | D156: 04 | E156: 行政机关 | F156: 威宁县哈喇河镇 | H156: 0857-6232557 | I156: 办公室工作人员 | J156: 01 | K156: 办公室日常工作 | L156: 1 | M156: 大专及以上
A157: 毕节 | B157: 070107 | C157: 赫章县妈姑镇人民政府 | D157: 04 | E157: 行政机关 | F157: 赫章县妈姑镇 | H157: 0857-3232881 | I157: 办公室工作人员 | J157: 01 | K157: 办公室日常工作 | L157: 2 | M157: 本科及以上
A158: 毕节 | B158: 070108 | C158: 赫章县财神镇人民政府 | D158: 04 | E158: 行政机关 | F158: 赫章县财神镇 | H158: 0857-3232881 | I158: 办公室工作人员 | J158: 01 | K158: 办公室日常工作 | L158: 1 | M158: 本科及以上
A159: 毕节 | B159: 070109 | C159: 赫章县兴发苗族彝族回族乡人民政府 | D159: 04 | E159: 行政机关 | F159: 赫章县兴发苗族彝族回族乡 | H159: 0857-3232881 | I159: 办公室工作人员 | J159: 01 | K159: 办公室日常工作 | L159: 1 | M159: 本科及以上
A160: 毕节 | B160: 070110 | C160: 赫章县松林坡白族彝族苗族乡人民政府 | D160: 04 | E160: 行政机关 | F160: 赫章县松林坡白族彝族苗族乡 | H160: 0857-3232881 | I160: 办公室工作人员 | J160: 01 | K160: 办公室日常工作 | L160: 1 | M160: 本科及以上
A161: 毕节 | B161: 070110 | C161: 赫章县松林坡白族彝族苗族乡人民政府 | D161: 04 | E161: 行政机关 | F161: 赫章县松林坡白族彝族苗族乡 | H161: 0857-3232881 | I161: 办公室工作人员 | J161: 02 | K161: 办公室日常工作 | L161: 1 | M161: 大专及以上 | U161: 白族、彝族、苗族 | W161: 本县户籍（生源）
A162: 毕节 | B162: 070111 | C162: 赫章县珠市彝族乡人民政府 | D162: 04 | E162: 行政机关 | F162: 赫章县珠市彝族乡 | H162: 0857-3232881 | I162: 办公室工作人员 | J162: 01 | K162: 办公室日常工作 | L162: 2 | M162: 本科及以上
A163: 毕节 | B163: 070112 | C163: 赫章县双坪彝族苗族乡人民政府 | D163: 04 | E163: 行政机关 | F163: 赫章县双坪彝族苗族乡 | H163: 0857-3232881 | I163: 办公室工作人员 | J163: 01 | K163: 办公室日常工作 | L163: 1 | M163: 本科及以上
A164: 毕节 | B164: 070112 | C164: 赫章县双坪彝族苗族乡人民政府 | D164: 04 | E164: 行政机关 | F164: 赫章县双坪彝族苗族乡 | H164: 0857-3232881 | I164: 办公室工作人员 | J164: 02 | K164: 办公室日常工作 | L164: 1 | M164: 大专及以上 | U164: 彝族、苗族 | W164: 本县户籍（生源）
A165: 毕节 | B165: 070113 | C165: 赫章县罗州乡人民政府 | D165: 04 | E165: 行政机关 | F165: 赫章县罗州乡 | H165: 0857-3232881 | I165: 办公室工作人员 | J165: 01 | K165: 办公室日常工作 | L165: 2 | M165: 本科及以上
A166: 毕节 | B166: 070114 | C166: 赫章县铁匠苗族乡人民政府 | D166: 04 | E166: 行政机关 | F166: 赫章县铁匠苗族乡 | H166: 0857-3232881 | I166: 办公室工作人员 | J166: 01 | K166: 办公室日常工作 | L166: 2 | M166: 大专及以上
A167: 毕节 | B167: 070115 | C167: 赫章县河镇彝族苗族乡人民政府 | D167: 04 | E167: 行政机关 | F167: 赫章县河镇彝族苗族乡 | H167: 0857-3232881 | I167: 办公室工作人员 | J167: 01 | K167: 办公室日常工作 | L167: 1 | M167: 大专及以上
A168: 毕节 | B168: 070116 | C168: 赫章县德卓乡人民政府 | D168: 04 | E168: 行政机关 | F168: 赫章县德卓乡 | H168: 0857-3232881 | I168: 办公室工作人员 | J168: 01 | K168: 办公室日常工作 | L168: 2 | M168: 大专及以上
A169: 毕节 | B169: 070117 | C169: 赫章县安乐溪乡人民政府 | D169: 04 | E169: 行政机关 | F169: 赫章县安乐溪乡 | H169: 0857-3232881 | I169: 办公室工作人员 | J169: 01 | K169: 办公室日常工作 | L169: 1 | M169: 大专及以上
A170: 毕节 | B170: 070117 | C170: 赫章县安乐溪乡人民政府 | D170: 04 | E170: 行政机关 | F170: 赫章县安乐溪乡 | H170: 0857-3232881 | I170: 办公室工作人员 | J170: 02 | K170: 办公室日常工作 | L170: 1 | M170: 大专及以上 | S170: 是 | T170: 是 | W170: 定向招录“四项目人员”或退役大学生士兵
A171: 毕节 | B171: 070118 | C171: 赫章县朱明乡人民政府 | D171: 04 | E171: 行政机关 | F171: 赫章县朱明乡 | H171: 0857-3232881 | I171: 办公室工作人员 | J171: 01 | K171: 办公室日常工作 | L171: 1 | M171: 本科及以上
A172: 毕节 | B172: 070118 | C172: 赫章县朱明乡人民政府 | D172: 04 | E172: 行政机关 | F172: 赫章县朱明乡 | H172: 0857-3232881 | I172: 办公室工作人员 | J172: 02 | K172: 办公室日常工作 | L172: 1 | M172: 大专及以上 | S172: 是 | T172: 是 | W172: 定向招录“四项目人员”或退役大学生士兵
A173: 毕节 | B173: 070119 | C173: 赫章县古基乡人民政府 | D173: 04 | E173: 行政机关 | F173: 赫章县古基乡 | H173: 0857-3232881 | I173: 办公室工作人员 | J173: 01 | K173: 办公室日常工作 | L173: 1 | M173: 本科及以上
A174: 毕节 | B174: 070120 | C174: 赫章县古达苗族彝族乡人民政府 | D174: 04 | E174: 行政机关 | F174: 赫章县古达苗族彝族乡 | H174: 0857-3232881 | I174: 办公室工作人员 | J174: 01 | K174: 办公室日常工作 | L174: 1 | M174: 本科及以上
A175: 毕节 | B175: 070121 | C175: 赫章县威奢乡人民政府 | D175: 04 | E175: 行政机关 | F175: 赫章县威奢乡 | H175: 0857-3232881 | I175: 办公室工作人员 | J175: 01 | K175: 办公室日常工作 | L175: 2 | M175: 本科及以上
A176: 毕节 | B176: 070122 | C176: 贵州百里杜鹃管理区管理委员会办公室 | D176: 03 | E176: 参照公务员法管理单位 | F176: 贵州百里杜鹃管理区普底彝族苗族白族乡 | G176: http://bldj.bijie.gov.cn/ | H176: 0857-4887166 | I176: 办公室工作人员 | J176: 01 | K176: 法律相关工作 | L176: 1 | M176: 本科及以上 | N176: 学士及以上学位 | P176: 法学类 | Q176: 法学类 | W176: 通过国家司法考试取得C证及以上不限专业
A177: 毕节 | B177: 070123 | C177: 贵州百里杜鹃管理区教育局 | D177: 03 | E177: 参照公务员法管理单位 | F177: 贵州百里杜鹃管理区普底彝族苗族白族乡 | G177: http://bldj.bijie.gov.cn/ | H177: 0857-4887166 | I177: 基建股工作人员 | J177: 01 | K177: 教育工程日常管理工作 | L177: 1 | M177: 大专及以上 | O177: 土建大类 | P177: 土建类、土木类 | Q177: 建筑学类
A178: 毕节 | B178: 070124 | C178: 贵州百里杜鹃管理区人力资源和社会保障局 | D178: 03 | E178: 参照公务员法管理单位 | F178: 贵州百里杜鹃管理区普底彝族苗族白族乡 | G178: http://bldj.bijie.gov.cn/ | H178: 0857-4887166 | I178: 办公室工作人员 | J178: 01 | K178: 办公室文秘工作 | L178: 1 | M178: 本科及以上 | N178: 学士及以上学位 | P178: 中国语言文学类 | Q178: 中国语言文学类
A179: 毕节 | B179: 070125 | C179: 贵州百里杜鹃管理区民政局 | D179: 03 | E179: 参照公务员法管理单位 | F179: 贵州百里杜鹃管理区普底彝族苗族白族乡 | G179: http://bldj.bijie.gov.cn/ | H179: 0857-4887166 | I179: 殡葬管理股工作员 | J179: 01 | K179: 殡葬日常管理工作 | L179: 1 | M179: 本科及以上 | N179: 学士及以上学位
A180: 毕节 | B180: 070126 | C180: 贵州百里杜鹃管理区国土资源(分)局 | D180: 03 | E180: 参照公务员法管理单位 | F180: 贵州百里杜鹃管理区普底彝族苗族白族乡 | G180: http://bldj.bijie.gov.cn/ | H180: 0857-4887166 | I180: 测绘股工作人员 | J180: 01 | K180: 管理基础测绘、地籍测绘、行政区域界线测绘等工作 | L180: 1 | M180: 本科及以上 | N180: 学士及以上学位 | P180: 测绘工程专业、遥感科学与技术专业、土地资源管理专业 | Q180: 大地测量学与测量工程专业、摄影测量与遥感专业、地图制图学与地理信息工程专业、土地资源管理专业
A181: 毕节 | B181: 070127 | C181: 毕节市司法局百里杜鹃管理区分局 | D181: 04 | E181: 行政机关 | F181: 贵州百里杜鹃管理区金坡苗族彝族满族乡 | G181: http://bldj.bijie.gov.cn/ | H181: 0857-4887166 | I181: 金坡司法所司法助理员 | J181: 01 | K181: 司法助理工作 | L181: 1 | M181: 本科及以上 | N181: 学士及以上学位 | P181: 法学类 | Q181: 法学类 | W181: 通过国家司法考试取得C证及以上不限专业
A182: 毕节 | B182: 070127 | C182: 毕节市司法局百里杜鹃管理区分局 | D182: 04 | E182: 行政机关 | F182: 贵州百里杜鹃管理区沙厂彝族乡 | G182: http://bldj.bijie.gov.cn/ | H182: 0857-4887166 | I182: 沙厂司法所司法助理员 | J182: 02 | K182: 司法助理工作 | L182: 1 | M182: 本科及以上 | N182: 学士及以上学位 | P182: 法学类 | Q182: 法学类 | W182: 通过国家司法考试取得C证及以上不限专业
A183: 毕节 | B183: 070128 | C183: 贵州百里杜鹃管理区普底彝族苗族白族乡人民政府 | D183: 04 | E183: 行政机关 | F183: 贵州百里杜鹃管理区普底彝族苗族白族乡 | G183: http://bldj.bijie.gov.cn/ | H183: 0857-4887166 | I183: 党的建设办公室工作员 | J183: 01 | K183: 办公室日常工作 | L183: 1 | M183: 本科及以上 | N183: 学士及以上学位
A184: 毕节 | B184: 070129 | C184: 贵州百里杜鹃管理区金坡苗族彝族满族乡人民政府 | D184: 04 | E184: 行政机关 | F184: 贵州百里杜鹃管理区金坡苗族彝族满族乡 | G184: http://bldj.bijie.gov.cn/ | H184: 0857-4887166 | I184: 经济发展办公室工作人员 | J184: 01 | K184: 办公室日常工作 | L184: 1 | M184: 大专及以上 | S184: 是 | T184: 是 | W184: 定向招录“四项目人员”或退役大学生士兵
A185: 毕节 | B185: 070130 | C185: 贵州百里杜鹃管理区仁和彝族苗族乡人民政府 | D185: 04 | E185: 行政机关 | F185: 贵州百里杜鹃管理区仁和彝族苗族乡 | G185: http://bldj.bijie.gov.cn/ | H185: 0857-4887166 | I185: 旅游发展办公室工作员 | J185: 01 | K185: 办公室日常工作 | L185: 1 | M185: 大专及以上

Sheet 铜仁市
B1: 铜仁市2018年市、县、乡三级机关面向社会公开招录公务员职位表
A2: 招录单 位代码 | B2: 单位名称 | C2: 层级代码 | D2: 机构 性质 | E2: 单位地址 | F2: 单位 网站 | G2: 单位咨 询电话 | H2: 职位 名称 | I2: 职位代码 | J2: 职位 简介 | K2: 招录人数 | L2: 学历 要求 | M2: 学位 要求 | N2: 专业要求 | Q2: 政治面貌要求 | R2: 定向招录项目要求 | U2: 基层工作经历时间 | V2: 其他报考条件 | W2: 职位工作性质及需要说明的其他事项
N3: 大专 | O3: 本科 | P3: 研究生 | R3: 四项目人员 | S3: 退役大学生士兵 | T3: 少数民族
A4: 060001 | B4: 铜仁市中级人民法院 | C4: 02 | D4: 审判机关 | E4: 碧江区东太大道1号 | G4: 0856-5930067 | H4: 审判辅助人员 | I4: 01 | J4: 从事审判辅助工作 | K4: 2 | L4: 本科及以上 | M4: 学士及以上学位 | O4: 法学类 | P4: 宪法学与行政法学、刑法学、民商法学、诉讼法学
A5: 060001 | B5: 铜仁市中级人民法院 | C5: 02 | D5: 审判机关 | E5: 碧江区东太大道1号 | G5: 0856-5930067 | H5: 审判辅助人员 | I5: 02 | J5: 从事审判辅助工作 | K5: 1 | L5: 本科及以上 | M5: 学士及以上学位 | O5: 法学类 | P5: 宪法学与行政法学、刑法学、民商法学、诉讼法学 | U5: 2年及以上
A6: 060001 | B6: 铜仁市中级人民法院 | C6: 02 | D6: 审判机关 | E6: 碧江区东太大道1号 | G6: 0856-5930067 | H6: 信息技术人员 | I6: 03 | J6: 从事信息技术工作 | K6: 1 | L6: 本科及以上 | M6: 学士及以上学位 | O6: 计算机及相关专业 | P6: 计算机系统结构、计算机软件与理论、计算机应用技术 | U6: 2年及以上
A7: 060002 | B7: 铜仁市国库集中支付局 | C7: 02 | D7: 参照公务员法管理单位 | E7: 碧江区花果山南路33号 | F7: http://www.trczj.gov.cn/ | G7: 0856-5223829 | H7: 国库支付一科工作人员 | I7: 01 | J7: 从事财务会计工作 | K7: 1 | L7: 本科及以上 | M7: 学士及以上学位 | O7: 会计及相关专业 | R7: 是 | U7: 2年及以上
A8: 060002 | B8: 铜仁市国库集中支付局 | C8: 02 | D8: 参照公务员法管理单位 | E8: 碧江区花果山南路33号 | F8: http://www.trczj.gov.cn/ | G8: 0856-5223829 | H8: 国库支付二科工作人员 | I8: 02 | J8: 从事财务会计工作 | K8: 2 | L8: 本科及以上 | M8: 学士及以上学位 | O8: 会计及相关专业 | U8: 2年及以上
A9: 060003 | B9: 铜仁市人民政府驻北京联络处 | C9: 02 | D9: 参照公务员法管理单位 | E9: 北京市海淀区吴家场路51-2号 | G9: 010-63962091 | H9: 财务会计 | I9: 01 | J9: 从事财务会计工作 | K9: 1 | L9: 本科及以上 | M9: 学士及以上学位 | O9: 会计及相关专业 | V9: 北京市户籍，铜仁市户籍(生源) | W9: 工作地点在北京
A10: 060003 | B10: 铜仁市人民政府驻北京联络处 | C10: 02 | D10: 参照公务员法管理单位 | E10: 北京市海淀区吴家场路51-2号 | G10: 010-63962091 | H10: 办公室工作人员 | I10: 02 | J10: 文秘 | K10: 1 | L10: 本科及以上 | M10: 学士及以上学位 | O10: 中国语言文学类、法学类 | U10: 2年及以上 | W10: 工作地点在北京
A11: 060004 | B11: 铜仁市人民政府驻上海联络处 | C11: 02 | D11: 参照公务员法管理单位 | E11: 上海市长宁区安化路177号203室 | G11: 021- 62517765 | H11: 办公室工作人员 | I11: 01 | J11: 从事招商引资项目洽谈和对外资源推介工作 | K11: 1 | L11: 本科及以上 | O11: 经济学类、工商管理类、中国语言文学类 | Q11: 中共党员 | W11: 工作地点在上海
A12: 060005 | B12: 铜仁市社会保险事业局 | C12: 02 | D12: 参照公务员法管理单位 | E12: 铜仁市西外环路10号 | G12: 0856-5230063 | H12: 办公室工作人员 | I12: 01 | J12: 从事办公室日常工作 | K12: 1 | L12: 本科及以上 | M12: 学士及以上学位 | U12: 2年及以上
A13: 060005 | B13: 铜仁市社会保险事业局 | C13: 02 | D13: 参照公务员法管理单位 | E13: 铜仁市西外环路10号 | G13: 0856-5230063 | H13: 信息科工作人员 | I13: 02 | J13: 从事办公室日常工作 | K13: 1 | L13: 本科及以上 | M13: 学士及以上学位 | O13: 计算机及相关专业
A14: 060006 | B14: 铜仁市就业局 | C14: 02 | D14: 参照公务员法管理单位 | E14: 铜仁市西外环路10号 | G14: 0856-5211881 | H14: 办公室工作人员 | I14: 01 | J14: 从事办公室日常工作 | K14: 1 | L14: 本科及以上 | M14: 学士及以上学位 | U14: 2年及以上
A15: 060007 | B15: 铜仁市水库和生态移民局 | C15: 02 | D15: 参照公务员法管理单位 | E15: 碧江区为民服务中心3号 | G15: 0856-5205148 | H15: 工程管理科工作人员 | I15: 01 | J15: 从事办公室日常工作 | K15: 1 | L15: 本科及以上 | M15: 学士及以上学位 | O15: 管理科学与工程类
A16: 060008 | B16: 铜仁市投资促进局 | C16: 02 | D16: 参照公务员法管理单位 | E16: 碧江区为民服务中心3号 | G16: 0856- 5235569 | H16: 办公室工作人员 | I16: 01 | J16: 从事办公室日常工作 | K16: 1 | L16: 本科及以上 | M16: 学士及以上学位 | U16: 2年及以上
A17: 060009 | B17: 铜仁市档案局 | C17: 02 | D17: 参照公务员法管理单位 | E17: 碧江区花果山北路8号 | G17: 0856- 5222427 | H17: 档案方志馆工作人员 | I17: 01 | J17: 从事档案方志解说工作 | K17: 1 | L17: 本科及以上 | M17: 学士及以上学位 | O17: 中国语言文学类 | V17: 普通话二级甲等及以上
A18: 060009 | B18: 铜仁市档案局 | C18: 02 | D18: 参照公务员法管理单位 | E18: 碧江区花果山北路8号 | G18: 0856- 5222427 | H18: 财务会计 | I18: 02 | J18: 从事财务会计工作 | K18: 1 | L18: 本科及以上 | M18: 学士及以上学位 | O18: 会计及相关专业、金融学 | U18: 2年及以上
A19: 060010 | B19: 铜仁市统计执法支队 | C19: 02 | D19: 参照公务员法管理单位 | E19: 碧江区为民服务中心 | G19: 0856- 5223678 | H19: 执法支队工作人员 | I19: 01 | J19: 从事统计、经济分析工作 | K19: 1 | L19: 本科及以上 | M19: 学士及以上学位 | O19: 经济学类 | P19: 经济学学科门类 | U19: 2年及以上
A20: 060011 | B20: 中共铜仁市碧江区纪律检查委员会 | C20: 03 | D20: 党的机关 | E20: 碧江区为民服务中心主楼 | G20: 0856-5225158 | H20: 纪检监察室工作人员 | I20: 01 | J20: 从事纪检监察工作 | K20: 1 | L20: 本科及以上 | M20: 学士及以上学位 | O20: 法学类 | P20: 法学学科门类 | Q20: 中共党员
A21: 060012 | B21: 铜仁市碧江区智力支边扶贫联系小组办公室 | C21: 03 | D21: 参照公务员法管理单位 | E21: 碧江区为民服务中心主楼 | G21: 0856-5225158 | H21: 办公室工作人员 | I21: 01 | J21: 从事办公室日常工作 | K21: 1 | L21: 本科及以上 | M21: 学士及以上学位 | O21: 公共管理类
A22: 060013 | B22: 铜仁市碧江区人民法院 | C22: 03 | D22: 审判机关 | E22: 铜仁市梵净山大道113号 | G22: 0856- 5225158 | H22: 审判辅助人员 | I22: 01 | J22: 从事审判辅助工作 | K22: 1 | L22: 研究生 | M22: 硕士及以上学位 | P22: 法学学科门类 | Q22: 中共党员 | V22: 通过国家司法考试获A证
A23: 060014 | B23: 铜仁市碧江区人民检察院 | C23: 03 | D23: 检察机关 | E23: 碧江区东太大道485号 | F23: http://www.tongrenbj.jcy.gov.cn/ | G23: 0856- 5225158 | H23: 检察人员 | I23: 01 | J23: 从事检察业务工作 | K23: 1 | L23: 本科及以上 | M23: 学士及以上学位 | O23: 法学类 | P23: 法学学科门类 | V23: 通过国家司法考试获C证及以上
A24: 060014 | B24: 铜仁市碧江区人民检察院 | C24: 03 | D24: 检察机关 | E24: 碧江区东太大道485号 | F24: http://www.tongrenbj.jcy.gov.cn/ | G24: 0856- 5225158 | H24: 检察人员 | I24: 02 | J24: 从事网络、信息化管理工作 | K24: 1 | L24: 本科及以上 | M24: 学士及以上学位 | O24: 计算机及相关专业
A25: 060015 | B25: 铜仁市万山区科学技术协会 | C25: 03 | D25: 参照公务员法管理的人民团体和群众团体 | E25: 万山区产业园区1幢 | G25: 0856- 3521451 | H25: 办公室工作人员 | I25: 01 | J25: 从事办公室日常工作 | K25: 1 | L25: 本科及以上 | M25: 学士及以上学位
A26: 060016 | B26: 铜仁市万山区就业局 | C26: 03 | D26: 参照公务员法管理单位 | E26: 万山区冲广坪社区 | G26: 0856-3524715 | H26: 财务会计 | I26: 01 | J26: 从事财务会计工作 | K26: 1 | L26: 本科及以上 | M26: 学士及以上学位 | O26: 会计及相关专业
A27: 060016 | B27: 铜仁市万山区就业局 | C27: 03 | D27: 参照公务员法管理单位 | E27: 万山区冲广坪社区 | G27: 0856-3524715 | H27: 办公室工作人员 | I27: 02 | J27: 文秘 | K27: 1 | L27: 本科及以上 | M27: 学士及以上学位 | O27: 中国语言文学类
A28: 060017 | B28: 铜仁市万山区社会保险事业局 | C28: 03 | D28: 参照公务员法管理单位 | E28: 万山区冲广坪社区 | G28: 0856-3524715 | H28: 财务会计 | I28: 01 | J28: 从事财务会计工作 | K28: 1 | L28: 本科及以上 | M28: 学士及以上学位 | O28: 会计及相关专业
A29: 060018 | B29: 铜仁市万山区老龄工作委员会办公室 | C29: 03 | D29: 参照公务员法管理单位 | E29: 万山区产业园区3幢 | G29: 0856-3524715 | H29: 办公室工作人员 | I29: 01 | J29: 从事办公室日常工作 | K29: 2 | L29: 本科及以上 | M29: 学士及以上学位
A30: 060019 | B30: 铜仁市万山区大坪侗族土家族苗族乡人民政府 | C30: 04 | D30: 行政机关 | E30: 万山区大坪乡 | G30: 0856-3524715 | H30: 综治办工作人员 | I30: 01 | J30: 从事办公室日常工作 | K30: 1 | L30: 本科及以上 | O30: 法学类
A31: 060020 | B31: 铜仁市万山区敖寨侗族乡人民政府 | C31: 04 | D31: 行政机关 | E31: 万山区敖寨乡 | G31: 0856-3524715 | H31: 综治办工作人员 | I31: 01 | J31: 从事办公室日常工作 | K31: 1 | L31: 大专及以上
A32: 060021 | B32: 铜仁市万山区黄道侗族乡人民政府 | C32: 04 | D32: 行政机关 | E32: 万山区黄道乡 | G32: 0856-3524715 | H32: 办公室工作人员 | I32: 01 | J32: 从事办公室日常工作 | K32: 2 | L32: 大专及以上 | V32: 本县户籍（生源）
A33: 060022 | B33: 中共松桃苗族自治县委党史研究室 | C33: 03 | D33: 参照公务员法管理单位 | E33: 松桃县行政中心大楼五楼 | G33: 0856- 2836078 | H33: 宣教股工作人员 | I33: 01 | J33: 从事党史宣传教育工作 | K33: 1 | L33: 本科及以上 | T33: 是 | V33: 本县户籍（生源）
A34: 060023 | B34: 中共松桃苗族自治县委宣传部 | C34: 03 | D34: 党的机关 | E34: 松桃县行政中心大楼二楼 | G34: 0856- 2836078 | H34: 办公室工作人员 | I34: 01 | J34: 从事办公室日常工作 | K34: 1 | L34: 本科及以上 | M34: 学士及以上学位 | O34: 中国语言文学类、经济学类 | T34: 是 | V34: 本县户籍（生源）
A35: 060023 | B35: 中共松桃苗族自治县委宣传部 | C35: 03 | D35: 党的机关 | E35: 松桃县行政中心大楼二楼 | G35: 0856- 2836078 | H35: 理论室工作人员 | I35: 02 | J35: 从事理论研究工作 | K35: 1 | L35: 本科及以上 | M35: 学士及以上学位 | O35: 中国语言文学类
A36: 060023 | B36: 中共松桃苗族自治县委宣传部 | C36: 03 | D36: 党的机关 | E36: 松桃县行政中心大楼二楼 | G36: 0856- 2836078 | H36: 对外宣传办公室工作人员 | I36: 03 | J36: 从事新闻工作 | K36: 1 | L36: 本科及以上 | M36: 学士及以上学位 | O36: 新闻传播学类
A37: 060024 | B37: 松桃苗族自治县人民检察院 | C37: 03 | D37: 检察机关 | E37: 松桃县蓼皋街道办事处东城新区 | F37: http://www.gzsongtao.jcy.gov.cn/ | G37: 0856- 2836078 | H37: 检察人员 | I37: 01 | J37: 从事检察业务工作 | K37: 2 | L37: 本科及以上 | M37: 学士及以上学位 | O37: 法学类 | P37: 法学学科门类 | V37: 通过国家司法考试获A证
A38: 060025 | B38: 松桃苗族自治县人民法院 | C38: 04 | D38: 审判机关 | E38: 松桃县普觉镇 | G38: 0856- 2836078 | H38: 普觉人民法庭审判辅助人员 | I38: 01 | J38: 从事审判辅助工作 | K38: 3 | L38: 本科及以上 | M38: 学士及以上学位 | O38: 法学类 | P38: 法学学科门类 | V38: 通过国家司法考试获C证及以上
A39: 060025 | B39: 松桃苗族自治县人民法院 | C39: 04 | D39: 审判机关 | E39: 松桃县盘信镇 | G39: 0856- 2836078 | H39: 盘信人民法庭审判辅助人员 | I39: 02 | J39: 从事审判辅助工作 | K39: 1 | L39: 研究生 | M39: 硕士及以上学位 | P39: 法学学科门类 | V39: 通过国家司法考试获C证及以上
A40: 060025 | B40: 松桃苗族自治县人民法院 | C40: 04 | D40: 审判机关 | E40: 松桃县大兴街道办事处 | G40: 0856- 2836078 | H40: 大兴人民法庭审判辅助人员 | I40: 03 | J40: 文秘 | K40: 1 | L40: 本科及以上 | M40: 学士及以上学位 | O40: 中国语言文学类 | P40: 文学学科门类
A41: 060026 | B41: 松桃苗族自治县发展和改革局 | C41: 03 | D41: 行政机关 | E41: 松桃县滨江路 | G41: 0856-2832680 | H41: 办公室工作人员 | I41: 01 | J41: 从事价格监督检查及反垄断执法工作 | K41: 1 | L41: 本科及以上 | M41: 学士及以上学位 | O41: 法学类
A42: 060026 | B42: 松桃苗族自治县发展和改革局 | C42: 03 | D42: 行政机关 | E42: 松桃县滨江路 | G42: 0856-2832680 | H42: 工作人员 | I42: 02 | J42: 从事经济分析等工作 | K42: 1 | L42: 本科及以上 | M42: 学士及以上学位 | O42: 经济学类
A43: 060026 | B43: 松桃苗族自治县发展和改革局 | C43: 03 | D43: 行政机关 | E43: 松桃县滨江路 | G43: 0856-2832680 | H43: 农经股工作人员 | I43: 03 | J43: 从事水利管理工作 | K43: 1 | L43: 本科及以上 | M43: 学士及以上学位 | O43: 水利类
A44: 060027 | B44: 松桃苗族自治县人民政府法制办公室 | C44: 03 | D44: 行政机关 | E44: 松桃县蓼皋街道办事处丹霞路 | G44: 0856-2832680 | H44: 办公室工作人员 | I44: 01 | J44: 从事办公室日常工作 | K44: 1 | L44: 本科及以上 | M44: 学士及以上学位 | O44: 法学类 | V44: 通过国家司法考试获C证及以上
A45: 060028 | B45: 松桃苗族自治县农牧科技局 | C45: 03 | D45: 行政机关 | E45: 松桃国际大酒店8楼 | G45: 0856-2832680 | H45: 办公室工作人员 | I45: 01 | J45: 文秘 | K45: 1 | L45: 本科及以上 | M45: 学士及以上学位 | O45: 中国语言文学类
A46: 060028 | B46: 松桃苗族自治县农牧科技局 | C46: 03 | D46: 行政机关 | E46: 松桃国际大酒店8楼 | G46: 0856-2832680 | H46: 政策法规股工作人员 | I46: 02 | J46: 从事农业执法工作 | K46: 1 | L46: 本科及以上 | M46: 学士及以上学位 | O46: 法学类 | V46: 通过国家司法考试获C证及以上不受专业限制
A47: 060028 | B47: 松桃苗族自治县农牧科技局 | C47: 03 | D47: 行政机关 | E47: 松桃国际大酒店8楼 | G47: 0856-2832680 | H47: 农业管理股工作人员 | I47: 03 | J47: 从事农业管理工作 | K47: 1 | L47: 本科及以上 | M47: 学士及以上学位 | O47: 草业科学类、植物生产类、动物生产类、动物医学类 | T47: 是 | V47: 本县户籍（生源）
A48: 060029 | B48: 松桃苗族自治县交通运输局 | C48: 03 | D48: 行政机关 | E48: 松桃天龙湖 | G48: 0856-2832680 | H48: 工作人员 | I48: 01 | J48: 从事交通建设工程质量监督与管理工作 | K48: 2 | L48: 本科及以上 | M48: 学士及以上学位 | O48: 土建类
A49: 060030 | B49: 松桃苗族自治县工业和商务局 | C49: 03 | D49: 行政机关 | E49: 松桃县滨江路 | G49: 0856-2832680 | H49: 办公室工作人员 | I49: 01 | J49: 文秘 | K49: 1 | L49: 本科及以上 | M49: 学士及以上学位 | O49: 中国语言文学类
A50: 060030 | B50: 松桃苗族自治县工业和商务局 | C50: 03 | D50: 行政机关 | E50: 松桃县滨江路 | G50: 0856-2832680 | H50: 商贸综合管理股工作人员 | I50: 02 | J50: 从事办公室日常工作 | K50: 1 | L50: 本科及以上 | M50: 学士及以上学位 | O50: 工商管理类
A51: 060030 | B51: 松桃苗族自治县工业和商务局 | C51: 03 | D51: 行政机关 | E51: 松桃县滨江路 | G51: 0856-2832680 | H51: 工作人员 | I51: 03 | J51: 从事安全生产监管工作 | K51: 1 | L51: 本科及以上 | M51: 学士及以上学位 | T51: 是 | V51: 本县户籍（生源）
A52: 060031 | B52: 松桃苗族自治县卫生和计划生育局 | C52: 03 | D52: 行政机关 | E52: 松桃县坪块大道 | G52: 0856-2832680 | H52: 办公室工作人员 | I52: 01 | J52: 文秘 | K52: 2 | L52: 本科及以上 | M52: 学士及以上学位 | O52: 中国语言文学类 | V52: 本县户籍（生源）
A53: 060031 | B53: 松桃苗族自治县卫生和计划生育局 | C53: 03 | D53: 行政机关 | E53: 松桃县坪块大道 | G53: 0856-2832680 | H53: 医政医管股工作人员 | I53: 02 | J53: 从事医政医管工作 | K53: 2 | L53: 本科及以上 | M53: 学士及以上学位 | O53: 基础医学类、临床医学类、中医学类 | V53: 本县户籍（生源）
A54: 060031 | B54: 松桃苗族自治县卫生和计划生育局 | C54: 03 | D54: 行政机关 | E54: 松桃县坪块大道 | G54: 0856-2832680 | H54: 疾病预防控制股工作人员 | I54: 03 | J54: 从事疾病预防控制工作 | K54: 3 | L54: 本科及以上 | M54: 学士及以上学位 | O54: 预防医学类 | V54: 本县户籍（生源）
A55: 060031 | B55: 松桃苗族自治县卫生和计划生育局 | C55: 03 | D55: 行政机关 | E55: 松桃县坪块大道 | G55: 0856-2832680 | H55: 宣教股工作人员 | I55: 04 | J55: 从事网络管理及维护工作 | K55: 1 | L55: 本科及以上 | M55: 学士及以上学位 | O55: 计算机及相关专业 | V55: 本县户籍（生源）
A56: 060032 | B56: 松桃苗族自治县统计局 | C56: 03 | D56: 行政机关 | E56: 松桃县行政中心大楼六楼 | G56: 0856-2832680 | H56: 工作人员 | I56: 01 | J56: 从事统计分析工作 | K56: 1 | L56: 本科及以上 | M56: 学士及以上学位 | O56: 统计学类 | T56: 是 | V56: 本县户籍（生源）
A57: 060033 | B57: 松桃苗族自治县国土资源局 | C57: 03 | D57: 行政机关 | E57: 松桃县蓼皋街道办事处公园路26号 | G57: 0856-2832680 | H57: 办公室工作人员 | I57: 01 | J57: 文秘 | K57: 1 | L57: 本科及以上 | M57: 学士及以上学位 | O57: 中国语言文学类
A58: 060034 | B58: 松桃苗族自治县国土资源执法监察大队 | C58: 03 | D58: 参照公务员法管理单位 | E58: 松桃县蓼皋街道办事处公园路26号 | G58: 0856-2832680 | H58: 财务会计 | I58: 01 | J58: 从事财务会计工作 | K58: 2 | L58: 本科及以上 | M58: 学士及以上学位 | O58: 会计及相关专业、经济学类
A59: 060034 | B59: 松桃苗族自治县国土资源执法监察大队 | C59: 03 | D59: 参照公务员法管理单位 | E59: 松桃县蓼皋街道办事处公园路26号 | G59: 0856-2832680 | H59: 工作人员 | I59: 02 | J59: 从事国土执法监察工作 | K59: 1 | L59: 本科及以上 | M59: 学士及以上学位 | O59: 管理科学与工程类、地矿类 | V59: 本县户籍（生源）
A60: 060035 | B60: 松桃苗族自治县供销合作社联合社 | C60: 03 | D60: 参照公务员法管理单位 | E60: 松桃县蓼皋街道办事处杨芳路三楼 | G60: 0856-2832680 | H60: 工作人员 | I60: 01 | J60: 文秘 | K60: 1 | L60: 本科及以上 | M60: 学士及以上学位 | O60: 中国语言文学类
A61: 060035 | B61: 松桃苗族自治县供销合作社联合社 | C61: 03 | D61: 参照公务员法管理单位 | E61: 松桃县蓼皋街道办事处杨芳路三楼 | G61: 0856-2832680 | H61: 办公室工作人员 | I61: 02 | J61: 从事经济分析等工作 | K61: 1 | L61: 本科及以上 | M61: 学士及以上学位 | O61: 经济学类
A62: 060036 | B62: 松桃苗族自治县劳动保障监察大队 | C62: 03 | D62: 参照公务员法管理单位 | E62: 松桃县蓼皋街道办事处 | G62: 0856-2832680 | H62: 工作人员 | I62: 01 | J62: 从事劳动监察执法工作 | K62: 1 | L62: 本科及以上 | M62: 学士及以上学位 | O62: 法学类 | V62: 通过国家司法考试获C证及以上不受专业限制
A63: 060037 | B63: 松桃苗族自治县就业局 | C63: 03 | D63: 参照公务员法管理单位 | E63: 松桃县蓼皋街道办事处 | G63: 0856-2832680 | H63: 财务会计 | I63: 01 | J63: 从事财务会计工作 | K63: 1 | L63: 本科及以上 | M63: 学士及以上学位 | O63: 会计及相关专业、经济学类 | T63: 是 | V63: 本县户籍（生源）
A64: 060038 | B64: 松桃苗族自治县社会保险事业局 | C64: 03 | D64: 参照公务员法管理单位 | E64: 松桃县蓼皋街道办事处 | G64: 0856-2832680 | H64: 办公室工作人员 | I64: 01 | J64: 从事办公室日常工作 | K64: 1 | L64: 本科及以上 | M64: 学士及以上学位 | T64: 是 | V64: 本县户籍（生源）
A65: 060039 | B65: 松桃苗族自治县会计管理局 | C65: 03 | D65: 参照公务员法管理单位 | E65: 松桃国际大酒店12楼 | G65: 0856-2832680 | H65: 工作人员 | I65: 01 | J65: 从事会计管理工作 | K65: 7 | L65: 本科及以上 | M65: 学士及以上学位 | O65: 会计及相关专业、经济学类 | V65: 本县户籍（生源）
A66: 060040 | B66: 松桃苗族自治县市场监督管理局 | C66: 03 | D66: 行政机关 | E66: 松桃县蓼皋街道办事处丹霞路 | G66: 0856-2832680 | H66: 工作人员 | I66: 01 | J66: 从事网络管理及维护工作 | K66: 1 | L66: 本科及以上 | M66: 学士及以上学位 | O66: 计算机及相关专业
A67: 060040 | B67: 松桃苗族自治县市场监督管理局 | C67: 03 | D67: 行政机关 | E67: 松桃县蓼皋街道办事处丹霞路 | G67: 0856-2832680 | H67: 办公室工作人员 | I67: 02 | J67: 文秘 | K67: 1 | L67: 本科及以上 | M67: 学士及以上学位 | O67: 中国语言文学类
A68: 060040 | B68: 松桃苗族自治县市场监督管理局 | C68: 03 | D68: 行政机关 | E68: 松桃县蓼皋街道办事处丹霞路 | G68: 0856-2832680 | H68: 办公室工作人员 | I68: 03 | J68: 从事办公室日常工作 | K68: 1 | L68: 本科及以上 | M68: 学士及以上学位
A69: 060040 | B69: 松桃苗族自治县市场监督管理局 | C69: 03 | D69: 行政机关 | E69: 松桃县蓼皋街道办事处丹霞路 | G69: 0856-2832680 | H69: 工作人员 | I69: 04 | J69: 从事食品卫生监管执法工作 | K69: 2 | L69: 本科及以上 | M69: 学士及以上学位 | O69: 食品科学与工程类
A70: 060040 | B70: 松桃苗族自治县市场监督管理局 | C70: 04 | D70: 行政机关 | E70: 松桃县孟溪镇 | G70: 0856-2832680 | H70: 孟溪分局工作人员 | I70: 05 | J70: 从事办公室日常工作 | K70: 1 | L70: 本科及以上 | M70: 学士及以上学位
A71: 060040 | B71: 松桃苗族自治县市场监督管理局 | C71: 04 | D71: 行政机关 | E71: 松桃县甘龙镇 | G71: 0856-2832680 | H71: 甘龙分局工作人员 | I71: 06 | J71: 从事办公室日常工作 | K71: 1 | L71: 本科及以上 | M71: 学士及以上学位 | R71: 是
A72: 060040 | B72: 松桃苗族自治县市场监督管理局 | C72: 04 | D72: 行政机关 | E72: 松桃县普觉镇 | G72: 0856-2832680 | H72: 普觉分局工作人员 | I72: 07 | J72: 从事办公室日常工作 | K72: 1 | L72: 本科及以上 | M72: 学士及以上学位 | V72: 本县户籍（生源）
A73: 060040 | B73: 松桃苗族自治县市场监督管理局 | C73: 04 | D73: 行政机关 | E73: 松桃县长兴堡镇 | G73: 0856-2832680 | H73: 长兴堡分局工作人员 | I73: 08 | J73: 从事办公室日常工作 | K73: 1 | L73: 本科及以上 | M73: 学士及以上学位 | T73: 是 | V73: 本县户籍（生源）
A74: 060040 | B74: 松桃苗族自治县市场监督管理局 | C74: 04 | D74: 行政机关 | E74: 松桃县盘信镇 | G74: 0856-2832680 | H74: 盘信分局工作人员 | I74: 09 | J74: 从事办公室日常工作 | K74: 1 | L74: 本科及以上 | M74: 学士及以上学位 | T74: 是 | V74: 本县户籍（生源）
A75: 060041 | B75: 松桃苗族自治县司法局 | C75: 04 | D75: 行政机关 | E75: 松桃县牛郎镇 | G75: 0856-2832680 | H75: 牛郎司法所司法助理员 | I75: 01 | J75: 司法助理 | K75: 1 | L75: 本科及以上 | M75: 学士及以上学位 | O75: 法学类
A76: 060041 | B76: 松桃苗族自治县司法局 | C76: 04 | D76: 行政机关 | E76: 松桃县沙坝河乡 | G76: 0856-2832680 | H76: 沙坝河司法所司法助理员 | I76: 02 | J76: 司法助理 | K76: 1 | L76: 本科及以上 | M76: 学士及以上学位 | O76: 法学类 | T76: 是 | V76: 本县户籍（生源）
A77: 060041 | B77: 松桃苗族自治县司法局 | C77: 04 | D77: 行政机关 | E77: 松桃县妙隘乡 | G77: 0856-2832680 | H77: 妙隘司法所司法助理员 | I77: 03 | J77: 司法助理 | K77: 1 | L77: 本科及以上 | M77: 学士及以上学位 | O77: 法学类 | T77: 是 | V77: 本县户籍（生源）
A78: 060041 | B78: 松桃苗族自治县司法局 | C78: 04 | D78: 行政机关 | E78: 松桃县正大镇 | G78: 0856-2832680 | H78: 正大司法所司法助理员 | I78: 04 | J78: 司法助理 | K78: 1 | L78: 本科及以上 | M78: 学士及以上学位 | O78: 法学类
A79: 060041 | B79: 松桃苗族自治县司法局 | C79: 04 | D79: 行政机关 | E79: 松桃县木树乡 | G79: 0856-2832680 | H79: 木树司法所司法助理员 | I79: 05 | J79: 司法助理 | K79: 1 | L79: 本科及以上 | M79: 学士及以上学位 | O79: 法学类 | T79: 是 | V79: 本县户籍（生源）
A80: 060041 | B80: 松桃苗族自治县司法局 | C80: 04 | D80: 行政机关 | E80: 松桃县普觉镇 | G80: 0856-2832680 | H80: 普觉司法所司法助理员 | I80: 06 | J80: 司法助理 | K80: 1 | L80: 本科及以上 | M80: 学士及以上学位 | O80: 法学类
A81: 060042 | B81: 松桃苗族自治县大兴街道办事处 | C81: 04 | D81: 行政机关 | E81: 松桃县大兴街道办事处 | G81: 0856- 8162061 | H81: 办公室工作人员 | I81: 01 | J81: 从事办公室日常工作 | K81: 2 | L81: 本科及以上
A82: 060043 | B82: 玉屏侗族自治县人民法院 | C82: 03 | D82: 审判机关 | E82: 玉屏县茅坪新区 | G82: 0856- 3239889 | H82: 司法行政人员 | I82: 01 | J82: 从事对外宣传工作 | K82: 1 | L82: 本科及以上 | M82: 学士及以上学位 | O82: 新闻传播学类 | P82: 文学学科门类
A83: 060043 | B83: 玉屏侗族自治县人民法院 | C83: 03 | D83: 审判机关 | E83: 玉屏县茅坪新区 | G83: 0856- 3239889 | H83: 审判辅助人员 | I83: 02 | J83: 从事审判辅助工作 | K83: 1 | L83: 本科及以上 | M83: 学士及以上学位 | O83: 法学类 | P83: 法学学科门类
A84: 060044 | B84: 玉屏侗族自治县农村党员干部现代远程教育中心 | C84: 03 | D84: 参照公务员法管理单位 | E84: 玉屏县行政中心 | G84: 0856- 3239889 | H84: 综合股工作人员 | I84: 01 | J84: 文秘 | K84: 2 | L84: 本科及以上 | M84: 学士及以上学位 | O84: 中国语言文学类、哲学类、新闻传播学类
A85: 060045 | B85: 玉屏侗族自治县非公有制经济发展侵权投诉中心 | C85: 03 | D85: 参照公务员法管理单位 | E85: 玉屏县行政中心 | G85: 0856- 3239889 | H85: 办公室工作人员 | I85: 01 | J85: 从事办公室日常工作 | K85: 1 | L85: 本科及以上 | M85: 学士及以上学位 | O85: 法学类 | Q85: 中共党员 | V85: 通过国家司法考试获C证及以上
A86: 060046 | B86: 共青团玉屏侗族自治县委员会 | C86: 03 | D86: 参照公务员法管理的人民团体和群众团体 | E86: 玉屏县行政中心 | G86: 0856- 3239889 | H86: 办公室工作人员 | I86: 01 | J86: 从事办公室日常工作 | K86: 1 | L86: 本科及以上 | M86: 学士及以上学位 | T86: 是 | V86: 本县户籍（生源）
A87: 060046 | B87: 共青团玉屏侗族自治县委员会 | C87: 03 | D87: 参照公务员法管理的人民团体和群众团体 | E87: 玉屏县行政中心 | G87: 0856- 3239889 | H87: 办公室工作人员 | I87: 02 | J87: 从事办公室日常工作 | K87: 1 | L87: 大专及以上 | R87: 是
A88: 060047 | B88: 玉屏侗族自治县妇女联合会 | C88: 03 | D88: 参照公务员法管理的人民团体和群众团体 | E88: 玉屏县行政中心 | G88: 0856- 3239889 | H88: 办公室工作人员 | I88: 01 | J88: 从事办公室日常工作 | K88: 1 | L88: 本科及以上 | M88: 学士及以上学位 | T88: 是 | V88: 本县户籍（生源）
A89: 060048 | B89: 中共玉屏侗族自治县委政法委员会 | C89: 03 | D89: 行政机关 | E89: 玉屏县行政中心 | G89: 0856- 3239889 | H89: 办公室工作人员 | I89: 01 | J89: 文秘 | K89: 1 | L89: 本科及以上 | M89: 学士及以上学位 | O89: 中国语言文学类 | T89: 是 | V89: 本县户籍（生源）
A90: 060049 | B90: 中共玉屏侗族自治县委宣传部 | C90: 03 | D90: 行政机关 | E90: 玉屏县行政中心 | G90: 0856- 3239889 | H90: 办公室工作人员 | I90: 01 | J90: 从事办公室日常工作 | K90: 1 | L90: 本科及以上 | M90: 学士及以上学位 | O90: 公共管理类、中国语言文学类、社会学类 | T90: 是 | V90: 本县户籍（生源）
A91: 060050 | B91: 玉屏侗族自治县司法局 | C91: 03 | D91: 行政机关 | E91: 玉屏县茅坪新区 | G91: 0856-3229398 | H91: 社区矫正股工作人员 | I91: 01 | J91: 从事社区矫正工作 | K91: 1 | L91: 本科及以上 | O91: 法学类
A92: 060051 | B92: 玉屏侗族自治县老龄工作委员会办公室 | C92: 03 | D92: 参照公务员法管理单位 | E92: 玉屏县平溪街道办事处 | G92: 0856-3229398 | H92: 办公室工作人员 | I92: 01 | J92: 从事办公室日常工作 | K92: 1 | L92: 本科及以上 | R92: 是 | T92: 是 | V92: 本县户籍（生源）
A93: 060052 | B93: 玉屏侗族自治县人民政府政务服务中心 | C93: 03 | D93: 参照公务员法管理单位 | E93: 玉屏县茅坪新区 | G93: 0856-3229398 | H93: 办公室工作人员 | I93: 01 | J93: 从事办公室日常工作 | K93: 1 | L93: 本科及以上 | M93: 学士及以上学位 | T93: 是 | V93: 本县户籍（生源）
A94: 060053 | B94: 玉屏侗族自治县社会保险事业局 | C94: 03 | D94: 参照公务员法管理单位 | E94: 玉屏县茅坪新区 | G94: 0856-3229398 | H94: 办公室工作人员 | I94: 01 | J94: 从事办公室日常工作 | K94: 1 | L94: 本科及以上 | M94: 学士及以上学位 | T94: 是 | V94: 本县户籍（生源）
A95: 060054 | B95: 玉屏侗族自治县就业局 | C95: 03 | D95: 参照公务员法管理单位 | E95: 玉屏县茅坪新区 | G95: 0856-3229398 | H95: 办公室工作人员 | I95: 01 | J95: 从事办公室日常工作 | K95: 1 | L95: 本科及以上 | M95: 学士及以上学位 | T95: 是 | V95: 本县户籍（生源）
A96: 060055 | B96: 玉屏侗族自治县档案局 | C96: 03 | D96: 参照公务员法管理单位 | E96: 玉屏县茅坪新区 | G96: 0856-3229398 | H96: 办公室工作人员 | I96: 01 | J96: 从事办公室日常工作 | K96: 1 | L96: 本科及以上 | M96: 学士及以上学位 | T96: 是 | V96: 本县户籍（生源）
A97: 060056 | B97: 玉屏侗族自治县非税收入管理局 | C97: 03 | D97: 参照公务员法管理单位 | E97: 玉屏县人民路440号 | G97: 0856-3229398 | H97: 财务会计 | I97: 01 | J97: 从事财务会计工作 | K97: 1 | L97: 本科及以上 | M97: 学士及以上学位 | O97: 会计及相关专业
A98: 060057 | B98: 玉屏侗族自治县国库集中支付局 | C98: 03 | D98: 参照公务员法管理单位 | E98: 玉屏县人民路440号 | G98: 0856-3229398 | H98: 财务会计 | I98: 01 | J98: 从事财务会计工作 | K98: 2 | L98: 本科及以上 | M98: 学士及以上学位 | O98: 会计及相关专业
A99: 060058 | B99: 玉屏侗族自治县供销合作社联合社 | C99: 03 | D99: 参照公务员法管理单位 | E99: 玉屏县茅坪新区 | G99: 0856-3229398 | H99: 办公室工作人员 | I99: 01 | J99: 从事办公室日常工作 | K99: 1 | L99: 本科及以上 | M99: 学士及以上学位 | O99: 会计及相关专业
A100: 060059 | B100: 江口县人民法院 | C100: 04 | D100: 审判机关 | E100: 江口县闵孝镇 | G100: 0856- 6620325 | H100: 闵孝人民法庭审判辅助人员 | I100: 01 | J100: 从事审判辅助工作 | K100: 2 | L100: 本科及以上 | M100: 学士及以上学位 | O100: 法学类 | P100: 法学学科门类
A101: 060059 | B101: 江口县人民法院 | C101: 04 | D101: 审判机关 | E101: 江口县桃映镇 | G101: 0856- 6620325 | H101: 桃映人民法庭审判辅助人员 | I101: 02 | J101: 从事审判辅助工作 | K101: 1 | L101: 本科及以上 | M101: 学士及以上学位 | O101: 中国语言文学类 | P101: 文学学科门类
A102: 060060 | B102: 江口县发展和改革局 | C102: 03 | D102: 行政机关 | E102: 江口县双江街道办事处 | G102: 0856- 6628367 | H102: 办公室工作人员 | I102: 01 | J102: 文秘 | K102: 1 | L102: 本科及以上 | M102: 学士及以上学位 | O102: 中国语言文学类
A103: 060061 | B103: 江口县教育局 | C103: 03 | D103: 行政机关 | E103: 江口县双江街道办事处 | F103: www.gzjkedu.cn | G103: 0856- 6628367 | H103: 基础教育股工作人员 | I103: 01 | J103: 从事办公室日常工作 | K103: 1 | L103: 本科及以上 | M103: 学士及以上学位
A104: 060062 | B104: 江口县司法局 | C104: 03 | D104: 行政机关 | E104: 江口县双江街道办事处 | G104: 0856- 6628367 | H104: 办公室工作人员 | I104: 01 | J104: 从事办公室日常工作 | K104: 1 | L104: 本科及以上 | M104: 学士及以上学位
A105: 060062 | B105: 江口县司法局 | C105: 04 | D105: 行政机关 | E105: 江口县桃映镇 | G105: 0856- 6628367 | H105: 桃映司法所司法助理员 | I105: 02 | J105: 司法助理 | K105: 1 | L105: 本科及以上 | M105: 学士及以上学位
A106: 060062 | B106: 江口县司法局 | C106: 04 | D106: 行政机关 | E106: 江口县双江街道办事处 | G106: 0856- 6628367 | H106: 双江司法所司法助理员 | I106: 03 | J106: 司法助理 | K106: 1 | L106: 本科及以上 | M106: 学士及以上学位
A107: 060063 | B107: 江口县民和镇人民政府 | C107: 04 | D107: 行政机关 | E107: 江口县民和镇 | G107: 0856- 6628367 | H107: 办公室工作人员 | I107: 01 | J107: 从事办公室日常工作 | K107: 1 | L107: 大专及以上 | S107: 是
A108: 060064 | B108: 石阡县人民检察院 | C108: 03 | D108: 检察机关 | E108: 石阡县佛顶山大道176号 | F108: http://www.gzshiqian.jcy.gov.cn/ | G108: 0856- 7628017 | H108: 检察人员 | I108: 01 | J108: 从事检察业务工作 | K108: 2 | L108: 本科及以上 | M108: 学士及以上学位 | O108: 法学类 | P108: 法学学科门类
A109: 060065 | B109: 石阡县人民法院 | C109: 03 | D109: 审判机关 | E109: 石阡县汤山街道临江社区498号 | G109: 0856- 7628017 | H109: 财务会计 | I109: 01 | J109: 从事财务会计工作 | K109: 1 | L109: 本科及以上 | M109: 学士及以上学位 | O109: 会计及相关专业
A110: 060065 | B110: 石阡县人民法院 | C110: 04 | D110: 审判机关 | E110: 石阡县汤山街道临江社区498号 | G110: 0856- 7628017 | H110: 五德人民法庭审判辅助人员 | I110: 02 | J110: 从事审判辅助工作 | K110: 1 | L110: 本科及以上 | M110: 学士及以上学位 | O110: 法学类 | P110: 法学学科门类
A111: 060065 | B111: 石阡县人民法院 | C111: 04 | D111: 审判机关 | E111: 石阡县汤山街道临江社区498号 | G111: 0856- 7628017 | H111: 汤山人民法庭审判辅助人员 | I111: 03 | J111: 从事审判辅助工作 | K111: 1 | L111: 本科及以上 | M111: 学士及以上学位 | O111: 法学类 | P111: 法学学科门类
A112: 060066 | B112: 石阡县卫生和计划生育局 | C112: 03 | D112: 行政机关 | E112: 石阡县泉都街道文笔社区 | G112: 0856-7622874 | H112: 宣传股工作人员 | I112: 01 | J112: 从事对外宣传工作 | K112: 1 | L112: 本科及以上 | M112: 学士及以上学位 | O112: 新闻传播学类
A113: 060067 | B113: 石阡县档案局 | C113: 03 | D113: 参照公务员法管理单位 | E113: 石阡县汤山街道佛顶山大道 | G113: 0856-7622874 | H113: 年鉴股工作人员 | I113: 01 | J113: 从事年鉴编辑工作 | K113: 1 | L113: 本科及以上 | M113: 学士及以上学位 | O113: 中国语言文学类
A114: 060068 | B114: 石阡县供销合作社联合社 | C114: 03 | D114: 参照公务员法管理单位 | E114: 石阡县汤山街道万寿社区 | G114: 0856-7622874 | H114: 合作经济发展股工作人员 | I114: 01 | J114: 从事农村电子商务工作 | K114: 1 | L114: 本科及以上 | M114: 学士及以上学位 | O114: 计算机及相关专业
A115: 060069 | B115: 石阡县社会保险事业局 | C115: 03 | D115: 参照公务员法管理单位 | E115: 石阡县汤山街道白塔社区 | G115: 0856-7622874 | H115: 办公室工作人员 | I115: 01 | J115: 文秘 | K115: 1 | L115: 本科及以上 | M115: 学士及以上学位 | O115: 中国语言文学类
A116: 060069 | B116: 石阡县社会保险事业局 | C116: 03 | D116: 参照公务员法管理单位 | E116: 石阡县汤山街道白塔社区 | G116: 0856-7622874 | H116: 信息管理股工作人员 | I116: 02 | J116: 从事网络管理及维护工作 | K116: 1 | L116: 本科及以上 | M116: 学士及以上学位 | O116: 计算机及相关专业
A117: 060070 | B117: 石阡县人民政府政务服务中心 | C117: 03 | D117: 参照公务员法管理单位 | E117: 石阡县泉都街道大关社区泉城别苑二楼 | G117: 0856-7622874 | H117: 工作人员 | I117: 01 | J117: 从事网络管理及维护工作 | K117: 1 | L117: 本科及以上 | M117: 学士及以上学位 | O117: 计算机及相关专业
A118: 060071 | B118: 石阡县市场监督管理局 | C118: 04 | D118: 行政机关 | E118: 石阡县中坝街道办事处 | G118: 0856-7622874 | H118: 中坝分局工作人员 | I118: 01 | J118: 文秘 | K118: 1 | L118: 本科及以上 | M118: 学士及以上学位 | O118: 中国语言文学类
A119: 060071 | B119: 石阡县市场监督管理局 | C119: 04 | D119: 行政机关 | E119: 石阡县中坝街道办事处 | G119: 0856-7622874 | H119: 中坝分局工作人员 | I119: 02 | J119: 从事市场监管执法工作 | K119: 1 | L119: 本科及以上 | M119: 学士及以上学位 | O119: 法学类
A120: 060071 | B120: 石阡县市场监督管理局 | C120: 04 | D120: 行政机关 | E120: 石阡县花桥镇 | G120: 0856-7622874 | H120: 花桥分局工作人员 | I120: 03 | J120: 从事市场监管执法工作 | K120: 1 | L120: 本科及以上 | M120: 学士及以上学位 | O120: 法学类 | V120: 本县户籍（生源）
A121: 060071 | B121: 石阡县市场监督管理局 | C121: 04 | D121: 行政机关 | E121: 石阡县白沙镇 | G121: 0856-7622874 | H121: 白沙分局工作人员 | I121: 04 | J121: 从事食品卫生监管执法工作 | K121: 1 | L121: 本科及以上 | M121: 学士及以上学位 | O121: 食品科学与工程类
A122: 060071 | B122: 石阡县市场监督管理局 | C122: 04 | D122: 行政机关 | E122: 石阡县白沙镇 | G122: 0856-7622874 | H122: 白沙分局工作人员 | I122: 05 | J122: 从事市场监管执法工作 | K122: 1 | L122: 本科及以上 | M122: 学士及以上学位
A123: 060072 | B123: 石阡县本庄镇人民政府 | C123: 04 | D123: 行政机关 | E123: 石阡县本庄镇 | G123: 0856-7622874 | H123: 党政综合办公室工作人员 | I123: 01 | J123: 从事办公室日常工作 | K123: 1 | L123: 大专及以上 | S123: 是
A124: 060073 | B124: 石阡县河坝镇人民政府 | C124: 04 | D124: 行政机关 | E124: 石阡县河坝镇 | G124: 0856-7622874 | H124: 党政综合办公室工作人员 | I124: 01 | J124: 从事办公室日常工作 | K124: 1 | L124: 本科及以上 | S124: 是
A125: 060074 | B125: 印江土家族苗族自治县人民法院 | C125: 03 | D125: 审判机关 | E125: 印江县龙津街道彩虹路 | G125: 0856- 6223899 | H125: 审判辅助人员 | I125: 01 | J125: 从事审判辅助工作 | K125: 2 | L125: 本科及以上 | M125: 学士及以上学位 | O125: 法学类 | P125: 法学学科门类
A126: 060074 | B126: 印江土家族苗族自治县人民法院 | C126: 03 | D126: 审判机关 | E126: 印江县龙津街道彩虹路 | G126: 0856- 6223899 | H126: 财务会计 | I126: 02 | J126: 从事财务会计工作 | K126: 1 | L126: 本科及以上 | M126: 学士及以上学位 | O126: 会计及相关专业
A127: 060074 | B127: 印江土家族苗族自治县人民法院 | C127: 03 | D127: 审判机关 | E127: 印江县龙津街道彩虹路 | G127: 0856- 6223899 | H127: 办公室工作人员 | I127: 03 | J127: 文秘 | K127: 1 | L127: 本科及以上 | M127: 学士及以上学位 | O127: 中国语言文学类 | P127: 文学学科门类
A128: 060075 | B128: 印江土家族苗族自治县计划生育协会 | C128: 03 | D128: 参照公务员法管理的人民团体和群众团体 | E128: 印江县峨岭街道 | G128: 0856- 6223899 | H128: 办公室工作人员 | I128: 01 | J128: 从事办公室日常工作 | K128: 1 | L128: 本科及以上 | T128: 是 | V128: 本县户籍（生源）
A129: 060076 | B129: 印江土家族苗族自治县举报中心（非公有制经济发展侵权投诉中心） | C129: 03 | D129: 参照公务员法管理单位 | E129: 印江县龙津街道 | G129: 0856- 6223899 | H129: 举报中心工作人员 | I129: 01 | J129: 从事举报投诉事件处理工作 | K129: 1 | L129: 本科及以上 | M129: 学士及以上学位 | O129: 法学类
A130: 060077 | B130: 印江土家族苗族自治县农牧科技局 | C130: 03 | D130: 行政机关 | E130: 印江县峨岭街道 | G130: 0856-6231050 | H130: 人力资源股工作人员 | I130: 01 | J130: 从事办公室日常工作 | K130: 1 | L130: 本科及以上 | M130: 学士及以上学位 | T130: 是 | V130: 本县户籍（生源）
A131: 060078 | B131: 印江土家族苗族自治县住房和城乡规划建设局 | C131: 03 | D131: 行政机关 | E131: 印江县峨岭街道 | G131: 0856-6231050 | H131: 综合业务股工作人员 | I131: 01 | J131: 从事建设规划管理等工作 | K131: 1 | L131: 本科及以上 | M131: 学士及以上学位 | O131: 土建类
A132: 060079 | B132: 印江土家族苗族自治县档案局 | C132: 03 | D132: 参照公务员法管理单位 | E132: 印江县峨岭街道 | G132: 0856-6231050 | H132: 办公室工作人员 | I132: 01 | J132: 从事办公室日常工作 | K132: 1 | L132: 本科及以上 | T132: 是 | V132: 本县户籍（生源）
A133: 060080 | B133: 印江土家族苗族自治县供销合作社联合社 | C133: 03 | D133: 参照公务员法管理单位 | E133: 印江县峨岭街道 | G133: 0856-6231050 | H133: 办公室工作人员 | I133: 01 | J133: 从事办公室日常工作 | K133: 1 | L133: 本科及以上 | M133: 学士及以上学位
A134: 060081 | B134: 印江土家族苗族自治县社会保险事业局 | C134: 03 | D134: 参照公务员法管理单位 | E134: 印江县峨岭街道 | G134: 0856-6231050 | H134: 财务会计 | I134: 01 | J134: 从事财务会计工作 | K134: 1 | L134: 本科及以上 | M134: 学士及以上学位 | O134: 会计及相关专业 | T134: 是 | V134: 本县户籍（生源）
A135: 060081 | B135: 印江土家族苗族自治县社会保险事业局 | C135: 03 | D135: 参照公务员法管理单位 | E135: 印江县峨岭街道 | G135: 0856-6231050 | H135: 网络信息数据中心工作人员 | I135: 02 | J135: 从事网络维护及信息化建设工作 | K135: 1 | L135: 本科及以上 | M135: 学士及以上学位 | O135: 计算机及相关专业
A136: 060081 | B136: 印江土家族苗族自治县社会保险事业局 | C136: 03 | D136: 参照公务员法管理单位 | E136: 印江县峨岭街道 | G136: 0856-6231050 | H136: 城镇居民医疗保险股工作人员 | I136: 03 | J136: 从事医疗保险审核工作 | K136: 1 | L136: 本科及以上 | O136: 临床医学类 | T136: 是 | V136: 本县户籍（生源）
A137: 060082 | B137: 印江土家族苗族自治县就业局 | C137: 03 | D137: 参照公务员法管理单位 | E137: 印江县峨岭街道 | G137: 0856-6231050 | H137: 办公室工作人员 | I137: 01 | J137: 从事办公室日常工作 | K137: 1 | L137: 本科及以上 | M137: 学士及以上学位 | T137: 是 | V137: 本县户籍（生源）
A138: 060082 | B138: 印江土家族苗族自治县就业局 | C138: 03 | D138: 参照公务员法管理单位 | E138: 印江县峨岭街道 | G138: 0856-6231050 | H138: 办公室工作人员 | I138: 02 | J138: 从事办公室日常工作 | K138: 1 | L138: 大专及以上 | S138: 是
A139: 060083 | B139: 印江土家族苗族自治县市场监督管理局 | C139: 04 | D139: 行政机关 | E139: 印江县木黄镇 | G139: 0856-6231050 | H139: 木黄分局工作人员 | I139: 01 | J139: 从事市场监管工作 | K139: 1 | L139: 本科及以上 | M139: 学士及以上学位 | T139: 是 | V139: 本县户籍（生源）
A140: 060083 | B140: 印江土家族苗族自治县市场监督管理局 | C140: 04 | D140: 行政机关 | E140: 印江县缠溪镇 | G140: 0856-6231050 | H140: 缠溪分局工作人员 | I140: 02 | J140: 从事市场监管工作 | K140: 1 | L140: 本科及以上 | M140: 学士及以上学位
A141: 060084 | B141: 印江土家族苗族自治县龙津街道办事处 | C141: 04 | D141: 行政机关 | E141: 印江县龙津街道 | G141: 0856-6231050 | H141: 党建办公室工作人员 | I141: 01 | J141: 从事办公室日常工作 | K141: 1 | L141: 大专及以上 | T141: 是 | V141: 本县户籍（生源）
A142: 060085 | B142: 印江土家族苗族自治县沙子坡镇人民政府 | C142: 04 | D142: 行政机关 | E142: 印江县沙子坡镇 | G142: 0856-6231050 | H142: 党建办公室工作人员 | I142: 01 | J142: 从事办公室日常工作 | K142: 1 | L142: 大专及以上 | R142: 是
A143: 060086 | B143: 印江土家族苗族自治县杉树镇人民政府 | C143: 04 | D143: 行政机关 | E143: 印江县杉树镇 | G143: 0856-6231050 | H143: 党政综合办公室工作人员 | I143: 01 | J143: 从事办公室日常工作 | K143: 1 | L143: 大专及以上 | T143: 是 | V143: 本县户籍（生源）
A144: 060087 | B144: 印江土家族苗族自治县杨柳镇人民政府 | C144: 04 | D144: 行政机关 | E144: 印江县杨柳镇 | G144: 0856-6231050 | H144: 综合办公室工作人员 | I144: 01 | J144: 从事办公室日常工作 | K144: 1 | L144: 大专及以上 | T144: 是 | V144: 本县户籍（生源）
A145: 060088 | B145: 印江土家族苗族自治县罗场乡人民政府 | C145: 04 | D145: 行政机关 | E145: 印江县罗场乡 | G145: 0856-6231050 | H145: 党政综合办公室工作人员 | I145: 01 | J145: 从事办公室日常工作 | K145: 1 | L145: 大专及以上 | T145: 是 | V145: 本县户籍（生源）
A146: 060089 | B146: 思南县人民检察院 | C146: 03 | D146: 检察机关 | E146: 思南县思唐街道办事处 | F146: http://www.gzsinan.jcy.gov.cn/ | G146: 0856- 7225506 | H146: 司法行政人员 | I146: 01 | J146: 文秘 | K146: 2 | L146: 本科及以上 | M146: 学士及以上学位 | O146: 文学学科门类 | P146: 文学学科门类
A147: 060089 | B147: 思南县人民检察院 | C147: 03 | D147: 检察机关 | E147: 思南县思唐街道办事处 | F147: http://www.gzsinan.jcy.gov.cn/ | G147: 0856- 7225506 | H147: 检察人员 | I147: 02 | J147: 从事检察业务工作 | K147: 1 | L147: 本科及以上 | M147: 学士及以上学位 | O147: 法学类 | P147: 法学学科门类 | V147: 通过国家司法考试获C证及以上不受专业限制
A148: 060090 | B148: 中共思南县委党校 | C148: 03 | D148: 参照公务员法管理单位 | E148: 思南县思唐街道办事处 | G148: 0856- 7225506 | H148: 工作人员 | I148: 01 | J148: 从事党史党建教研工作 | K148: 1 | L148: 本科及以上 | M148: 学士及以上学位 | O148: 哲学类、政治学类 | Q148: 中共党员
A149: 060090 | B149: 中共思南县委党校 | C149: 03 | D149: 参照公务员法管理单位 | E149: 思南县思唐街道办事处 | G149: 0856- 7225506 | H149: 办公室工作人员 | I149: 02 | J149: 文秘 | K149: 1 | L149: 本科及以上 | M149: 学士及以上学位 | O149: 中国语言文学类 | Q149: 中共党员
A150: 060091 | B150: 思南县卫生和计划生育局 | C150: 03 | D150: 行政机关 | E150: 思南县思唐街道安化社区安化街456号 | G150: 0856-7229539 | H150: 政策法规股工作人员 | I150: 01 | J150: 从事政策法规宣传工作 | K150: 1 | L150: 本科及以上 | M150: 学士及以上学位 | O150: 法学类
A151: 060092 | B151: 思南县社会保险事业局 | C151: 03 | D151: 参照公务员法管理单位 | E151: 思南县思唐街道城北社区北京路 | G151: 0856-7229539 | H151: 财务会计 | I151: 01 | J151: 从事财务会计工作 | K151: 1 | L151: 本科及以上 | M151: 学士及以上学位 | O151: 会计及相关专业
A152: 060092 | B152: 思南县社会保险事业局 | C152: 03 | D152: 参照公务员法管理单位 | E152: 思南县思唐街道城北社区北京路 | G152: 0856-7229539 | H152: 信息管理股工作人员 | I152: 02 | J152: 从事社保信息管理及维护工作 | K152: 1 | L152: 本科及以上 | M152: 学士及以上学位 | O152: 计算机及相关专业
A153: 060093 | B153: 思南县就业局 | C153: 03 | D153: 参照公务员法管理单位 | E153: 思南县思唐街道安化社区安化街 | G153: 0856-7229539 | H153: 办公室工作人员 | I153: 01 | J153: 从事办公室日常工作 | K153: 1 | L153: 本科及以上 | M153: 学士及以上学位
A154: 060094 | B154: 思南县国库集中支付局 | C154: 03 | D154: 参照公务员法管理单位 | E154: 思南县思唐街道中和社区 | G154: 0856-7229539 | H154: 财务会计 | I154: 01 | J154: 从事财务会计工作 | K154: 2 | L154: 本科及以上 | M154: 学士及以上学位 | O154: 会计及相关专业
A155: 060095 | B155: 思南县司法局 | C155: 04 | D155: 行政机关 | E155: 思南县宽坪乡 | G155: 0856-7229539 | H155: 宽坪司法所司法助理员 | I155: 01 | J155: 司法助理 | K155: 1 | L155: 本科及以上 | M155: 学士及以上学位 | O155: 法学类
A156: 060095 | B156: 思南县司法局 | C156: 04 | D156: 行政机关 | E156: 思南县瓮溪镇 | G156: 0856-7229539 | H156: 瓮溪司法所司法助理员 | I156: 02 | J156: 司法助理 | K156: 1 | L156: 本科及以上 | M156: 学士及以上学位 | O156: 法学类
A157: 060095 | B157: 思南县司法局 | C157: 04 | D157: 行政机关 | E157: 思南县亭子坝镇 | G157: 0856-7229539 | H157: 亭子坝司法所司法助理员 | I157: 03 | J157: 司法助理 | K157: 1 | L157: 本科及以上 | M157: 学士及以上学位 | O157: 法学类
A158: 060095 | B158: 思南县司法局 | C158: 04 | D158: 行政机关 | E158: 思南县凉水井镇 | G158: 0856-7229539 | H158: 凉水井司法所司法助理员 | I158: 04 | J158: 司法助理 | K158: 1 | L158: 本科及以上 | M158: 学士及以上学位 | O158: 法学类
A159: 060096 | B159: 德江县人民法院 | C159: 03 | D159: 审判机关 | E159: 德江县玉水街道办事处环城北路 | G159: 0856- 8531001 | H159: 财务会计 | I159: 01 | J159: 从事财务会计工作 | K159: 1 | L159: 本科及以上 | M159: 学士及以上学位 | O159: 会计及相关专业
A160: 060097 | B160: 德江县农村党员干部现代远程教育中心 | C160: 03 | D160: 参照公务员法管理单位 | E160: 德江县人民中路 | F160: www.dejiang.gov.cn | G160: 0856- 8531001 | H160: 办公室工作人员 | I160: 01 | J160: 文秘 | K160: 1 | L160: 本科及以上 | M160: 学士及以上学位 | O160: 中国语言文学类、哲学类 | Q160: 中共党员
A161: 060098 | B161: 德江县社会保险事业局 | C161: 03 | D161: 参照公务员法管理单位 | E161: 德江县扶阳大道 | F161: www.dejiang.gov.cn | G161: 0856-8523042 | H161: 综合部工作人员 | I161: 01 | J161: 从事文秘、办公室日常工作 | K161: 1 | L161: 本科及以上 | O161: 法学类
A162: 060099 | B162: 德江县档案局 | C162: 03 | D162: 参照公务员法管理单位 | E162: 德江县扶阳大道 | F162: www.dejiang.gov.cn | G162: 0856-8523042 | H162: 办公室工作人员 | I162: 01 | J162: 文秘 | K162: 1 | L162: 本科及以上 | M162: 学士及以上学位 | O162: 中国语言文学类
A163: 060100 | B163: 德江县司法局 | C163: 04 | D163: 行政机关 | E163: 德江县平原镇 | F163: www.dejiang.gov.cn | G163: 0856-8523042 | H163: 平原司法所司法助理员 | I163: 01 | J163: 司法助理 | K163: 1 | L163: 本科及以上 | O163: 法学类 | V163: 通过国家司法考试获C证及以上不受专业限制
A164: 060100 | B164: 德江县司法局 | C164: 04 | D164: 行政机关 | E164: 德江县潮砥镇 | F164: www.dejiang.gov.cn | G164: 0856-8523042 | H164: 潮砥司法所司法助理员 | I164: 02 | J164: 司法助理 | K164: 1 | L164: 本科及以上 | O164: 法学类 | V164: 通过国家司法考试获C证及以上不受专业限制
A165: 060100 | B165: 德江县司法局 | C165: 04 | D165: 行政机关 | E165: 德江县复兴镇 | F165: www.dejiang.gov.cn | G165: 0856-8523042 | H165: 复兴司法所司法助理员 | I165: 03 | J165: 司法助理 | K165: 1 | L165: 本科及以上 | O165: 法学类 | V165: 通过国家司法考试获C证及以上不受专业限制
A166: 060101 | B166: 德江县煎茶镇人民政府 | C166: 04 | D166: 行政机关 | E166: 德江县煎茶镇 | F166: www.dejiang.gov.cn | G166: 0856-8523042 | H166: 财务会计 | I166: 01 | J166: 从事财务会计工作 | K166: 1 | L166: 大专及以上 | N166: 会计及相关专业 | O166: 会计及相关专业
A167: 060102 | B167: 德江县枫香溪镇人民政府 | C167: 04 | D167: 行政机关 | E167: 德江县枫香溪镇 | F167: www.dejiang.gov.cn | G167: 0856-8523042 | H167: 党政综合办公室工作人员 | I167: 01 | J167: 从事办公室日常工作 | K167: 1 | L167: 大专及以上
A168: 060103 | B168: 德江县荆角土家族乡人民政府 | C168: 04 | D168: 行政机关 | E168: 德江县荆角乡 | F168: www.dejiang.gov.cn | G168: 0856-8523042 | H168: 人口和计划生育办公室工作人员 | I168: 01 | J168: 从事办公室日常工作 | K168: 1 | L168: 大专及以上 | S168: 是 | T168: 是 | V168: 本县户籍（生源）
A169: 060104 | B169: 德江县沙溪土家族乡人民政府 | C169: 04 | D169: 行政机关 | E169: 德江县沙溪乡 | F169: www.dejiang.gov.cn | G169: 0856-8523042 | H169: 党政综合办公室工作人员 | I169: 01 | J169: 从事办公室日常工作 | K169: 1 | L169: 大专及以上 | T169: 是 | V169: 本县户籍（生源）
A170: 060104 | B170: 德江县沙溪土家族乡人民政府 | C170: 04 | D170: 行政机关 | E170: 德江县沙溪乡 | F170: www.dejiang.gov.cn | G170: 0856-8523042 | H170: 人口和计划生育办公室工作人员 | I170: 02 | J170: 从事办公室日常工作 | K170: 1 | L170: 大专及以上
A171: 060105 | B171: 沿河土家族自治县人民法院 | C171: 03 | D171: 审判机关 | E171: 沿河县开发区团结大道 | G171: 0856-8230008 | H171: 司法行政人员 | I171: 01 | J171: 文秘 | K171: 1 | L171: 本科及以上 | M171: 学士及以上学位 | O171: 中国语言文学类 | P171: 文学学科门类
A172: 060106 | B172: 沿河土家族自治县党员干部现代远程教育中心 | C172: 03 | D172: 参照公务员法管理单位 | E172: 沿河县和平街道 | G172: 0856- 8230008 | H172: 综合办公室工作人员 | I172: 01 | J172: 从事办公室日常工作 | K172: 1 | L172: 本科及以上 | M172: 学士及以上学位 | T172: 是 | V172: 本县户籍（生源）
A173: 060107 | B173: 共青团沿河土家族自治县委员会 | C173: 03 | D173: 参照公务员法管理的人民团体和群众团体 | E173: 沿河县和平街道 | G173: 0856- 8230008 | H173: 办公室工作人员 | I173: 01 | J173: 从事办公室日常工作 | K173: 1 | L173: 本科及以上 | M173: 学士及以上学位
A174: 060108 | B174: 沿河土家族自治县就业局 | C174: 03 | D174: 参照公务员法管理单位 | E174: 沿河县和平街道 | G174: 0856-8223374 | H174: 办公室工作人员 | I174: 01 | J174: 文秘 | K174: 1 | L174: 本科及以上 | M174: 学士及以上学位 | O174: 中国语言文学类 | P174: 文学学科门类 | T174: 是 | V174: 本县户籍（生源）
A175: 060108 | B175: 沿河土家族自治县就业局 | C175: 03 | D175: 参照公务员法管理单位 | E175: 沿河县和平街道 | G175: 0856-8223374 | H175: 综合办公室工作人员 | I175: 02 | J175: 从事办公室日常工作 | K175: 1 | L175: 本科及以上 | M175: 学士及以上学位 | S175: 是
A176: 060109 | B176: 沿河土家族自治县供销合作社联合社 | C176: 03 | D176: 参照公务员法管理单位 | E176: 沿河县和平街道 | G176: 0856-8223374 | H176: 办公室工作人员 | I176: 01 | J176: 从事办公室日常工作 | K176: 2 | L176: 本科及以上 | M176: 学士及以上学位
A177: 060110 | B177: 沿河土家族自治县淇滩镇人民政府 | C177: 04 | D177: 行政机关 | E177: 沿河县淇滩镇 | G177: 0856-8223374 | H177: 党政综合办公室工作人员 | I177: 01 | J177: 从事办公室日常工作 | K177: 1 | L177: 大专及以上 | S177: 是
A178: 060110 | B178: 沿河土家族自治县淇滩镇人民政府 | C178: 04 | D178: 行政机关 | E178: 沿河县淇滩镇 | G178: 0856-8223374 | H178: 党政综合办公室工作人员 | I178: 02 | J178: 从事办公室日常工作 | K178: 1 | L178: 大专及以上 | T178: 是 | V178: 本县户籍（生源）
A179: 060111 | B179: 沿河土家族自治县谯家镇人民政府 | C179: 04 | D179: 行政机关 | E179: 沿河县谯家镇 | G179: 0856-8223374 | H179: 党政综合办公室工作人员 | I179: 01 | J179: 从事办公室日常工作 | K179: 1 | L179: 大专及以上 | T179: 是 | V179: 本县户籍（生源）
A180: 060112 | B180: 沿河土家族自治县夹石镇人民政府 | C180: 04 | D180: 行政机关 | E180: 沿河县夹石镇 | G180: 0856-8223374 | H180: 党建办公室工作人员 | I180: 01 | J180: 从事办公室日常工作 | K180: 1 | L180: 大专及以上 | Q180: 中共党员
A181: 060112 | B181: 沿河土家族自治县夹石镇人民政府 | C181: 04 | D181: 行政机关 | E181: 沿河县夹石镇 | G181: 0856-8223374 | H181: 党政综合办公室工作人员 | I181: 02 | J181: 从事办公室日常工作 | K181: 1 | L181: 大专及以上 | R181: 是 | T181: 是 | V181: 本县户籍（生源）
A182: 060113 | B182: 沿河土家族自治县板场镇人民政府 | C182: 04 | D182: 行政机关 | E182: 沿河县板场镇 | G182: 0856-8223374 | H182: 党政综合办公室工作人员 | I182: 01 | J182: 从事办公室日常工作 | K182: 1 | L182: 大专及以上 | T182: 是 | V182: 本县户籍（生源）
A183: 060114 | B183: 沿河土家族自治县土地坳镇人民政府 | C183: 04 | D183: 行政机关 | E183: 沿河县土地坳镇 | G183: 0856-8223374 | H183: 党建办公室工作人员 | I183: 01 | J183: 从事办公室日常工作 | K183: 1 | L183: 大专及以上 | Q183: 中共党员
A184: 060115 | B184: 沿河土家族自治县泉坝镇人民政府 | C184: 04 | D184: 行政机关 | E184: 沿河县泉坝镇 | G184: 0856-8223374 | H184: 党政综合办公室工作人员 | I184: 01 | J184: 从事办公室日常工作 | K184: 2 | L184: 大专及以上 | T184: 是 | V184: 本县户籍（生源）
A185: 060116 | B185: 沿河土家族自治县新景镇人民政府 | C185: 04 | D185: 行政机关 | E185: 沿河县新景镇 | G185: 0856-8223374 | H185: 党政综合办公室工作人员 | I185: 01 | J185: 从事办公室日常工作 | K185: 1 | L185: 大专及以上 | T185: 是 | V185: 本县户籍（生源）
A186: 060117 | B186: 沿河土家族自治县洪渡镇人民政府 | C186: 04 | D186: 行政机关 | E186: 沿河县洪渡镇 | G186: 0856-8223374 | H186: 党政综合办公室工作人员 | I186: 01 | J186: 从事办公室日常工作 | K186: 1 | L186: 大专及以上 | T186: 是 | V186: 本县户籍（生源）
A187: 060118 | B187: 沿河土家族自治县后坪乡人民政府 | C187: 04 | D187: 行政机关 | E187: 沿河县后坪乡 | G187: 0856-8223374 | H187: 党政综合办公室工作人员 | I187: 01 | J187: 从事办公室日常工作 | K187: 1 | L187: 大专及以上 | R187: 是 | T187: 是 | V187: 本县户籍（生源）

Sheet 六盘水市
A1: 六盘水市2018年省、市、县、乡四级机关面向社会公开招录公务员职位表
A2: 考区 | B2: 招录单位代码 | C2: 单位名称 | D2: 层级代码 | E2: 机构性质 | F2: 单位地址 | G2: 单位网站 | H2: 单位咨询电话 | I2: 职位名称 | J2: 职位代码 | K2: 职位简介 | L2: 招录人数 | M2: 学历要求 | N2: 学位要求 | O2: 专业要求 | R2: 政治面貌要求 | S2: 定向招录项目要求 | V2: 基层工作经历时间 | W2: 其他报考条件 | X2: 职位工作性质及需要说明的其他事项
O3: 大专 | P3: 本科 | Q3: 研究生 | S3: 四项目人员 | T3: 退役大学生士兵 | U3: 少数民族
A4: 六盘水 | B4: 080001 | C4: 六盘水市中级人民法院 | D4: 02 | E4: 审判机关 | F4: 六盘水市钟山区钟山中路60号 | H4: 0858-8780105 | I4: 执行辅助人员 | J4: 01 | K4: 从事执行、审判辅助及相关工作 | L4: 1 | M4: 本科及以上 | N4: 学士及以上学位 | P4: 法学类 | W4: 通过国家司法考试取得A证 | X4: 长期在外执行案件，工作强度大，建议男性报考
A5: 六盘水 | B5: 080001 | C5: 六盘水市中级人民法院 | D5: 02 | E5: 审判机关 | F5: 六盘水市钟山区钟山中路60号 | H5: 0858-8780105 | I5: 执行辅助人员 | J5: 02 | K5: 从事执行、审判辅助及相关工作 | L5: 2 | M5: 本科及以上 | N5: 学士及以上学位 | P5: 法学类 | V5: 2年 | W5: 通过国家司法考试取得A证 | X5: 长期在外执行案件，工作强度大，建议男性报考
A6: 六盘水 | B6: 080001 | C6: 六盘水市中级人民法院 | D6: 02 | E6: 审判机关 | F6: 六盘水市钟山区钟山中路60号 | H6: 0858-8780105 | I6: 办公室工作人员 | J6: 03 | K6: 文秘及相关工作 | L6: 1 | M6: 本科及以上 | N6: 学士及以上学位 | P6: 中国语言文学类 | Q6: 中国语言文学类 | S6: 是 | T6: 是 | V6: 2年 | W6: 定向招录“四项目人员”或退役大学生士兵
A7: 六盘水 | B7: 080001 | C7: 六盘水市中级人民法院 | D7: 02 | E7: 审判机关 | F7: 六盘水市钟山区钟山中路60号 | H7: 0858-8780105 | I7: 法医 | J7: 04 | K7: 协助执行检验及相关工作 | L7: 1 | M7: 本科及以上 | N7: 学士及以上学位 | P7: 法医相关专业 | Q7: 法医相关专业 | X7: 需从事相关执行工作，建议男性报考
A8: 六盘水 | B8: 080002 | C8: 中共六盘水市纪律检查委员会 | D8: 02 | E8: 党的机关 | F8: 六盘水市钟山西路47号 | G8: http://sjw.gzlps.gov.cn/ | H8: 0858-8227510 | I8: 办公室工作人员 | J8: 01 | K8: 从事办公室文秘工作 | L8: 1 | M8: 本科及以上 | N8: 学士及以上学位 | P8: 中国语言文学类、哲学类、新闻传播学类 | Q8: 中国语言文学类、哲学类、新闻传播学类 | R8: 中共党员 | V8: 2年
A9: 六盘水 | B9: 080002 | C9: 中共六盘水市纪律检查委员会 | D9: 02 | E9: 党的机关 | F9: 六盘水市钟山西路47号 | G9: http://sjw.gzlps.gov.cn/ | H9: 0858-8227510 | I9: 纪检监察办案人员 | J9: 02 | K9: 从事纪检监察相关工作 | L9: 2 | M9: 本科及以上 | N9: 学士及以上学位 | P9: 经济学类、法学类 | Q9: 经济 学类、法学类 | R9: 中共党员 | V9: 2年
A10: 六盘水 | B10: 080002 | C10: 中共六盘水市纪律检查委员会 | D10: 02 | E10: 党的机关 | F10: 六盘水市钟山西路47号 | G10: http://sjw.gzlps.gov.cn/ | H10: 0858-8227510 | I10: 纪检监察办案人员 | J10: 03 | K10: 从事纪检监察相关工作 | L10: 2 | M10: 本科及以上 | N10: 学士及以上学位 | P10: 法学类 | Q10: 法学类 | R10: 中共党员
A11: 六盘水 | B11: 080003 | C11: 中共六盘水市委政法委员会 | D11: 02 | E11: 党的机关 | F11: 钟山区区府北路 | H11: 0858－8732570 | I11: 政治部工作人员 | J11: 01 | K11: 人力资源管理 | L11: 1 | M11: 本科及以上 | N11: 学士及以上学位 | P11: 法学类 | V11: 2年
A12: 六盘水 | B12: 080004 | C12: 六盘水市信访投诉受理中心（六盘水市市长专线电话办公室） | D12: 02 | E12: 参照公务员法管理单位 | F12: 钟山区人民路西段1013号 | H12: 0858-8206104 | I12: 市信访投诉受理中心（市长专线办）工作人员 | J12: 01 | K12: 信访投诉日常工作 | L12: 1 | M12: 本科及以上 | N12: 学士及以上学位 | V12: 2年
A13: 六盘水 | B13: 080005 | C13: 中共六盘水市委党校 | D13: 02 | E13: 参照公务员法管理单位 | F13: 六盘水市水城县双水街道以朵大道中段 | G13: http://lpsdx.gzlps.gov.cn/ | H13: 0858-8604 983 | I13: 财务处出纳 | J13: 01 | K13: 财务处出纳日常工作 | L13: 1 | M13: 本科及以上 | N13: 学士及以上学位 | P13: 财务会计类 | R13: 中共党员
A14: 六盘水 | B14: 080006 | C14: 中共六盘水市委讲师团 | D14: 02 | E14: 参照公务员法管理单位 | F14: 六盘水市钟山区钟山西路44号12层大楼11楼 | H14: 0858 -8222558 | I14: 办公 室工作人员 | J14: 01 | K14: 办公 室日常工作 | L14: 1 | M14: 本科及以上 | N14: 学士及以上学位 | V14: 2年
A15: 六盘水 | B15: 080007 | C15: 六盘水市残疾人联合会 | D15: 02 | E15: 参照公务员法管理的人民团体和群众团体 | F15: 六盘水市钟山区人民路西段558号 | H15: 0858-8326704 | I15: 办公室工作人员 | J15: 01 | K15: 办公室日常工作 | L15: 1 | M15: 本科及以上 | N15: 学士及以上学位
A16: 六盘水 | B16: 080008 | C16: 六盘水市住房和城乡建设局 | D16: 02 | E16: 行政机关 | F16: 六盘水市钟山区凉都开投大厦16楼 | G16: http://sjsj.gzlps.gov.cn/ | H16: 0858-8324406 | I16: 城市建设管理科主任科员及以下 | J16: 01 | K16: 项目建设管理 | L16: 2 | M16: 本科及以上 | N16: 学士及以上学位 | P16: 土木类 | Q16: 土木工程类 | V16: 2年
A17: 六盘水 | B17: 080009 | C17: 六盘水市商务和粮食局 | D17: 02 | E17: 行政机关 | F17: 六盘水市钟山西路91号 | H17: 0858-8325751, | I17: 办公室主任科员及以下 | J17: 01 | K17: 办公室综合管理 | L17: 1 | M17: 本科及以上 | N17: 学士及以上学位 | P17: 经济学学科门类、工商管理类 | Q17: 应用经济学类、工商管理类 | V17: 2年
A18: 六盘水 | B18: 080010 | C18: 六盘水市民政局 | D18: 02 | E18: 行政机关 | F18: 六盘水市钟山区钟山中路7号 | G18: http://mzj.gzlps.gov.cn/ | H18: 0858-8229843 | I18: 主任科员及以下职位 | J18: 01 | K18: 从事民政相关业务及办公室日常工作 | L18: 1 | M18: 本科及以上 | N18: 学士及以上学位 | P18: 会计学、 财务管理 、审计学 | Q18: 会计学、 财政学、统计学
A19: 六盘水 | B19: 080011 | C19: 六盘水市投资促进局 | D19: 02 | E19: 行政机关 | F19: 信息大厦六楼 | H19: 0858-8236032 | I19: 办公室科员 | J19: 01 | K19: 办公室日常工作，文秘财务工作等 | L19: 1 | M19: 本科及以上 | N19: 学士及以上学位 | P19: 会计及相关专业 | V19: 2年 | X19: 因单位工作性质需经常加班，工作强度大，适合男性报考。
A20: 六盘水 | B20: 080012 | C20: 六盘水市文化广电新闻出版局 | D20: 02 | E20: 行政机关 | F20: 六盘水市钟山区钟山西路42号 | G20: wtgdj.gzlps.gov.cn | H20: 0858-8230131 | I20: 办公室主任科员及以下 | J20: 01 | K20: 办公室日常工作，文秘工作等 | L20: 1 | M20: 本科及以上 | N20: 学士及以上学位 | P20: 汉语言文学、法学、文化产业管理 | Q20: 中国语言文学类、法学类、 考古学、 中国史 | V20: 2年
A21: 六盘水 | B21: 080013 | C21: 六盘水市非税收入管理局 | D21: 02 | E21: 参照公务员法管理单位 | F21: 六盘水市钟山区花渔路14号 | G21: czj.gzlps.gov.cn | H21: 0858-8333262 | I21: 征收管理科科员 | J21: 01 | K21: 非税收入征收管理 | L21: 1 | M21: 本科及以上 | N21: 学士及以上学位 | P21: 经济学类、财政学类、金融学类、经济与贸易类 | Q21: 经济学学科门类、管理学学科门类
A22: 六盘水 | B22: 080014 | C22: 六盘水市人民政府研究室 | D22: 02 | E22: 参照公务员法管理单位 | F22: 六盘水市钟山区钟山西路30号信息大厦7楼 | H22: 0858-8220131 | I22: 办公室主任科员及以下 | J22: 01 | K22: 办公室日常工作 | L22: 1 | M22: 本科及以上 | N22: 学士及以上学位 | S22: 是 | T22: 是 | V22: 2年 | W22: 定向招录“四项目人员”或退役大学生士兵
A23: 六盘水 | B23: 080015 | C23: 六盘水市档案局 | D23: 02 | E23: 参照公务员法管理单位 | F23: 六盘水市钟山西路72号 | G23: http://daj.gzlps.gov.cn/ | H23: 0858-8324104 | I23: 业务科主任科员及以下 | J23: 01 | K23: 从事档案相关业务工作 | L23: 1 | M23: 本科及以上 | N23: 学士及以上学位 | P23: 图书情报与档案管理类 | Q23: 图书情报、图书馆学、情报学、档案学
A24: 六盘水 | B24: 080016 | C24: 六盘水市住房公积金管理中心 | D24: 02 | E24: 参照公务员法管理单位 | F24: 六盘水市 钟山区麒 麟路口市 公积金中心 | G24: http://gjj.gzlps.gov.cn | H24: 0858- 8770852 | I24: 信息技术科科员 | J24: 01 | K24: 机关 信息 化建 设 | L24: 1 | M24: 本科及以上 | N24: 学士及以上学位 | P24: 计算 机及相关专业 | Q24: 信息与通信工 程类、计算机科学与技术类
A25: 六盘水 | B25: 080017 | C25: 六盘水市社会救助局 | D25: 02 | E25: 参照公务员法管理单位 | F25: 六盘水市钟山区钟山中路7号 | G25: http://mzj.gzlps.gov.cn/ | H25: 0858-8229843 | I25: 主任科员及以下职位 | J25: 01 | K25: 从事社会救助相关业务及办公室日常工作 | L25: 1 | M25: 本科及以上 | N25: 学士及以上学位 | P25: 会计学、 财务管理 、审计学 | Q25: 会计学、 财政学、统计学 | V25: 2年
A26: 六盘水 | B26: 080018 | C26: 六盘水市水城军用饮食供应站 | D26: 02 | E26: 参照公务员法管理单位 | F26: 六盘水市钟山区钟山中路7号 | G26: http://mzj.gzlps.gov.cn/ | H26: 0858-8229843 | I26: 主任科员及以下职位 | J26: 01 | K26: 从事办公室相关日常工作 | L26: 1 | M26: 本科及以上 | N26: 学士及以上学位 | P26: 会计学、 财务管理 、审计学 | Q26: 会计学、 财政学、统计学 | V26: 2年
A27: 六盘水 | B27: 080019 | C27: 六盘水市劳动人事争议仲裁院 | D27: 02 | E27: 参照公务员法管理单位 | F27: 六盘水市钟山区明湖路25号 | H27: 0858-8237327 | I27: 劳动人事争议仲裁员 | J27: 01 | K27: 案件审理、调解等工作 | L27: 1 | M27: 本科及以上 | N27: 学士及以上学位 | P27: 法学类 | Q27: 法学类
A28: 六盘水 | B28: 080020 | C28: 六盘水市电子政务办公室 | D28: 02 | E28: 参照公务员法管理单位 | F28: 六盘水市钟山区钟山西路30号信息大厦10楼 | H28: 0858-8222047 | I28: 电子政务推进科主任科员及以下 | J28: 01 | K28: 电子政务相关工作 | L28: 1 | M28: 本科及以上 | N28: 学士及以上学位 | S28: 是 | T28: 是 | V28: 2年 | W28: 定向招录“四项目人员”或退役大学生士兵
A29: 六盘水 | B29: 080021 | C29: 六盘水市煤炭行政执法支队 | D29: 02 | E29: 参照公务员法管理单位 | F29: 六盘水市钟山中路19号 | G29: http://mtj.gzlps.gov.cn/ | H29: 0858-8239829 | I29: 办公室主任科员及以下 | J29: 01 | K29: 从事能源行政执法工作 | L29: 1 | M29: 本科及以上 | N29: 学士及以上学位 | V29: 2年
A30: 六盘水 | B30: 080022 | C30: 六盘水市国土资源执法监察支队钟山直属大队 | D30: 02 | E30: 参照公务员法管理单位 | F30: 六盘水市钟山区川心小区富康路13号 | H30: 0858-8607002 | I30: 国土资源执法监察员 | J30: 01 | K30: 国土资源执法监察 | L30: 1 | M30: 本科及以上 | P30: 法学学科门类 | Q30: 法学学科门类
A31: 六盘水 | B31: 080023 | C31: 中共六枝特区委办公室 | D31: 03 | E31: 党的机关 | F31: 六枝特区贵烟路11号 | H31: 0858-5325041 | I31: 法规股工作人员 | J31: 01 | K31: 公文审核 | L31: 1 | M31: 本科及以上 | N31: 学士及以上学位 | P31: 法学类 | W31: 通过国家统一司法考试取得C证及以上
A32: 六盘水 | B32: 080023 | C32: 中共六枝特区委办公室 | D32: 03 | E32: 党的机关 | F32: 六枝特区贵烟路11号 | H32: 0858-5325041 | I32: “三变”办工作人员 | J32: 02 | K32: 文秘工作 | L32: 1 | M32: 本科及以上 | N32: 学士及以上学位 | P32: 中国语言文学类、法学类
A33: 六盘水 | B33: 080024 | C33: 六枝特区机构编制委员会办公室 | D33: 03 | E33: 党的机关 | F33: 六枝特区牂牁大道 | H33: 0858-5312336 | I33: 工作人员 | J33: 01 | K33: 机构编制管理 | L33: 1 | M33: 本科及以上 | N33: 学士及以上学位 | P33: 管理学学科门类
A34: 六盘水 | B34: 080025 | C34: 六枝特区人力资源和社会保障局 | D34: 03 | E34: 行政机关 | F34: 六枝特区银壶社区贵烟路桃花公园内 | H34: 0858-5322154 | I34: 办公室科员 | J34: 01 | K34: 办公室日常工作 | L34: 1 | M34: 本科及以上 | N34: 学士及以上学位 | P34: 中国语言文学类、新闻传播学类、人力资源管理、行政管理、计算机及相关专业
A35: 六盘水 | B35: 080025 | C35: 六枝特区人力资源和社会保障局 | D35: 03 | E35: 行政机关 | F35: 六枝特区银壶社区贵烟路桃花公园内 | H35: 0858-5322154 | I35: 办公室科员 | J35: 02 | K35: 劳动职业技能培训、专业技术考核工作等 | L35: 1 | M35: 本科及以上 | N35: 学士及以上学位 | P35: 工学学科门类、管理学学科门类
A36: 六盘水 | B36: 080026 | C36: 六枝特区财政局 | D36: 03 | E36: 行政机关 | F36: 六枝特区平寨镇银壶路兴业大夏 | H36: 0858-5322083 | I36: 六枝特区财政局科员 | J36: 01 | K36: 办公室日常工作 | L36: 1 | M36: 研究生 | N36: 硕士及以上学位 | Q36: 经济学学科门类
A37: 六盘水 | B37: 080027 | C37: 六枝特区住房和城乡建设局 | D37: 03 | E37: 行政机关 | F37: 六枝特区银壶社区兴隆路 | H37: 0858-5322146 | I37: 办公室科员 | J37: 01 | K37: 项目建设及相关工作 | L37: 1 | M37: 本科及以上 | N37: 学士及以上学位 | P37: 城市规划、资源环境与城乡规划管理、风景园林、景观建筑设计
A38: 六盘水 | B38: 080028 | C38: 六枝特区生态文明建设和旅游发展局 | D38: 03 | E38: 行政机关 | F38: 六枝特区银壶社区二楼 | H38: 0858-5323157 | I38: 办公室科员 | J38: 01 | K38: 办公室日常工作 | L38: 1 | M38: 本科及以上 | N38: 学士及以上学位 | P38: 旅游管理、汉语言文学、市场营销
A39: 六盘水 | B39: 080029 | C39: 六枝特区国土资源局 | D39: 03 | E39: 行政机关 | F39: 六枝特区那平路25号 | H39: 0858-5329129 | I39: 办公室科员 | J39: 01 | K39: 地质勘查行业和矿产资源储量管理有关工作 | L39: 2 | M39: 本科及以上 | N39: 学士及以上学位 | P39: 地质学类
A40: 六盘水 | B40: 080030 | C40: 六枝特区统计局 | D40: 03 | E40: 行政机关 | F40: 六枝特区银壶社区服务中心三楼 | H40: 0858-5329321 | I40: 办公室科员 | J40: 01 | K40: 办公室日常工作 | L40: 1 | M40: 本科及以上 | N40: 学士及以上学位 | P40: 经济学类
A41: 六盘水 | B41: 080031 | C41: 六枝特区安全生产执法监察局 | D41: 03 | E41: 参照公务员法管理单位 | F41: 六枝特区政务服务中心五楼 | H41: 0858-5863203 | I41: 六枝特区安全生产执法监察局科员 | J41: 01 | K41: 安全生产执法监察工作 | L41: 8 | M41: 本科及以上 | N41: 学士及以上学位 | P41: 采矿工程、地质工程、勘查技术与工程
A42: 六盘水 | B42: 080032 | C42: 六枝特区就业局 | D42: 03 | E42: 参照公务员法管理单位 | F42: 六枝特区贵烟路桃花公园内 | H42: 0858-5322250 | I42: 六枝特区就业局科员 | J42: 01 | K42: 办公室日常工作 | L42: 1 | M42: 本科及以上 | N42: 学士及以上学位 | P42: 汉语言文学、新闻传播学类、秘书学、行政管理、法学类
A43: 六盘水 | B43: 080033 | C43: 六枝特区非税收入管理局 | D43: 03 | E43: 参照公务员法管理单位 | F43: 六枝特区平寨镇银壶路兴业大夏 | H43: 0858-5322083 | I43: 六枝特区非税收入管理局科员 | J43: 01 | K43: 配合检查交通、农业、农发、建筑类等相关项目工作,开展办公室业务工作 | L43: 1 | M43: 本科及以上 | N43: 学士及以上学位 | P43: 土木工程、建筑类、水利类、农业工程类
A44: 六盘水 | B44: 080033 | C44: 六枝特区非税收入管理局 | D44: 03 | E44: 参照公务员法管理单位 | F44: 六枝特区平寨镇银壶路兴业大夏 | H44: 0858-5322083 | I44: 六枝特区非税收入管理局科员 | J44: 02 | K44: 党建、人事、信息管理等工作 | L44: 1 | M44: 本科及以上 | N44: 学士及以上学位 | P44: 电子信息工程、网络工程、通信工程 | R44: 中共党员
A45: 六盘水 | B45: 080034 | C45: 六枝特区国库集中收付管理局 | D45: 03 | E45: 参照公务员法管理单位 | F45: 六枝特区平寨镇银壶路兴业大夏 | H45: 0858-5322083 | I45: 六枝特区国库集中收付管理局科员 | J45: 01 | K45: 国库相关工作 | L45: 3 | M45: 本科及以上 | N45: 学士及以上学位 | P45: 经济学类、会计及相关专业、采购管理
A46: 六盘水 | B46: 080035 | C46: 六枝特区地方海事处 | D46: 03 | E46: 参照公务员法管理单位 | F46: 六枝特区平寨镇货运路 | H46: 0858-5311957 | I46: 办公室科员 | J46: 01 | K46: 办公室日常工作 | L46: 2 | M46: 本科及以上 | N46: 学士及以上学位
A47: 六盘水 | B47: 080036 | C47: 六枝特区地方海事处牂牁湖海事所 | D47: 03 | E47: 参照公务员法管理单位 | F47: 六枝特区牂牁镇 | H47: 0858-5311957 | I47: 牂牁湖海事所科员 | J47: 01 | K47: 办公室日常工作 | L47: 1 | M47: 本科及以上 | N47: 学士及以上学位
A48: 六盘水 | B48: 080037 | C48: 六枝特区司法局 | D48: 04 | E48: 行政机关 | F48: 六枝特区平寨镇牂牁大道 | H48: 0858-5312749 | I48: 牂牁司法所助理员 | J48: 01 | K48: 从事基层司法行政工作 | L48: 1 | M48: 本科及以上 | N48: 学士及以上学位 | P48: 法学类 | Q48: 法学学科门类
A49: 六盘水 | B49: 080037 | C49: 六枝特区司法局 | D49: 04 | E49: 行政机关 | F49: 六枝特区平寨镇牂牁大道 | H49: 0858-5312749 | I49: 新场司法所助理员 | J49: 02 | K49: 从事基层司法行政工作 | L49: 1 | M49: 本科及以上 | N49: 学士及以上学位 | P49: 法学类 | Q49: 法学学科门类
A50: 六盘水 | B50: 080038 | C50: 六枝特区郎岱镇人民政府 | D50: 04 | E50: 行政机关 | F50: 六枝特区郎岱镇后营村 | H50: 0858-5381017 | I50: 综合行政执法办公室科员 | J50: 01 | K50: 办公室日常工作 | L50: 1 | M50: 本科及以上
A51: 六盘水 | B51: 080038 | C51: 六枝特区郎岱镇人民政府 | D51: 04 | E51: 行政机关 | F51: 六枝特区郎岱镇后营村 | H51: 0858-5381017 | I51: 卫生和计划生育办公室科员 | J51: 02 | K51: 办公室日常工作 | L51: 1 | M51: 本科及以上
A52: 六盘水 | B52: 080039 | C52: 六枝特区岩脚镇人民政府 | D52: 04 | E52: 行政机关 | F52: 六枝特区岩脚镇街上 | H52: 0858-5500045 | I52: 社会治安综合治理办公室科员 | J52: 01 | K52: 办公室日常工作 | L52: 2 | M52: 大专及以上
A53: 六盘水 | B53: 080040 | C53: 六枝特区新场乡人民政府 | D53: 04 | E53: 行政机关 | F53: 六枝特区新场街上 | H53: 0858-5550011 | I53: 社会事务办公室科员 | J53: 01 | K53: 办公室日常工作 | L53: 1 | M53: 本科及以上 | N53: 学士及以上学位
A54: 六盘水 | B54: 080040 | C54: 六枝特区新场乡人民政府 | D54: 04 | E54: 行政机关 | F54: 六枝特区新场街上 | H54: 0858-5550011 | I54: 社会管理综合治理办公室科员 | J54: 02 | K54: 办公室日常工作 | L54: 1 | M54: 本科及以上 | N54: 学士及以上学位
A55: 六盘水 | B55: 080041 | C55: 六枝特区木岗镇人民政府 | D55: 04 | E55: 行政机关 | F55: 六枝特区木岗镇街上 | H55: 0858-5423177 | I55: 办公室科员 | J55: 01 | K55: 党建、人事工作等 | L55: 1 | M55: 本科及以上 | N55: 学士及以上学位 | R55: 中共党员
A56: 六盘水 | B56: 080042 | C56: 六枝特区关寨镇人民政府 | D56: 04 | E56: 行政机关 | F56: 六枝特区关寨镇大水井居委会 | H56: 0858-5600245 | I56: 安全生产监督管理办公室科员 | J56: 01 | K56: 办公室日常工作 | L56: 1 | M56: 本科及以上 | N56: 学士及以上学位
A57: 六盘水 | B57: 080043 | C57: 六枝特区新窑镇人民政府 | D57: 04 | E57: 行政机关 | F57: 六枝特区新窑镇那玉村 | H57: 0858-5804253 | I57: 社会事务办公室科员 | J57: 01 | K57: 办公室日常工作 | L57: 1 | M57: 本科及以上 | N57: 学士及以上学位 | S57: 是 | T57: 是 | W57: 定向招录“四项目人员”或退役大学生士兵
A58: 六盘水 | B58: 080043 | C58: 六枝特区新窑镇人民政府 | D58: 04 | E58: 行政机关 | F58: 六枝特区新窑镇那玉村 | H58: 0858-5804253 | I58: 国土资源和规划建设环保办公室科员 | J58: 02 | K58: 办公室日常工作 | L58: 1 | M58: 本科及以上 | N58: 学士及以上学位
A59: 六盘水 | B59: 080044 | C59: 六枝特区大用镇人民政府 | D59: 04 | E59: 行政机关 | F59: 六枝特区大用镇大用村 | H59: 0858-5400171 | I59: 社会事务办公室科员 | J59: 01 | K59: 办公室日常工作 | L59: 2 | M59: 大专及以上
A60: 六盘水 | B60: 080045 | C60: 六枝特区落别布依族彝族乡人民政府 | D60: 04 | E60: 行政机关 | F60: 六枝特区落别乡落别街上 | H60: 0858-5440177 | I60: 社会事务办公室科员 | J60: 01 | K60: 办公室日常工作 | L60: 1 | M60: 大专及以上
A61: 六盘水 | B61: 080046 | C61: 盘州市直属机关工作委员会 | D61: 03 | E61: 党的机关 | F61: 盘州市亦资街道凤鸣北路 | G61: https://weibo.com/u/5618014824?ssl_rnd=1510640994.4653&is_hot=1 | H61: 0858-3632876 | I61: 盘州市直属机关工作委员会办公室 | J61: 01 | K61: 办公室日常工作、文秘工作等 | L61: 1 | M61: 本科及以上 | N61: 学士及以上学位
A62: 六盘水 | B62: 080047 | C62: 盘州市人民政府办公室 | D62: 03 | E62: 行政机关 | F62: 盘州市亦资街道办凤鸣北路1号 | G62: http://www.panxian.gov.cn/ | H62: 0858-3635439 | I62: 办公室科员 | J62: 01 | K62: 从事办公室文秘工作 | L62: 3 | M62: 本科及以上 | N62: 学士及以上学位 | P62: 汉语言文学、秘书学、新闻学 | Q62: 汉语言文字学、新闻学、语言学及应用语言学
A63: 六盘水 | B63: 080048 | C63: 盘州市财政局 | D63: 03 | E63: 行政机关 | F63: 盘州市亦资街道亦资社区凤鸣北路1号 | H63: 0858-3638622 | I63: 办公室科员 | J63: 01 | K63: 从事财务工作 | L63: 3 | M63: 本科及以上 | N63: 学士及以上学位 | P63: 会计学、财政学、财务管理、审计学 | Q63: 财政学、金融学、会计学
A64: 六盘水 | B64: 080049 | C64: 盘州市城市管理局 | D64: 03 | E64: 行政机关 | F64: 盘州市亦资街道办 | H64: 0858-3632619 | I64: 办公室科员 | J64: 01 | K64: 办公室日常工作 | L64: 1 | M64: 本科及以上
A65: 六盘水 | B65: 080050 | C65: 盘州市环境保护局 | D65: 03 | E65: 行政机关 | F65: 盘州市亦资街道办 | H65: 0858-3678401 | I65: 办公室科员 | J65: 01 | K65: 办公室日常工作 | L65: 1 | M65: 本科及以上
A66: 六盘水 | B66: 080051 | C66: 盘州市经济和信息化局 | D66: 03 | E66: 行政机关 | F66: 盘州市亦资街道办团结东路 | H66: 0858-3106578 | I66: 办公室科员 | J66: 01 | K66: 办公室日常工作 | L66: 1 | M66: 本科及以上
A67: 六盘水 | B67: 080052 | C67: 盘州市民政局 | D67: 03 | E67: 行政机关 | F67: 盘州市亦资街道办军民路 | H67: 0858-3632580 | I67: 办公室科员 | J67: 01 | K67: 办公室日常工作 | L67: 1 | M67: 本科及以上
A68: 六盘水 | B68: 080053 | C68: 盘州市司法局 | D68: 04 | E68: 行政机关 | F68: 贵州省盘州市亦资街道东河社区平川西路 | H68: 0858-3633705 | I68: 盘州市旧营乡司法所司法助理员 | J68: 01 | K68: 司法所日常工作 | L68: 1 | M68: 本科及以上 | P68: 法学类、公共管理类、艺术设计学、汉语言文学、新闻传播学类
A69: 六盘水 | B69: 080053 | C69: 盘州市司法局 | D69: 04 | E69: 行政机关 | F69: 贵州省盘州市亦资街道东河社区平川西路 | H69: 0858-3633705 | I69: 盘州市大山镇司法所司法助理员 | J69: 02 | K69: 司法所日常工作 | L69: 1 | M69: 本科及以上 | P69: 法学类、公共管理类、艺术设计学、汉语言文学、新闻传播学类
A70: 六盘水 | B70: 080053 | C70: 盘州市司法局 | D70: 04 | E70: 行政机关 | F70: 贵州省盘州市亦资街道东河社区平川西路 | H70: 0858-3633705 | I70: 盘州市刘官街道司法所司法助理员 | J70: 03 | K70: 司法所日常工作 | L70: 1 | M70: 本科及以上 | P70: 法学类、公共管理类、艺术设计学、汉语言文学、新闻传播学类
A71: 六盘水 | B71: 080053 | C71: 盘州市司法局 | D71: 04 | E71: 行政机关 | F71: 贵州省盘州市亦资街道东河社区平川西路 | H71: 0858-3633705 | I71: 盘州市羊场乡司法所司法助理员 | J71: 04 | K71: 司法所日常工作 | L71: 1 | M71: 本科及以上 | P71: 法学类、公共管理类、艺术设计学、汉语言文学、新闻传播学类
A72: 六盘水 | B72: 080054 | C72: 盘州市煤焦稽查大队 | D72: 03 | E72: 参照公务员法管理单位 | F72: 盘州市红果经济开发区（两河新区）沙坡立交桥下100米处 | H72: 0858-3697373 | I72: 办公室科员 | J72: 01 | K72: 办公室文秘工作 | L72: 2 | M72: 本科及以上 | N72: 学士及以上学位
A73: 六盘水 | B73: 080054 | C73: 盘州市煤焦稽查大队 | D73: 03 | E73: 参照公务员法管理单位 | F73: 盘州市红果经济开发区（两河新区）沙坡立交桥下101米处 | H73: 0858-3697373 | I73: 办公室科员 | J73: 02 | K73: 煤焦稽查工作 | L73: 6 | M73: 本科及以上 | N73: 学士及以上学位 | P73: 法学类 | Q73: 法学类
A74: 六盘水 | B74: 080054 | C74: 盘州市煤焦稽查大队 | D74: 03 | E74: 参照公务员法管理单位 | F74: 盘州市红果经济开发区（两河新区）沙坡立交桥下101米处 | H74: 0858-3697373 | I74: 办公室科员 | J74: 03 | K74: 煤焦稽查工作 | L74: 1 | M74: 本科及以上 | N74: 学士及以上学位 | S74: 是 | T74: 是 | W74: 定向招录“四项目人员”或退役大学生士兵
A75: 六盘水 | B75: 080055 | C75: 盘州市就业局 | D75: 03 | E75: 参照公务员法管理单位 | F75: 盘州市亦资街道办团结东路 | G75: http://www.panxian.gov.cn/zwgk/bmxxgkml/srlzyhshbzj/tzgg/index.shtml | H75: 0858-3107185 | I75: 办公室科员 | J75: 01 | K75: 办公室工作 | L75: 2 | M75: 本科及以上 | N75: 学士及以上学位 | P75: 计算机科学与技术、软件工程、数学与应用数学
A76: 六盘水 | B76: 080055 | C76: 盘州市就业局 | D76: 03 | E76: 参照公务员法管理单位 | F76: 盘州市亦资街道办团结东路 | G76: http://www.panxian.gov.cn/zwgk/bmxxgkml/srlzyhshbzj/tzgg/index.shtml | H76: 0858-3107185 | I76: 办公室科员 | J76: 02 | K76: 财务工作 | L76: 1 | M76: 本科及以上 | N76: 学士及以上学位 | P76: 会计学、财务管理、审计学
A77: 六盘水 | B77: 080056 | C77: 盘州市社会保险事业局 | D77: 03 | E77: 参照公务员法管理单位 | F77: 盘州市亦资街道办团结东路 | G77: http://www.panxian.gov.cn/zwgk/bmxxgkml/srlzyhshbzj/tzgg/index.shtml | H77: 0858-3663497 | I77: 办公室科员 | J77: 01 | K77: 财务工作 | L77: 2 | M77: 本科及以上 | N77: 学士及以上学位 | P77: 会计及相关专业
A78: 六盘水 | B78: 080056 | C78: 盘州市社会保险事业局 | D78: 03 | E78: 参照公务员法管理单位 | F78: 盘州市亦资街道办团结东路 | G78: http://www.panxian.gov.cn/zwgk/bmxxgkml/srlzyhshbzj/tzgg/index.shtml | H78: 0858-3663497 | I78: 办公室科员 | J78: 02 | K78: 医疗待遇审核工作 | L78: 1 | M78: 本科及以上 | N78: 学士及以上学位 | P78: 临床医学类 | Q78: 临床医学类
A79: 六盘水 | B79: 080056 | C79: 盘州市社会保险事业局 | D79: 03 | E79: 参照公务员法管理单位 | F79: 盘州市亦资街道办团结东路 | G79: http://www.panxian.gov.cn/zwgk/bmxxgkml/srlzyhshbzj/tzgg/index.shtml | H79: 0858-3663497 | I79: 办公室科员 | J79: 03 | K79: 医疗待遇审核工作 | L79: 1 | M79: 本科及以上 | N79: 学士及以上学位 | P79: 药学类 | Q79: 药学类
A80: 六盘水 | B80: 080056 | C80: 盘州市社会保险事业局 | D80: 03 | E80: 参照公务员法管理单位 | F80: 盘州市亦资街道办团结东路 | G80: http://www.panxian.gov.cn/zwgk/bmxxgkml/srlzyhshbzj/tzgg/index.shtml | H80: 0858-3663497 | I80: 办公室科员 | J80: 04 | K80: 办公室工作 | L80: 1 | M80: 本科及以上 | N80: 学士及以上学位 | P80: 计算机及相关专业
A81: 六盘水 | B81: 080057 | C81: 水城县人民法院 | D81: 03 | E81: 审判机关 | F81: 水城县双水新区兴县路 | H81: 0858-8939018 | I81: 办公室财务人员 | J81: 01 | K81: 财务会计工作 | L81: 1 | M81: 本科及以上 | N81: 学士及以上学位 | P81: 会计及相关专业 | Q81: 工商管理类
A82: 六盘水 | B82: 080057 | C82: 水城县人民法院 | D82: 04 | E82: 审判机关 | F82: 水城县双水新区兴县路 | H82: 0858-8939018 | I82: 老鹰山人民法庭网络管理员 | J82: 02 | K82: 网络管理工作 | L82: 1 | M82: 本科及以上 | N82: 学士及以上学位 | P82: 计算机及相关专业 | Q82: 计算机科学与技术类
A83: 六盘水 | B83: 080057 | C83: 水城县人民法院 | D83: 04 | E83: 审判机关 | F83: 水城县双水新区兴县路 | H83: 0858-8939018 | I83: 老鹰山人民法庭审判辅助人员 | J83: 03 | K83: 审判辅助工作 | L83: 1 | M83: 本科及以上 | N83: 学士及以上学位 | P83: 法学类 | Q83: 法学类 | W83: 通过国家统一司法考试取得C证及以上
A84: 六盘水 | B84: 080057 | C84: 水城县人民法院 | D84: 04 | E84: 审判机关 | F84: 水城县双水新区兴县路 | H84: 0858-8939018 | I84: 老鹰山人民法庭审判辅助人员 | J84: 04 | K84: 审判辅助工作 | L84: 1 | M84: 本科及以上 | N84: 学士及以上学位 | S84: 是 | T84: 是 | W84: 定向招录“四项目人员”或退役大学生士兵
A85: 六盘水 | B85: 080058 | C85: 水城县残疾人联合会 | D85: 03 | E85: 参照公务员法管理的人民团体和群众团体 | F85: 水城县双水新区拥军路 | H85: 0858-8932066 | I85: 财务室工作人员 | J85: 01 | K85: 财务会计工作 | L85: 1 | M85: 本科及以上 | N85: 学士及以上学位 | P85: 财务管理、会计学、审计学 | Q85: 工商管理类
A86: 六盘水 | B86: 080058 | C86: 水城县残疾人联合会 | D86: 03 | E86: 参照公务员法管理的人民团体和群众团体 | F86: 水城县双水新区拥军路 | H86: 0858-8932066 | I86: 康复部工作人员 | J86: 02 | K86: 残疾人康复服务工作 | L86: 1 | M86: 本科及以上 | N86: 学士及以上学位 | P86: 中医学、针灸推拿学、康复治疗学 | Q86: 精神病与精神卫生学、外科学、康复医学与理疗学
A87: 六盘水 | B87: 080059 | C87: 中共水城县委政策研究室 | D87: 03 | E87: 参照公务员法管理单位 | F87: 水城县双水新区县委办公楼二楼 | H87: 0858-8932067 | I87: 办公室文秘员 | J87: 01 | K87: 文秘工作 | L87: 2 | M87: 本科及以上 | N87: 学士及以上学位 | P87: 中国语言文学类 | Q87: 中国语言文学类
A88: 六盘水 | B88: 080060 | C88: 水城县财政局 | D88: 03 | E88: 行政机关 | F88: 水城县双水街道 | H88: 0858-8932595 | I88: 水城县财政局办公室科员 | J88: 01 | K88: 办公室日常工作 | L88: 1 | M88: 本科及以上 | P88: 计算机科学与技术、电子信息科学与技术、网络与信息安全 | Q88: 计算机科学与技术类
A89: 六盘水 | B89: 080060 | C89: 水城县财政局 | D89: 03 | E89: 行政机关 | F89: 水城县双水街道 | H89: 0858-8932595 | I89: 水城县财政局预算股科员 | J89: 02 | K89: 预算管理日常工作 | L89: 1 | M89: 本科及以上 | P89: 金融学、会计学、财务管理、经济学 | Q89: 经济学学科门类
A90: 六盘水 | B90: 080060 | C90: 水城县财政局 | D90: 03 | E90: 行政机关 | F90: 水城县双水街道 | H90: 0858-8932595 | I90: 水城县财政局监察股科员 | J90: 03 | K90: 财政监督日常工作 | L90: 1 | M90: 本科及以上 | P90: 审计学、财务管理、会计学 | Q90: 经济学学科门类
A91: 六盘水 | B91: 080061 | C91: 水城县安全生产执法监察局 | D91: 03 | E91: 参照公务员法管理单位 | F91: 贵州省水城县双水兴县路 | H91: 0858-6665615 | I91: 水城县安全生产执法监察局科员 | J91: 01 | K91: 安全生产监督检查工作 | L91: 2 | M91: 本科及以上 | P91: 冶金工程、金属材料工程、无机非金属材料工程
A92: 六盘水 | B92: 080061 | C92: 水城县安全生产执法监察局 | D92: 03 | E92: 参照公务员法管理单位 | F92: 贵州省水城县双水兴县路 | H92: 0858-6665615 | I92: 水城县安全生产执法监察局科员 | J92: 02 | K92: 职业卫生监督检查工作 | L92: 1 | M92: 本科及以上 | P92: 公共卫生与预防医学类
A93: 六盘水 | B93: 080061 | C93: 水城县安全生产执法监察局 | D93: 03 | E93: 参照公务员法管理单位 | F93: 贵州省水城县双水兴县路 | H93: 0858-6665615 | I93: 水城县安全生产执法监察局科员 | J93: 03 | K93: 办公室日常工作 | L93: 1 | M93: 本科及以上 | P93: 汉语言文学、汉语言、新闻学
A94: 六盘水 | B94: 080061 | C94: 水城县安全生产执法监察局 | D94: 03 | E94: 参照公务员法管理单位 | F94: 贵州省水城县双水兴县路 | H94: 0858-6665615 | I94: 水城县安全生产执法监察局科员 | J94: 04 | K94: 安全生产监督检查工作 | L94: 1 | M94: 本科及以上 | P94: 化学工程与工艺、化学、应用化学
A95: 六盘水 | B95: 080061 | C95: 水城县安全生产执法监察局 | D95: 03 | E95: 参照公务员法管理单位 | F95: 贵州省水城县双水兴县路 | H95: 0858-6665615 | I95: 水城县安全生产执法监察局科员 | J95: 05 | K95: 办公室日常工作 | L95: 1 | M95: 本科及以上 | P95: 档案学、信息资源管理、图书馆学
A96: 六盘水 | B96: 080062 | C96: 水城县国土资源执法监察大队 | D96: 03 | E96: 参照公务员法管理单位 | F96: 双水大道 | H96: 0858-8932029 | I96: 水城县国土资源执法监察大队科员 | J96: 01 | K96: 国家土地资源、矿产资源相关法律、法规督查工作 | L96: 1 | M96: 本科及以上 | N96: 学士及以上学位 | P96: 测绘类、地质类 | Q96: 地质资源与地质工程类 、 测绘科学与技术类、地质学类
A97: 六盘水 | B97: 080062 | C97: 水城县国土资源执法监察大队 | D97: 03 | E97: 参照公务员法管理单位 | F97: 双水大道 | H97: 0858-8932029 | I97: 水城县国土资源执法监察大队科员 | J97: 02 | K97: 执法办案 | L97: 1 | M97: 本科及以上 | N97: 学士及以上学位 | P97: 法学类 | Q97: 法学学科门类
A98: 六盘水 | B98: 080063 | C98: 水城县环境监察大队 | D98: 03 | E98: 参照公务员法管理单位 | F98: 水城县双水新区兴县路北侧 | H98: 0858-8932196 | I98: 水城县环境监察大队科员 | J98: 01 | K98: 会计工作 | L98: 1 | M98: 本科及以上 | N98: 学士及以上学位 | P98: 会计及相关专业
A99: 六盘水 | B99: 080063 | C99: 水城县环境监察大队 | D99: 03 | E99: 参照公务员法管理单位 | F99: 水城县双水新区兴县路北侧 | H99: 0858-8932196 | I99: 水城县环境监察大队科员 | J99: 02 | K99: 环境执法检查相关工作 | L99: 2 | M99: 本科及以上 | N99: 学士及以上学位 | P99: 法学类
A100: 六盘水 | B100: 080063 | C100: 水城县环境监察大队 | D100: 03 | E100: 参照公务员法管理单位 | F100: 水城县双水新区兴县路北侧 | H100: 0858-8932196 | I100: 水城县环境监察大队科员 | J100: 03 | K100: 办公室日常工作 | L100: 2 | M100: 本科及以上 | N100: 学士及以上学位 | P100: 中国语言文学类
A101: 六盘水 | B101: 080063 | C101: 水城县环境监察大队 | D101: 03 | E101: 参照公务员法管理单位 | F101: 水城县双水新区兴县路北侧 | H101: 0858-8932196 | I101: 水城县环境监察大队科员 | J101: 04 | K101: 环境执法检查相关工作 | L101: 5 | M101: 本科及以上 | N101: 学士及以上学位 | P101: 环境科学与工程类
A102: 六盘水 | B102: 080064 | C102: 水城县交通运输局 | D102: 03 | E102: 行政机关 | F102: 水城县双水新区兴县路 | H102: 0858- 6665835 | I102: 财务股 科员 | J102: 01 | K102: 财务 管理 工作 | L102: 1 | M102: 本科及以上 | N102: 学士及以上学位 | P102: 财务管理、会计学、审计学 | Q102: 财务管理、会计学
A103: 六盘水 | B103: 080064 | C103: 水城县交通运输局 | D103: 03 | E103: 行政机关 | F103: 水城县双水新区兴县路 | H103: 0858- 6665835 | I103: 规划建设管理 股科员 | J103: 02 | K103: 公路 规划 建设工作 | L103: 1 | M103: 本科及以上 | N103: 学士及以上学位 | P103: 土木工程、工程管理、道路桥梁与渡河工程 | Q103: 土木工程类、工程管理、测绘科学与技术类
A104: 六盘水 | B104: 080065 | C104: 水城县农业局 | D104: 03 | E104: 行政机关 | F104: 水城县双水新区 | H104: 0858-8933189 | I104: 办公室科员 | J104: 01 | K104: 文秘工作 | L104: 1 | M104: 本科及以上 | N104: 学士及以上学位 | P104: 汉语言文学、汉语言、汉语国际教育 | Q104: 语言学及应用语言学、中国现当代文学、汉语言文字学
A105: 六盘水 | B105: 080065 | C105: 水城县农业局 | D105: 03 | E105: 行政机关 | F105: 水城县双水新区 | H105: 0858-8933189 | I105: 办公室科员 | J105: 02 | K105: 办公室科技项目审核和管理 | L105: 1 | M105: 本科及以上 | N105: 学士及以上学位 | P105: 电子科学与技术、电子信息工程、微电子科学与工程
A106: 六盘水 | B106: 080066 | C106: 水城县教育局 | D106: 03 | E106: 行政机关 | F106: 水城县双水新区以朵大道北侧 | H106: 0858-6664746 | I106: 办公室科员 | J106: 01 | K106: 办公室日常工作 | L106: 1 | M106: 本科及以上 | N106: 学士及以上学位
A107: 六盘水 | B107: 080067 | C107: 水城县社会保险事业局 | D107: 03 | E107: 参照公务员法管理单位 | F107: 双水新区兴县路 | H107: 0858-8935672 | I107: 医疗工伤生育待遇股科员 | J107: 01 | K107: 医疗、生育、工伤待遇支付工作 | L107: 1 | M107: 本科及以上 | N107: 学士及以上学位 | P107: 临床医学、中西医临床医学、康复治疗学 | Q107: 临床医学类
A108: 六盘水 | B108: 080067 | C108: 水城县社会保险事业局 | D108: 03 | E108: 参照公务员法管理单位 | F108: 双水新区兴县路 | H108: 0858-8935672 | I108: 基金财务股科员 | J108: 02 | K108: 会计、出纳工作 | L108: 2 | M108: 本科及以上 | P108: 会计学、财务管理、审计学 | Q108: 会计学、财务管理
A109: 六盘水 | B109: 080067 | C109: 水城县社会保险事业局 | D109: 03 | E109: 参照公务员法管理单位 | F109: 双水新区兴县路 | H109: 0858-8935672 | I109: 综合股科员 | J109: 03 | K109: 综合股日常工作 | L109: 1 | M109: 本科及以上 | N109: 学士及以上学位 | P109: 人力资源管理、社会工作、行政管理 | Q109: 公共管理类
A110: 六盘水 | B110: 080067 | C110: 水城县社会保险事业局 | D110: 03 | E110: 参照公务员法管理单位 | F110: 双水新区兴县路 | H110: 0858-8935672 | I110: 综合股科员 | J110: 04 | K110: 社会保险业务工作 | L110: 1 | M110: 大专及以上 | S110: 是 | T110: 是 | W110: 定向招录“四项目人员”或退役大学生士兵
A111: 六盘水 | B111: 080068 | C111: 水城县劳动保障监察大队 | D111: 03 | E111: 参照公务员法管理单位 | F111: 双水新区兴县路 | H111: 0858-8935649 | I111: 水城县劳动监察大队科员 | J111: 01 | K111: 劳动监察工作 | L111: 1 | M111: 本科及以上 | P111: 法学类
A112: 六盘水 | B112: 080068 | C112: 水城县劳动保障监察大队 | D112: 03 | E112: 参照公务员法管理单位 | F112: 双水新区兴县路 | H112: 0858-8935649 | I112: 水城县劳动监察大队科员 | J112: 02 | K112: 投诉接待工作 | L112: 2 | M112: 本科及以上 | N112: 学士及以上学位
A113: 六盘水 | B113: 080068 | C113: 水城县劳动保障监察大队 | D113: 03 | E113: 参照公务员法管理单位 | F113: 双水新区兴县路 | H113: 0858-8935649 | I113: 水城县劳动监察大队科员 | J113: 03 | K113: 办公室日常工作 | L113: 1 | M113: 本科及以上 | P113: 公共事业管理、行政管理、劳动与社会保障
A114: 六盘水 | B114: 080069 | C114: 水城县就业局 | D114: 03 | E114: 参照公务员法管理单位 | F114: 双水新区兴县路 | H114: 0858-8935652 | I114: 综合股科员 | J114: 01 | K114: 办公室日常工作 | L114: 1 | M114: 本科及以上 | N114: 学士及以上学位
A115: 六盘水 | B115: 080070 | C115: 水城县人民政府政务服务中心 | D115: 03 | E115: 参照公务员法管理单位 | F115: 双水新区东部国际城坝前广场 | H115: 0858-6600128 | I115: 乡村政务股科员 | J115: 01 | K115: 乡村政务股日常工作 | L115: 1 | M115: 本科及以上 | N115: 学士及以上学位
A116: 六盘水 | B116: 080070 | C116: 水城县人民政府政务服务中心 | D116: 03 | E116: 参照公务员法管理单位 | F116: 双水新区东部国际城坝前广场 | H116: 0858-6600128 | I116: 受理咨询股科员 | J116: 02 | K116: 受理咨询日常工作 | L116: 1 | M116: 本科及以上 | N116: 学士及以上学位 | P116: 法学类 | Q116: 法学学科门类
A117: 六盘水 | B117: 080070 | C117: 水城县人民政府政务服务中心 | D117: 03 | E117: 参照公务员法管理单位 | F117: 双水新区东部国际城坝前广场 | H117: 0858-6600128 | I117: 协调督办股科员 | J117: 03 | K117: 协调督办股日常工作 | L117: 1 | M117: 本科及以上 | N117: 学士及以上学位 | P117: 计算机及相关专业 | Q117: 计算机科学与技术类
A118: 六盘水 | B118: 080071 | C118: 水城县司法局 | D118: 04 | E118: 行政机关 | F118: 水城县米萝镇 | H118: 0858-8932655 | I118: 米箩片区司法所司法助理员 | J118: 01 | K118: 人民调解、社区矫正、安置帮教、法制宣传 | L118: 1 | M118: 本科及以上 | P118: 法学类 | Q118: 法学类 | X118: 社区矫正工作需对社区矫正服刑人员进行长期监管，经常入户走访调查，适宜男性报考。
A119: 六盘水 | B119: 080071 | C119: 水城县司法局 | D119: 04 | E119: 行政机关 | F119: 水城县玉舍镇 | H119: 0858-8932655 | I119: 玉舍片区司法所司法助理员 | J119: 02 | K119: 人民调解、社区矫正、安置帮教、法制宣传 | L119: 1 | M119: 本科及以上 | P119: 法学类 | Q119: 法学类 | X119: 社区矫正工作需对社区矫正服刑人员进行长期监管，经常入户走访调查，适宜男性报考。
A120: 六盘水 | B120: 080071 | C120: 水城县司法局 | D120: 04 | E120: 行政机关 | F120: 水城县发耳镇 | H120: 0858-8932655 | I120: 发耳片区司法所司法助理员 | J120: 03 | K120: 人民调解、社区矫正、安置帮教、法制宣传 | L120: 1 | M120: 本科及以上 | P120: 法学类 | Q120: 法学类 | X120: 社区矫正工作需对社区矫正服刑人员进行长期监管，经常入户走访调查，适宜男性报考。
A121: 六盘水 | B121: 080071 | C121: 水城县司法局 | D121: 04 | E121: 行政机关 | F121: 水城县龙场镇 | H121: 0858-8932655 | I121: 龙场片区司法所司法助理员 | J121: 04 | K121: 人民调解、社区矫正、安置帮教、法制宣传 | L121: 2 | M121: 本科及以上 | P121: 法学类 | Q121: 法学类 | X121: 社区矫正工作需对社区矫正服刑人员进行长期监管，经常入户走访调查，适宜男性报考。
A122: 六盘水 | B122: 080072 | C122: 六盘水市钟山区人民法院 | D122: 03 | E122: 审判机关 | F122: 六盘水市钟山区川心小区齐心路2号 | G122: www.zsqfy.gov.cn | H122: 0858-8730006 | I122: 工作人员 | J122: 01 | K122: 信息化建设管理等工作 | L122: 1 | M122: 本科及以上 | P122: 计算机科学与技术、网络工程、信息安全、电子与计算机工程、计算机应用技术、计算机网络技术、计算机系统维护、计算机信息管理、网络系统管理、软件技术
A123: 六盘水 | B123: 080072 | C123: 六盘水市钟山区人民法院 | D123: 03 | E123: 审判机关 | F123: 六盘水市钟山区川心小区齐心路2号 | G123: www.zsqfy.gov.cn | H123: 0858-8730006 | I123: 审判辅助人员 | J123: 02 | K123: 审判辅助工作 | L123: 2 | M123: 本科及以上 | P123: 法学类 | Q123: 法学类
A124: 六盘水 | B124: 080072 | C124: 六盘水市钟山区人民法院 | D124: 04 | E124: 审判机关 | F124: 六盘水市钟山区月照社区 | G124: www.zsqfy.gov.cn | H124: 0858-8730006 | I124: 月照人民法庭审判辅助人员 | J124: 03 | K124: 审判辅助工作 | L124: 1 | M124: 本科及以上 | P124: 法学类 | Q124: 法学类 | S124: 是 | T124: 是 | W124: 定向招录“四项目人员”或退役大学生士兵
A125: 六盘水 | B125: 080073 | C125: 中共六盘水市钟山区纪律检查委员会 | D125: 03 | E125: 党的机关 | F125: 六盘水市钟山区政通路 | H125: 0858-8693123 | I125: 工作人员 | J125: 01 | K125: 执纪审查工作 | L125: 1 | M125: 本科及以上 | N125: 学士及以上学位 | P125: 法学类 | Q125: 法学类 | X125: 长期在外执行案件，工作强度大，建议男性报考
A126: 六盘水 | B126: 080074 | C126: 中共六盘水市钟山区委政策研究室 | D126: 03 | E126: 参照公务员法管理单位 | F126: 六盘水市钟山区政通路 | H126: 0858-8694190 | I126: 工作人员 | J126: 01 | K126: 文秘工作 | L126: 2 | M126: 本科及以上 | N126: 学士及以上学位
A127: 六盘水 | B127: 080075 | C127: 六盘水市钟山区纪检监察举报中心（六盘水市钟山区非公有制经济发展侵权投诉中心 | D127: 03 | E127: 参照公务员法管理单位 | F127: 六盘水市钟山区政通路 | H127: 0858-8693123 | I127: 工作人员 | J127: 01 | K127: 执纪审查工作 | L127: 1 | M127: 本科及以上 | N127: 学士及以上学位 | P127: 法学类 | Q127: 法学类 | X127: 长期在外执行案件，工作强度大，建议男性报考
A128: 六盘水 | B128: 080076 | C128: 六盘水市钟山区教育局 | D128: 03 | E128: 行政机关 | F128: 六盘水市钟山区明湖路 | H128: 0858-8220656 | I128: 办公室科员 | J128: 01 | K128: 办公室日常工作，文秘工作等 | L128: 1 | M128: 本科及以上 | N128: 学士及以上学位 | P128: 中国语言文学类 | Q128: 中国语言文学类
A129: 六盘水 | B129: 080077 | C129: 六盘水市钟山区民族宗教事务局 | D129: 03 | E129: 行政机关 | F129: 钟山区政府大楼523室 | H129: 0858-8693917 | I129: 办公室科员 | J129: 01 | K129: 办公室日常工作、文秘工作 | L129: 1 | M129: 本科及以上 | P129: 中国语言文学类、民族学类
A130: 六盘水 | B130: 080078 | C130: 六盘水市钟山区经济和信息化局 | D130: 03 | E130: 行政机关 | F130: 六盘水市钟山区碧云路10号 | G130: http://zsqjxj.gzzs.gov.cn | H130: 0858-8693743 | I130: 办公室科员 | J130: 01 | K130: 办公室日常工作 | L130: 1 | M130: 本科及以上 | N130: 学士及以上学位
A131: 六盘水 | B131: 080079 | C131: 六盘水市钟山区市场监督管理局 | D131: 04 | E131: 行政机关 | F131: 六盘水市钟山区 | H131: 0858-6707370 | I131: 大湾分局科员 | J131: 01 | K131: 大数据云平台管理 | L131: 1 | M131: 本科及以上 | P131: 计算机类、法学类 | W131: 限男性
A132: 六盘水 | B132: 080079 | C132: 六盘水市钟山区市场监督管理局 | D132: 04 | E132: 行政机关 | F132: 六盘水市钟山区 | H132: 0858-6707371 | I132: 大湾分局科员 | J132: 02 | K132: 大数据云平台管理 | L132: 1 | M132: 本科及以上 | P132: 计算机类、法学类 | W132: 限女性
A133: 六盘水 | B133: 080079 | C133: 六盘水市钟山区市场监督管理局 | D133: 04 | E133: 行政机关 | F133: 六盘水市钟山区 | H133: 0858-6707370 | I133: 荷城分局科员 | J133: 03 | K133: 行政执法 | L133: 1 | M133: 本科及以上 | P133: 工商管理类
A134: 六盘水 | B134: 080079 | C134: 六盘水市钟山区市场监督管理局 | D134: 04 | E134: 行政机关 | F134: 六盘水市钟山区 | H134: 0858-6707370 | I134: 龙井分局科员 | J134: 04 | K134: 行政执法 | L134: 1 | M134: 本科及以上
A135: 六盘水 | B135: 080079 | C135: 六盘水市钟山区市场监督管理局 | D135: 04 | E135: 行政机关 | F135: 六盘水市钟山区 | H135: 0858-6707370 | I135: 场坝分局科员 | J135: 05 | K135: 行政执法 | L135: 1 | M135: 本科及以上
A136: 六盘水 | B136: 080079 | C136: 六盘水市钟山区市场监督管理局 | D136: 04 | E136: 行政机关 | F136: 六盘水市钟山区 | H136: 0858-6707370 | I136: 汪家寨分局科员 | J136: 06 | K136: 行政执法 | L136: 1 | M136: 本科及以上
A137: 六盘水 | B137: 080079 | C137: 六盘水市钟山区市场监督管理局 | D137: 04 | E137: 行政机关 | F137: 六盘水市钟山区 | H137: 0858-6707370 | I137: 人民路分局科员 | J137: 07 | K137: 行政执法 | L137: 1 | M137: 本科及以上
A138: 六盘水 | B138: 080080 | C138: 六盘水市钟山区人民政府政务服务中心 | D138: 03 | E138: 参照公务员法管理单位 | F138: 六盘水市钟山区凤凰新区政通路 | H138: 0858-8692169 | I138: 钟山区政务服务中心技术股科员 | J138: 01 | K138: 网络维护 | L138: 1 | M138: 本科及以上 | N138: 学士及以上学位 | P138: 计算机类
A139: 六盘水 | B139: 080081 | C139: 六盘水市钟山区城市管理监察大队 | D139: 03 | E139: 参照公务员法管理单位 | F139: 贵州省六盘水市凤凰新区政通路 | G139: http://www.gzzs.gov.cn/SunOpen/index.aspx?sid=122&type=3 | H139: 0858-8298732 | I139: 城市管理监察大队科员 | J139: 01 | K139: 城市管理日常工作 | L139: 8 | M139: 本科及以上 | N139: 学士及以上学位 | P139: 法学类
A140: 六盘水 | B140: 080081 | C140: 六盘水市钟山区城市管理监察大队 | D140: 03 | E140: 参照公务员法管理单位 | F140: 贵州省六盘水市凤凰新区政通路 | G140: http://www.gzzs.gov.cn/SunOpen/index.aspx?sid=122&type=3 | H140: 0858-8298732 | I140: 城市管理监察大队科员 | J140: 02 | K140: 城市管理日常工作 | L140: 7 | M140: 本科及以上 | N140: 学士及以上学位 | P140: 公共管理类
A141: 六盘水 | B141: 080081 | C141: 六盘水市钟山区城市管理监察大队 | D141: 03 | E141: 参照公务员法管理单位 | F141: 贵州省六盘水市凤凰新区政通路 | G141: http://www.gzzs.gov.cn/SunOpen/index.aspx?sid=122&type=3 | H141: 0858-8298732 | I141: 城市管理监察大队科员 | J141: 03 | K141: 城市管理日常工作 | L141: 8 | M141: 本科及以上 | N141: 学士及以上学位
A142: 六盘水 | B142: 080082 | C142: 六盘水市钟山区规划执法大队 | D142: 03 | E142: 参照公务员法管理单位 | F142: 贵州省六盘水市凤凰新区政通路 | G142: http://www.gzzs.gov.cn/SunOpen/index.aspx?sid=122&type=3 | H142: 0858-8298732 | I142: 规划执法大队科员 | J142: 01 | K142: 规划执法日常工作 | L142: 5 | M142: 本科及以上 | N142: 学士及以上学位 | P142: 地理科学类、建筑类
A143: 六盘水 | B143: 080083 | C143: 六盘水市钟山区环境监察大队 | D143: 03 | E143: 参照公务员法管理单位 | F143: 贵州省六盘水市凤凰新区政通路11号 | H143: 0858-8696166 | I143: 环境监察大队科员 | J143: 01 | K143: 环境执法 | L143: 1 | M143: 本科及以上 | P143: 化学类、环境科学与工程类
A144: 六盘水 | B144: 080084 | C144: 六盘水市钟山区社会保险事业局 | D144: 03 | E144: 参照公务员法管理单位 | F144: 贵州省六盘水市凤凰新区政通路7号 | H144: 0858-8224275 | I144: 钟山区社保局科员 | J144: 01 | K144: 办公室日常工作 | L144: 1 | M144: 本科及以上
A145: 六盘水 | B145: 080085 | C145: 六盘水市钟山区就业局 | D145: 03 | E145: 参照公务员法管理单位 | F145: 贵州省六盘水市凤凰新区政通路7号 | H145: 0858-8224275 | I145: 钟山区就业局科员 | J145: 01 | K145: 办公室日常工作 | L145: 1 | M145: 本科及以上
A146: 六盘水 | B146: 080086 | C146: 六盘水市钟山区大河镇人民政府 | D146: 04 | E146: 行政机关 | F146: 大河镇裕民新路 | H146: 0858-6451188 | I146: 综治办公室科员 | J146: 01 | K146: 综治办公室工作人员 | L146: 2 | M146: 本科及以上 | N146: 学士及以上学位
A147: 六盘水 | B147: 080087 | C147: 六盘水市钟山区大湾镇人民政府 | D147: 04 | E147: 行政机关 | F147: 六盘水市钟山区大湾镇 | H147: 0858-6574022 | I147: 卫生和人口计划生育办公室科员 | J147: 01 | K147: 办公室日常工作 | L147: 1 | M147: 本科及以上
A148: 六盘水 | B148: 080088 | C148: 六盘水市钟山区汪家寨镇人民政府 | D148: 04 | E148: 行政机关 | F148: 钟山区汪家寨镇艺奇村 | H148: 0858-6526188 | I148: 经济发展办公室科员 | J148: 01 | K148: 土木项目经济发展 | L148: 1 | M148: 本科及以上 | N148: 学士及以上学位 | P148: 土木类
A149: 六盘水 | B149: 080088 | C149: 六盘水市钟山区汪家寨镇人民政府 | D149: 04 | E149: 行政机关 | F149: 钟山区汪家寨镇艺奇村 | H149: 0858-6526188 | I149: 社会治安综合治理办公室科员 | J149: 02 | K149: 办公室日常工作 | L149: 1 | M149: 本科及以上 | N149: 学士及以上学位

Sheet 黔西南州
A1: 黔西南州2018年州、县、乡三级机关面向社会公开招录公务员职位表
A2: 招录单位代码 | B2: 单位名称 | C2: 层级代码 | D2: 机构性质 | E2: 单位地址 | F2: 单位网站 | G2: 单位咨询电话 | H2: 职位名称 | I2: 职位代码 | J2: 职位简介 | K2: 招录人数 | L2: 学历要求 | M2: 学位要求 | N2: 专业要求 | Q2: 政治面貌要求 | R2: 定向招录项目要求 | U2: 基层工作经历时间 | V2: 其他报考条件 | W2: 职位工作性质及需要说明的其他事项
N3: 大专 | O3: 本科 | P3: 研究生 | R3: 四项目人员 | S3: 退役大学生士兵 | T3: 少数民族
A4: 090001 | B4: 黔西南州中级人民法院 | C4: 02 | D4: 审判机关 | E4: 兴义市延安路57号 | G4: 0859-3230710 | H4: 司法辅助人员 | I4: 01 | J4: 从事审判辅助工作 | K4: 1 | L4: 本科及以上 | M4: 学士及以上学位 | O4: 法学类 | V4: 通过国家统一司法考试获C证及以上
A5: =IF(B5=B4,A4,A4+1) -> 090001 | B5: 黔西南州中级人民法院 | C5: 02 | D5: 审判机关 | E5: 兴义市延安路57号 | G5: 0859-3230710 | H5: 司法辅助人员 | I5: 02 | J5: 从事审判辅助工作 | K5: 1 | L5: 本科及以上 | M5: 学士及以上学位 | O5: 法学类 | U5: 2年 | V5: 通过国家统一司法考试获C证及以上；限男性
A6: 090001 | B6: 黔西南州中级人民法院 | C6: 02 | D6: 审判机关 | E6: 兴义市延安路57号 | G6: 0859-3230710 | H6: 司法辅助人员 | I6: 03 | J6: 从事审判辅助工作 | K6: 1 | L6: 本科及以上 | M6: 学士及以上学位 | O6: 法学类 | U6: 2年 | V6: 通过国家统一司法考试获C证及以上；限女性
A7: 090001 | B7: 黔西南州中级人民法院 | C7: 02 | D7: 审判机关 | E7: 兴义市延安路57号 | G7: 0859-3230710 | H7: 司法行政人员 | I7: 04 | J7: 从事党政相关工作 | K7: 1 | L7: 本科及以上 | M7: 学士及以上学位
A8: 090002 | B8: 黔西南州就业局 | C8: 02 | D8: 参照公务员法管理单位 | E8: 兴义市建设路22号 | F8: http://www.qxnrsj.gov.cn/ | G8: 0859-3234951 | H8: 综合科工作人员 | I8: 01 | J8: 从事办公室材料撰写、宣传等日常工作 | K8: 1 | L8: 本科及以上 | M8: 学士及以上学位 | O8: 中国语言文学类 | P8: 中国语言文学 | V8: 学历证书和学位证书为同一学校同一时间颁发
A9: 090003 | B9: 黔西南州劳动人事争议仲裁院 | C9: 02 | D9: 参照公务员法管理单位 | E9: 兴义市建设路22号 | F9: http://www.qxnrsj.gov.cn/ | G9: 0859-3234951 | H9: 仲裁类科室工作人员 | I9: 01 | J9: 从事劳动人事争议仲裁等工作 | K9: 1 | L9: 本科及以上 | M9: 学士及以上学位 | O9: 法学类 | P9: 法学 | U9: 2年 | V9: 学历证书和学位证书为同一学校同一时间颁发
A10: 090004 | B10: 黔西南州教育局 | C10: 02 | D10: 行政机关 | E10: 兴义市瑞金南路47号 | G10: 0859-3118902 | H10: 工作人员 | I10: 01 | J10: 文秘工作 | K10: 1 | L10: 本科及以上 | M10: 学士及以上学位 | U10: 2年
A11: 091005 | B11: 兴义市人民法院 | C11: 03 | D11: 审判机关 | E11: 兴义市桔山街道办兴义大道双朝村 | F11: www.xingyi.guizhoucourt.cn | G11: 0859-3224367 | H11: 审判辅助人员 | I11: 01 | J11: 从事审判辅助工作 | K11: 2 | L11: 本科及以上 | M11: 学士及以上学位 | O11: 法学类 | V11: 通过国家统一司法考试获A证
A12: =IF(B12=B11,A11,A11+1) -> 091005 | B12: 兴义市人民法院 | C12: 04 | D12: 审判机关 | E12: 兴义市桔山街道办兴义大道双朝村 | G12: 0859-3224367 | H12: 桔山人民法庭审判辅助人员 | I12: 02 | J12: 从事审判辅助工作 | K12: 2 | L12: 本科及以上 | M12: 学士及以上学位 | O12: 法学类 | V12: 通过国家统一司法考试获C证及以上
A13: 091005 | B13: 兴义市人民法院 | C13: 04 | D13: 审判机关 | E13: 兴义市桔山街道办兴义大道双朝村 | G13: 0859-3224367 | H13: 下五屯人民法庭审判辅助人员 | I13: 03 | J13: 从事审判辅助工作 | K13: 2 | L13: 本科及以上 | M13: 学士及以上学位 | O13: 法学类 | V13: 通过国家统一司法考试获C证及以上
A14: 091005 | B14: 兴义市人民法院 | C14: 04 | D14: 审判机关 | E14: 兴义市桔山街道办兴义大道双朝村 | G14: 0859-3224367 | H14: 顶效人民法庭审判辅助人员 | I14: 04 | J14: 从事审判辅助工作 | K14: 1 | L14: 本科及以上 | M14: 学士及以上学位 | O14: 法学类 | V14: 通过国家统一司法考试获C证及以上
A15: 091005 | B15: 兴义市人民法院 | C15: 04 | D15: 审判机关 | E15: 兴义市桔山街道办兴义大道双朝村 | G15: 0859-3224367 | H15: 捧乍人民法庭审判辅助人员 | I15: 05 | J15: 从事审判辅助工作 | K15: 1 | L15: 本科及以上 | M15: 学士及以上学位 | O15: 法学类 | V15: 通过国家统一司法考试获C证及以上
A16: 091005 | B16: 兴义市人民法院 | C16: 04 | D16: 审判机关 | E16: 兴义市桔山街道办兴义大道双朝村 | G16: 0859-3224367 | H16: 七舍人民法庭审判辅助人员 | I16: 06 | J16: 从事审判辅助工作 | K16: 2 | L16: 本科及以上 | M16: 学士及以上学位 | O16: 法学类 | V16: 通过国家统一司法考试获C证及以上
A17: 091005 | B17: 兴义市人民法院 | C17: 04 | D17: 审判机关 | E17: 兴义市桔山街道办兴义大道双朝村 | G17: 0859-3224367 | H17: 泥凼人民法庭审判辅助人员 | I17: 07 | J17: 从事审判辅助工作 | K17: 1 | L17: 本科及以上 | M17: 学士及以上学位 | O17: 法学类 | V17: 通过国家统一司法考试获C证及以上
A18: 091005 | B18: 兴义市人民法院 | C18: 04 | D18: 审判机关 | E18: 兴义市桔山街道办兴义大道双朝村 | G18: 0859-3224367 | H18: 仓更人民法庭审判辅助人员 | I18: 08 | J18: 从事审判辅助工作 | K18: 1 | L18: 本科及以上 | M18: 学士及以上学位 | O18: 法学类 | V18: 通过国家统一司法考试获C证及以上
A19: 091005 | B19: 兴义市人民法院 | C19: 04 | D19: 审判机关 | E19: 兴义市桔山街道办兴义大道双朝村 | G19: 0859-3224367 | H19: 郑屯人民法庭审判辅助人员 | I19: 09 | J19: 从事审判辅助工作 | K19: 1 | L19: 本科及以上 | M19: 学士及以上学位 | O19: 法学类 | V19: 通过国家统一司法考试获C证及以上
A20: 091005 | B20: 兴义市人民法院 | C20: 04 | D20: 审判机关 | E20: 兴义市桔山街道办兴义大道双朝村 | G20: 0859-3224367 | H20: 南盘江人民法庭审判辅助人员 | I20: 10 | J20: 从事审判辅助工作 | K20: 1 | L20: 本科及以上 | M20: 学士及以上学位 | O20: 法学类 | V20: 通过国家统一司法考试获C证及以上
A21: 091005 | B21: 兴义市人民法院 | C21: 04 | D21: 审判机关 | E21: 兴义市桔山街道办兴义大道双朝村 | G21: 0859-3224367 | H21: 清水河人民法庭审判辅助人员 | I21: 11 | J21: 从事审判辅助工作 | K21: 1 | L21: 本科及以上 | M21: 学士及以上学位 | O21: 法学类 | V21: 通过国家统一司法考试获C证及以上
A22: 091005 | B22: 兴义市人民法院 | C22: 04 | D22: 审判机关 | E22: 兴义市桔山街道办兴义大道双朝村 | G22: 0859-3224367 | H22: 马岭人民法庭审判辅助人员 | I22: 12 | J22: 从事审判辅助工作 | K22: 1 | L22: 本科及以上 | M22: 学士及以上学位 | O22: 法学类 | V22: 通过国家统一司法考试获C证及以上
A23: 091006 | B23: 兴义市老年大学 | C23: 03 | D23: 参照公务员法管理单位 | E23: 兴义市黄草街道北门社区一组 | G23: 0859-3224367 | H23: 办公室工作人员 | I23: 01 | J23: 办公室日常工作 | K23: 1 | L23: 本科及以上 | M23: 学士及以上学位
A24: 091007 | B24: 兴义市妇女联合会 | C24: 03 | D24: 参照公务员法管理的人民团体和群众团体 | E24: 兴义市东风路67号 | G24: 0859-3224367 | H24: 办公室工作人员 | I24: 01 | J24: 办公室日常工作 | K24: 1 | L24: 本科及以上 | M24: 学士及以上学位 | O24: 中国语言文学类
A25: 091008 | B25: 兴义市黄草街道办事处 | C25: 04 | D25: 行政机关 | E25: 兴义市铁匠街23号 | G25: 0859-3224367 | H25: 党政办工作人员 | I25: 01 | J25: 办公室日常工作、协助处理棚户区改造相关工作 | K25: 1 | L25: 本科及以上 | M25: 学士及以上学位 | O25: 工学学科门类
A26: 091009 | B26: 兴义市兴泰街道办事处 | C26: 04 | D26: 行政机关 | E26: 兴义市文化路100号 | G26: 0859-3224367 | H26: 党政办工作人员 | I26: 01 | J26: 文秘工作 | K26: 1 | L26: 本科及以上 | M26: 学士及以上学位
A27: 091010 | B27: 兴义市桔山街道办事处 | C27: 04 | D27: 行政机关 | E27: 兴义市桔山街道金笔路5号 | G27: 0859-3224367 | H27: 党政办工作人员 | I27: 01 | J27: 办公室日常工作 | K27: 1 | L27: 本科及以上 | M27: 学士及以上学位
A28: 091011 | B28: 兴义市下五屯街道办事处 | C28: 04 | D28: 行政机关 | E28: 兴义市下五屯街道庄园路1号 | G28: 0859-3224367 | H28: 党政办工作人员 | I28: 01 | J28: 办公室日常工作 | K28: 2 | L28: 本科及以上 | M28: 学士及以上学位
A29: 091011 | B29: 兴义市下五屯街道办事处 | C29: 04 | D29: 行政机关 | E29: 兴义市下五屯街道庄园路1号 | G29: 0859-3224367 | H29: 党政办工作人员 | I29: 02 | J29: 办公室日常工作 | K29: 1 | L29: 本科及以上 | M29: 学士及以上学位 | Q29: 中共党员
A30: 091012 | B30: 兴义市万峰林街道办事处 | C30: 04 | D30: 行政机关 | E30: 兴义市万峰林景区民族街 | G30: 0859-3224367 | H30: 党政办工作人员 | I30: 01 | J30: 办公室日常工作 | K30: 1 | L30: 本科及以上 | M30: 学士及以上学位
A31: 091013 | B31: 兴义市威舍镇人民政府 | C31: 04 | D31: 行政机关 | E31: 兴义市威舍镇光辉社区1号 | G31: 0859-3224367 | H31: 党政办工作人员 | I31: 01 | J31: 办公室日常工作 | K31: 1 | L31: 本科及以上
A32: 091014 | B32: 兴义市清水河镇人民政府 | C32: 04 | D32: 行政机关 | E32: 兴义市清水河镇黔西社区五组 | G32: 0859-3224367 | H32: 党政办工作人员 | I32: 01 | J32: 办公室日常工作 | K32: 1 | L32: 本科及以上
A33: 091015 | B33: 兴义市白碗窑镇人民政府 | C33: 04 | D33: 行政机关 | E33: 兴义市白碗窑镇海子村 | G33: 0859-3224367 | H33: 党政办工作人员 | I33: 01 | J33: 办公室日常工作 | K33: 1 | L33: 本科及以上 | M33: 学士及以上学位
A34: 091015 | B34: 兴义市白碗窑镇人民政府 | C34: 04 | D34: 行政机关 | E34: 兴义市白碗窑镇海子村 | G34: 0859-3224367 | H34: 党政办工作人员 | I34: 02 | J34: 办公室日常工作 | K34: 1 | L34: 本科及以上 | M34: 学士及以上学位 | R34: 是 | S34: 是 | V34: 定向招录“四项目人员”或“退役大学生士兵”
A35: 091016 | B35: 兴义市七舍镇人民政府 | C35: 04 | D35: 行政机关 | E35: 兴义市七舍镇七舍村一组 | G35: 0859-3224367 | H35: 党政办工作人员 | I35: 01 | J35: 办公室日常工作 | K35: 2 | L35: 本科及以上 | M35: 学士及以上学位
A36: 091017 | B36: 兴义市捧乍镇人民政府 | C36: 04 | D36: 行政机关 | E36: 兴义市捧乍镇中街37号 | G36: 0859-3224367 | H36: 党政办工作人员 | I36: 01 | J36: 从事会计财务工作 | K36: 1 | L36: 本科及以上 | M36: 学士及以上学位 | O36: 会计及相关专业
A37: 091018 | B37: 兴义市敬南镇人民政府 | C37: 04 | D37: 行政机关 | E37: 兴义市敬南镇吴家坪村一组 | G37: 0859-3224367 | H37: 党政办工作人员 | I37: 01 | J37: 办公室日常工作 | K37: 1 | L37: 本科及以上 | M37: 学士及以上学位
A38: 091019 | B38: 兴义市南盘江镇人民政府 | C38: 04 | D38: 行政机关 | E38: 兴义市南盘江镇田寨村街上 | G38: 0859-3224367 | H38: 社会事务办工作人员 | I38: 01 | J38: 办公室日常工作 | K38: 1 | L38: 本科及以上
A39: 091020 | B39: 兴义市猪场坪乡人民政府 | C39: 04 | D39: 行政机关 | E39: 兴义市猪场坪乡猪场坪村场坝组 | G39: 0859-3224367 | H39: 党政办工作人员 | I39: 01 | J39: 办公室日常工作 | K39: 1 | L39: 本科及以上 | V39: 限男性
A40: 091020 | B40: 兴义市猪场坪乡人民政府 | C40: 04 | D40: 行政机关 | E40: 兴义市猪场坪乡猪场坪村场坝组 | G40: 0859-3224367 | H40: 党政办工作人员 | I40: 02 | J40: 办公室日常工作 | K40: 1 | L40: 本科及以上 | V40: 限女性
A41: 091020 | B41: 兴义市猪场坪乡人民政府 | C41: 04 | D41: 行政机关 | E41: 兴义市猪场坪乡猪场坪村场坝组 | G41: 0859-3224367 | H41: 党政办工作人员 | I41: 03 | J41: 办公室日常工作 | K41: 1 | L41: 本科及以上 | O41: 法学类
A42: 091021 | B42: 兴义市洛万乡人民政府 | C42: 04 | D42: 行政机关 | E42: 兴义市洛万乡田坝街8号 | G42: 0859-3224367 | H42: 党政办工作人员 | I42: 01 | J42: 办公室日常工作 | K42: 1 | L42: 本科及以上 | M42: 学士及以上学位 | O42: 财政学类
A43: 091022 | B43: 兴义市人力资源和社会保障局 | C43: 03 | D43: 行政机关 | E43: 兴义市桔丰路中段 | G43: 0859-3220144 | H43: 工作人员 | I43: 01 | J43: 局机关日常工作 | K43: 1 | L43: 本科及以上 | M43: 学士及以上学位
A44: 091023 | B44: 兴义市发展和改革局 | C44: 03 | D44: 行政机关 | E44: 兴义市东风路67号 | G44: 0859-3223530 | H44: 项目管理股工作人员 | I44: 01 | J44: 项目管理日常相关工作 | K44: 1 | L44: 本科及以上 | M44: 学士及以上学位 | O44: 土木类 | P44: 土木工程
A45: 091024 | B45: 兴义市市场监督管理局 | C45: 04 | D45: 行政机关 | E45: 兴义市坪东西路94号 | G45: 0859-3118499 | H45: 坪东分局工作人员 | I45: 01 | J45: 工商行政管理 | K45: 1 | L45: 本科及以上 | M45: 学士及以上学位 | O45: 工商管理类
A46: 091025 | B46: 兴义市工业贸易和科学技术局 | C46: 03 | D46: 行政机关 | E46: 兴义市沙井街土城东门二巷30号 | G46: 0859-2290003 | H46: 信息产业发展股工作人员 | I46: 01 | J46: 信息产业发展工作 | K46: 1 | L46: 本科及以上 | M46: 学士及以上学位 | O46: 电子商务类 | P46: 计算机科学与技术
A47: 091026 | B47: 兴义市安全生产监督管理局执法监察大队 | C47: 03 | D47: 参照公务员法管理单位 | E47: 兴义市桔山路10号 | G47: 0859-3229766 | H47: 安全生产执法监察大队工作人员 | I47: 01 | J47: 安全生产行政执法 | K47: 1 | L47: 本科及以上 | M47: 学士及以上学位 | O47: 法学类 | P47: 法学
A48: 091027 | B48: 兴义市财政局基层财政管理局 | C48: 03 | D48: 参照公务员法管理单位 | E48: 兴义市文科路36号 | G48: 0859-3222629 | H48: 工作人员 | I48: 01 | J48: 负责“一事一议”财政奖补项目等工作 | K48: 1 | L48: 本科及以上 | M48: 学士及以上学位 | O48: 农业工程类、土木类、水利类 | P48: 农业工程、土木工程、水利工程
A49: 091028 | B49: 兴义市财政局国库集中支付中心 | C49: 03 | D49: 参照公务员法管理单位 | E49: 兴义市文科路36号 | G49: 0859-3222629 | H49: 工作人员 | I49: 01 | J49: 负责“一事一议”财政奖补项目等工作 | K49: 1 | L49: 本科及以上 | M49: 学士及以上学位 | O49: 农业工程类、土木类、水利类 | P49: 农业工程、土木工程、水利工程
A50: 091029 | B50: 兴义市城市管理综合行政执法大队 | C50: 03 | D50: 参照公务员法管理单位 | E50: 兴义市栖霞路 | G50: 0859- 3817063 | H50: 城市管理监察员 | I50: 01 | J50: 城市综合执法工作 | K50: 1 | L50: 本科及以上 | M50: 学士及以上学位 | O50: 计算机类 | P50: 计算机科学与技术 | V50: 限男性
A51: 091029 | B51: 兴义市城市管理综合行政执法大队 | C51: 03 | D51: 参照公务员法管理单位 | E51: 兴义市栖霞路 | G51: 0859- 3817063 | H51: 城市管理监察员 | I51: 02 | J51: 城市综合执法工作 | K51: 1 | L51: 本科及以上 | M51: 学士及以上学位 | O51: 法学类 | P51: 法学
A52: 091029 | B52: 兴义市城市管理综合行政执法大队 | C52: 03 | D52: 参照公务员法管理单位 | E52: 兴义市栖霞路 | G52: 0859- 3817063 | H52: 城市管理监察员 | I52: 03 | J52: 城市综合执法工作 | K52: 1 | L52: 本科及以上 | M52: 学士及以上学位 | R52: 是 | S52: 是 | V52: 定向招录“四项目人员”或“退役大学生士兵”
A53: 091030 | B53: 兴义市国土资源执法监察大队 | C53: 03 | D53: 参照公务员法管理单位 | E53: 兴义市神奇东路61号 | F53: http://www.gzxy.gov.cn/site/xygtj/index.html | G53: 0859-3110229 | H53: 执法监察员 | I53: 01 | J53: 国土资源执法监察 | K53: 2 | L53: 本科及以上 | M53: 学士及以上学位 | O53: 法学类 | P53: 法学
A54: 091031 | B54: 兴义市就业局 | C54: 03 | D54: 参照公务员法管理单位 | E54: 兴义市桔丰路中段 | G54: 0859-3220144 | H54: 工作人员 | I54: 01 | J54: 就业局日常工作 | K54: 1 | L54: 本科及以上 | M54: 学士及以上学位
A55: 091032 | B55: 兴义市供销合作社联合社 | C55: 03 | D55: 参照公务员法管理单位 | E55: 兴义市豆芽街43号 | G55: 0859-3224737 | H55: 办公室工作人员 | I55: 01 | J55: 文秘和日常工作等 | K55: 1 | L55: 本科及以上 | M55: 学士及以上学位 | O55: 中国语言文学类
A56: 092033 | B56: 兴仁县人民法院 | C56: 03 | D56: 审判机关 | E56: 兴仁县东湖街道办文笔路 | G56: 0859-6212245 | H56: 审判辅助人员 | I56: 01 | J56: 审判辅助 | K56: 1 | L56: 本科及以上 | M56: 学士及以上学位 | O56: 计算机及相关专业
A57: =IF(B57=B56,A56,A56+1) -> 092033 | B57: 兴仁县人民法院 | C57: 03 | D57: 审判机关 | E57: 兴仁县东湖街道办文笔路 | G57: 0859-6212245 | H57: 审判辅助人员 | I57: 02 | J57: 审判辅助 | K57: 1 | L57: 本科及以上 | M57: 学士及以上学位 | O57: 法学类
A58: 092034 | B58: 兴仁县委宣传部 | C58: 03 | D58: 党的机关 | E58: 兴仁县民主路县委大院兴仁县委宣传部 | G58: 0859-6212071 | H58: 工作人员 | I58: 01 | J58: 从事办公室日常工作 | K58: 1 | L58: 本科及以上 | O58: 中国语言文学类
A59: 092035 | B59: 兴仁县纪律检查委员会 | C59: 03 | D59: 党的机关 | E59: 兴仁县城北街道民主路 | F59: http://www.gzxrlzw.gov.cn/ | G59: 0859-6212006 | H59: 工作人员 | I59: 01 | J59: 办公室日常工作 | K59: 1 | L59: 本科及以上 | M59: 学士及以上学位 | O59: 法学类 | P59: 法学
A60: 092036 | B60: 兴仁县非公有制经济发展侵权投诉中心 | C60: 03 | D60: 参照公务员法管理单位 | E60: 兴仁县城北街道民主路 | F60: http://www.gzxrlzw.gov.cn/ | G60: 0859-6212006 | H60: 工作人员 | I60: 01 | J60: 文秘工作 | K60: 1 | L60: 本科及以上 | M60: 学士及以上学位 | O60: 中国语言文学类 | P60: 文学
A61: 092036 | B61: 兴仁县非公有制经济发展侵权投诉中心 | C61: 03 | D61: 参照公务员法管理单位 | E61: 兴仁县城北街道民主路 | F61: http://www.gzxrlzw.gov.cn/ | G61: 0859-6212006 | H61: 工作人员 | I61: 02 | J61: 案件工作 | K61: 2 | L61: 本科及以上 | M61: 学士及以上学位 | O61: 法学类 | P61: 法学
A62: 092037 | B62: 中国共产主义青年团兴仁县委员会 | C62: 03 | D62: 参照公务员法管理的人民团体和群众团体 | E62: 兴仁县城北街道民主路政府大院 | G62: 0859-6212037 | H62: 工作人员 | I62: 01 | J62: 办公室日常工作 | K62: 1 | L62: 大专及以上 | Q62: 共青团员 | R62: 是 | S62: 是 | V62: 定向招录“四项目人员”或“退役大学生士兵”
A63: 092038 | B63: 兴仁县东湖街道办事处 | C63: 04 | D63: 行政机关 | E63: 兴仁县东湖街道南山小区 | G63: 0859-6212020 | H63: 党政办工作人员 | I63: 01 | J63: 办公室工作 | K63: 1 | L63: 本科及以上 | M63: 学士及以上学位
A64: 092038 | B64: 兴仁县东湖街道办事处 | C64: 04 | D64: 行政机关 | E64: 兴仁县东湖街道南山小区 | G64: 0859-6212021 | H64: 规划建设和环境保护办公室工作人员 | I64: 02 | J64: 办公室工作 | K64: 1 | L64: 本科及以上 | M64: 学士及以上学位 | O64: 土木类、建筑类、土建类
A65: 092039 | B65: 兴仁县回龙镇人民政府 | C65: 04 | D65: 行政机关 | E65: 兴仁县回龙镇回龙居委会 | G65: 0859-6320002 | H65: 党政办公室工作人员 | I65: 01 | J65: 从事会计财务工作 | K65: 1 | L65: 本科及以上 | M65: 学士及以上学位 | O65: 会计及相关专业
A66: 092040 | B66: 兴仁县下山镇人民政府 | C66: 04 | D66: 行政机关 | E66: 兴仁县下山镇下山居委会 | G66: 0859-6520526 | H66: 党政办工作人员 | I66: 01 | J66: 党政办日常工作 | K66: 1 | L66: 本科及以上 | M66: 学士及以上学位
A67: 092040 | B67: 兴仁县下山镇人民政府 | C67: 04 | D67: 行政机关 | E67: 兴仁县下山镇下山居委会 | G67: 0859-6520526 | H67: 安全生产监督管理办公室工作人员 | I67: 02 | J67: 从事矿山安全管理工作 | K67: 1 | L67: 本科及以上 | M67: 学士及以上学位 | O67: 矿业类、地质类、地矿类 | P67: 地质学
A68: 092041 | B68: 兴仁县鲁础营回族乡人民政府 | C68: 04 | D68: 行政机关 | E68: 兴仁县鲁础营回族乡鲁础营村鲁府路 | F68: http://www.11467.com/qianxinan/co/1194.htm | G68: 0859-6370002 | H68: 党政办工作人员 | I68: 01 | J68: 办公室日常工作 | K68: 1 | L68: 本科及以上 | M68: 学士及以上学位
A69: 092042 | B69: 兴仁县百德镇人民政府 | C69: 04 | D69: 行政机关 | E69: 兴仁县百德镇百屯居委会 | G69: 0859-6410016 | H69: 党政办工作人员 | I69: 01 | J69: 办公室日常工作 | K69: 1 | L69: 本科及以上 | M69: 学士及以上学位 | O69: 中国语言文学类、新闻传播学类、法学类 | Q69: 中共党员
A70: 092042 | B70: 兴仁县百德镇人民政府 | C70: 04 | D70: 行政机关 | E70: 兴仁县百德镇百屯居委会 | G70: 0859-6410016 | H70: 计生办工作人员 | I70: 02 | J70: 办公室日常工作 | K70: 1 | L70: 本科及以上 | M70: 学士及以上学位 | R70: 是 | S70: 是 | V70: 定向招录“四项目人员”或“退役大学生士兵”
A71: 092043 | B71: 兴仁县就业局 | C71: 03 | D71: 参照公务员法管理单位 | E71: 兴仁县东湖街道环湖路 | G71: 0859-6212394 | H71: 工作人员 | I71: 01 | J71: 信息维护及办公室日常工作 | K71: 1 | L71: 本科及以上 | M71: 学士及以上学位 | O71: 计算机及相关专业 | P71: 计算机科学与技术
A72: 092044 | B72: 兴仁县档案局 | C72: 03 | D72: 参照公务员法管理单位 | E72: 兴仁县东湖街道环湖路 | G72: 0859-6210024 | H72: 工作人员 | I72: 01 | J72: 财务类工作 | K72: 1 | L72: 本科及以上 | O72: 会计及相关专业 | P72: 会计学
A73: 092044 | B73: 兴仁县档案局 | C73: 03 | D73: 参照公务员法管理单位 | E73: 兴仁县东湖街道环湖路 | G73: 0859-6210024 | H73: 工作人员 | I73: 02 | J73: 弱电系统安全维护、计算机信息维护 | K73: 1 | L73: 大专及以上 | N73: 电气信息类 | O73: 电子信息类
A74: 092045 | B74: 兴仁县市场监督管理局 | C74: 04 | D74: 行政机关 | E74: 兴仁县振兴大道中段 | G74: 0859-6220258 | H74: 下山分局工作人员 | I74: 01 | J74: 市场监督安全管理工作 | K74: 1 | L74: 本科及以上 | M74: 学士及以上学位
A75: 092045 | B75: 兴仁县市场监督管理局 | C75: 04 | D75: 行政机关 | E75: 兴仁县振兴大道中段 | G75: 0859-6220258 | H75: 回龙分局工作人员 | I75: 02 | J75: 市场监督安全管理工作 | K75: 1 | L75: 本科及以上 | M75: 学士及以上学位
A76: 092045 | B76: 兴仁县市场监督管理局 | C76: 04 | D76: 行政机关 | E76: 兴仁县振兴大道中段 | G76: 0859-6220258 | H76: 百德分局工作人员 | I76: 03 | J76: 市场监督安全管理工作 | K76: 2 | L76: 本科及以上 | M76: 学士及以上学位
A77: 092046 | B77: 兴仁县国库支付中心 | C77: 03 | D77: 参照公务员法管理单位 | E77: 兴仁县政府大院内 | G77: 0859-6217309 | H77: 工作人员 | I77: 01 | J77: 财务相关工作 | K77: 4 | L77: 本科及以上 | M77: 学士及以上学位 | O77: 会计及相关专业 | P77: 会计学
A78: 092046 | B78: 兴仁县国库支付中心 | C78: 03 | D78: 参照公务员法管理单位 | E78: 兴仁县政府大院内 | G78: 0859-6217309 | H78: 工作人员 | I78: 02 | J78: 金融相关工作 | K78: 1 | L78: 本科及以上 | M78: 学士及以上学位 | O78: 金融学类 | P78: 应用经济学
A79: 092046 | B79: 兴仁县国库支付中心 | C79: 03 | D79: 参照公务员法管理单位 | E79: 兴仁县政府大院内 | G79: 0859-6217309 | H79: 工作人员 | I79: 03 | J79: 文秘相关工作 | K79: 1 | L79: 本科及以上 | M79: 学士及以上学位 | O79: 中国语言文学类 | P79: 中国语言文学
A80: 093047 | B80: 安龙县纪律检查委员会机关 | C80: 03 | D80: 党的机关 | E80: 安龙县西城区 | G80: 0859-5210142 | H80: 办公室工作人员 | I80: 01 | J80: 纪律审查工作 | K80: 2 | L80: 本科及以上 | M80: 学士及以上学位 | O80: 法学类 | P80: 法学
A81: =IF(B81=B80,A80,A80+1) -> 093048 | B81: 安龙县人民法院 | C81: 03 | D81: 审判机关 | E81: 安龙县招堤街道西河社区 | G81: 0859-5210105 | H81: 执行员 | I81: 01 | J81: 执行工作 | K81: 1 | L81: 本科及以上 | M81: 学士及以上学位 | O81: 法学类 | P81: 法学
A82: 093048 | B82: 安龙县人民法院 | C82: 04 | D82: 审判机关 | E82: 安龙县招堤街道西河社区 | G82: 0859-5210105 | H82: 洒雨人民法庭审判辅助人员 | I82: 02 | J82: 从事审判辅助工作 | K82: 1 | L82: 本科及以上 | M82: 学士及以上学位 | O82: 法学类 | P82: 法学
A83: 093049 | B83: 中共安龙县委宣传部 | C83: 03 | D83: 党的机关 | E83: 安龙县行政办公区 | G83: 0859-5211001 | H83: 办公室工作人员 | I83: 01 | J83: 办公室日常工作 | K83: 1 | L83: 本科及以上 | M83: 学士及以上学位 | O83: 中国语言文学类
A84: 093050 | B84: 安龙县妇女联合会 | C84: 03 | D84: 参照公务员法管理的人民团体和群众团体 | E84: 安龙县行政办公区 | G84: 0859-5211006 | H84: 工作人员 | I84: 01 | J84: 办公室日常工作 | K84: 1 | L84: 本科及以上 | M84: 学士及以上学位 | O84: 中国语言文学类
A85: 093051 | B85: 安龙县龙山镇 | C85: 04 | D85: 行政机关 | E85: 安龙县龙山镇 | G85: 0859-5480001 | H85: 党政办工作人员 | I85: 01 | J85: 办公室日常工作 | K85: 1 | L85: 本科及以上
A86: 093051 | B86: 安龙县龙山镇 | C86: 04 | D86: 行政机关 | E86: 安龙县龙山镇 | G86: 0859-5480001 | H86: 党政办工作人员 | I86: 02 | J86: 办公室日常工作 | K86: 1 | L86: 本科及以上 | R86: 是 | S86: 是 | V86: 定向招录“四项目人员”或“退役大学生士兵”
A87: 093052 | B87: 安龙县发展和改革局 | C87: 03 | D87: 行政机关 | E87: 安龙县西城区开发大道 | G87: 0859-5210145 | H87: 工作人员 | I87: 01 | J87: 从事项目审核方面 | K87: 1 | L87: 本科及以上 | O87: 土木类、统计学类
A88: 093052 | B88: 安龙县发展和改革局 | C88: 03 | D88: 行政机关 | E88: 安龙县西城区开发大道 | G88: 0859-5210145 | H88: 工作人员 | I88: 02 | J88: 从事项目审核方面 | K88: 1 | L88: 本科及以上 | O88: 土木类、会计及相关专业
A89: 093053 | B89: 安龙县教育局 | C89: 03 | D89: 行政机关 | E89: 安龙县西城区 | G89: 0859-5210131 | H89: 工作人员 | I89: 01 | J89: 从事办公室工作 | K89: 1 | L89: 本科及以上 | O89: 土木类、会计及相关专业
A90: 093054 | B90: 安龙县工业贸易和科学技术局（安龙县知识产权局、安龙县商务局） | C90: 03 | D90: 行政机关 | E90: 安龙县栖凤街道中心城 | G90: 0859-5210502 | H90: 工作人员 | I90: 01 | J90: 从事办公室工作 | K90: 1 | L90: 本科及以上
A91: 093055 | B91: 安龙县国土资源局 | C91: 03 | D91: 行政机关 | E91: 安龙县西城区开发大道 | G91: 0859-5210734 | H91: 工作人员 | I91: 01 | J91: 从事办公室工作 | K91: 1 | L91: 本科及以上
A92: 093056 | B92: 安龙县统计局 | C92: 03 | D92: 行政机关 | E92: 安龙县栖凤街道中心城 | G92: 0859-5210147 5219026 | H92: 工作人员 | I92: 01 | J92: 从事办公室工作 | K92: 1 | L92: 本科及以上 | O92: 经济贸易类、统计学类、公共管理类
A93: 093057 | B93: 安龙县司法局 | C93: 03 | D93: 行政机关 | E93: 安龙县西城区开发大道鑫凯龙城侧面 | G93: 0859-5210164 | H93: 工作人员 | I93: 01 | J93: 从事办公室工作 | K93: 1 | L93: 本科及以上 | O93: 法学类
A94: 093057 | B94: 安龙县司法局 | C94: 04 | D94: 行政机关 | E94: 安龙县钱相街道办事处 | G94: 0859-5210164 | H94: 钱相街道司法所工作人员 | I94: 02 | J94: 从事普法方面工作 | K94: 1 | L94: 本科及以上 | O94: 法学类
A95: 093057 | B95: 安龙县司法局 | C95: 04 | D95: 行政机关 | E95: 安龙县万峰湖镇政府办公楼 | G95: 0859-5210164 | H95: 万峰湖镇司法所工作人员 | I95: 03 | J95: 从事普法方面工作 | K95: 1 | L95: 本科及以上 | O95: 法学类
A96: 093057 | B96: 安龙县司法局 | C96: 04 | D96: 行政机关 | E96: 安龙县洒雨镇政府办公楼 | G96: 0859-5210164 | H96: 洒雨镇司法所工作人员 | I96: 04 | J96: 从事普法方面工作 | K96: 1 | L96: 本科及以上 | O96: 法学类
A97: 093058 | B97: 安龙县市场监督管理局 | C97: 04 | D97: 行政机关 | E97: 安龙县栖凤街道办西河社区 | G97: 0859-5212077 | H97: 一分局工作人员 | I97: 01 | J97: 从事市场监督管理 | K97: 1 | L97: 本科及以上
A98: 093058 | B98: 安龙县市场监督管理局 | C98: 04 | D98: 行政机关 | E98: 安龙县洒雨镇 | G98: 0859-5212077 | H98: 二分局工作人员 | I98: 02 | J98: 从事市场监督管理 | K98: 1 | L98: 本科及以上 | O98: 食品科学与工程类
A99: 093059 | B99: 安龙县地方海事处（安龙县航务管理局） | C99: 03 | D99: 参照公务员法管理单位 | E99: 安龙县栖凤街道新车站三楼 | G99: 0859-5219181 | H99: 工作人员 | I99: 01 | J99: 从事海事监管 | K99: 1 | L99: 本科及以上 | O99: 环境科学与工程类、法学类
A100: 093060 | B100: 安龙县国库集中支付中心 | C100: 03 | D100: 参照公务员法管理单位 | E100: 安龙县栖凤街道中心城 | G100: 0859-5222667 | H100: 办公室工作人员 | I100: 01 | J100: 从事会计核算 | K100: 1 | L100: 本科及以上 | O100: 会计及相关专业
A101: 093061 | B101: 安龙县社会福利保险局 | C101: 03 | D101: 参照公务员法管理单位 | E101: 安龙县西城区开发大道盛世龙城对面 | G101: 0859-5220333 | H101: 工作人员 | I101: 01 | J101: 从事社保基金核算 | K101: 1 | L101: 本科及以上 | O101: 会计及相关专业
A102: 093062 | B102: 安龙县就业局 | C102: 03 | D102: 参照公务员法管理单位 | E102: 安龙县西城区开发大道盛世龙城对面 | G102: 0859-5220333 | H102: 工作人员 | I102: 01 | J102: 从事办公室工作 | K102: 1 | L102: 本科及以上
A103: 094063 | B103: 贞丰县者相镇人民政府 | C103: 04 | D103: 行政机关 | E103: 贞丰县者相镇花陇旗 | G103: 0859-6732011 | H103: 办公室工作人员 | I103: 01 | J103: 办公室日常工作 | K103: 1 | L103: 大专及以上 | R103: 是 | S103: 是 | V103: 定向招录“四项目人员”或“退役大学生士兵”
A104: =IF(B104=B103,A103,A103+1) -> 094064 | B104: 贞丰县北盘江镇人民政府 | C104: 04 | D104: 行政机关 | E104: 贞丰县北盘江镇花陇旗 | G104: 0859-6842703 | H104: 办公室工作人员 | I104: 01 | J104: 办公室日常工作 | K104: 1 | L104: 大专及以上
A105: 094065 | B105: 贞丰县鲁贡镇人民政府 | C105: 04 | D105: 行政机关 | E105: 贞丰县鲁贡镇移民新街 | G105: 0859-6812003 | H105: 办公室工作人员 | I105: 01 | J105: 办公室日常工作 | K105: 1 | L105: 大专及以上
A106: 094066 | B106: 贞丰县长田镇人民政府 | C106: 04 | D106: 行政机关 | E106: 贞丰县长田镇金叶新村一组 | G106: 0859-6850038 | H106: 办公室工作人员 | I106: 01 | J106: 办公室日常工作 | K106: 1 | L106: 大专及以上
A107: 094067 | B107: 贞丰县小屯镇人民政府 | C107: 04 | D107: 行政机关 | E107: 贞丰县小屯镇小屯村 | G107: 0859-6770093 | H107: 办公室工作人员 | I107: 01 | J107: 办公室日常工作 | K107: 2 | L107: 大专及以上
A108: 094068 | B108: 贞丰县白层镇人民政府 | C108: 04 | D108: 行政机关 | E108: 贞丰县白层镇糖桥路 | G108: 0859-6872015 | H108: 办公室工作人员 | I108: 01 | J108: 办公室日常工作 | K108: 3 | L108: 大专及以上
A109: 094069 | B109: 贞丰县国库集中支付中心 | C109: 03 | D109: 参照公务员法管理单位 | E109: 贞丰县珉谷街道办事处南环路 | G109: 0859-6611216 | H109: 工作人员 | I109: 01 | J109: 财务工作 | K109: 1 | L109: 本科及以上 | O109: 会计及相关专业
A110: 094069 | B110: 贞丰县国库集中支付中心 | C110: 03 | D110: 参照公务员法管理单位 | E110: 贞丰县珉谷街道办事处南环路 | G110: 0859-6611216 | H110: 工作人员 | I110: 02 | J110: 文秘工作 | K110: 1 | L110: 本科及以上 | O110: 中国语言文学类、新闻传播学类
A111: 094070 | B111: 贞丰县基层财政管理局 | C111: 03 | D111: 参照公务员法管理单位 | E111: 贞丰县珉谷街道办事处建设路 | G111: 0859-6611216 | H111: 工作人员 | I111: 01 | J111: 财务工作 | K111: 1 | L111: 本科及以上 | O111: 会计及相关专业
A112: 094071 | B112: 贞丰县社会保险事业局 | C112: 03 | D112: 参照公务员法管理单位 | E112: 贞丰县金丰大道1号 | G112: 0859-6610416 | H112: 工作人员 | I112: 01 | J112: 办公室日常工作 | K112: 1 | L112: 本科及以上 | M112: 学士及以上学位 | O112: 会计及相关专业
A113: 094071 | B113: 贞丰县社会保险事业局 | C113: 03 | D113: 参照公务员法管理单位 | E113: 贞丰县金丰大道1号 | G113: 0859-6610416 | H113: 工作人员 | I113: 02 | J113: 机关信息化建设 | K113: 1 | L113: 本科及以上 | M113: 学士及以上学位 | O113: 计算机类
A114: 094072 | B114: 贞丰县劳动保障监察大队 | C114: 03 | D114: 参照公务员法管理单位 | E114: 贞丰县金丰大道1号 | G114: 0859-6610416 | H114: 工作人员 | I114: 01 | J114: 办公室日常工作 | K114: 1 | L114: 本科及以上 | M114: 学士及以上学位 | O114: 法学类
A115: 095073 | B115: 普安县人民法院 | C115: 03 | D115: 审判机关 | E115: 普安县盘水街道 | G115: 0859-7232433 | H115: 审判辅助人员 | I115: 01 | J115: 机关财务工作 | K115: 1 | L115: 本科及以上 | M115: 学士及以上学位 | O115: 会计及相关专业
A116: =IF(B116=B115,A115,A115+1) -> 095073 | B116: 普安县人民法院 | C116: 03 | D116: 审判机关 | E116: 普安县盘水街道 | G116: 0859-7232433 | H116: 审判辅助人员 | I116: 02 | J116: 机关信息化工作 | K116: 1 | L116: 本科及以上 | M116: 学士及以上学位 | O116: 计算机及相关专业
A117: 095074 | B117: 普安县人民检察院 | C117: 03 | D117: 检察机关 | E117: 普安县盘水街道 | G117: 0859-7232442 | H117: 司法行政人员 | I117: 01 | J117: 财会工作 | K117: 1 | L117: 本科及以上 | M117: 学士及以上学位 | O117: 会计及相关专业
A118: 095075 | B118: 普安县农村党员干部现代远程教育中心 | C118: 03 | D118: 参照公务员法管理单位 | E118: 普安县南湖街道 | G118: 0859-7235190 | H118: 办公室工作人员 | I118: 01 | J118: 办公室日常工作 | K118: 1 | L118: 本科及以上 | M118: 学士及以上学位
